Workbook

Sheet Design Regulator
A1: LM25139/-Q1 Synchronous Buck Controller Design Tool
N2: http://www.ti.com/product/lm5175
A3: About | C3: xx | F3: = Input Box | N3: TERMS OF USE
A5: Step 1: Operating Specifications
D6: Input Voltage – Min, VIN(min) | E6: 9 | F6: V
D7: Input Voltage – Nom, VIN(nom) | E7: 24 | F7: V
D8: Input Voltage – Max, VIN(max) | E8: 42 | F8: V
D9: Output Voltage, VOUT | E9: 5 | F9: V
D10: Full Load Output Current, IOUT | E10: 10 | F10: A
D11: Switching Frequency, FSW | E11: 2200 | F11: kHz
D12: Frequency Set Resistor, RT | E12: ='Variable Management'!C443 -> 10 | F12: kΩ
D13: Ambient Temperature, TA | E13: 25 | F13: °C
A15: Step 2: Current Sense Resistor
D16: Required IOCP Setpoint at VIN(nom) | E16: 18 | F16: A
D17: Recommended Shunt Resistance | E17: =Rs_ideal*1000 -> 3.10283595 | F17: mΩ
D18: Shunt Resistance, RS | E18: 4 | F18: mΩ
D19: Min Inductor Sat Current, ILO(SAT) | E19: ='Variable Management'!B95 -> 15 | F19: A
D20: Max Power Loss in Shunt | E20: ='Variable Management'!B105 -> 0.8131563684 | F20: W
D21: VIN(min) | E21: ='Variable Management'!B97 -> 14.25139605 | F21: A
C22: IOUT(typ) at OCP Inception: | D22: VIN(nom) | E22: ='Variable Management'!B98 -> 13.66285135 | F22: A
D23: VIN(max) | E23: ='Variable Management'!B99 -> 13.5109833 | F23: A
A25: Step 3: Buck Inductance
D26: Inductance for Ideal Slope Comp | E26: =Lopt*1000000 -> 0.400128041 | F26: µH
D27: Inductance, LO | E27: 0.68 | F27: µH
D28: Inductor DCR | E28: 2.2 | F28: mΩ
D29: DIL as a % at VIN(nom) | E29: ='Variable Management'!B68*100 -> 26.74297294 | F29: %
D30: Estimate Core Loss at VIN(nom) | E30: 0.2 | F30: W
A32: Step 4: Output Capacitors
D33: Output Voltage Ripple Spec | E33: 50 | F33: mVPK=PK
D34: Minimum Output Capacitance | E34: ='Variable Management'!B121 -> 3.038974198 | F34: µF
D35: Output Capacitance (derated), COUT | E35: 540 | F35: µF | K35: =CHOOSE(SCH_MODE, "", "** For Single-Output Operation in 2-Phase Mode, tie MODE to VDDA and use FB1 to set VOUT **", "** For Single-Output Operation in 3-Phase Mode, tie both MODE pins to VDDA. Use FB1 of master IC to set VOUT. Connect FB2 of master IC to AGND. Connect FB2 of slave IC to VDDA to configure it as a slave **", "** For Single-Output Operation in 4-Phase Mode, tie both MODE pins to VDDA. Use FB1 of master IC to set VOUT. Connect FB2 of master IC to AGND. Connect FB2 of slave IC to VDDA to configure it as a slave **") -> 
D36: Maximum Permitted ESR | E36: ='Variable Management'!B125 -> 18.69620417 | F36: mΩ
D37: Output Capacitor ESR | E37: 1 | F37: mΩ | K37: =CHOOSE(SCH_MODE, "", "** Tie VCCX to GND if not used **", "** Slave controller (CNTRL2) not shown **","** Slave controller (CNTRL2) not shown **") ->  | P37: =IF(SCH_MODE=1, "** Tie VCCX to GND if not used **", "") -> ** Tie VCCX to GND if not used **
D38: Resulting Output Voltage Ripple (max) | E38: ='Variable Management'!B127*1000 -> 2.689060129 | F38: mVPK-PK | K38: =IF(OR(SCH_MODE=3, SCH_MODE=4),"** Tie VCCX to GND if not used **", "") -> 
D39: Output Capacitor RMS Current (max) | E39: ='Variable Management'!B114 -> 0.8596841921 | F39: ARMS
A41: Step 5: Input Capacitors
D42: Input Voltage Ripple Spec | E42: 400 | F42: mVPK-PK
D43: Minimum Input Capacitance | E43: ='Variable Management'!B148 -> 2.840909091 | F43: µF
D44: Input Capacitance (derated), CIN | E44: 30 | F44: µF
D45: Maximum Permitted ESR | E45: ='Variable Management'!B155 -> 31.5189038 | F45: mΩ
D46: Input Capacitor ESR | E46: 1 | F46: mΩ
D47: Resulting Input Voltage Ripple (max) | E47: ='Variable Management'!B162*1000 -> 49.36780458 | F47: mVPK-PK
D48: Input Capacitor RMS Current (max) | E48: ='Variable Management'!B138 -> 5 | F48: ARMS
D49: AEF Filter Inductor | E49: 0.68 | F49: µH
A50: Step 6: Precision Enable, DRSS, FPWM / PFM
D53: Input Voltage UVLO Turn On | E53: 5 | F53: V
D54: Input Voltage UVLO Turn Off | E54: 4 | F54: V
D55: Upper Enable Resistor, RUV1 | E55: =IF(UVLO_TYPE=1,'Variable Management'!B188,0) -> 100 | F55: kΩ
D56: Lower Enable Resistor, RUV2 | E56: =IF(UVLO_TYPE=1,'Variable Management'!B189,"DNP") -> 24.9 | F56: kΩ
D57: =IF(DEMB=1, "* Tie SYNC to VCC", "* Tie SYNC to GND") -> * Tie SYNC to GND
A60: Step 7: Compensation Design
D61: Load Pole Frequency | E61: =Fp_dominant -> 716.0637176 | F61: Hz
D62: ESR Zero Frequency | E62: =Fesr/1000 -> 294.7313764 | F62: kHz
D63: Desired Crossover Frequency | E63: 52 | F63: =" kHz " -> kHz
D64: Error Amp Pole Frequency | E64: =Fp1_u -> 23.3091052 | F64: Hz
D65: =CHOOSE(VOUT_setting, "Upper Feedback Resistor","","","") ->  | E65: 39 | F65: kΩ
D66: =CHOOSE(VOUT_setting, "Lower Feedback Resistor", "* Connect "&'Variable Management'!D419&" from FB to VCC","* Tie FB to VCC","* Connect "&'Variable Management'!D419&" from FB to VCC") -> * Connect 24.9kΩ from FB to VCC | E66: =IF(Vout=Vref,"OPEN",Rfb2_u/1000) -> 471 | F66: =IF(Vout=Vref,"","kΩ") -> kΩ
D67: =CHOOSE(VOUT_setting, "Actual Output Voltage Setpoint","","","") ->  | E67: =0.8/E66*(E65+E66) -> 0.8662420382 | F67: V
A69: Compensation Components
B70: Calculated / | C70: Std Values | D70: =C70 -> Std Values | F70: Actual P/Z Frequencies
A71: RC1 | B71: =Rcea1/1000 -> 40.8278423 | C71: ='Standard Value Calculator'!S32 -> 41.2 | D71: =C71 -> 41.2 | E71: kΩ | F71: =Fp1_u -> 23.3091052 | G71: Hz (FPEA)
A72: CC1 | B72: =Cc1ea*1000000000 -> 0.7496531321 | C72: ='Standard Value Calculator'!S33 -> 0.68 | D72: =C72 -> 0.68 | E72: nF | F72: =Fz1_u/1000 -> 5.680858912 | G72: kHz (FZCOMP)
A73: CC2 | B73: =IF(Cc2ea<0, "N/A", Cc2ea*1000000000000) -> N/A | C73: ='Standard Value Calculator'!S34 -> 0 | D73: =C73 -> 0 | E73: pF | F73: =Fp2_u/1000 -> 55.16328332 | G73: kHz (FPCOMP)
A76: Efficiency / Power Loss Analyzer
A78: Step 8: Efficiency
F79: Power MOSFETs | G79: (Q1, Q2)
E80: '852, '824
E81: High-side | F81: Low-side
D82: On-State Resistance, RDS(on) | E82: 4 | F82: 4 | G82: mΩ
D83: Total Gate Charge, QG | E83: 20 | F83: 20 | G83: nC
D84: Gate-Drain Charge, QGD | E84: 4.7 | F84: 4.7 | G84: nC
D85: Gate-Source Charge, QGS | E85: 3.9 | F85: 3.9 | G85: nC
D86: Output Charge, QOSS | F86: 30 | G86: nC
D87: Output Capacitance, COSS | E87: 337 | F87: 337 | G87: pF
D88: Gate Resistance, RG | E88: 1.2 | F88: 1.2 | G88: Ω
D89: Transconductance, gFS | E89: 55 | F89: 55 | G89: S
D90: Gate-Source Threshold Voltage, VTH | E90: 1.6 | F90: 1.6 | G90: V
D91: Body Diode Forward Voltage, VBD | E91: 0.8 | F91: 0.8 | G91: V
D92: Body Diode Rev Recovery Charge, QRR | F92: 18 | G92: nC
D93: Thermal Resistance, θJA | E93: 50 | F93: 50 | G93: °C/W
A95: External Schottky Diode (if applicable)
D96: Schottky Fwd Voltage, VFWDsch | F96: 0 | G96: V
D97: Schottky Rev Recovery Charge, QRRsch | F97: 0 | G97: nC
A101: Step 9: IC Power Loss
D102: IC Power Dissipation | E102: ='Variable Management'!B362 -> 2.112 | F102: W
D103: IC Junction Temperature (estimate) | E103: ='Variable Management'!B364 -> 97.0192 | F103: °C

Sheet Input Filters (hidden)
A1: LM(2)5149-Q1 Synchronous Buck Controller Design Tool
O2: http://www.ti.com/product/lm5175
A3: About | C3: xx | F3: = Input Box | O3: TERMS OF USE
E7: AEF | M7: Passive
B9: Design tab - LAEF | C9: ='Design Regulator'!E49 & " µH" -> 0.68 µH | F9: LAEF | G9: 1 | H9: µH | J9: Suggested LIN Inductor | K9: 0.1-10 | L9: µH | N9: Chosen LIN | O9: 0.68 | P9: µH
B10: Design tab - CINJ | C10: ='Design Regulator'!#REF! & " µF" ->  | F10: CINJ | G10: 1 | H10: µF | J10: Suggested CF | K10: 0.1-10 | L10: µF | N10: Chosen CF | O10: 0.47 | P10: µF
B11: Design tab - CDAMP | C11: ='Design Regulator'!#REF! & " µF" ->  | F11: CDAMP | G11: 1 | H11: µF | J11: Suggested CDAMP | K11: 1-10 | L11: µF | N11: Chosen CDAMP | O11: 1 | P11: µF
B12: Design tab - RDAMP | C12: ='Design Regulator'!#REF! & " Ω" ->  | F12: RDAMP | G12: 10 | H12: Ω | J12: Suggested RDAMP | K12: =Rdamp_PassiveStd ->  | L12: Ω | N12: Chosen RDAMP | O12: 0.35 | P12: Ω
C14: VIN Ripple at Fsw | F14: =VinRipple_dBuV -> 93.86887629 | G14: dBµV | H14: VIN Ripple | I14: =VinRipple_dBuV -> 93.86887629 | J14: dBµV
D16: AEF Attenuation at Fsw | E16: =-'Input Filter Calculations'!AM97 ->  | F16: dB | L16: Passive Attenuation at Fsw | M16: =-'Input Filter Calculations'!AA97 -> 36.93672901 | N16: dB
D17: AEF EMI at Fsw | E17: =VinRipple_dBuV-E16 ->  | F17: dB-µV | L17: Passive EMI at Fsw | M17: =VinRipple_dBuV-M16 -> 56.93214727 | N17: dB-µV

Sheet Design Input Filter (hidden)
A1: LM5149-Q1 Synchronous Buck Controller Design Tool
O2: http://www.ti.com/product/lm5175
A3: About | C3: xx | F3: = Input Box | O3: TERMS OF USE
B7: Choose Filter
B8: Suggested Inductor | C8: =CHOOSE(INFILTER_TYPE,"","0.01-1","0.1-10") ->  | D8: µH | F8: Chosen Inductor | G8: 1 | H8: µH
B9: =CHOOSE(INFILTER_TYPE,"","Suggested Cinj","Suggested Cf") ->  | C9: =CHOOSE(INFILTER_TYPE,"",'Standard Value Calculator'!S24,'Standard Value Calculator'!S23) ->  | D9: µF | F9: =CHOOSE(INFILTER_TYPE,"","Chosen Cinj","Chosen Cf") ->  | G9: 0.068 | H9: µF
B10: Suggested Cdamp | C10: =CHOOSE(INFILTER_TYPE,"",CHOOSE(OSC,"DNP",'Standard Value Calculator'!S25),'Standard Value Calculator'!S28) ->  | D10: µF | F10: Chosen Cdamp | G10: 0.033 | H10: µF
B11: Suggested Rdamp | C11: =CHOOSE(INFILTER_TYPE,"",'Standard Value Calculator'!S26,Rdamp_PassiveStd) ->  | D11: Ω | F11: Chosen Rdamp | G11: 43.2 | H11: Ω
F12: Filter Attenuation | G12: =-'Variable Management'!B303 -> 0 | H12: dB
F13: VIN Ripple | G13: =VinRipple_dBuV -> 93.86887629 | H13: dB-µV
F14: Fsw Conducted EMC | G14: ='Variable Management'!B304 -> 93.86887629 | H14: dB-µV

Sheet BOM & Schematic
I33: =IF(OR(SCH_MODE=3, SCH_MODE=4),"** Tie VCCX to GND if not used **", "") -> 
A34: ** Tie SYNC to GND for PFM, VCC for FPWM **
A36: ="Vin = "&VIN_min&"V to "&VIN_max&"V, Vout = "& Vout &"V, Iout = " &Iout & "A, Fsw = " & Fsw/1000 &"kHz, Current Limit = "&ROUNDUP(Ilimit_DC,0)&"A" -> Vin = 9V to 42V, Vout = 5V, Iout = 10A, Fsw = 2200kHz, Current Limit = 18A
A37: High-Efficiency Synchronous Buck Regulator BOM
A38: Count | B38: Ref Des | C38: Value | D38: Description | H38: Size | I38: Part Number | J38: MFR
A39: 1 | B39: CBOOT | C39: 0.1 | D39: =C39 -> 0.1 | H39: 0603 | I39: Std | J39: Std
A40: 1 | B40: CCOMP | C40: ='Design Regulator'!D72 -> 0.68 | D40: 0.68 | H40: 0603 | I40: Std | J40: Std
A41: 1 | B41: CHF | C41: ='Design Regulator'!D73 -> 0 | D41: 0 | H41: 0603 | I41: Std | J41: Std
A42: =ROUNDUP('Design Regulator'!E44/10,0) -> 3 | B42: CIN | C42: 10 | D42: =C42 -> 10 | H42: 1210 | I42: Std | J42: Std
A43: =ROUNDUP('Design Regulator'!E35/47,0) -> 12 | B43: COUT | C43: 47 | D43: =C43 -> 47 | H43: 1210 | I43: Std | J43: Std
A44: 2 | B44: CVCC, CVCCX | C44: 2.2 | D44: 2.2 | H44: 0603 | I44: Std | J44: Std
A45: 1 | B45: CVDDA | C45: 0.47 | D45: 0.47 | H45: 0603 | I45: Std | J45: Std
A46: 1 | B46: LO | C46: ='Design Regulator'!E27 -> 0.68 | D46: ="Inductor, "&Lf*1000000&"µH, "&Rdcr*1000&"mΩ, >"&ROUNDUP(Ilimit_DC*1.1,0)&"A" -> Inductor, 0.68µH, 2.2mΩ, >20A | H46: - | I46: - | J46: Various
A47: 2 | B47: Q1, Q2 | C47: See description | D47: ='Design Regulator'!E82 -> 4 | H47: Std | I47: ='Design Regulator'!E80 -> '852, '824 | J47: -
A48: 1 | B48: RCOMP | C48: ='Design Regulator'!D71 -> 41.2 | D48: =C48 -> 41.2 | H48: 0603 | I48: Std | J48: Std
A49: 1 | B49: RS | C49: =Rs*1000 -> 4 | D49: 4 | H49: 0508 | I49: Std | J49: Std
A50: 1 | B50: RT | C50: ='Design Regulator'!E12 -> 10 | D50: 10 | H50: 0603 | I50: Std | J50: Std
A51: 1 | B51: RFB1 | C51: ='Design Regulator'!E65 -> 39 | D51: =C51 -> 39 | H51: 0603 | I51: Std | J51: Std
A52: 1 | B52: RFB2 | C52: ='Design Regulator'!E66 -> 471 | D52: =C52 -> 471 | H52: 0603 | I52: Std | J52: Std
A53: 1 | B53: RPG | C53: 100 | D53: 100 | H53: 0603 | I53: Std | J53: Std
A54: 1 | B54: RCS | C54: 100 | D54: 100 | H54: 0603 | I54: Std | J54: Std
A55: 1 | B55: RVIN | C55: 2.2 | D55: 2.2 | H55: 0603 | I55: Std | J55: Std
A56: 1 | B56: U1 | C56: ='Variable Management'!P29 -> LM25139-Q1 | D56: =CHOOSE(VARIANT, "IC, LM25139, Synchronous Buck PWM Controller, 3.5V–42V Input", "IC, LM25139-Q1, Synchronous Buck PWM Controller, 3.5V–42V Input") -> IC, LM25139-Q1, Synchronous Buck PWM Controller, 3.5V–42V Input | H56: VQFN-24 | I56: =CHOOSE(VARIANT, "LM25139RGTR", "LM25139QRGTRQ1") -> LM25139QRGTRQ1 | J56: TI
A59: NOTES:
A60: ** Inductor saturation current should be higher than the peak inductor current at the OCP setpoint for all input voltages and operating temperatures **
A61: ** Effective input and output capacitances should be appropriately derated for applied voltage and temperature, particularly with ceramics **

Sheet EVM (hidden)
A1: LM25139-Q1 Quickstart Design Tool
B6: LM25139-Q1EVM-440 PCB Layout

Sheet Variable Management (hidden)
A1: EXCEL Variables Names/Calculations
B2: Input from user =
B3: Output =
B4: Constant
A5: Variable Name | B5: Value | C5: STD Units | E5: Notes | I5: Iteration
A6: Step 1: Operational Specs
A7: VIN_min | B7: ='Design Regulator'!E6 -> 9 | C7: V | D7: Minimum input voltage | I7: 1
A8: VIN_nom | B8: ='Design Regulator'!E7 -> 24 | C8: V | D8: Nominal input voltage | K8: =CHOOSE(SCH_MODE, "Efficiency vs. IOUT (Ch1)", "Efficiency vs. IOUT - 2 Ph", "Efficiency vs. IOUT - 3 Ph", "Efficiency vs. IOUT - 4 Ph") -> Efficiency vs. IOUT (Ch1) | L8: 1 | N8: DRSS Enabled | O8: 1 | T8: Dual Outputs | U8: 1 | W8: FPWM | X8: 1 | Z8: =CHOOSE(SCH_MODE, "Bode Plot (Ch1)", "Bode Plot - 2 Ph", "Bode Plot - 3 Ph", "Bode Plot - 4 Ph") -> Bode Plot (Ch1) | AA8: 1
A9: VIN_max | B9: ='Design Regulator'!E8 -> 42 | C9: V | D9: Maximum input voltage | K9: =IF(MODE=1, "Efficiency vs. IOUT (Ch2)", "N/A - Do Not Use") -> Efficiency vs. IOUT (Ch2) | L9: 2 | N9: DRSS Disabled | O9: 2 | T9: Single Output – 2 Phases | U9: 2 | W9: PFM | X9: 2 | Z9: =IF(MODE=1, "AEF Gain", "N/A - Do Not Use") -> AEF Gain | AA9: 2
K10: PLOT_TYPE | L10: 1 | N10: DRSS Yes/No | O10: 1 | P10: 1 = Yes, 2 = No | T10: Single Output – 3 Phases | U10: 3 | W10: FPWM/PFM | X10: 2 | Z10: BODE_PLOT_TYPE | AA10: 1
A11: Vout | B11: ='Design Regulator'!E9 -> 5 | C11: V | D11: Output voltage - channel 1 | T11: Single Output – 4 Phases | U11: 4
A12: Iout | B12: ='Design Regulator'!E10 -> 10 | C12: A | D12: Output current - channel 1 | I12: 1 | T12: Single/Dual Yes/No | U12: 1
I13: 1 | K13: Adjustable | L13: 1 | N13: 3.3V | O13: 1 | T13: MODE (Single/Dual), DUAL = 1, SINGLE = 2 | U13: =IF(U12=1, 1, 2) -> 1 | W13: VCCX Connected | X13: 1
A14: Rout | B14: =Vout/Iout -> 0.5 | C14: W | D14: Load resistance - Channel 1 | K14: 5V | L14: 2 | N14: 5V | O14: 2 | T14: SINGLE OUTPUT (1 = YES) | U14: =IF(U12=1, 2, 1) -> 2 | W14: No External VCC | X14: 2
K15: 3.3V | L15: 3 | N15: Adjustable | O15: 3 | T15: Number of Phases | U15: =SCH_MODE -> 1 | W15: Ext_VCC | X15: 2
A16: Pout | B16: =Vout*Iout -> 50 | C16: W | D16: Output power | K16: 12V | L16: 4 | N16: Output Setting | O16: =IF(Vout2=3.3, 1, IF(Vout2=5, 2, 3)) -> 3
K17: Output Voltage Setting | L17: =IF(Vout=3.3, 3, IF(Vout=5, 2, IF(Vout=12,1,1))) -> 2
A18: Efficiency | B18: 0.9 | D18: Estimate of efficiency
A19: Pin | B19: =Pout/Efficiency -> 55.55555556 | C19: W | D19: Calculate input power assuming finite efficiency | Z19: Internal Compensation | AA19: 1
Z20: External Compensation | AA20: 2
A21: Iin_Vinmin | B21: =Pin/VIN_min -> 6.172839506 | C21: A | L21: =Vout -> 5 | Z21: COMP_TYPE | AA21: 2
A22: Iin_Vinnom | B22: =Pin/VIN_nom -> 2.314814815 | C22: A | D22: Input currents at min, nom, max Vin | H22: =AND(OSC=1, OR(Fsw/1000>2530, Fsw/1000<1800)) -> FALSE
A23: Iin_Vinmax | B23: =Pin/VIN_max -> 1.322751323 | C23: A | H23: =AND(OSC=2, OR(Fsw/1000>500, Fsw/1000<300)) -> FALSE
H24: =OR(H22,H23) -> FALSE
A25: OSC setting | B25: =CHOOSE(OSC, 2200, 440) ->  | C25: kHz | K25: SetVout_IntComp_nAEF | L25: 1 | W25: No Input Filter | X25: 1 | Z25: UVLO Divider | AA25: 1
A26: Fsw | B26: ='Design Regulator'!E11*1000 -> 2200000 | C26: Hz | D26: Nominal switching frequency - determines RT resistor (SYNCIN must be 80-120% of this) | K26: SetVout_IntComp_AEF | L26: 2 | W26: AEF Input Filter | X26: 2 | Z26: No UVLO Divider | AA26: 2
A27: RT resistor to AGND | B27: =(23759/(Fsw*10^-3))-0.72 -> 10.07954545 | C27: kΩ | K27: SetVout_ExtComp_nAEF | L27: 3 | P27: LM25139 | Q27: 1 | W27: Passive LC Filter | X27: 3 | Z27: UVLO_TYPE | AA27: 1
C28: kΩ | I28: 1 | K28: SetVout_ExtComp_AEF | L28: 4 | P28: LM25139-Q1 | Q28: 2 | W28: INFILTER_TYPE | X28: 1
A29: Tsw | B29: =1/Fsw -> 4.545454545e-07 | C29: sec | D29: Switching period | K29: AdjVout_IntComp_nAEF | L29: 5 | O29: VARIANT | P29: =CHOOSE(VARIANT, "LM25139", "LM25139-Q1") -> LM25139-Q1 | Q29: 2
A30: Vref | B30: 0.8 | C30: V | D30: Reference voltage | K30: AdjVout_IntComp_AEF | L30: 6 | O30: VIN-MAX | P30: =CHOOSE(VARIANT, 42, 42) -> 42 | Q30: V
A31: Rt | B31: ='Standard Value Calculator'!S12/1000 -> 10 | C31: kΩ | D31: Frequency set resistor | F31: =IF(OR((Fsw=440000),(Fsw=2200000)),"N/A",Rfadj/1000) -> N/A | K31: AdjVout_ExtComp_nAEF | L31: 7 | O31: VOUT-MAX | P31: =CHOOSE(VARIANT, 36, 36) -> 36 | Q31: V
K32: AdjVout_ExtComp_AEF | L32: 8
A33: Step 2: Buck Inductor | B33: Channel 1 | K33: Schematic setting | L33: =(IF(OR(Vout=3.3,Vout=5),CHOOSE(COMP_TYPE,IF(INFILTER_TYPE=1,1,2),IF(INFILTER_TYPE=1,3,4)),CHOOSE(COMP_TYPE,IF(INFILTER_TYPE=1,5,6),IF(INFILTER_TYPE=1,7,8)))) -> 3
A34: Don1 | B34: =Vout/VIN_nom -> 0.2083333333 | F34: Ideal Duty Cycle at VIN(nom)
A35: Doff1 | B35: =1-34:34 -> 0.7916666667 | F35: Ideal 1- Duty Cycle at VIN(nom)
A37: D_Vinmin | B37: =Vout/VIN_min -> 0.5555555556
A38: D_Vinnom | B38: =Vout/VIN_nom -> 0.2083333333
A39: D_Vinmax | B39: =Vout/VIN_max -> 0.119047619
A41: L_Vinnom | B41: =(VIN_nom-Vout)*D1_Vinnom/(Fsw*(Iout/Number_of_Phases)*0.3) -> 5.997474747e-07 | C41: H | F41: Calculated inductance for 35% ripple at VIN(nom)
A42: L_slopecomp | B42: =1000*Vout*Rs/22.72/Fsw -> 4.00128041e-07 | C42: H | F42: Calculated inductance based on one times inductor downslope
A44: Lopt | B44: =B42 -> 4.00128041e-07 | C44: H | F44: Slope comp
A46: Lo | B46: ='Design Regulator'!E27/1000000 -> 6.8e-07 | C46: H | F46: Chosen inductance
A47: Rdcr | B47: ='Design Regulator'!E28/1000 -> 0.0022 | C47: W | F47: Chosen inductor DCR
A49: Don2 | B49: =(Vout+Iout*(Rdcr+Rs))/(Vin+Iout*Rs) -> 0.2105657238
A50: Doff2 | B50: =1-_Don2 -> 0.7894342762
A52: D_Vinmin_2 | B52: =CHOOSE(MODE, (Vout+Iout*(Rdcr+Rs))/(VIN_min+Iout*Rs), (Vout+Iout/Number_of_Phases*(Rdcr+Rs))/(VIN_min+Iout/Number_of_Phases*Rs)) -> 0.5599557522 | F52: Duty cycles adjusted for DCR/shunt voltage drops
A53: D_Vinnom_2 | B53: =CHOOSE(MODE, (Vout+Iout*(Rdcr+Rs))/(VIN_nom+Iout*Rs), (Vout+Iout/Number_of_Phases*(Rdcr+Rs))/(VIN_nom+Iout/Number_of_Phases*Rs)) -> 0.2105657238 | F53: need to include RDS(on) later
A54: D_Vinmax_2 | B54: =CHOOSE(MODE, (Vout+Iout*(Rdcr+Rs))/(VIN_max+Iout*Rs), (Vout+Iout/Number_of_Phases*(Rdcr+Rs))/(VIN_max+Iout/Number_of_Phases*Rs)) -> 0.1204091342
A56: Iripple_Vinmin | B56: =(VIN_min-Vout)*D1_Vinmin_2/(Fsw*Lf) -> 1.497207894 | C56: A
A57: Iripple_Vinnom | B57: =(VIN_nom-Vout)*D1_Vinnom_2/(Fsw*Lf) -> 2.674297294 | C57: A
A58: Iripple_Vinmax | B58: =(VIN_max-Vout)*D1_Vinmax_2/(Fsw*Lf) -> 2.978033398 | C58: A
A60: Ishunt_rms_Vinmin | B60: =SQRT((Iout/Number_of_Phases)^2+(Iripple_Vinmin^2)/12) -> 10.00933577 | C60: A
A61: Ishunt_rms_Vinnom | B61: =SQRT((Iout/Number_of_Phases)^2+(Iripple_Vinnom^2)/12) -> 10.02975517 | C61: A
A62: Ishunt_rms_Vinmax | B62: =SQRT((Iout/Number_of_Phases)^2+(Iripple_Vinmax^2)/12) -> 10.03688482 | C62: A
A63: Max shunt power loss at full load | B63: =B61^2*Rs -> 0.4023839553 | C63: W | F63: Note this is power loss at full load - not loss near OCP!
A65: Max inductor ripple current | B65: =MAX(B56:B58) -> 2.978033398 | C65: A | F65: Ripple current at Vin(max)
B67: =B56/(Iout/Number_of_Phases) -> 0.1497207894
A68: % ripple current | B68: =B57/(Iout/Number_of_Phases) -> 0.2674297294
B69: =B58/(Iout/Number_of_Phases) -> 0.2978033398
A71: Inductor copper temerature | B71: 100 | C71: °C
A72: DCR at hot | B72: =Rdcr*(1+0.0039*(B71-25)) -> 0.0028435 | C72: W
A73: Core loss | B73: ='Design Regulator'!E30 -> 0.2 | C73: W
A75: Step 3: Sense Resistors, Slope Comp, Current Limit
A77: Ilimit_DC | B77: ='Design Regulator'!E16 -> 18 | C77: A | F77: Chosen OCP level - based on output current
A79: Ilimit_inductor_Vinmin | B79: =CHOOSE(MODE, Ilimit_DC+Iripple_Vinmin/2, Ilimit_DC/Number_of_Phases+Iripple_Vinmin/2) -> 18.74860395 | C79: A | F79: Peak inductor current at current limit inception
A80: Ilimit_inductor_Vinnom | B80: =CHOOSE(MODE, Ilimit_DC+Iripple_Vinnom/2, Ilimit_DC/Number_of_Phases+Iripple_Vinnom/2) -> 19.33714865 | C80: A
A81: Ilimit_inductor_Vinmax | B81: =CHOOSE(MODE, Ilimit_DC+Iripple_Vinmax/2, Ilimit_DC/Number_of_Phases+Iripple_Vinmax/2) -> 19.4890167 | C81: A
A84: CS threshold_min | B84: 0.052 | C84: V
A85: CS threshold | B85: 0.06 | C85: V
A86: CS threshold_max | B86: 0.068 | C86: V
A88: Shunt required to get OCP at VIN(min) | B88: =Buck_CS_threshold/B79 -> 0.003200238277 | C88: W
A89: Shunt required to get OCP at VIN(nom) | B89: =Buck_CS_threshold/B80 -> 0.00310283595 | C89: W
A90: Shunt required to get OCP at VIN(max) | B90: =Buck_CS_threshold/B81 -> 0.003078657119 | C90: W
A92: Rs_ideal | B92: =B89 -> 0.00310283595 | C92: W | F92: Ideal Rs for the required OCP -- based on 60mV CL threshold
A93: Rs | B93: ='Design Regulator'!E18/1000 -> 0.004 | C93: W | F93: Selected (starndard value) current limit sense resistor
A95: Current limit - peak | B95: =Buck_CS_threshold/Rs -> 15 | C95: A | F95: Peak inductor current limit = min sat current
A97: Iout_OCP_Vinmin | B97: =Number_of_Phases*(Buck_CS_threshold/Rs-Iripple_Vinmin/2) -> 14.25139605 | C97: A | F97: Current limit setpoints (i.e. IOUT) after standard components are selected
A98: Iout_OCP_Vinnom | B98: =Number_of_Phases*(Buck_CS_threshold/Rs-Iripple_Vinnom/2) -> 13.66285135 | C98: A
A99: Iout_OCP_Vinmax | B99: =Number_of_Phases*(Buck_CS_threshold/Rs-Iripple_Vinmax/2) -> 13.5109833 | C99: A
A101: Irms_OCP_Vinmin | B101: =SQRT((Iout_OCP_Vinmin/Number_of_Phases)^2+(Iripple_Vinmin^2)/12) -> 14.25794838 | C101: A
A102: Irms_OCP_Vinnom | B102: =SQRT((Iout_OCP_Vinnom/Number_of_Phases)^2+(Iripple_Vinnom^2)/12) -> 13.68464453 | C102: A
A103: Irms_OCP_Vinmax | B103: =SQRT((Iout_OCP_Vinmax/Number_of_Phases)^2+(Iripple_Vinmax^2)/12) -> 13.5383059 | C103: A
A105: Pshunt_Vinmin | B105: =B101^2*Rs -> 0.8131563684 | C105: W | F105: Max power dissipations in shunt
A106: Pshunt_Vinnom | B106: =B102^2*Rs -> 0.7490779837 | C106: W
A107: Pshunt_Vinmax | B107: =B103^2*Rs -> 0.7331429067 | C107: W
A110: Step 4: Output Capacitor
A111: Icoutrms_VINmin | B111: =Iripple_Vinmin/SQRT(12) -> 0.4322066902 | C111: A | F111: Output Cap RMS current
A112: Icoutrms_VINnom | B112: =Iripple_Vinnom/SQRT(12) -> 0.7720031313 | C112: A
A113: Icoutrms_VINmax | B113: =Iripple_Vinmax/SQRT(12) -> 0.8596841921 | C113: A
A114: Max Cout rms current | B114: =MAX(B111:B113) -> 0.8596841921 | C114: A
A116: Vripple1 | B116: ='Design Regulator'!E33/1000 -> 0.05 | C116: V | F116: Output voltage ripple spec(pk-pk)
A118: Output Ripple Spec (pk-pk) | B118: =Vo1_ripple*1000 -> 50 | C118: mV | F118: Vout ripple spec at Vin(nom)
A120: Coutmin | B120: =Iripple_Vinnom/(Fsw*8*Vo1_ripple) -> 3.038974198e-06 | C120: F | F120: Minimum output capacitnace | H120: =Vo2_ripple -> 0 | I120: 1
A121: Reported Coutmin | B121: =IF(Cout_min*1000000<2, 2.2,Cout_min*1000000) -> 3.038974198 | C121: uF
A122: Cout | B122: ='Design Regulator'!E35/1000000 -> 0.00054 | C122: F | F122: Chosen output capacitance | I122: 1
A123: Resrmax | B123: =SQRT((Vo1_ripple/Iripple_Vinnom)^2-(1/(Fsw*Cout*8))^2) -> 0.01869620417 | C123: W | F123: Max ESR before ripple exceeds Vripple1 | I123: 1
A125: Reported Cout ESR max | B125: =IF(OR(CoutEsrMax>0.3, CoutEsrMax<0, (ISERROR(CoutEsrMax))), "N/A", CoutEsrMax*1000) -> 18.69620417 | C125: mΩ
A126: CoutEsr | B126: ='Design Regulator'!E37/1000 -> 0.001 | C126: W | F126: Chosen ESR | I126: 1 | K126: =ISERROR(CoutEsrMax) -> FALSE | L126: =ISERROR(B125) -> FALSE
A127: Vripple | B127: =Iripple_Vinnom*SQRT(Cout_ESR^2+(1/(8*Fsw*Cout))^2) -> 0.002689060129 | C127: Vp-p | L127: =OR(CoutEsrMax>0.3,CoutEsrMax<0) -> FALSE
K128: =OR(TRUE, FALSE, TRUE) -> TRUE
A129: Step 5: Input Capacitor
K130: Two channels operating at full load
A131: Icinrms_VINmin | B131: =SQRT(D1_Vinmin_2*(Iout^2*(1-D1_Vinmin_2)+Iripple_Vinmin^2/12)) -> 4.974447907 | C131: A | D131: =D1_Vinmax -> 0.119047619 | F131: Calculate input cap rms current with one output unloaded | K131: =SQRT(Iout^2*D1_Vinmin*(1-D1_Vinmin)+Iout2^2*D2_Vinmin*(1-D2_Vinmin)-2*Iout*Iout2*D1_Vinmin*D2_Vinmin) ->  | L131: A | M131: =SQRT(Iout^2*D1_Vinmin*(1-D1_Vinmin)+Iout2^2*D2_Vinmin*(1-D2_Vinmin)-2*Iout*Iout2*(0.5-D2_Vinmin*(1-D1_Vinmin))) ->  | N131: A
A132: Icinrms_VINnom | B132: =SQRT(D1_Vinnom_2*(Iout^2*(1-D1_Vinnom_2)+Iripple_Vinnom^2/12)) -> 4.092465613 | C132: A | D132: =D1_Vinmin -> 0.5555555556 | K132: =SQRT(Iout^2*D1_Vinnom*(1-D1_Vinnom)+Iout2^2*D2_Vinnom*(1-D2_Vinnom)-2*Iout*Iout2*D1_Vinnom*D2_Vinnom) ->  | L132: A
A133: Icinrms_VINmax | B133: =SQRT(D1_Vinmax_2*(Iout^2*(1-D1_Vinmax_2)+Iripple_Vinmax^2/12)) -> 3.268037126 | C133: A | K133: =SQRT(Iout^2*D1_Vinmax*(1-D1_Vinmax)+Iout2^2*D2_Vinmax*(1-D2_Vinmax)-2*Iout*Iout2*D1_Vinmax*D2_Vinmax) ->  | L133: A
A134: Icinrms - multiphase | B134: =Iout*SQRT((D1_Vinmin-F136/Number_of_Phases)*((F136+1)/Number_of_Phases-D1_Vinmin)) -> 4.96903995 | C134: A | K134: =MAX(K131:K133) ->  | L134: A
A135: Max Cin rms current | B135: =MAX(B131:B133) -> 4.974447907 | C135: A | F135: =Number_of_Phases*D1_Vinnom -> 0.2083333333 | G135: N*D
F136: =FLOOR(Number_of_Phases*D1_Vinnom,1) -> 0 | G136: floor(N*D)
A137: Icinrms - multiphase - max | B137: =Iout/2/Number_of_Phases -> 5 | C137: A
A138: Final result | B138: =IF(D1_Vinmin<0.5, B135, B137) -> 5 | C138: A | D138: …report this
A140: Vinripple1 | B140: ='Design Regulator'!E42/1000 -> 0.4 | C140: Vp-p | F140: Input voltage ripple spec (pk-pk)
A142: Cinmin_Vinmin | B142: =Iout/Number_of_Phases*D1_Vinmin*(1-D1_Vinmin)/(Vinripple1*Fsw) -> 2.805836139e-06 | C142: F
A143: Cinmin_Vinnom | B143: =Iout/Number_of_Phases*D1_Vinnom*(1-D1_Vinnom)/(Vinripple1*Fsw) -> 1.874210859e-06 | C143: F
A144: Cinmin_Vinmax | B144: =Iout/Number_of_Phases*D1_Vinmax*(1-D1_Vinmax)/(Vinripple1*Fsw) -> 1.191764585e-06 | C144: F | F144: Calculate cap at Vinmax and 50% duty cycle (Vin = 2*Vout)
A146: Cinmin_50%D | B146: =Iout*0.5*(1-0.5)/(Vinripple1*Fsw) -> 2.840909091e-06 | C146: F | F146: Buck 50% typically worst case
A147: Cinmin | B147: =IF(VIN_min>2*Vout, B142,B146) -> 2.840909091e-06 | C147: F | D147: =(VIN_min+VIN_max)/2 -> 25.5
A148: Reported Cinmin | B148: =IF(Cinmin*1000000<2.2, 2.2,Cinmin*1000000) -> 2.840909091 | C148: uF | D148: =2*Vout -> 10 | F148: …report this
A150: Cin | B150: ='Design Regulator'!E44/1000000 -> 3e-05 | C150: F | F150: Input capacitance
A151: CinEsrMax_Vinmin | B151: =-(Iout/Number_of_Phases*D1_Vinmin*(1-D1_Vinmin)/(Cin*Fsw)-Vinripple1)/(Iout/Number_of_Phases+Iripple_Vinmin/2) -> 0.03373357631 | C151: W
A152: CinEsrMax_Vinmax | B152: =-(Iout/Number_of_Phases*D1_Vinmax*(1-D1_Vinmax)/(Cin*Fsw)-Vinripple1)/(Iout/Number_of_Phases+Iripple_Vinmax/2) -> 0.03343278329 | C152: W
A153: CinEsrMax_50%D | B153: =-(Iout/Number_of_Phases*0.5*(1-0.5)/(Cin*Fsw)-Vinripple1)/(Iout/Number_of_Phases+Iripple_Vinmax/2) -> 0.0315189038 | C153: W | F153: Calculate ESR at Vinmax and 50% duty cycle (Vin = 2*Vout)
A154: CinEsrMax | B154: =IF(VIN_min>2*Vout, B151,B153) -> 0.0315189038 | C154: W
A155: Reported Cin ESR max | B155: =IF(OR(CinEsrMax>0.3, CinEsrMax<0), "N/A",CinEsrMax*1000) -> 31.5189038 | C155: mΩ | F155: …report this
A156: RCinEsr | B156: ='Design Regulator'!E46/1000 -> 0.001 | C156: W | F156: Input capacitance series resistance (ESR)
A158: Vinripple2_Vinmin | B158: =Iout/Number_of_Phases*D1_Vinmin_2*(1-D1_Vinmin_2)/(Cin*Fsw)+(Iout/Number_of_Phases +Iripple_Vinmin/2)*RCinEsr -> 0.04808274149 | C158: Vp-p
A159: Vinripple2_Vinnom | B159: =Iout/Number_of_Phases*D1_Vinnom_2*(1-D1_Vinnom_2)/(Cin*Fsw)+(Iout/Number_of_Phases +Iripple_Vinnom/2)*RCinEsr -> 0.03652317891 | C159: Vp-p
A160: Vinripple2_Vinmax | B160: =Iout/Number_of_Phases*D1_Vinmax_2*(1-D1_Vinmax_2)/(Cin*Fsw)+(Iout/Number_of_Phases +Iripple_Vinmax/2)*RCinEsr -> 0.02753610376 | C160: Vp-p
A161: Vinripple2_50%D | B161: =Iout/Number_of_Phases*0.5*(1-0.5)/(Cin*Fsw)+(Iout/Number_of_Phases +Iripple_Vinmax/2)*RCinEsr -> 0.04936780458 | C161: Vp-p | F161: Calculate ripple at Vinmax and 50% duty cycle (Vin = 2*Vout)
A162: Vinripple2 | B162: =IF(D1_Vinmin<0.5, B158,B161) -> 0.04936780458 | C162: Vp-p | F162: …report highest of these
B164: =Iout*D1_Vinmin_2*(1-D1_Vinmin_2)/(Cin*Fsw) -> 0.03733413754 | C164: Vp-p
A166: Step 6a: Soft Start
A167: Tss | B167: ='Design Regulator'!E51/1000 -> 0 | C167: s | D167: Soft-start time
A168: Iss | B168: =Cout*Vout/Tss ->  | C168: A | D168: Load cap current during soft start
A169: Css | B169: =0.000022*Tss/1.2 -> 0 | C169: F
A170: Css_u | B170: ='Standard Value Calculator'!B4 -> 0 | C170: F
A172: Step 6b: Other Components - Dither, Hiccup, DEMB, MODE
A173: Tres | B173: ='Design Regulator'!E54/1000 -> 0.004 | C173: s | D173: Hiccup time
A174: Cres | B174: =0.00002*Tres/1.2 -> 6.666666667e-08 | C174: F
A175: Cres_u | B175: ='Standard Value Calculator'!G4 -> 6.8e-08 | C175: F
A177: RPG1/2 | B177: 100 | C177: kΩ
A178: RFB1/2 | C178: W | E178: Tie to VDDA or AGND for 3.3V/5V output, respectively.
A179: R_MODE | C179: W | E179: Tie to VDDA or AGND for Single/Dual operation, respectively.
A180: R_DEMB | C180: W | E180: Tie to VDDA or AGND for FPWM/DEM, respectively.
A182: Enable Hysteresis Current | B182: 1e-05 | C182: A | E182: 10 µA Hysteresis Current
A183: Turn ON Voltage | B183: ='Design Regulator'!E53 -> 5
A184: Hysteresis Voltage | B184: ='Design Regulator'!E53-'Design Regulator'!E54 -> 1
A186: Upper FB resistor | B186: =B184/B182 -> 100000 | C186: W
A187: Lower FB resister | B187: =B186/(B183-1) -> 25000 | C187: W
A188: Standard upper FB resistor | B188: ='Standard Value Calculator'!S40 -> 100 | C188: kΩ
A189: Standard lower FB resistor | B189: ='Standard Value Calculator'!S41 -> 24.9 | C189: kΩ
A191: Dither Modulation Frequency | B191: ='Design Regulator'!E57*1000 -> 0 | C191: Hz
A192: Cdither_calculated | B192: =10*10^-6/Fdither/0.12 ->  | C192: F
A193: Cdither_stdvalue | B193: ='Standard Value Calculator'!S21 ->  | C193: F
A196: Step 7: Compensation
A197: Pi | B197: 3.14159265 | D197: p
A198: CS Amp Gain | B198: 10
A199: Ri | B199: =Rs*CSAmp_gain -> 0.04 | C199: W | F199: Current Sense effective resistance = shunt resistor Rs * CS amp gain
A200: gm | B200: 0.0011 | C200: S | F200: Error Amp Transconductance
A202: Se_ext | B202: =B206/Ri*1000 -> 12500000 | C202: A/s | F202: Slope Comp Slope - referred to inductor current
A203: Sn | B203: =(Vin-Vout)/Lf -> 27941176.47 | C203: A/s | F203: On-time Slope
A204: Sf | B204: =Vout/Lf -> 7352941.176 | C204: A/s | F204: Off-time Slope
A206: Se_int | B206: =Fsw*0.001*(5/22) -> 500 | C206: mV/μs | F206: Slope Comp Slope - referred to IC
A207: Sn_int | B207: =Sn*Ri/1000 -> 1117.647059 | C207: mV/μs | F207: etc
A208: Sf_int | B208: =Sf*Ri/1000 -> 294.1176471 | C208: mV/μs | F208: etc
A210: mc_buck | B210: =1+Se_ext/Sn -> 1.447368421 | F210: mc = 1 + Se/Sn for peak current-mode buck
A211: k_buck | B211: =mc_buck*(1-D1_Vinnom_2) -> 1.142602242 | F211: mc*(1-d)
A213: mc | B213: =1+Se_ext/Sn -> 1.447368421
A214: k | B214: =mc_buck*(1-D1_Vinnom_2) -> 1.142602242
A215: Q | B215: =1/Pi/(k-0.5) -> 0.495345123 | F215: 1/(Pi*(k-0.5)) | H215: Q = 2/Pi = 0.636 gives ideal one-cycle damping
A217: Error Amp (EA)
A218: GBW | B218: 2.5 | C218: MHz | F218: EA gain-bandwidth product
A219: Cbw | B219: =gm/(2*Pi*GBW*1000000) -> 7.002817504e-11 | C219: F | F219: EA effective bandwidth limiting capacitance = gm/(2*Pi*GBW)
A220: RoEA | B220: 10000000 | C220: W | F220: EA output resistance
A221: AEA | B221: =gm*RoEA -> 11000 | C221: V/V | F221: EA DC gain = gm*RoEA
A222: Afb | B222: =IF(VOUT_setting=1,Vref/Vout,SQRT((1+(Fcross*zterm1)^2)/((1+Afbr-pterm4*(Fcross)^2)^2+(Fcross*pterm3)^2))) -> 0.157140398 | C222: V/V | F222: Feedback gain from Vout to FB
A223: Acs | B223: =1/Ri -> 25 | F223: Acs = 1/Ri
A224: Am_buck | B224: =(Ro/Number_of_Phases)/Ri/((1+Ro/Number_of_Phases*(k-0.5)/(Fsw*Lf))) -> 10.2899843
A225: Am | B225: =(Ro*Number_of_Phases)/Ri/((1+Ro*Number_of_Phases*(k-0.5)/(Fsw*Lf))) -> 10.2899843 | F225: Buck modulator gain
A227: Scaling factor to calculate Rcomp - buck | B227: =2*Pi*Ri/gm -> 228.4794655 | F227: 2*Pi*Ri/gm -- scaling factor to calculate Rcomp given desired buck crossover frequency
A228: DC Gain is Adc = AEA*Afb*Am
A230: Ro | B230: =Rout -> 0.5 | C230: W | F230: Output Resistance
A232: Fp_load_buck | B232: =1/(2*Pi*Ro*Cout)+(k-0.5)/(2*Pi*Fsw*Lf*Cout/Number_of_Phases) -> 716.0637176 | C232: Hz | F232: Buck dominant pole frequency -- note slope comp influence
A233: Fp_dominant | B233: =Fload_u -> 716.0637176 | C233: Hz
B234: =Cbw -> 7.002817504e-11
A235: Fp_EA | B235: =1/(2*Pi*(RoEA+Rcea1_u)*Cc1ea_u) -> 23.3091052 | C235: Hz | F235: Error Amp LF pole -- related to amplifier ouptut resistance and comp cap
A236: Fp_HF | B236: =1/(2*Pi*Rcea1_u*(Cc2ea_u+Cbw)) -> 55163.28332 | C236: Hz | F236: Error Amp HF pole cancels zero related to Output Cap ESR
A237: Fesr | B237: =1/(2*Pi*Cout*Cout_ESR) -> 294731.3764 | C237: Hz | F237: Cout ESR zero frequency
A238: F_mod | B238: =Fsw/2 -> 1100000 | C238: Hz | F238: Zero-order sample-and-hold effects of current-mode control modeled as pole at Fsw/2
D239: Internal Comp Crossover
A240: Desired Crossover Frequency | B240: =CHOOSE(COMP_TYPE,Fcross_Ch2,'Design Regulator'!E63*1000) -> 52000 | C240: Hz | D240: =Fsw/50 -> 44000
A241: Rcea1 | B241: =Fcross*Cout/Number_of_Phases*2*Pi*Ri/(gm*Afb) -> 40827.8423 | C241: W | F241: This component will largely determine the crossover frequency | K241: =Fcross/Fp_dominant/(gm*Afb*Am) -> 40827.8423
A242: Cc1ea, Cc3ea | B242: =10/(Rcea1*Fcross*2*Pi) -> 7.496531321e-10 | C242: F | F242: This along with Rcea1 will set a zero at Fcrossover/5 to optimize phase margin
A243: Cc2ea, Cc4ea | B243: =MAX(1/(Rcea1*2*Pi*Fesr)-Cbw, 1/(Rcea1*2*Pi*(Fsw/2))-Cbw) -> -5.680190665e-11 | C243: F | F243: This along with Rcea1 places a pole at the output cap ESR zero
A245: =CHOOSE(COMP_TYPE,"Internal Compensation","External Compensation") -> External Compensation
A246: Chosen Compensation Components from the standard value sheet | D246: Internal Values
A247: Rcea1_u | B247: =CHOOSE(COMP_TYPE,D247,'Design Regulator'!D71*1000) -> 41200 | C247: W | D247: 400000 | G247: =1/(Rcea1*2*Pi*(Fsw/2))-Cbw -> -6.648436023e-11
A248: Cc1ea_u | B248: =CHOOSE(COMP_TYPE,Cc3ea_u,'Design Regulator'!D72*0.000000001) -> 6.8e-10 | C248: F | D248: =50*0.000000000001 -> 5e-11
A249: Cc2ea_u | B249: =CHOOSE(COMP_TYPE,Cc4ea_u,'Design Regulator'!D73*0.000000000001) -> 0 | C249: F | D249: =0.000000000001 -> 1e-12
A251: Resulting Pole/Zero Locations | F251: =Cout -> 0.00054 | G251: =Cout_ESR -> 0.001
A252: Fz1 | B252: =1/(2*Pi*Rcea1_u*Cc1ea_u) -> 5680.858912 | C252: Hz | F252: This zero is set at or close to the dominant load pole
... 155 more rows

Sheet Schematic Management (hidden)
N1: 3.3V or 5V fixed (FB1/2)
A2: =IF(MODE=1, CHOOSE(SCH_SETTING, "SCH_SetVout_IntComp_nAEF","SCH_SetVout_IntComp_AEF","SCH_SetVout_ExtComp_nAEF","SCH_SetVout_ExtComp_AEF","SCH_AdjVout_IntComp_nAEF","SCH_AdjVout_IntComp_AEF","SCH_AdjVout_ExtComp_nAEF","SCH_AdjVout_ExtComp_AEF")) -> SCH_SetVout_ExtComp_nAEF | N2: With/without VOUT connected to VCCX

Sheet Stability Calculations (hidden)
A2: Divider Network & EA Poles/Zeros | E2: Modulator | J2: Power Stage Poles/Zeros | M2: Complex Pole Pair | P2: Feedback natural frequencies | T2: Total System
B3: Afb1 | C3: =Afb -> 0.157140398 | D3: V/V | E3: Acs | F3: =Acs -> 25 | G3: A/V | H3: gm | I3: =gm -> 0.0011 | J3: z_ESR | K3: =Fesr -> 294731.3764 | L3: Hz | M3: p3 | N3: =Fsw/2 -> 1100000 | O3: Hz | P3: zterm1 | Q3: =((1/wffHz)+(1/wfftHz)) -> 5.810941093e-06 | T3: Adc | U3: =IF(VOUT_setting=1,Am*Afb*AEA,Am*AEA) -> 113189.8273 | V3: V/V
B4: EA zero, z1 | C4: =Fz1_u -> 5680.858912 | D4: Hz | E4: Am | F4: =Am -> 10.2899843 | G4: V/V | J4: p_dom | K4: =Fp_dominant -> 716.0637176 | L4: Hz | M4: pterm1 | N4: =Q*pole3 -> 544879.6353 | P4: pterm3 | Q4: =((1/wfbtHz)+(1/wffHz)+(1/wfftHz)+(Afbr/wffHz)) -> 4.061325101e-05 | T4: Crossover | U4: =AI7 -> 42.1725 | V4: kHz
B5: EA pole, p1 | C5: =Fp1_u -> 23.3091052 | D5: Hz | E5: Q | F5: =Q -> 0.495345123 | M5: pterm2 | N5: =pole3^2 -> 1210000000000 | P5: pterm4 | Q5: =1/(wffHz*wfbtHz) -> 1.593743715e-12 | T5: Phase Margin | U5: =AI9 -> 48.21732615 | V5: °
B6: Aea | C6: =AEA -> 11000 | D6: V/V | E6: mc | F6: =mc -> 1.447368421 | P6: Afbr | Q6: =Rfb1_/Rfb2_u -> 5.307855626 | T6: radconv | U6: =180/Pi -> 57.29577958 | AH6: XOVER SEARCH
B7: EA pole, p2 | C7: =Fp2_u -> 55163.28332 | D7: Hz | E7: k | F7: =k -> 1.142602242 | AH7: xover | AI7: =SUM(AH12:AH613)/1000 -> 42.1725
AH9: phase margin | AI9: =SUM(AI13:AI613) -> 48.21732615
A10: Freq (Hz) | C10: Power Stage | I10: Error Amplifier | O10: Feedback Gain | S10: Sampling Double Pole | U10: System Response | AB10: ERROR AMP Response | AE10: PLANT Response
C11: p_dom | E11: z_ESR | G11: z_RHP | I11: p1 | K11: z1 | M11: p2 | O11: z1 | Q11: p1p2 | S11: p3
C12: Gain(V/V) | D12: Phase(rad) | E12: Gain(V/V) | F12: Phase(rad) | G12: Gain(V/V) | H12: Phase(rad) | I12: Gain(V/V) | J12: Phase(rad) | K12: Gain(V/V) | L12: Phase(rad) | M12: Gain(V/V) | N12: Phase(rad) | O12: Gain(V/V) | P12: Phase(rad) | Q12: Gain(V/V) | R12: Phase(rad) | S12: Gain(V/V) | T12: Phase(rad) | U12: Gain (dB) | V12: Phase (°) | W12: Phase Margin (°) | Z12: Fsquare | AB12: Gain(dB) | AC12: Phase(Deg) | AE12: Gain(dB) | AF12: Phase(Deg)
A13: 1 | B13: =A13/1000 -> 0.001 | C13: =SQRT(1+(A13/pole1)^2) -> 1.000000975 | D13: =ATAN(A13/pole1) -> 0.001396522859 | E13: =SQRT(1+(A13/Zero1)^2) -> 1 | F13: =ATAN(A13/Zero1) -> 3.392920062e-06 | G13: =IF(VIN_nom>Vout, 1, SQRT(1+(A13/z_RHP)^2)) -> 1 | H13: =IF(VIN_nom>Vout, 0, -ATAN(A13/z_RHP)) -> 0 | I13: =SQRT(1+(A13/Pole2)^2) -> 1.000919854 | J13: =ATAN(A13/Pole2) -> 0.04287539782 | K13: =SQRT(1+(A13/Zero2)^2) -> 1.000000015 | L13: =ATAN(A13/Zero2) -> 0.0001760297175 | M13: =SQRT(1+(A13/pole4)^2) -> 1 | N13: =ATAN(A13/pole4) -> 1.8128e-05 | O13: =IF(VOUT_setting=1,1,SQRT(1+(A13*zterm1)^2)) -> 1 | P13: =IF(VOUT_setting=1,0,ATAN(((A13*zterm1)))) -> 5.810941093e-06 | Q13: =IF(VOUT_setting=1,1,SQRT((1+Afbr-pterm4*(A13)^2)^2+(A13*$Q$4)^2)) -> 6.307855626 | R13: =IF(VOUT_setting=1,0,ATAN(A13*$Q$4/(1+Afbr-$Q$5*(A13)^2))) -> 6.438519429e-06 | S13: =SQRT((1-(Z13/pterm2))^2+(A13/pterm1)^2) -> 1 | T13: =IF((ATAN((A13/pterm1)/(1-A13^2/pterm2))>0),ATAN((A13/pterm1)/(1-A13^2/pterm2)),PI()+ATAN((A13/pterm1)/(1-A13^2/pterm2))) -> 1.835267709e-06 | U13: =20*LOG10(((E13*K13*G13*O13)/(C13*I13*S13*M13*Q13))*Adc) -> 85.07051863 | V13: =((F13+L13+H13+P13)-(D13+J13+T13+N13+R13))*radconv -> -2.527493817 | W13: =IF(V13>0,V13,V13+180) -> 177.4725062 | Y13: =IF(U13<0,A13,1000000000) -> 1000000000 | Z13: =A13^2 -> 1 | AB13: =20*LOG10((K13/(I13*M13))*AEA) -> 80.81986775 | AC13: =(L13-(J13+N13))*radconv -> -2.447532241 | AE13: =20*LOG10((E13*G13/(C13*S13))*Acs*Am) -> 48.20708594 | AF13: =(F13+H13-(D13+T13))*radconv -> -0.07992561898 | AH13: =SUM((U14<0)*(U13>0))*A13 -> 0 | AI13: =IF(AH13>0,W11,0) -> 0
A14: 1.0965 | B14: =A14/1000 -> 0.0010965 | C14: 1.000001172 | D14: 0.001531287113 | E14: 1 | F14: 3.720336848e-06 | G14: 1 | H14: 0 | I14: 1.001105849 | J14: 0.04700704895 | K14: 1.000000019 | L14: 0.0001930165849 | M14: 1 | N14: 1.9877352e-05 | O14: 1 | P14: 6.371696908e-06 | Q14: =IF(VOUT_setting=1,1,SQRT((1+Afbr-pterm4*(A14)^2)^2+(A14*$Q$4)^2)) -> 6.307855626 | R14: 7.059836554e-06 | S14: 1 | T14: 2.012371043e-06 | U14: 85.06890305 | V14: -2.771063225 | W14: 177.2289368 | Y14: 1000000000 | Z14: 1.20231225 | AB14: 80.81825388 | AC14: -2.683385368 | AE14: 48.20708423 | AF14: -0.08763842967 | AH14: 0 | AI14: 0
A15: 1.2023 | B15: 0.0012023 | C15: 1.00000141 | D15: 0.001679038947 | E15: 1 | F15: 4.079307791e-06 | G15: 1 | H15: 0 | I15: 1.001329401 | J15: 0.05153502982 | K15: 1.000000022 | L15: 0.0002116405284 | M15: 1 | N15: 2.17952944e-05 | O15: 1 | P15: 6.986494476e-06 | Q15: =IF(VOUT_setting=1,1,SQRT((1+Afbr-$Q$5*(A15)^2)^2+(A15*$Q$4)^2)) -> 6.307855627 | R15: 7.74103191e-06 | S15: 1 | T15: 2.206542367e-06 | U15: 85.06696164 | V15: -3.038000154 | W15: 176.9619998 | Y15: 1000000000 | Z15: 1.44552529 | AB15: 80.81631454 | AC15: -2.941862378 | AE15: 48.20708217 | AF15: -0.09609454384 | AH15: 0 | AI15: 0
A16: 1.3183 | B16: 0.0013183 | C16: 1.000001695 | D16: 0.001841035201 | E16: 1 | F16: 4.472886518e-06 | G16: 1 | H16: 0 | I16: 1.001598087 | J16: 0.05649710928 | K16: 1.000000027 | L16: 0.0002320599749 | M16: 1 | N16: 2.38981424e-05 | O16: 1 | P16: 7.660563643e-06 | Q16: 6.307855627 | R16: 8.487900164e-06 | S16: 1 | T16: 2.419433421e-06 | U16: 85.06462883 | V16: -3.330532422 | W16: 176.6694676 | Y16: 1000000000 | Z16: 1.73791489 | AB16: 80.81398421 | AC16: -3.225119126 | AE16: 48.20707969 | AF16: -0.1053658929 | AH16: 0 | AI16: 0
A17: 1.4454 | B17: 0.0014454 | C17: 1.000002037 | D17: 0.002018532711 | E17: 1 | F17: 4.904126658e-06 | G17: 1 | H17: 0 | I17: 1.001920782 | J17: 0.06193080375 | K17: 1.000000032 | L17: 0.0002544333509 | M17: 1 | N17: 2.620221119e-05 | O17: 1 | P17: 8.399134255e-06 | Q17: 6.307855627 | R17: 9.306235983e-06 | S17: 1 | T17: 2.652695947e-06 | U17: 85.06182794 | V17: -3.65087338 | W17: 176.3491266 | Y17: 1000000000 | Z17: 2.08918116 | AB17: 80.81118629 | AC17: -3.535296999 | AE17: 48.20707672 | AF17: -0.1155244078 | AH17: 0 | AI17: 0
A18: 1.5849 | B18: 0.0015849 | C18: 1.000002449 | D18: 0.002213346903 | E18: 1 | F18: 5.377439006e-06 | G18: 1 | H18: 0 | I18: 1.002308987 | J18: 0.06789039079 | K18: 1.000000039 | L18: 0.000278989495 | M18: 1 | N18: 2.873106719e-05 | O18: 1 | P18: 9.209760538e-06 | Q18: 6.307855627 | R18: 1.020440944e-05 | S18: 1 | T18: 2.908715792e-06 | U18: 85.05845962 | V18: -4.002225093 | W18: 175.9977749 | Y18: 1000000000 | Z18: 2.51190801 | AB18: 80.80782155 | AC18: -3.875494114 | AE18: 48.20707314 | AF18: -0.1266739889 | AH18: 0 | AI18: 0
A19: 1.7378 | B19: 0.0017378 | C19: 1.000002945 | D19: 0.002426874237 | E19: 1 | F19: 5.896216484e-06 | G19: 1 | H19: 0 | I19: 1.00277534 | J19: 0.07441688109 | K19: 1.000000047 | L19: 0.0003059044368 | M19: 1 | N19: 3.150283839e-05 | O19: 1 | P19: 1.009825343e-05 | Q19: 6.307855627 | R19: 1.118885906e-05 | S19: 1 | T19: 3.189328225e-06 | U19: 85.05441497 | V19: -4.387008208 | W19: 175.6129918 | Y19: 1000000000 | Z19: 3.01994884 | AB19: 80.8037812 | AC19: -4.248051162 | AE19: 48.20706884 | AF19: -0.1388945581 | AH19: 0 | AI19: 0
A20: 1.9055 | B20: 0.0019055 | C20: 1.000003541 | D20: 0.002661069756 | E20: 1 | F20: 6.465209178e-06 | G20: 1 | H20: 0 | I20: 1.003335899 | J20: 0.08156778867 | K20: 1.000000056 | L20: 0.0003354246177 | M20: 1.000000001 | N20: 3.454290399e-05 | O20: 1 | P20: 1.107274825e-05 | Q20: 6.307855627 | R20: 1.226859877e-05 | S20: 1 | T20: 3.49710262e-06 | U20: 85.04955575 | V20: -4.808617311 | W20: 175.1913827 | Y20: 1000000000 | Z20: 3.63093025 | AB20: 80.79892716 | AC20: -4.656250788 | AE20: 48.20706366 | AF20: -0.1522980062 | AH20: 0 | AI20: 0
A21: 2.0893 | B21: 0.0020893 | C21: 1.000004257 | D21: 0.002917748826 | E21: 1 | F21: 7.088827885e-06 | G21: 1 | H21: 0 | I21: 1.004009135 | J21: 0.08939559955 | K21: 1.000000068 | L21: 0.0003677788761 | M21: 1.000000001 | N21: 3.787483038e-05 | O21: 1 | P21: 1.214079922e-05 | Q21: 6.307855627 | R21: 1.345199864e-05 | S21: 1 | T21: 3.834424825e-06 | U21: 85.04372337 | V21: -5.270151814 | W21: 174.7298482 | Y21: 1000000000 | Z21: 4.36517449 | AB21: 80.793101 | AC21: -5.103088458 | AE21: 48.20705744 | AF21: -0.16698823 | AH21: 0 | AI21: 0
A22: 2.2909 | B22: 0.0022909 | C22: 1.000005118 | D22: 0.003199285381 | E22: 1 | F22: 7.77284057e-06 | G22: 1 | H22: 0 | I22: 1.004818214 | J22: 0.09796884155 | K22: 1.000000081 | L22: 0.0004032664622 | M22: 1.000000001 | N22: 4.152943518e-05 | O22: 1 | P22: 1.331228495e-05 | Q22: 6.307855627 | R22: 1.475000416e-05 | S22: 1 | T22: 4.204414795e-06 | U22: 85.03671932 | V22: -5.775658615 | W22: 174.2243414 | Y22: 1000000000 | Z22: 5.24822281 | AB22: 80.78610443 | AC22: -5.592475146 | AE22: 48.20704996 | AF22: -0.1831010943 | AH22: 0 | AI22: 0
A23: 2.5119 | B23: 0.0025119 | C23: 1.000006153 | D23: 0.00350791366 | E23: 1 | F23: 8.522675904e-06 | G23: 1 | H23: 0 | I23: 1.00578986 | J23: 0.1073504713 | K23: 1.000000098 | L23: 0.0004421690233 | M23: 1.000000001 | N23: 4.553572317e-05 | O23: 1 | P23: 1.459650293e-05 | Q23: 6.307855627 | R23: 1.617291695e-05 | S23: 1 | T23: 4.610008958e-06 | U23: 85.02831539 | V23: -6.328858319 | W23: 173.6711417 | Y23: 1000000000 | Z23: 6.30964161 | AB23: 80.77770949 | AC23: -6.128003529 | AE23: 48.20704097 | AF23: -0.2007644686 | AH23: 0 | AI23: 0
A24: 2.7542 | B24: 0.0027542 | C24: 1.000007397 | D24: 0.003846286791 | E24: 1 | F24: 9.344780434e-06 | G24: 1 | H24: 0 | I24: 1.006956676 | J24: 0.1176144892 | K24: 1.000000118 | L24: 0.0004848210151 | M24: 1.000000001 | N24: 4.992813756e-05 | O24: 1 | P24: 1.600449396e-05 | Q24: 6.307855627 | R24: 1.773297021e-05 | S24: 1 | T24: 5.054694324e-06 | U24: 85.0182341 | V24: -6.934125553 | W24: 173.0658744 | Y24: 1000000000 | Z24: 7.58561764 | AB24: 80.76763901 | AC24: -6.713896322 | AE24: 48.20703017 | AF24: -0.2201301963 | AH24: 0 | AI24: 0
A25: 3.02 | B25: 0.00302 | C25: 1.000008894 | D25: 0.004217476769 | E25: 1 | F25: 1.024661859e-05 | G25: 1 | H25: 0 | I25: 1.008358368 | J25: 0.128845344 | K25: 1.000000141 | L25: 0.0005316097024 | M25: 1.000000001 | N25: 5.474655995e-05 | O25: 1 | P25: 1.75490421e-05 | Q25: 6.307855628 | R25: 1.944432867e-05 | S25: 1 | T25: 5.542508481e-06 | U25: 85.00613889 | V25: -7.59645487 | W25: 172.4035451 | Y25: 1000000000 | Z25: 9.1204 | AB25: 80.75555679 | AC25: -7.354972184 | AE25: 48.20701717 | AF25: -0.2413740937 | AH25: 0 | AI25: 0
A26: 3.3113 | B26: 0.0033113 | C26: 1.000010692 | D26: 0.004624276186 | E26: 1 | F26: 1.12349762e-05 | G26: 1 | H26: 0 | I26: 1.010040171 | J26: 0.1411161256 | K26: 1.00000017 | L26: 0.0005828871437 | M26: 1.000000002 | N26: 6.002724633e-05 | O26: 1 | P26: 1.924176924e-05 | Q26: 6.307855628 | R26: 2.131986938e-05 | S26: 1 | T26: 6.077121965e-06 | U26: 84.99164871 | V26: -8.320175817 | W26: 171.6798242 | Y26: 1000000000 | Z26: 10.96470769 | AB26: 80.74108223 | AC26: -8.055400765 | AE26: 48.20700155 | AF26: -0.2646559858 | AH26: 0 | AI26: 0
A27: 3.6308 | B27: 0.0036308 | C27: 1.000012855 | D27: 0.005070455038 | E27: 1 | F27: 1.231901416e-05 | G27: 1 | H27: 0 | I27: 1.01205904 | J27: 0.1545256626 | K27: 1.000000204 | L27: 0.000639128618 | M27: 1.000000002 | N27: 6.58191423e-05 | O27: 1 | P27: 2.109836492e-05 | Q27: 6.307855628 | R27: 2.337697634e-05 | S27: 1 | T27: 6.663489998e-06 | U27: 84.97428618 | V27: -9.11114228 | W27: 170.8888577 | Y27: 1000000000 | Z27: 13.18270864 | AB27: 80.72373849 | AC27: -8.820820089 | AE27: 48.20698276 | AF27: -0.2901916366 | AH27: 0 | AI27: 0
A28: 3.9811 | B28: 0.0039811 | C28: 1.000015455 | D28: 0.005559643484 | E28: 1 | F28: 1.350755406e-05 | G28: 1 | H28: 0 | I28: 1.014480776 | J28: 0.1691636165 | K28: 1.000000246 | L28: 0.000700791801 | M28: 1.000000003 | N28: 7.216938067e-05 | O28: 1 | P28: 2.313393758e-05 | Q28: 6.307855628 | R28: 2.563238969e-05 | S28: 1 | T28: 7.306384276e-06 | U28: 84.95350449 | V28: -9.974675827 | W28: 170.0253242 | Y28: 1000000000 | Z28: 15.84915721 | AB28: 80.70297938 | AC28: -9.65634387 | AE28: 48.20696018 | AF28: -0.3181888067 | AH28: 0 | AI28: 0
A29: 4.3652 | B29: 0.0043652 | C29: 1.000018581 | D29: 0.006096030032 | E29: 1 | F29: 1.481077465e-05 | G29: 1 | H29: 0 | I29: 1.017384746 | J29: 0.1851300572 | K29: 1.000000295 | L29: 0.0007684047797 | M29: 1.000000003 | N29: 7.913234543e-05 | O29: 1 | P29: 2.536592005e-05 | Q29: 6.307855629 | R29: 2.810542501e-05 | S29: 1 | T29: 8.011310604e-06 | U29: 84.92864976 | V29: -10.91672272 | W29: 169.0832773 | Y29: 1000000000 | Z29: 19.05497104 | AB29: 80.6781518 | AC29: -10.56767855 | AE29: 48.20693302 | AF29: -0.3488872124 | AH29: 0 | AI29: 0
A30: 4.7863 | B30: 0.0047863 | C30: 1.000022339 | D30: 0.006684082161 | E30: 1 | F30: 1.623953329e-05 | G30: 1 | H30: 0 | I30: 1.020864664 | J30: 0.202525206 | K30: 1.000000355 | L30: 0.0008425308464 | M30: 1.000000004 | N30: 8.676604618e-05 | O30: 1 | P30: 2.781290735e-05 | Q30: 6.307855629 | R30: 3.081668554e-05 | S30: 1 | T30: 8.784141836e-06 | U30: 84.89895864 | V30: -11.94325207 | W30: 168.0567479 | Y30: 1000000000 | Z30: 22.90866769 | AB30: 80.64849332 | AC30: -11.56053743 | AE30: 48.20690038 | AF30: -0.3825425357 | AH30: 0 | AI30: 0
A31: 5.2481 | B31: 0.0052481 | C31: 1.000026857 | D31: 0.007328965154 | E31: 1 | F31: 1.780638378e-05 | G31: 1 | H31: 0 | I31: 1.025033455 | J31: 0.2214594542 | K31: 1.000000427 | L31: 0.0009238213074 | M31: 1.000000005 | N31: 9.513755651e-05 | O31: 1 | P31: 3.049639994e-05 | Q31: 6.30785563 | R31: 3.37899938e-05 | S31: 1 | T31: 9.631668464e-06 | U31: 84.86352264 | V31: -13.06085109 | W31: 166.9391489 | Y31: 1000000000 | Z31: 27.54255361 | AB31: 80.61309657 | AC31: -12.64121199 | AE31: 48.20686114 | AF31: -0.4194503953 | AH31: 0 | AI31: 0
A32: 5.7544 | B32: 0.0057544 | C32: 1.000032289 | D32: 0.008035983378 | E32: 1 | F32: 1.95242192e-05 | G32: 1 | H32: 0 | I32: 1.030022581 | J32: 0.2420339016 | K32: 1.000000513 | L32: 0.001012945071 | M32: 1.000000005 | N32: 0.0001043157628 | O32: 1.000000001 | P32: 3.343847941e-05 | Q32: 6.307855631 | R32: 3.704981619e-05 | S32: 1 | T32: 1.05608645e-05 | U32: 84.82130209 | V32: -14.27558174 | W32: 165.7244183 | Y32: 1000000000 | Z32: 33.11311936 | AB32: 80.5709232 | AC32: -13.81546045 | AE32: 48.20681396 | AF32: -0.4599143699 | AH32: 0 | AI32: 0
A33: 6.3096 | B33: 0.0063096 | C33: 1.000038821 | D33: 0.008811278319 | E33: 1 | F33: 2.140796842e-05 | G33: 1 | H33: 0 | I33: 1.03598959 | J33: 0.2643571704 | K33: 1.000000617 | L33: 0.001110676661 | M33: 1.000000007 | N33: 0.0001143804283 | O33: 1.000000001 | P33: 3.66647139e-05 | Q33: 6.307855631 | R33: 4.062448217e-05 | S33: 1 | T33: 1.157980514e-05 | U33: 84.77107334 | V33: -15.59397942 | W33: 164.4060206 | Y33: 1000000000 | Z33: 39.81105216 | AB33: 80.52075117 | AC33: -15.0894666 | AE33: 48.20675723 | AF33: -0.5042859481 | AH33: 0 | AI33: 0
A34: 6.9183 | B34: 0.0069183 | C34: 1.000046672 | D34: 0.009661269768 | E34: 1 | F34: 2.347323886e-05 | G34: 1 | H34: 0 | I34: 1.043117564 | J34: 0.2885246481 | K34: 1.000000742 | L34: 0.001217825805 | M34: 1.000000008 | N34: 0.0001254149417 | O34: 1.000000001 | P34: 4.020183374e-05 | Q34: 6.307855633 | R34: 4.454360894e-05 | S34: 1 | T34: 1.269693259e-05 | U34: 84.71144888 | V34: -17.02183542 | W34: 162.9781646 | Y34: 1000000000 | Z34: 47.86287489 | AB34: 80.46119491 | AC34: -16.46865411 | AE34: 48.20668904 | AF34: -0.5529325462 | AH34: 0 | AI34: 0
A35: 7.5858 | B35: 0.0075858 | C35: 1.000056112 | D35: 0.01059335371 | E35: 1 | F35: 2.5738013e-05 | G35: 1 | H35: 0 | I35: 1.051624249 | J35: 0.3146331023 | K35: 1.000000892 | L35: 0.001335325451 | M35: 1.000000009 | N35: 0.0001375153815 | O35: 1.000000001 | P35: 4.408063691e-05 | Q35: 6.307855634 | R35: 4.884132065e-05 | S35: 1 | T35: 1.392197379e-05 | U35: 84.64082151 | V35: -18.56506963 | W35: 161.4349304 | Y35: 1000000000 | Z35: 57.54436164 | AB35: 80.39064953 | AC35: -17.95851942 | AE35: 48.20660705 | AF35: -0.6062774501 | AH35: 0 | AI35: 0
A36: 8.3176 | B36: 0.0083176 | C36: 1.00006746 | D36: 0.01161520371 | E36: 1 | F36: 2.82209519e-05 | G36: 1 | H36: 0 | I36: 1.061759926 | J36: 0.3427545144 | K36: 1.000001072 | L36: 0.001464143748 | M36: 1.000000011 | N36: 0.0001507814517 | O36: 1.000000001 | P36: 4.83330836e-05 | Q36: 6.307855635 | R36: 5.355302916e-05 | S36: 1 | T36: 1.52650227e-05 | U36: 84.55740974 | V36: -20.2281959 | W36: 159.7718041 | Y36: 1000000000 | Z36: 69.18246976 | AB36: 80.30733632 | AC36: -19.56313699 | AE36: 48.20650849 | AF36: -0.6647598312 | AH36: 0 | AI36: 0
A37: 9.1201 | B37: 0.0091201 | C37: 1.000081105 | D37: 0.01273574778 | E37: 1 | F37: 3.094377025e-05 | G37: 1 | H37: 0 | I37: 1.073820476 | J37: 0.3729559406 | K37: 1.000001289 | L37: 0.001605407264 | M37: 1.000000014 | N37: 0.0001653291713 | O37: 1.000000001 | P37: 5.299636381e-05 | Q37: 6.307855637 | R37: 5.871994098e-05 | S37: 1 | T37: 1.673782503e-05 | U37: 84.45918607 | V37: -22.01550956 | W37: 157.9844904 | Y37: 1000000000 | Z37: 83.17622401 | AB37: 80.20923116 | AC37: -21.28629097 | AE37: 48.20638998 | AF37: -0.728890657 | AH37: 0 | AI37: 0
A38: 10 | B38: 0.01 | C38: 1.000097509 | D38: 0.0139643299 | E38: 1.000000001 | F38: 3.392920061e-05 | G38: 1 | H38: 0 | I38: 1.088143142 | J38: 0.4052680701 | K38: 1.000001549 | L38: 0.001760295375 | M38: 1.000000016 | N38: 0.000181279998 | O38: 1.000000002 | P38: 5.810941086e-05 | Q38: 6.307855639 | R38: 6.438519421e-05 | S38: 1 | T38: 1.835267709e-05 | U38: 84.34395887 | V38: -23.92924337 | W38: 156.0707566 | Y38: 1000000000 | Z38: 100 | AB38: 80.09414643 | AC38: -23.1296791 | AE38: 48.20624751 | AF38: -0.7992046989 | AH38: 0 | AI38: 0
A39: 10.965 | B39: 0.010965 | C39: 1.000117235 | D39: 0.01531168639 | E39: 1.000000001 | F39: 3.720336846e-05 | G39: 1 | H39: 0 | I39: 1.10512089 | J39: 0.4397024069 | K39: 1.000001863 | L39: 0.001930163476 | M39: 1.00000002 | N39: 0.0001987735174 | O39: 1.000000002 | P39: 6.3716969e-05 | Q39: 6.307855642 | R39: 7.059836543e-05 | S39: 1 | T39: 2.012371043e-05 | U39: 84.20931506 | V39: -25.97060154 | W39: 154.0293985 | Y39: 1000000000 | Z39: 120.231225 | AB39: 79.95967395 | AC39: -25.09389085 | AE39: 48.20607619 | AF39: -0.8763164161 | AH39: 0 | AI39: 0
A40: 12.023 | B40: 0.012023 | C40: 1.000140949 | D40: 0.01678882767 | E40: 1.000000001 | F40: 4.079307788e-05 | G40: 1 | H40: 0 | I40: 1.125191929 | J40: 0.476213107 | K40: 1.00000224 | L40: 0.002116402156 | M40: 1.000000024 | N40: 0.0002179529405 | O40: 1.000000002 | P40: 6.986494465e-05 | Q40: 6.307855645 | R40: 7.741031895e-05 | S40: 1 | T40: 2.206542366e-05 | U40: 84.05277595 | V40: -28.13751636 | W40: 151.8624836 | Y40: 1000000000 | Z40: 144.552529 | AB40: 79.80334078 | AC40: -27.17622808 | AE40: 48.20587024 | AF40: -0.9608559543 | AH40: 0 | AI40: 0
A41: 13.183 | B41: 0.013183 | C41: 1.000169457 | D41: 0.01840829322 | E41: 1.000000001 | F41: 4.472886515e-05 | G41: 1 | H41: 0 | I41: 1.148857167 | J41: 0.5147207625 | K41: 1.000002693 | L41: 0.002320595625 | M41: 1.000000029 | N41: 0.0002389814195 | O41: 1.000000003 | P41: 7.660563628e-05 | Q41: 6.307855649 | R41: 8.487900144e-05 | S41: 1 | T41: 2.419433421e-05 | U41: 83.87174367 | V41: -30.42607464 | W41: 149.5739254 | Y41: 1000000000 | Z41: 173.791489 | AB41: 79.62255608 | AC41: -29.37205964 | AE41: 48.20562267 | AF41: -1.053540969 | AH41: 0 | AI41: 0
A42: 14.454 | B42: 0.014454 | C42: 1.000203704 | D42: 0.02018261369 | E42: 1.000000001 | F42: 4.904126654e-05 | G42: 1 | H42: 0 | I42: 1.176658523 | J42: 0.555068697 | K42: 1.000003237 | L42: 0.002544328073 | M42: 1.000000034 | N42: 0.000262022106 | O42: 1.000000004 | P42: 8.399134236e-05 | Q42: 6.307855653 | R42: 9.306235957e-05 | S42: 1 | T42: 2.652695946e-05 | U42: 83.66376281 | V42: -32.82793556 | W42: 147.1720644 | Y42: 1000000000 | Z42: 208.918116 | AB42: 79.41487262 | AC42: -31.67232722 | AE42: 48.20532526 | AF42: -1.155088611 | AH42: 0 | AI42: 0
A43: 15.849 | B43: 0.015849 | C43: 1.000244916 | D43: 0.0221298919 | E43: 1.000000001 | F43: 5.377439001e-05 | G43: 1 | H43: 0 | I43: 1.209268573 | J43: 0.5971417017 | K43: 1.000003892 | L43: 0.002789887784 | M43: 1.000000041 | N43: 0.0002873106641 | O43: 1.000000004 | P43: 9.209760512e-05 | Q43: 6.307855659 | R43: 0.0001020440941 | S43: 1 | T43: 2.908715792e-05 | U43: 83.42596412 | V43: -35.33741704 | W43: 144.662583 | Y43: 1000000000 | Z43: 251.190801 | AB43: 79.17743182 | AC43: -34.07031221 | AE43: 48.20496737 | AF43: -1.266534934 | AH43: 0 | AI43: 0
A44: 17.378 | B44: 0.017378 | C44: 1.000294444 | D44: 0.02426402713 | E44: 1.000000002 | F44: 5.896216477e-05 | G44: 1 | H44: 0 | I44: 1.247332429 | J44: 0.6406441694 | K44: 1.000004679 | L44: 0.003059034921 | M44: 1.00000005 | N44: 0.0003150283736 | O44: 1.000000005 | P44: 0.000100982534 | Q44: 6.307855665 | R44: 0.0001118885902 | S44: 1 | T44: 3.189328225e-05 | U44: 83.15635186 | V44: -37.93828741 | W44: 142.0617126 | Y44: 1000000000 | Z44: 301.994884 | AB44: 78.90824964 | AC44: -36.54898712 | AE44: 48.2045373 | AF44: -1.388675418 | AH44: 0 | AI44: 0
A45: 19.055 | B45: 0.019055 | C45: 1.000354004 | D45: 0.02660448172 | E45: 1.000000002 | F45: 6.465209169e-05 | G45: 1 | H45: 0 | I45: 1.291624046 | J45: 0.6853159825 | K45: 1.000005625 | L45: 0.003354233723 | M45: 1.00000006 | N45: 0.0003454290263 | O45: 1.000000006 | P45: 0.0001107274821 | Q45: 6.307855673 | R45: 0.0001226859871 | S45: 1 | T45: 3.497102619e-05 | U45: 82.85276467 | V45: -40.61663075 | W45: 139.3833692 | Y45: 1000000000 | Z45: 363.093025 | AB45: 78.60517961 | AC45: -39.09332166 | AE45: 48.20402014 | AF45: -1.522623921 | AH45: 0 | AI45: =IF(AH45>0,W43,0) -> 0
A46: 20.893 | B46: 0.020893 | C46: 1.000425575 | D46: 0.02916929536 | E46: 1.000000003 | F46: 7.088827874e-05 | G46: 1 | H46: 0 | I46: 1.342920089 | J46: 0.7307920932 | K46: 1.000006763 | L46: 0.003677772345 | M46: 1.000000072 | N46: 0.0003787482859 | O46: 1.000000007 | P46: 0.0001214079917 | Q46: 6.307855683 | R46: 0.0001345199856 | S46: 1 | T46: 3.834424824e-05 | U46: 82.51387205 | V46: -43.35244668 | W46: 136.6475533 | Y46: 1000000000 | Z46: 436.517449 | AB46: 78.26690841 | AC46: -41.68228253 | AE46: 48.20339872 | AF46: -1.669412882 | AH46: 0 | AI46: 0
A47: 22.909 | B47: 0.022909 | C47: 1.000511644 | D47: 0.0319820542 | E47: 1.000000003 | F47: 7.772840554e-05 | G47: 1 | H47: 0 | I47: 1.402128477 | J47: 0.7767414864 | K47: 1.000008131 | L47: 0.004032642981 | M47: 1.000000086 | N47: 0.0004152943281 | O47: 1.000000009 | P47: 0.0001331228487 | Q47: 6.307855694 | R47: 0.0001475000406 | S47: 1 | T47: 4.204414794e-05 | U47: 82.13838379 | V47: -46.12796611 | W47: 133.8720339 | Y47: 1000000000 | Z47: 524.822281 | AB47: 77.89216739 | AC47: -44.29675018 | AE47: 48.20265149 | AF47: -1.830392171 | AH47: 0 | AI47: 0
A48: 25.119 | B48: 0.025119 | C48: 1.000615089 | D48: 0.0350649021 | E48: 1.000000004 | F48: 8.522675883e-05 | G48: 1 | H48: 0 | I48: 1.470144289 | J48: 0.8227535968 | K48: 1.000009776 | L48: 0.004421661704 | M48: 1.000000104 | N48: 0.0004553572005 | O48: 1.000000011 | P48: 0.0001459650283 | Q48: 6.307855708 | R48: 0.0001617291682 | S48: 1.000000001 | T48: 4.610008958e-05 | U48: 81.72605689 | V48: -48.92078855 | W48: 131.0792115 | Y48: 1000000000 | Z48: 630.964161 | AB48: 77.48073849 | AC48: -46.91305622 | AE48: 48.20175349 | AF48: -2.006829109 | AH48: 0 | AI48: 0
A49: 27.542 | B49: 0.027542 | C49: 1.00073943 | D49: 0.03844410689 | E49: 1.000000004 | F49: 9.344780408e-05 | G49: 1 | H49: 0 | I49: 1.547958215 | J49: 0.868447658 | K49: 1.000011753 | L49: 0.004848172545 | M49: 1.000000125 | N49: 0.0004992813345 | O49: 1.000000013 | P49: 0.0001600449382 | Q49: 6.307855724 | R49: 0.0001773297003 | S49: 1.000000001 | T49: 5.054694323e-05 | U49: 81.27700916 | V49: -51.71042985 | W49: 128.2895701 | Y49: 1000000000 | Z49: 758.561764 | AB49: 77.03277003 | AC49: -49.50921247 | AE49: 48.20067421 | AF49: -2.200227036 | AH49: 0 | AI49: 0
A50: 30.2 | B50: 0.0302 | C50: 1.000888971 | D50: 0.04215003838 | E50: 1.000000005 | F50: 0.0001024661855 | G50: 1 | H50: 0 | I50: 1.636661165 | J50: 0.9134731134 | K50: 1.00001413 | L50: 0.005316047446 | M50: 1.00000015 | N50: 0.0005474655453 | O50: 1.000000015 | P50: 0.0001754904192 | Q50: 6.307855744 | R50: 0.0001944432844 | S50: 1.000000001 | T50: 5.54250848e-05 | U50: 80.79174087 | V50: -54.47834451 | W50: 125.5216555 | Y50: 1000000000 | Z50: 912.04 | AB50: 76.54879959 | AC50: -52.06493454 | AE50: 48.19937638 | AF50: -2.412324052 | AH50: 0 | AI50: 0
A51: 33.113 | B51: 0.033113 | C51: 1.001068641 | D51: 0.04621017127 | E51: 1.000000006 | F51: 0.0001123497615 | G51: 1 | H51: 0 | I51: 1.737272212 | J51: 0.9574402481 | K51: 1.000016988 | L51: 0.005828806085 | M51: 1.00000018 | N51: 0.0006002723919 | O51: 1.000000019 | P51: 0.00019241769 | Q51: 6.307855768 | R51: 0.0002131986907 | S51: 1.000000001 | T51: 6.077121963e-05 | U51: 80.27202445 | V51: -57.20359572 | W51: 122.7964043 | Y51: 1000000000 | Z51: 1096.470769 | AB51: 76.03064223 | AC51: -54.5577125 | AE51: 48.19781732 | AF51: -2.644692555 | AH51: 0 | AI51: 0
A52: 36.308 | B52: 0.036308 | C52: 1.001284673 | D52: 0.05066159773 | E52: 1.000000008 | F52: 0.000123190141 | G52: 1 | H52: 0 | I52: 1.851040251 | J52: 1.000077884 | K52: 1.000020424 | L52: 0.006391200028 | M52: 1.000000217 | N52: 0.000658191329 | O52: 1.000000022 | P52: 0.0002109836461 | Q52: 6.307855797 | R52: 0.0002337697593 | S52: 1.000000001 | T52: 6.663489995e-05 | U52: 79.71921997 | V52: -59.87252574 | W52: 120.1274743 | Y52: 1000000000 | Z52: 1318.270864 | AB52: 75.47971197 | AC52: -56.97176483 | AE52: 48.19594311 | AF52: -2.89945536 | AH52: 0 | AI52: 0
A53: 39.811 | B53: 0.039811 | C53: 1.001544321 | D53: 0.05553982972 | E53: 1.000000009 | F53: 0.0001350755398 | G53: 1 | H53: 0 | I53: 1.979172688 | J53: 1.041111224 | K53: 1.000024555 | L53: 0.007007804439 | M53: 1.00000026 | N53: 0.0007216936827 | O53: 1.000000027 | P53: 0.0002313393717 | Q53: 6.307855831 | R53: 0.0002563238915 | S53: 1.000000001 | T53: 7.306384273e-05 | U53: 79.13564685 | V53: -62.47118793 | W53: 117.5288121 | Y53: 1000000000 | Z53: 1584.915721 | AB53: 74.89839094 | AC53: -59.29111159 | AE53: 48.19369103 | AF53: -3.178644833 | AH53: 0 | AI53: 0
A54: 43.652 | B54: 0.043652 | C54: 1.001856402 | D54: 0.06088570788 | E54: 1.000000011 | F54: 0.0001481077455 | G54: 1 | H54: 0 | I54: 2.123010172 | J54: 1.080339058 | K54: 1.000029522 | L54: 0.007683898081 | M54: 1.000000313 | N54: 0.0007913232908 | O54: 1.000000032 | P54: 0.0002536591951 | Q54: 6.307855872 | R54: 0.0002810542429 | S54: 1.000000002 | T54: 8.011310599e-05 | U54: 78.52361572 | V54: -64.99012101 | W54: 115.009879 | Y54: 1000000000 | Z54: 1905.497104 | AB54: 74.2890659 | AC54: -61.5039531 | AE54: 48.19098494 | AF54: -3.484598292 | AH54: 0 | AI54: 0
A55: 47.863 | B55: 0.047863 | C55: 1.002231425 | D55: 0.06674253712 | E55: 1.000000013 | F55: 0.0001623953315 | G55: 1 | H55: 0 | I55: 2.283958461 | J55: 1.117605668 | K55: 1.000035492 | L55: 0.008425111107 | M55: 1.000000376 | N55: 0.0008676602463 | O55: 1.000000039 | P55: 0.0002781290664 | Q55: 6.307855922 | R55: 0.0003081668459 | S55: 1.000000002 | T55: 8.78414183e-05 | U55: 77.88569375 | V55: -67.42259311 | W55: 112.5774069 | Y55: 1000000000 | Z55: 2290.866769 | AB55: 73.65439469 | AC55: -63.601078 | AE55: 48.1877342 | AF55: -3.819794071 | AH55: 0 | AI55: 0
A56: 52.481 | B56: 0.052481 | C56: 1.002682186 | D56: 0.07316015605 | E56: 1.000000016 | F56: 0.0001780638359 | G56: 1 | H56: 0 | I56: 2.463606793 | J56: 1.152823167 | K56: 1.000042671 | L56: 0.009237952905 | M56: 1.000000453 | N56: 0.000951375281 | O56: 1.000000047 | P56: 0.00030496399 | Q56: 6.307855982 | R56: 0.0003378999255 | S56: 1.000000002 | T56: 9.631668456e-05 | U56: 77.22418594 | V56: -69.76608767 | W56: 110.2339123 | Y56: 1000000000 | Z56: 2754.255361 | AB56: 72.99679254 | AC56: -65.57711617 | AE56: 48.18382855 | AF56: -4.187084408 | AH56: 0 | AI56: 0
A57: 57.544 | B57: 0.057544 | C57: 1.003223794 | D57: 0.0801892397 | E57: 1.000000019 | F57: 0.0001952421896 | G57: 1 | H57: 0 | I57: 2.663578737 | J57: 1.185930541 | K57: 1.000051302 | L57: 0.01012910775 | M57: 1.000000544 | N57: 0.001043157254 | O57: 1.000000056 | P57: 0.0003343847818 | Q57: 6.307856054 | R57: 0.0003704981454 | S57: 1.000000003 | T57: 0.0001056086449 | U57: 76.54168668 | V57: -72.0196668 | W57: 107.9803332 | Y57: 1000000000 | Z57: 3311.311936 | AB57: 72.31898378 | AC57: -67.42822828 | AE57: 48.17913808 | AF57: -4.589369379 | AH57: 0 | AI57: 0
A58: 63.096 | B58: 0.063096 | C58: 1.003874626 | D58: 0.08788807055 | E58: 1.000000023 | F58: 0.000214079681 | G58: 1 | H58: 0 | I58: 2.885730938 | J58: 1.216924141 | K58: 1.000061678 | L58: 0.0111063145 | M58: 1.000000654 | N58: 0.001143803789 | O58: 1.000000067 | P58: 0.0003666471228 | Q58: 6.30785614 | R58: 0.0004062448 | S58: 1.000000003 | T58: 0.0001157980512 | U58: 75.84033688 | V58: -74.18606068 | W58: 105.8139393 | Y58: 1000000000 | Z58: 3981.105216 | AB58: 71.62326702 | AC58: -69.15380751 | AE58: 48.17350504 | AF58: -5.029984395 | AH58: 0 | AI58: 0
A59: 69.183 | B59: 0.069183 | C59: 1.004656456 | D59: 0.09631675351 | E59: 1.000000028 | F59: 0.0002347323843 | G59: 1 | H59: 0 | I59: 3.132000207 | J59: 1.245821658 | K59: 1.000074152 | L59: 0.01217766208 | M59: 1.000000786 | N59: 0.001254148766 | O59: 1.000000081 | P59: 0.000402018316 | Q59: 6.307856244 | R59: 0.0004454360608 | S59: 1.000000004 | T59: 0.0001269693257 | U59: 75.1223631 | V59: -76.26930864 | W59: 103.7306914 | Y59: 1000000000 | Z59: 4786.287489 | AB59: 70.91205529 | AC59: -70.75445188 | AE59: 48.16674303 | AF59: -5.512369111 | AH59: 0 | AI59: 0
A60: 75.858 | B60: 0.075858 | C60: 1.005595721 | D60: 0.1055438438 | E60: 1.000000033 | F60: 0.0002573801244 | G60: 1 | H60: 0 | I60: 3.404608078 | J60: 1.272680604 | K60: 1.000089151 | L60: 0.01335246886 | M60: 1.000000946 | N60: 0.001375152957 | O60: 1.000000097 | P60: 0.0004408063409 | Q60: 6.30785637 | R60: 0.0004884131687 | S60: 1.000000005 | T60: 0.0001392197376 | U60: 74.38946839 | V60: -78.27615212 | W60: 101.7238479 | Y60: 1000000000 | Z60: 5754.436164 | AB60: 70.18727731 | AC60: -72.23297773 | AE60: 48.15862633 | AF60: -6.040446716 | AH60: 0 | AI60: 0
A61: 83.176 | B61: 0.083176 | C61: 1.006723651 | D61: 0.1156390321 | E61: 1.00000004 | F61: 0.0002822095116 | G61: 1 | H61: 0 | I61: 3.705862107 | J61: 1.297566613 | K61: 1.00010718 | L61: 0.01464040183 | M61: 1.000001137 | N61: 0.001507813385 | O61: 1.000000117 | P61: 0.0004833307987 | Q61: 6.30785652 | R61: 0.0005355302418 | S61: 1.000000006 | T61: 0.0001526502267 | U61: 73.64344362 | V61: -80.21384487 | W61: 99.78615513 | Y61: 1000000000 | Z61: 6918.246976 | AB61: 69.45098963 | AC61: -73.59264877 | AE61: 48.14888928 | AF61: -6.618205292 | AH61: 0 | AI61: 0
A62: 91.201 | B62: 0.091201 | C62: 1.008078212 | D62: 0.1266823023 | E62: 1.000000048 | F62: 0.0003094376927 | G62: 1 | H62: 0 | I62: 4.038445415 | J62: 1.320573311 | K62: 1.000128859 | L62: 0.01605270742 | M62: 1.000001367 | N62: 0.001653290222 | O62: 1.00000014 | P62: 0.000529963589 | Q62: 6.307856701 | R62: 0.0005871993442 | S62: 1.000000007 | T62: 0.0001673782499 | U62: 72.88545155 | V62: -82.09175272 | W62: 97.90824728 | Y62: 1000000000 | Z62: 8317.622401 | AB62: 68.70467667 | AC62: -74.83825149 | AE62: 48.1372102 | AF62: -7.250221863 | AH62: 0 | AI62: 0
A63: 100 | B63: 0.1 | C63: 1.009704306 | D63: 0.1387549843 | E63: 1.000000058 | F63: 0.0003392919932 | G63: 1 | H63: 0 | I63: 4.405173077 | J63: 1.341794177 | K63: 1.00015492 | L63: 0.0176011541 | M63: 1.000001643 | N63: 0.001812798014 | O63: 1.000000169 | P63: 0.0005810940439 | Q63: 6.307856918 | R63: 0.0006438518556 | S63: 1.000000009 | T63: 0.0001835267704 | U63: 72.11670071 | V63: -83.91928332 | W63: 96.08071668 | Y63: 1000000000 | Z63: 10000 | AB63: 67.94992542 | AC63: -75.97453726 | AE63: 48.12321067 | AF63: -7.941150307 | AH63: 0 | AI63: 0
A64: 109.65 | B64: 0.10965 | C64: 1.011656285 | D64: 0.1519485156 | E64: 1.000000069 | F64: 0.0003720336676 | G64: 1 | H64: 0 | I64: 4.809284567 | J64: 1.361336938 | K64: 1.00018626 | L64: 0.01929926229 | M64: 1.000001976 | N64: 0.001987732582 | O64: 1.000000203 | P64: 0.0006371696046 | Q64: 6.307857179 | R64: 0.0007059835403 | S64: 1.00000001 | T64: 0.0002012371036 | U64: 71.33784453 | V64: -85.707149 | W64: 94.292851 | Y64: 1000000000 | Z64: 12023.1225 | AB64: 67.18784472 | AC64: -77.00698352 | AE64: 48.10643525 | AF64: -8.696222736 | AH64: 0 | AI64: 0
A65: 120.23 | B65: 0.12023 | C65: 1.013997915 | D65: 0.1663523782 | E65: 1.000000083 | F65: 0.0004079307564 | G65: 1 | H65: 0 | I65: 5.254111511 | J65: 1.379300963 | K65: 1.000223933 | L65: 0.02116089409 | M65: 1.000002375 | N65: 0.002179525989 | O65: 1.000000244 | P65: 0.0006986493339 | Q65: 6.307857493 | R65: 0.0007741030392 | S65: 1.000000012 | T65: 0.0002206542357 | U65: 70.54971048 | V65: -87.46545389 | W65: 92.53454611 | Y65: 1000000000 | Z65: 14455.2529 | AB65: 66.4197922 | AC65: -77.94057167 | AE65: 48.08635379 | AF65: -9.520559041 | AH65: 0 | AI65: 0
A66: 131.83 | B66: 0.13183 | C66: 1.016805873 | D66: 0.1820650154 | E66: 1.0000001 | F66: 0.0004472886219 | G66: 1 | H66: 0 | I66: 5.74345533 | J66: 1.395793199 | K66: 1.000269223 | L66: 0.02320183363 | M66: 1.000002856 | N66: 0.00238980969 | O66: 1.000000293 | P66: 0.0007660562144 | Q66: 6.307857871 | R66: 0.0008487898163 | S66: 1.000000015 | T66: 0.0002419433408 | U66: 69.7526007 | V66: -89.2051502 | W66: 90.7948498 | Y66: 1000000000 | Z66: 17379.1489 | AB66: 65.64670207 | AC66: -78.78061834 | AE66: 48.06233424 | AF66: -10.41979158 | AH66: 0 | AI66: 0
A67: 144.54 | B67: 0.14454 | C67: 1.020169032 | D67: 0.1991771779 | E67: 1.00000012 | F67: 0.0004904126264 | G67: 1 | H67: 0 | I67: 6.281124738 | J67: 1.410908814 | K67: 1.000323629 | L67: 0.02543784741 | M67: 1.000003433 | N67: 0.002620215124 | O67: 1.000000353 | P67: 0.0008399132281 | Q67: 6.307858325 | R67: 0.0009306233346 | S67: 1.000000018 | T67: 0.000265269593 | U67: 68.94710294 | V67: -90.93607563 | W67: 89.06392437 | Y67: 1000000000 | Z67: 20891.8116 | AB67: 64.86988608 | AC67: -79.53176639 | AE67: 48.03365258 | AF67: -11.39911194 | AH67: 0 | AI67: 0
A68: 158.49 | B68: 0.15849 | C68: 1.02420174 | D68: 0.217823366 | E68: 1.000000145 | F68: 0.0005377438488 | G68: 1 | H68: 0 | I68: 6.872630361 | J68: 1.424773247 | K68: 1.0003891 | L68: 0.0278917152 | M68: 1.000004127 | N68: 0.002873098814 | O68: 1.000000424 | P68: 0.0009209757934 | Q68: 6.30785887 | R68: 0.001020440597 | S68: 1.000000022 | T68: 0.000290871577 | U68: 68.13168659 | V68: -92.67194653 | W68: 87.32805347 | Y68: 1000000000 | Z68: 25119.0801 | AB68: 64.08873715 | AC68: -80.20003279 | AE68: 47.99938529 | AF68: -12.46621482 | AH68: 0 | AI68: 0
A69: 173.78 | B69: 0.17378 | C69: 1.029027413 | D69: 0.2380849352 | E69: 1.000000174 | F69: 0.00058962158 | G69: 1 | H69: 0 | I69: 7.522221673 | J69: 1.43746216 | K69: 1.000467778 | L69: 0.03058090806 | M69: 1.000004962 | N69: 0.003150273419 | O69: 1.00000051 | P69: 0.001009825 | Q69: 6.307859527 | R69: 0.001118885448 | S69: 1.000000026 | T69: 0.0003189328196 | U69: 67.30707097 | V69: -94.42085684 | W69: 85.57914316 | Y69: 1000000000 | Z69: 30199.4884 | AB69: 63.30495017 | AC69: -80.78885549 | AE69: 47.95855681 | AF69: -13.62575264 | AH69: 0 | AI69: 0
A70: 190.55 | B70: 0.19055 | C70: 1.034801071 | D70: 0.2600803724 | E70: 1.000000209 | F70: 0.0006465208277 | G70: 1 | H70: 0 | I70: 8.235852578 | J70: 1.449075644 | K70: 1.00056239 | L70: 0.033529892 | M70: 1.000005966 | N70: 0.003454276661 | O70: 1.000000613 | P70: 0.001107274373 | Q70: 6.307860316 | R70: 0.001226859273 | S70: 1.000000031 | T70: 0.0003497102582 | U70: 66.47203646 | V70: -96.1940663 | W70: 83.8059337 | Y70: 1000000000 | Z70: 36309.3025 | AB70: 62.51851409 | AC70: -81.30271289 | AE70: 47.90995857 | AF70: -14.8845017 | AH70: 0 | AI70: 0
A71: 208.93 | B71: 0.20893 | C71: 1.041697204 | D71: 0.2838946011 | E71: 1.000000251 | F71: 0.0007088826698 | G71: 1 | H71: 0 | I71: 9.019059632 | J71: 1.459691579 | K71: 1.000676078 | L71: 0.03676132063 | M71: 1.000007172 | N71: 0.00378746493 | O71: 1.000000737 | P71: 0.001214079326 | Q71: 6.307861264 | R71: 0.001345199068 | S71: 1.000000037 | T71: 0.0003834424775 | U71: 65.62626646 | V71: -97.99973295 | W71: 82.00026705 | Y71: 1000000000 | Z71: 43651.7449 | AB71: 61.73043659 | AC71: -81.7449042 | AE71: 47.8522663 | AF71: -16.24731614 | AH71: 0 | AI71: 0
A72: 229.09 | B72: 0.22909 | C72: 1.049930935 | D72: 0.3096391095 | E72: 1.000000302 | F72: 0.0007772839005 | G72: 1 | H72: 0 | I72: 9.879090369 | J72: 1.469398769 | K72: 1.000812789 | L72: 0.04030480946 | M72: 1.000008623 | N72: 0.004152919645 | O72: 1.000000886 | P72: 0.001331227709 | Q72: 6.307862404 | R72: 0.001474999366 | S72: 1.000000045 | T72: 0.0004204414729 | U72: 64.76794187 | V72: -99.84780339 | W72: 80.15219661 | Y72: 1000000000 | Z72: 52482.2281 | AB72: 60.94049657 | AC72: -82.11899728 | AE72: 47.78388201 | AF72: -17.7205686 | AH72: 0 | AI72: 0
A73: 251.19 | B73: 0.25119 | C73: 1.059743173 | D73: 0.3373809297 | E73: 1.000000363 | F73: 0.000852267384 | G73: 1 | H73: 0 | I73: 10.82277336 | J73: 1.478266589 | K73: 1.00097709 | L73: 0.0441881223 | M73: 1.000010367 | N73: 0.004553540848 | O73: 1.000001065 | P73: 0.001459649256 | Q73: 6.307863775 | R73: 0.001617290311 | S73: 1.000000054 | T73: 0.0004610008872 | U73: 63.89612265 | V73: -101.74466 | W73: 78.25533999 | Y73: 1000000000 | Z73: 63096.4161 | AB73: 60.14947513 | AC73: -82.42754238 | AE73: 47.70308455 | AF73: -19.30808546 | AH73: 0 | AI73: 0
A74: 275.42 | B74: 0.27542 | C74: 1.071419936 | D74: 0.3671870673 | E74: 1.000000437 | F74: 0.0009344777715 | G74: 1 | H74: 0 | I74: 11.85822346 | J74: 1.48636639 | K74: 1.001174567 | L74: 0.04844417283 | M74: 1.000012464 | N74: 0.004992772273 | O74: 1.000001281 | P74: 0.001600448029 | Q74: 6.307865423 | R74: 0.001773295196 | S74: 1.000000065 | T74: 0.0005054694211 | U74: 63.00901477 | V74: -103.6965315 | W74: 76.3034685 | Y74: 1000000000 | Z74: 75856.1764 | AB74: 59.35754902 | AC74: -82.67293918 | AE74: 47.60790318 | AF74: -21.0136889 | AH74: 0 | AI74: 0
A75: 302 | B75: 0.302 | C75: 1.085298674 | D75: 0.3991148015 | E75: 1.000000525 | F75: 0.0010246615 | G75: 1 | H75: 0 | I75: 12.99484424 | J75: 1.493766576 | K75: 1.001412048 | L75: 0.05311098077 | M75: 1.000014986 | N75: 0.005474601306 | O75: 1.00000154 | P75: 0.001754902409 | Q75: 6.307867405 | R75: 0.001944430462 | S75: 1.000000078 | T75: 0.0005542508332 | U75: 62.10423315 | V75: -105.7086573 | W75: 74.29134272 | Y75: 1000000000 | Z75: 91204 | AB75: 58.56455821 | AC75: -82.85715697 | AE75: 47.49611285 | AF75: -22.84064115 | AH75: 0 | AI75: 0
A76: 331.13 | B76: 0.33113 | C76: 1.101745139 | D76: 0.4331432555 | E76: 1.000000631 | F76: 0.001123497147 | G76: 1 | H76: 0 | I76: 14.24118934 | J76: 1.50051964 | K76: 1.001697347 | L76: 0.05822284179 | M76: 1.000018016 | N76: 0.006002652543 | O76: 1.000001851 | P76: 0.001924174549 | Q76: 6.307869787 | R76: 0.002131983767 | S76: 1.000000094 | T76: 0.0006077121768 | U76: 61.18054021 | V76: -107.7810808 | W76: 72.21891915 | Y76: 1000000000 | Z76: 109647.0769 | AB76: 57.77150248 | AC76: -82.98144607 | AE76: 47.36547622 | AF76: -24.78772819 | AH76: 0 | AI76: 0
A77: 363.08 | B77: 0.36308 | C77: =SQRT(1+(A77/pole1)^2) -> 1.121204508 | D77: =ATAN(A77/pole1) -> 0.4692715696 | E77: =SQRT(1+(A77/Zero1)^2) -> 1.000000759 | F77: =ATAN(A77/Zero1) -> 0.001231900793 | G77: =IF(VIN_nom>Vout, 1, SQRT(1+(A77/z_RHP)^2)) -> 1 | H77: =IF(VIN_nom>Vout, 0, -ATAN(A77/z_RHP)) -> 0 | I77: =SQRT(1+(A77/Pole2)^2) -> 15.60881164 | J77: =ATAN(A77/Pole2) -> 1.506686043 | K77: =SQRT(1+(A77/Zero2)^2) -> 1.002040346 | L77: =ATAN(A77/Zero2) -> 0.06382605824 | M77: =SQRT(1+(A77/pole4)^2) -> 1.000021661 | N77: =ATAN(A77/pole4) -> 0.006581819196 | O77: =IF(VOUT_setting=1,1,SQRT(1+(A77*zterm1)^2)) -> 1.000002226 | P77: =IF(VOUT_setting=1,0,ATAN(((A77*zterm1)))) -> 0.002109833361 | Q77: 6.307872652 | R77: =IF(VOUT_setting=1,0,ATAN(A77*$Q$4/(1+Afbr-$Q$5*(A77)^2))) -> 0.002337693454 | S77: =SQRT((1-(Z77/pterm2))^2+(A77/pterm1)^2) -> 1.000000113 | T77: =IF((ATAN((A77/pterm1)/(1-A77^2/pterm2))>0),ATAN((A77/pterm1)/(1-A77^2/pterm2)),PI()+ATAN((A77/pterm1)/(1-A77^2/pterm2))) -> 0.0006663489738 | U77: =20*LOG10(((E77*K77*G77*O77)/(C77*I77*S77*M77*Q77))*Adc) -> 60.23493707 | V77: =((F77+L77+H77+P77)-(D77+J77+T77+N77+R77))*radconv -> -109.9148302 | W77: =IF(V77>0,V77,V77+180) -> 70.0851698 | Y77: =IF(U77<0,A77,1000000000) -> 1000000000 | Z77: =A77^2 -> 131827.0864 | AB77: =20*LOG10((K77/(I77*M77))*AEA) -> 56.97797293 | AC77: =(L77-(J77+N77))*radconv -> -83.04689809 | AE77: =20*LOG10((E77*G77/(C77*S77))*Acs*Am) -> 47.21340332 | AF77: =(F77+H77-(D77+T77))*radconv -> -26.85487668 | AH77: =SUM((U78<0)*(U77>0))*A77 -> 0 | AI77: =IF(AH77>0,W75,0) -> 0
A78: 398.11 | B78: =A78/1000 -> 0.39811 | C78: 1.144160271 | D78: 0.5074152054 | E78: 1.000000912 | F78: 0.001350754584 | G78: 1 | H78: 0 | I78: 17.10884137 | J78: 1.512313684 | K78: 1.002452539 | L78: 0.06996480663 | M78: 1.000026042 | N78: 0.007216812788 | O78: 1.000002676 | P78: 0.002313389632 | Q78: 6.307876096 | R78: 0.002563233459 | S78: 1.000000136 | T78: 0.0007306383933 | U78: 59.2654158 | V78: -112.105531 | W78: 67.89446903 | Y78: 1000000000 | Z78: 158491.5721 | AB78: 56.18449192 | AC78: -83.05399625 | AE78: 47.03736389 | AF78: -29.03721972 | AH78: 0 | AI78: 0
A79: 436.52 | B79: 0.43652 | C79: 1.171163963 | D79: 0.5474561329 | E79: 1.000001097 | F79: 0.001481076383 | G79: 1 | H79: 0 | I79: 18.75412539 | J79: 1.517449426 | K79: 1.002947886 | L79: 0.07668979271 | M79: 1.000031309 | N79: 0.007913069393 | O79: 1.000003217 | P79: 0.002536586565 | Q79: =IF(VOUT_setting=1,1,SQRT((1+Afbr-$Q$5*(A79)^2)^2+(A79*$Q$4)^2)) -> 6.307880236 | R79: 0.002810535236 | S79: 1.000000163 | T79: 0.0008011310151 | U79: 58.26952029 | V79: -114.3464959 | W79: 65.65350414 | Y79: 1000000000 | Z79: 190549.7104 | AB79: 55.39121279 | AC79: -83.00283184 | AE79: 46.83474851 | AF79: -31.32796792 | AH79: 0 | AI79: 0
A80: 478.63 | B80: 0.47863 | C80: 1.202822867 | D80: 0.589214203 | E80: 1.000001319 | F80: 0.001623951902 | G80: 1 | H80: 0 | I80: 20.55837117 | J80: 1.522135139 | K80: 1.003543016 | L80: 0.08405459011 | M80: 1.000037641 | N80: 0.008676386915 | O80: 1.000003868 | P80: 0.002781283564 | Q80: 6.307885213 | R80: 0.003081658978 | S80: 1.000000196 | T80: 0.000878414124 | U80: 57.245101 | V80: -116.6270477 | W80: 63.37295233 | Y80: 1000000000 | Z80: 229086.6769 | AB80: 54.59847257 | AC80: -82.8930665 | AE80: 46.60307064 | AF80: -33.71677093 | AH80: 0 | AI80: 0
A81: 524.81 | B81: 0.52481 | C81: 1.239821172 | D81: 0.6324732549 | E81: 1.000001585 | F81: 0.001780636496 | G81: 1 | H81: 0 | I81: 22.53743205 | J81: 1.526411127 | K81: 1.004258165 | L81: 0.09212068394 | M81: 1.000045255 | N81: 0.009513468661 | O81: 1.00000465 | P81: 0.003049630541 | Q81: 6.307891198 | R81: 0.003378986757 | S81: 1.000000236 | T81: 0.0009631667678 | U81: 56.18976097 | V81: -118.9339521 | W81: 61.06604794 | Y81: 1000000000 | Z81: 275425.5361 | AB81: 53.80627946 | AC81: -82.7238707 | AE81: 46.33992517 | AF81: -36.19121063 | AH81: 0 | AI81: 0
A82: 575.44 | B82: 0.57544 | C82: 1.282886624 | D82: 0.6769417133 | E82: 1.000001906 | F82: 0.00195241944 | G82: 1 | H82: 0 | I82: 24.70759334 | J82: 1.530311881 | K82: 1.005117199 | L82: 0.100950212 | M82: 1.000054407 | N82: 0.01043119796 | O82: 1.000005591 | P82: 0.00334383548 | Q82: 6.307898392 | R82: 0.003704964978 | S82: 1.000000284 | T82: 0.001056086347 | U82: 55.1020039 | V82: -121.249293 | W82: 58.75070695 | Y82: 1000000000 | Z82: 331131.1936 | AB82: 53.01510633 | AC82: -82.49405476 | AE82: 46.04334296 | AF82: -38.73454709 | AH82: 0 | AI82: 0
A83: 630.96 | B83: 0.63096 | C83: 1.332826486 | D83: 0.7223029456 | E83: 1.000002292 | F83: 0.002140793572 | G83: 1 | H83: 0 | I83: 27.08771502 | J83: 1.533870832 | K83: 1.006149113 | L83: 0.1106143508 | M83: 1.000065412 | N83: 0.01143754411 | O83: 1.000006721 | P83: 0.003666454963 | Q83: 6.307907042 | R83: 0.00406242628 | S83: 1.000000341 | T83: 0.001157980377 | U83: 53.98027667 | V83: -123.5531994 | W83: 56.44680058 | Y83: 1000000000 | Z83: 398110.5216 | AB83: 52.22508509 | AC83: -82.20191262 | AE83: 45.71163906 | AF83: -41.32859931 | AH83: 0 | AI83: 0
A84: 691.83 | B84: 0.69183 | C84: 1.390488914 | D84: 0.7681871166 | E84: 1.000002755 | F84: 0.002347319575 | G84: 1 | H84: 0 | I84: 29.69751723 | J84: 1.537117112 | K84: 1.007388213 | L84: 0.1211858888 | M84: 1.000078641 | N84: 0.01254083676 | O84: 1.000008081 | P84: 0.004020161719 | Q84: 6.307917441 | R84: 0.004454331976 | S84: 1.00000041 | T84: 0.001269693079 | U84: 52.82401927 | V84: -125.8224326 | W84: 54.17756736 | Y84: 1000000000 | Z84: 478628.7489 | AB84: 51.4367051 | AC84: -81.84542026 | AE84: 45.34376416 | AF84: -43.95213626 | AH84: 0 | AI84: 0
A85: 758.58 | B85: 0.75858 | C85: 1.45680314 | D85: 0.814221741 | E85: 1.000003312 | F85: 0.002573795617 | G85: 1 | H85: 0 | I85: 32.55972384 | J85: 1.540078705 | K85: 1.008876088 | L85: 0.1327473373 | M85: 1.000094548 | N85: 0.01375067151 | O85: 1.000009715 | P85: 0.004408035143 | Q85: 6.307929945 | R85: 0.004884093943 | S85: 1.000000494 | T85: 0.001392197141 | U85: 51.63282334 | V85: -128.0330482 | W85: 51.96695176 | Y85: 1000000000 | Z85: 575443.6164 | AB85: 50.65017483 | AC85: -81.42200329 | AE85: 44.93910152 | AF85: -46.58376879 | AH85: 0 | AI85: 0
A86: 831.76 | B86: 0.83176 | C86: 1.53272663 | D86: 0.8600071302 | E86: 1.000003982 | F86: 0.002822087699 | G86: 1 | H86: 0 | I86: 35.69791864 | J86: 1.542779824 | K86: 1.010661763 | L86: 0.1453814949 | M86: 1.000113669 | N86: 0.01507700276 | O86: 1.00001168 | P86: 0.004833270727 | Q86: 6.307944975 | R86: 0.005355252662 | S86: 1.000000593 | T86: 0.001526501957 | U86: 50.40749838 | V86: -130.15933 | W86: 49.84066999 | Y86: 1000000000 | Z86: 691824.6976 | AB86: 49.86612524 | AC86: -80.92887528 | AE86: 44.49782979 | AF86: -49.20054737 | AH86: 0 | AI86: 0
A87: 912.01 | B87: 0.91201 | C87: 1.619311002 | D87: 0.9051767145 | E87: 1.000004788 | F87: 0.003094367149 | G87: 1 | H87: 0 | I87: 39.13954697 | J87: 1.54524394 | K87: 1.012804704 | L87: 0.1591825815 | M87: 1.000136659 | N87: 0.01653141117 | O87: 1.000014043 | P87: 0.005299586771 | Q87: 6.307963048 | R87: 0.005871927851 | S87: 1.000000713 | T87: 0.001673782091 | U87: 49.14892854 | V87: -132.1768509 | W87: 47.8231491 | Y87: 1000000000 | Z87: 831762.2401 | AB87: 49.08486509 | AC87: -80.36264619 | AE87: 44.02052447 | AF87: -51.78141198 | AH87: 0 | AI87: 0
A88: 1000 | B88: 1 | C88: 1.717637514 | D88: 0.9493705041 | E88: 1.000005756 | F88: 0.003392907042 | G88: 1 | H88: 0 | I88: 42.91334273 | J88: 1.547491442 | K88: 1.015375035 | L88: 0.1742446127 | M88: 1.000164299 | N88: 0.01812601462 | O88: 1.000016883 | P88: 0.005810875688 | Q88: 6.307984776 | R88: 0.00643843209 | S88: 1.000000858 | T88: 0.001835267165 | U88: 47.85914983 | V88: -134.061425 | W88: 45.93857497 | Y88: 1000000000 | Z88: 1000000 | AB88: 48.30710946 | AC88: -79.71979175 | AE88: 43.50850662 | AF88: -54.30567695 | AH88: 0 | AI88: 0
A89: 1096.5 | B89: 1.0965 | C89: 1.828891437 | D89: 0.992283566 | E89: 1.00000692 | F89: 0.003720319684 | G89: 1 | H89: 0 | I89: 47.05233049 | J89: 1.549541794 | K89: 1.018457364 | L89: 0.1906718114 | M89: 1.000197535 | N89: 0.01987473471 | O89: 1.000020299 | P89: 0.006371610683 | Q89: 6.308010904 | R89: 0.007059721412 | S89: 1.000001031 | T89: 0.002012370326 | U89: 46.54028686 | V89: -135.7914815 | W89: 44.20851854 | Y89: 1000000000 | Z89: 1202312.25 | AB89: 47.53337239 | AC89: -78.99625343 | AE89: 42.96338704 | AF89: -56.75580219 | AH89: 0 | AI89: 0
A90: 1202.3 | B90: 1.2023 | C90: 1.954271497 | D90: 1.033634464 | E90: 1.00000832 | F90: 0.004079285163 | G90: 1 | H90: 0 | I90: 51.59039423 | J90: 1.551411659 | K90: 1.022150534 | L90: 0.2085629146 | M90: 1.000237489 | N90: 0.02179184421 | O90: 1.000024405 | P90: 0.006986380806 | Q90: 6.308042314 | R90: 0.007740880119 | S90: 1.00000124 | T90: 0.002206541422 | U90: 45.19568922 | V90: -137.3469681 | W90: 42.65303186 | Y90: 1000000000 | Z90: 1445525.29 | AB90: 46.76471141 | AC90: -78.1881464 | AE90: 42.38745796 | AF90: -59.11559212 | AH90: 0 | AI90: =IF(AH90>0,W90,0) -> 0
A91: 1318.3 | B91: 1.3183 | C91: 2.095093857 | D91: 1.073210411 | E91: 1.000010003 | F91: 0.004472856689 | G91: 1 | H91: 0 | I91: 56.56613751 | J91: 1.553116985 | K91: 1.026572859 | L91: 0.2280239867 | M91: 1.00028552 | N91: 0.02389359438 | O91: 1.000029342 | P91: 0.007660413797 | Q91: 6.308080076 | R91: 0.008487700064 | S91: 1.000001491 | T91: 0.002419432175 | U91: 43.82864853 | V91: -138.7114131 | W91: 41.28858694 | Y91: 1000000000 | Z91: 1737914.89 | AB91: 46.00203912 | AC91: -77.29123845 | AE91: 41.78309868 | AF91: -61.3727746 | AH91: 0 | AI91: 0
A92: 1445.4 | B92: 1.4454 | C92: 2.252661841 | D92: 1.110828509 | E92: 1.000012025 | F92: 0.004904087343 | G92: 1 | H92: 0 | I92: 62.01816506 | J92: 1.55467132 | K92: 1.031860617 | L92: 0.2491468616 | M92: 1.000343219 | N92: 0.02619621724 | O92: 1.000035272 | P92: 0.008398936757 | Q92: 6.30812544 | R92: 0.00930597225 | S92: 1.000001792 | T92: 0.002652694305 | U92: 42.44367857 | V92: -139.8707337 | W92: 40.12926633 | Y92: 1000000000 | Z92: 2089181.16 | AB92: 45.24691554 | AC92: -76.30197429 | AE92: 41.15326325 | AF92: -63.51679007 | AH92: 0 | AI92: 0
A93: 1584.9 | B93: 1.5849 | C93: 2.428769341 | D93: 1.146443438 | E93: 1.000014458 | F93: 0.005377387174 | G93: 1 | H93: 0 | I93: 68.0022412 | J93: 1.556090399 | K93: 1.038188394 | L93: 0.2720714232 | M93: 1.000412652 | N93: 0.02872316553 | O93: 1.000042409 | P93: 0.009209500162 | Q93: 6.308180033 | R93: 0.01020406175 | S93: 1.000002154 | T93: 0.002908713627 | U93: 41.04229149 | V93: -140.8164945 | W93: 39.18350552 | Y93: 1000000000 | Z93: 2511908.01 | AB93: 44.49932906 | AC93: -75.21458438 | AE93: 40.49947584 | AF93: -65.54492592 | AH93: 0 | AI93: 0
A94: 1737.8 | B94: 1.7378 | C94: 2.624831745 | D94: 1.179943785 | E94: 1.000017383 | F94: 0.005896148157 | G94: 1 | H94: 0 | I94: 74.56126266 | J94: 1.557384135 | K94: 1.045742574 | L94: 0.2968648763 | M94: 1.000496091 | N94: 0.03149242316 | O94: 1.000050986 | P94: 0.0100979102 | Q94: 6.308245643 | R94: 0.01118840072 | S94: 1.00000259 | T94: 0.003189325371 | U94: 39.63044073 | V94: -141.5400065 | W94: 38.45999348 | Y94: 1000000000 | Z94: 3019948.84 | AB94: 43.76177648 | AC94: -74.02681651 | AE94: 39.8251935 | AF94: -67.4507095 | AH94: 0 | AI94: 0
A95: 1905.5 | B95: 1.9055 | C95: 2.842767257 | D95: 1.211335132 | E95: 1.000020899 | F95: 0.006465119101 | G95: 1 | H95: 0 | I95: 81.75528588 | J95: 1.558564397 | K95: 1.054755745 | L95: 0.3236315393 | M95: 1.000596428 | N95: 0.03452917482 | O95: 1.000061301 | P95: 0.01107229576 | Q95: 6.308324547 | R95: 0.01226799453 | S95: 1.000003114 | T95: 0.003497098857 | U95: 38.2112704 | V95: -142.0376609 | W95: 37.96233905 | Y95: 1000000000 | Z95: 3630930.25 | AB95: 43.0353959 | AC95: -72.73481679 | AE95: 39.1324228 | AF95: -69.23433567 | AH95: 0 | AI95: 0
A96: 2089.3 | B96: 2.0893 | C96: 3.08436485 | D96: 1.240613633 | E96: 1.000025125 | F96: 0.007088709148 | G96: 1 | H96: 0 | I96: 89.64007845 | J96: 1.559640371 | K96: 1.065486421 | L96: 0.3524248561 | M96: 1.000716994 | N96: 0.03785673546 | O96: 1.000073697 | P96: 0.01214020276 | Q96: 6.308419367 | R96: 0.01345120216 | S96: 1.000003744 | T96: 0.003834419865 | U96: 36.78993605 | V96: -142.3079682 | W96: 37.69203184 | Y96: 1000000000 | Z96: 4365174.49 | AB96: 42.32254203 | AC96: -71.33738522 | AE96: 38.42396523 | AF96: -70.89546821 | AH96: 0 | AI96: 0
A97: 2290.9 | B97: 2.2909 | C97: 3.351939259 | D97: 1.267848839 | E97: 1.000030208 | F97: 0.007772684038 | G97: 1 | H97: 0 | I97: 98.28856826 | J97: 1.560622028 | K97: 1.078250369 | L97: 0.383319136 | M97: 1.000861975 | N97: 0.04150558469 | O97: 1.000088605 | P97: 0.01331149865 | Q97: 6.308533402 | R97: 0.01474895417 | S97: 1.000004501 | T97: 0.004204408257 | U97: 35.36949819 | V97: -142.3528824 | W97: 37.64711757 | Y97: 1000000000 | Z97: 5248222.81 | AB97: 41.62470203 | AC97: -69.83258183 | AE97: 37.7013949 | AF97: -72.43794047 | AH97: 0 | AI97: 0
A98: 2511.9 | B98: 2.5119 | C98: 3.647678604 | D98: 1.293093761 | E98: 1.000036317 | F98: 0.008522469562 | G98: 1 | H98: 0 | I98: 107.7693941 | J98: 1.561517121 | K98: 1.093395386 | L98: 0.416322656 | M98: 1.001036214 | N98: 0.04550428949 | O98: 1.000106523 | P98: 0.01459546643 | Q98: 6.308670469 | R98: 0.01617153287 | S98: 1.000005412 | T98: 0.00461000034 | U98: 33.95489354 | V98: -142.1769625 | W98: 37.82303754 | Y98: 1000000000 | Z98: 6309641.61 | AB98: 40.94449383 | AC98: -68.2220134 | AE98: 36.96703154 | AF98: -73.86464711 | AH98: 0 | AI98: 0
A99: 2754.2 | B99: 2.7542 | C99: 3.974175132 | D99: 1.316437887 | E99: 1.000043662 | F99: 0.009344508438 | G99: 1 | H99: 0 | I99: 118.1640654 | J99: 1.562333416 | K99: 1.111328688 | L99: 0.4514308808 | M99: 1.001245634 | N99: 0.04988671227 | O99: 1.000128064 | P99: 0.01600312768 | Q99: 6.308835239 | R99: 0.01773114578 | S99: 1.000006506 | T99: 0.005054682964 | U99: 32.54998852 | V99: -141.7878791 | W99: 38.21212089 | Y99: 1000000000 | Z99: 7585617.64 | AB99: 40.28418302 | AC99: -66.50832487 | AE99: 36.22247711 | AF99: -75.1805461 | AH99: 0 | AI99: 0
A100: 3020 | B100: 3.02 | C100: 4.33443436 | D100: 1.337988394 | E100: 1.000052495 | F100: 0.01024626 | G100: 1 | H100: 0 | I100: 129.5669621 | J100: 1.563078233 | K100: 1.132523258 | L100: 0.4886144778 | M100: 1.001497472 | N100: 0.05469196294 | O100: 1.000153973 | P100: 0.01754724091 | Q100: 6.309033424 | R100: 0.01944192351 | S100: 1.000007822 | T100: 0.005542493504 | U100: 31.15802799 | V100: -141.1959966 | W100: 38.8040034 | Y100: 1000000000 | Z100: 9120400 | AB100: 39.64591362 | AC100: -64.69585715 | AE100: 35.46883382 | AF100: -76.39158213 | AH100: 0 | AI100: 0
A101: 3311.3 | B101: 3.3113 | C101: 4.731198062 | D101: 1.357827118 | E101: 1.00006311 | F101: 0.01123450353 | G101: 1 | H101: 0 | I101: 142.0638849 | J101: 1.563757182 | K101: 1.157478941 | L101: 0.5277415247 | M101: 1.001800015 | N101: 0.05995530374 | O101: 1.000185106 | P101: 0.01923939504 | Q101: 6.309271569 | R101: 0.02131669908 | S101: 1.000009404 | T101: 0.006077102222 | U101: 29.78418262 | V101: -140.4157973 | W101: 39.58420269 | Y101: 1000000000 | Z101: 10964707.69 | AB101: 39.03282126 | AC101: -62.79451061 | AE101: 34.7081383 | AF101: -77.50226595 | AH101: 0 | AI101: 0
A102: 3630.8 | B102: 3.6308 | C102: 5.168167466 | D102: 1.376075972 | E102: 1.000075876 | F102: 0.01231839105 | G102: 1 | H102: 0 | I102: 155.7706651 | J102: 1.564376589 | K102: 1.186796319 | L102: 0.5686948315 | M102: 1.002163739 | N102: 0.06572434235 | O102: 1.000222546 | P102: 0.02109523517 | Q102: 6.309557955 | R102: 0.02337279719 | S102: 1.000011306 | T102: 0.006663463971 | U102: 28.43096796 | V102: -139.4639267 | W102: 40.53607326 | Y102: 1000000000 | Z102: 13182708.64 | AB102: 38.44689034 | AC102: -60.81408992 | AE102: 33.94092368 | AF102: -78.51934212 | AH102: 0 | AI102: 0
A103: 3981.1 | B103: 3.9811 | C103: 5.648917827 | D103: 1.392833385 | E103: 1.000091223 | F103: 0.01350673265 | G103: 1 | H103: 0 | I103: 170.7988445 | J103: 1.564941453 | K103: 1.221109868 | L103: 0.6112572538 | M103: 1.002600828 | N103: 0.07204447477 | O103: 1.000267554 | P103: 0.02312981198 | Q103: 6.309902227 | R103: 0.02562688083 | S103: 1.000013593 | T103: 0.007306349966 | U103: 27.10222316 | V103: -138.3612143 | W103: 41.63878566 | Y103: 1000000000 | Z103: 15849157.21 | AB103: 37.89068878 | AC103: -58.769924 | AE103: 33.16846352 | AF103: -79.44821883 | AH103: 0 | AI103: 0
A104: 4365.2 | B104: 4.3652 | C104: 6.177580661 | D104: 1.408205232 | E104: 1.000109674 | F104: 0.01480969184 | G104: 1 | H104: 0 | I104: 187.277126 | J104: 1.565456621 | K104: 1.261128914 | L104: 0.6551765839 | M104: 1.003126078 | N104: 0.07896778973 | O104: 1.000321663 | P104: 0.02536048176 | Q104: 6.310316112 | R104: 0.02809816343 | S104: 1.000016343 | T104: 0.008011265374 | U104: 25.80074576 | V104: -137.1312785 | W104: 42.86872154 | Y104: 1000000000 | Z104: 19054971.04 | AB104: 37.36623823 | AC104: -56.67972543 | AE104: 32.39153653 | AF104: -80.29469542 | AH104: 0 | AI104: 0
A105: 4786.3 | B105: 4.7863 | C105: 6.758571228 | D105: 1.422290808 | E105: 1.000131853 | F105: 0.01623810594 | G105: 1 | H105: 0 | I105: 205.3427927 | J105: 1.565926402 | K105: 1.307615602 | L105: 0.7001419383 | M105: 1.003757115 | N105: 0.08654928969 | O105: 1.000386704 | P105: 0.02780573905 | Q105: 6.310813607 | R105: 0.03080711409 | S105: 1.000019648 | T105: 0.008784082213 | U105: 24.52911558 | V105: -135.8008475 | W105: 44.19915253 | Y105: 1000000000 | Z105: 22908667.69 | AB105: 36.87529356 | AC105: -54.56470482 | AE105: 31.61097104 | AF105: -81.06417652 | AH105: 0 | AI105: 0
A106: 5248.1 | B106: 5.2481 | C106: 7.397003024 | D106: 1.435191221 | E106: 1.000158521 | F106: 0.01780450219 | G106: 1 | H106: 0 | I106: 225.1545787 | J106: 1.566354919 | K106: 1.361413344 | L106: 0.745821389 | M106: 1.004515383 | N106: 0.09485207068 | O106: 1.000464907 | P106: 0.03048695103 | Q106: 6.311411769 | R106: 0.03377737743 | S106: 1.000023622 | T106: 0.009631589865 | U106: 23.28876308 | V106: -134.3983856 | W106: 45.60161438 | Y106: 1000000000 | Z106: 27542553.61 | AB106: 36.41890626 | AC106: -52.44773161 | AE106: 30.8271501 | AF106: -81.76212646 | AH106: 0 | AI106: 0
A107: 5370.3 | B107: 5.3703 | C107: 7.566126738 | D107: 1.438240455 | E107: 1.000165989 | F107: 0.01821898252 | G107: 1 | H107: 0 | I107: 230.3971147 | J107: 1.566455981 | K107: 1.376100778 | L107: 0.7573036258 | M107: 1.004727609 | N107: 0.09704697967 | O107: 1.000486804 | P107: 0.03119637276 | Q107: 6.311579254 | R107: 0.03456326295 | S107: 1.000024735 | T107: 0.00985585396 | U107: 22.98386637 | V107: -134.0402421 | W107: 45.95975793 | Y107: 1000000000 | Z107: 28840122.09 | AB107: 36.31035106 | AC107: -51.92139735 | AE107: 30.63084898 | AF107: -81.92593613 | AH107: 0 | AI107: 0
A108: 5432.85 | B108: 5.43285 | C108: 7.652721693 | D108: 1.439749097 | E108: 1.000169877 | F108: 0.01843113841 | G108: 1 | H108: 0 | I108: 233.0805904 | J108: 1.566505952 | K108: 1.383687844 | L108: 0.7630862819 | M108: 1.004838112 | N108: 0.09817011701 | O108: 1.000498207 | P108: 0.03155948938 | Q108: 6.311666474 | R108: 0.03496551471 | S108: 1.000025314 | T108: 0.009970646978 | U108: 22.8312489 | V108: -133.8592371 | W108: 46.14076292 | Y108: 1000000000 | Z108: 29515859.12 | AB108: 36.25657205 | AC108: -51.65728972 | AE108: 30.53203156 | AF108: -82.00679649 | AH108: 0 | AI108: 0
A109: 5495.4 | B109: 5.4954 | C109: 7.739333676 | D109: 1.441223976 | E109: 1.000173811 | F109: 0.01864329264 | G109: 1 | H109: 0 | I109: 235.7640667 | J109: 1.566554786 | K109: 1.391320674 | L109: 0.7688056799 | M109: 1.004949882 | N109: 0.09929300592 | O109: 1.000509743 | P109: 0.03192259766 | Q109: 6.311754703 | R109: 0.03536775535 | S109: 1.000025901 | T109: 0.01008543993 | U109: 22.68088974 | V109: -133.6798425 | W109: 46.32015748 | Y109: 1000000000 | Z109: 30199421.16 | AB109: 36.20395812 | AC109: -51.3967271 | AE109: 30.43430759 | AF109: -82.08572242 | AH109: 0 | AI109: 0
A110: 5559.4 | B110: 5.5594 | C110: 7.827970485 | D110: 1.44269926 | E110: 1.000177883 | F110: 0.01886036318 | G110: 1 | H110: 0 | I110: 238.5097504 | J110: 1.566603614 | K110: 1.399177031 | L110: 0.7745928798 | M110: 1.005065555 | N110: 0.1004416651 | O110: 1.000521682 | P110: 0.03229411461 | Q110: 6.311846021 | R110: 0.03577930888 | S110: 1.000026508 | T110: 0.01020289387 | U110: 22.52932402 | V110: -133.4979852 | W110: 46.50201476 | Y110: 1000000000 | Z110: 30906928.36 | AB110: 36.1512965 | AC110: -51.13375594 | AE110: 30.33542552 | AF110: -82.16454237 | AH110: 0 | AI110: 0
A111: 5623.4 | B111: 5.6234 | C111: 7.91662395 | D111: 1.444141506 | E111: 1.000182002 | F111: 0.01907743194 | G111: 1 | H111: 0 | I111: 241.2554347 | J111: 1.566651331 | K111: 1.407079724 | L111: 0.7803152635 | M111: 1.005182554 | N111: 0.1015900583 | O111: 1.000533759 | P111: 0.03266562264 | Q111: 6.311938395 | R111: 0.0361908505 | S111: 1.000027121 | T111: 0.01032034774 | U111: 22.38000581 | V111: -133.3178697 | W111: 46.6821303 | Y111: 1000000000 | Z111: 31622627.56 | AB111: 36.09978685 | AC111: -50.87441956 | AE111: 30.23763923 | AF111: -82.24146945 | AH111: 0 | AI111: 0
A112: 5688.9 | B112: 5.6889 | C112: 8.0073719 | D112: 1.445584484 | E112: 1.000186266 | F112: 0.01929958639 | G112: 1 | H112: 0 | I112: 244.0654715 | J112: 1.566699054 | K112: 1.415214805 | L112: 0.786105398 | M112: 1.005303667 | N112: 0.1027650886 | O112: 1.000546262 | P112: 0.03304582855 | Q112: 6.312034027 | R112: 0.03661202517 | S112: 1.000027757 | T112: 0.01044055436 | U112: 22.22945651 | V112: -133.1353608 | W112: 46.86463922 | Y112: 1000000000 | Z112: 32363583.21 | AB112: 36.04822877 | AC112: -50.61272793 | AE112: 30.13867107 | AF112: -82.31830483 | AH112: 0 | AI112: 0
A113: 5754.4 | B113: 5.7544 | C113: 8.098136148 | D113: 1.44699512 | E113: 1.000190579 | F113: 0.01952173893 | G113: 1 | H113: 0 | I113: 246.8755089 | J113: 1.566745691 | K113: 1.423396789 | L113: 0.7918291568 | M113: 1.005426168 | N113: 0.1039398343 | O113: 1.00055891 | P113: 0.0334260249 | Q113: 6.312130766 | R113: 0.03703318708 | S113: 1.0000284 | T113: 0.01056076089 | U113: 22.0811443 | V113: -132.9547231 | W113: 47.04527685 | Y113: 1000000000 | Z113: 33113119.36 | AB113: 35.99780949 | AC113: -50.35476078 | AE113: 30.04080146 | AF113: -82.3932872 | AH113: 0 | AI113: 0
A114: 5821.4 | B114: 5.8214 | C114: 8.190995266 | D114: 1.448405712 | E114: 1.000195043 | F114: 0.01974897694 | G114: 1 | H114: 0 | I114: 249.7498988 | J114: 1.56679231 | K114: 1.431813834 | L114: 0.7976161195 | M114: 1.005552909 | N114: 0.1051411847 | O114: 1.000571997 | P114: 0.03381491804 | Q114: 6.312230864 | R114: 0.03746398057 | S114: 1.000029065 | T114: 0.01068372017 | U114: 21.93169148 | V114: -132.771905 | W114: 47.22809503 | Y114: 1000000000 | Z114: 33888697.96 | AB114: 35.94737984 | AC114: -50.09469563 | AE114: 29.94180242 | AF114: -82.46813346 | AH114: 0 | AI114: 0
A115: 5888.4 | B115: 5.8884 | C115: 8.283870316 | D115: 1.449784677 | E115: 1.000199558 | F115: 0.01997621291 | G115: 1 | H115: 0 | I115: 252.6242892 | J115: 1.566837869 | K115: 1.440278268 | L115: 0.8033352526 | M115: 1.005681101 | N115: 0.1063422305 | O115: 1.000585235 | P115: 0.03420380094 | Q115: 6.312332119 | R115: 0.0378947604 | S115: 1.000029738 | T115: 0.01080667936 | U115: 21.78446225 | V115: -132.5910827 | W115: 47.40891727 | Y115: 1000000000 | Z115: 34673254.56 | AB115: 35.89807399 | AC115: -49.83843861 | AE115: 29.84390345 | AF115: -82.54116772 | AH115: 0 | AI115: 0
A116: 5957 | B116: 5.957 | C116: 8.378979233 | D116: 1.451164897 | E116: 1.000204234 | F116: 0.02020887327 | G116: 1 | H116: 0 | I116: 255.5673223 | J116: 1.566883453 | K116: 1.448993069 | L116: 0.8091215376 | M116: 1.005813857 | N116: 0.107571639 | O116: 1.000598947 | P116: 0.03460195988 | Q116: 6.312436991 | R116: 0.0383358132 | S116: 1.000030435 | T116: 0.0109325748 | U116: 21.63596221 | V116: -132.408026 | W116: 47.59197404 | Y116: 1000000000 | Z116: 35485849 | AB116: 35.84872112 | AC116: -49.57996062 | AE116: 29.74478156 | AF116: -82.6141313 | AH116: 0 | AI116: 0
A117: 6025.6 | B117: 6.0256 | C117: 8.474103754 | D117: 1.452514132 | E117: 1.000208964 | F117: 0.02044153144 | G117: 1 | H117: 0 | I117: 258.510356 | J117: 1.566928 | K117: 1.457755804 | L117: 0.8148384481 | M117: 1.005948133 | N117: 0.1088007212 | O117: 1.000612817 | P117: 0.03500010784 | Q117: 6.312543076 | R117: 0.03877685135 | S117: 1.00003114 | T117: 0.01105847015 | U117: 21.48967581 | V117: -132.2270905 | W117: 47.77290947 | Y117: 1000000000 | Z117: 36307855.36 | AB117: 35.80047859 | AC117: -49.32537934 | AE117: 29.64676326 | AF117: -82.68531973 | AH117: 0 | AI117: 0
A118: 6095.8 | B118: 6.0958 | C118: 8.571462534 | D118: 1.453863831 | E118: 1.000213861 | F118: 0.02067961376 | G118: 1 | H118: 0 | I118: 261.5220323 | J118: 1.566972548 | K118: 1.466771644 | L118: 0.8206177881 | M118: 1.006087114 | N118: 0.1100581284 | O118: 1.000627174 | P118: 0.03540753056 | Q118: 6.31265289 | R118: 0.03922816076 | S118: 1.000031869 | T118: 0.01118730173 | U118: 21.34221028 | V118: -132.0441422 | W118: 47.95585778 | Y118: 1000000000 | Z118: 37158777.64 | AB118: 35.75222643 | AC118: -49.06884407 | AE118: 29.54757636 | AF118: -82.75639217 | AH118: 0 | AI118: 0
A119: 6166 | B119: 6.166 | C119: 8.668836578 | D119: 1.455183211 | E119: 1.000218815 | F119: 0.02091769372 | G119: 1 | H119: 0 | I119: 264.5337092 | J119: 1.567016081 | K119: 1.475835875 | L119: 0.8263263261 | M119: 1.006227685 | N119: 0.1113151862 | O119: 1.000641698 | P119: 0.03581494152 | Q119: 6.312763975 | R119: 0.03967945448 | S119: 1.000032608 | T119: 0.01131613322 | U119: 21.19694528 | V119: -131.8634352 | W119: 48.13656481 | Y119: 1000000000 | Z119: 38019556 | AB119: 35.7050693 | AC119: -48.81628732 | AE119: 29.44949527 | AF119: -82.82572758 | AH119: 0 | AI119: 0
A120: 6237.8 | B120: 6.2378 | C120: 8.768445232 | D120: 1.456502346 | E120: 1.00022394 | F120: 0.02116119756 | G120: 1 | H120: 0 | I120: 267.6140287 | J120: 1.567059593 | K120: 1.485155834 | L120: 0.8320926995 | M120: 1.006373104 | N120: 0.1126005296 | O120: 1.000656725 | P120: 0.0362316259 | Q120: 6.312878906 | R120: 0.04014101767 | S120: 1.000033372 | T120: 0.01144790094 | U120: 21.05058687 | V120: -131.6809344 | W120: 48.31906559 | Y120: 1000000000 | Z120: 38910148.84 | AB120: 35.65793627 | AC120: -48.56203627 | AE120: 29.35029758 | AF120: -82.89490649 | AH120: 0 | AI120: 0
A121: 6309.6 | B121: 6.3096 | C121: 8.868068803 | D121: 1.457791846 | E121: 1.000229124 | F121: 0.02140469889 | G121: 1 | H121: 0 | I121: 270.6943488 | J121: 1.567102115 | K121: 1.494524559 | L121: 0.8377869649 | M121: 1.006520185 | N121: 0.1138854995 | O121: 1.000671925 | P121: 0.03664829768 | Q121: 6.312995164 | R121: 0.04060256407 | S121: 1.000034144 | T121: 0.01157966855 | U121: 20.90641296 | V121: -131.5007888 | W121: 48.49921116 | Y121: 1000000000 | Z121: 39811052.16 | AB121: 35.61188127 | AC121: -48.31183856 | AE121: 29.25220669 | AF121: -82.96238751 | AH121: 0 | AI121: 0
A122: 6383.05 | B122: 6.38305 | C122: 8.969996688 | D122: 1.459081339 | E122: 1.000234489 | F122: 0.02165379337 | G122: 1 | H122: 0 | I122: 273.8454567 | J122: 1.567144624 | K122: 1.504158093 | L122: 0.8435384983 | M122: 1.006672365 | N122: 0.1151996079 | O122: 1.000687654 | P122: 0.03707453163 | Q122: 6.313115469 | R122: 0.04107469945 | S122: 1.000034944 | T122: 0.01171446414 | U122: 20.76112743 | V122: -131.3189423 | W122: 48.68105769 | Y122: 1000000000 | Z122: 40743327.3 | AB122: 35.56584966 | AC122: -48.06002842 | AE122: 29.15298176 | AF122: -83.02972116 | AH122: 0 | AI122: 0
A123: 6456.5 | B123: 6.4565 | C123: 9.071939153 | D123: 1.460341853 | E123: 1.000239916 | F123: 0.02190288517 | G123: 1 | H123: 0 | I123: 276.996565 | J123: 1.567186166 | K123: 1.513840749 | L123: 0.849216643 | M123: 1.006826283 | N123: 0.1165133167 | O123: 1.000703565 | P123: 0.03750075209 | Q123: 6.313237164 | R123: 0.04154681684 | S123: 1.000035753 | T123: 0.01184925961 | U123: 20.61801059 | V123: -131.1395619 | W123: 48.86043811 | Y123: 1000000000 | Z123: 41686392.25 | AB123: 35.52087897 | AC123: -47.81234484 | AE123: 29.05486494 | AF123: -83.09539462 | AH123: 0 | AI123: 0
A124: 6531.7 | B124: 6.5317 | C124: 9.176325069 | D124: 1.461603383 | E124: 1.000245537 | F124: 0.02215790895 | G124: 1 | H124: 0 | I124: 280.2227513 | J124: 1.56722773 | K124: 1.523804017 | L124: 0.8549551236 | M124: 1.006985668 | N124: 0.1178579072 | O124: 1.000720044 | P124: 0.03793711344 | Q124: 6.313363199 | R124: 0.04203016393 | S124: 1.00003659 | T124: 0.01198726657 | U124: 20.47367189 | V124: -130.9584598 | W124: 49.04154021 | Y124: 1000000000 | Z124: 42663104.89 | AB124: 35.47590234 | AC124: -47.56297491 | AE124: 28.95553325 | AF124: -83.16097036 | AH124: 0 | AI124: 0
A125: 6606.9 | B125: 6.6069 | C125: 9.280725261 | D125: 1.462836532 | E125: 1.000251222 | F125: 0.02241292984 | G125: 1 | H125: 0 | I125: 283.4489381 | J125: 1.567268347 | K125: 1.533816812 | L125: 0.8606188667 | M125: 1.007146874 | N125: 0.1192020697 | O125: 1.000736713 | P125: 0.03837346034 | Q125: 6.31349069 | R125: 0.04251349173 | S125: 1.000037438 | T125: 0.01212527341 | U125: 20.33148903 | V125: -130.7799349 | W125: 49.22006511 | Y125: 1000000000 | Z125: 43651127.61 | AB125: 35.43197071 | AC125: -47.31780838 | AE125: 28.85731273 | AF125: -83.22492018 | AH125: 0 | AI125: 0
A126: 6683.85 | B126: 6.68385 | C126: 9.38756926 | D126: 1.464069983 | E126: 1.000257108 | F126: 0.02267388237 | G126: 1 | H126: 0 | I126: 286.7502028 | J126: 1.567308964 | K126: 1.54411288 | L126: 0.8663381874 | M126: 1.007313713 | N126: 0.1205770646 | O126: 1.000753968 | P126: 0.03881994646 | Q126: 6.313622657 | R126: 0.04300804698 | S126: 1.000038315 | T126: 0.01226649171 | U126: 20.18817027 | V126: -130.599916 | W126: 49.40008403 | Y126: 1000000000 | Z126: 44673850.82 | AB126: 35.38806501 | AC126: -47.07122401 | AE126: 28.75793146 | AF126: -83.28873147 | AH126: 0 | AI126: 0
A127: 6760.8 | B127: 6.7608 | C127: 9.494427219 | D127: 1.465275672 | E127: 1.000263061 | F127: 0.02293483182 | G127: 1 | H127: 0 | I127: 290.051468 | J127: 1.567348656 | K127: 1.554458787 | L127: 0.8719815593 | M127: 1.007482457 | N127: 0.1219516016 | O127: 1.000771421 | P127: 0.03926641709 | Q127: 6.313756148 | R127: 0.04350258157 | S127: 1.000039202 | T127: 0.01240770989 | U127: 20.04699152 | V127: -130.4225786 | W127: 49.57742143 | Y127: 1000000000 | Z127: 45708416.64 | AB127: 35.34518674 | AC127: -46.82891198 | AE127: 28.65966314 | AF127: -83.35095224 | AH127: 0 | AI127: 0
A128: 6839.55 | B128: 6.83955 | C128: 9.603798747 | D128: 1.466481782 | E128: 1.000269224 | F128: 0.02320188211 | G128: 1 | H128: 0 | I128: 293.4299562 | J128: 1.567388352 | K128: 1.565097273 | L128: 0.8776795057 | M128: 1.007657117 | N128: 0.123357812 | O128: 1.00078949 | P128: 0.03972331526 | Q128: 6.313894342 | R128: 0.04400866258 | S128: 1.000040121 | T128: 0.01255223128 | U128: 19.90466729 | V128: -130.2438572 | W128: 49.75614275 | Y128: 1000000000 | Z128: 46779444.2 | AB128: 35.30233589 | AC128: -46.58528803 | AE128: 28.56022306 | AF128: -83.4130369 | AH128: 0 | AI128: 0
A129: 6918.3 | B129: 6.9183 | C129: 9.713183932 | D129: 1.467660729 | E129: 1.000275459 | F129: 0.02346892909 | G129: 1 | H129: 0 | I129: 296.8084449 | J129: 1.567427144 | K129: 1.575785886 | L129: 0.8833003339 | M129: 1.00783377 | N129: 0.1247635323 | O129: 1.000807767 | P129: 0.04018019684 | Q129: 6.314034132 | R129: 0.04451472145 | S129: 1.00004105 | T129: 0.01269675254 | U129: 19.76446719 | V129: -130.0679181 | W129: 49.93208187 | Y129: 1000000000 | Z129: 47862874.89 | AB129: 35.26049463 | AC129: -46.34600277 | AE129: 28.46189789 | AF129: -83.47356539 | AH129: 0 | AI129: 0
A130: 6998.9 | B130: 6.9989 | C130: 9.825152465 | D130: 1.468840188 | E130: 1.000281913 | F130: 0.02374224609 | G130: 1 | H130: 0 | I130: 300.2663016 | J130: 1.567465944 | K130: 1.586776446 | L130: 0.8889746093 | M130: 1.008016634 | N130: 0.1262017628 | O130: 1.000826691 | P130: 0.04064779413 | Q130: 6.314178861 | R130: 0.04503264549 | S130: 1.000042012 | T130: 0.01284466875 | U130: 19.62311441 | V130: -129.8907102 | W130: 50.10928977 | Y130: 1000000000 | Z130: 48984601.21 | AB130: 35.21868273 | AC130: -46.10551832 | AE130: 28.36239187 | AF130: -83.53395843 | AH130: 0 | AI130: 0
A131: 7079.5 | B131: 7.0795 | C131: 9.937134359 | D131: 1.469993065 | E131: 1.000288443 | F131: 0.02401555955 | G131: 1 | H131: 0 | I131: 303.7241589 | J131: 1.56750386 | K131: 1.597817392 | L131: 0.8945706443 | M131: 1.008201582 | N131: 0.1276394685 | O131: 1.000845833 | P131: 0.04111537363 | Q131: 6.314325262 | R131: 0.04555054579 | S131: 1.000042985 | T131: 0.01299258481 | U131: 19.48386971 | V131: -129.7163814 | W131: 50.28361863 | Y131: 1000000000 | Z131: 50119320.25 | AB131: 35.17786233 | AC131: -45.86943604 | AE131: 28.26400284 | AF131: -83.59282869 | AH131: 0 | AI131: 0
A132: 7161.95 | B132: 7.16195 | C132: 10.05169991 | D132: 1.471145823 | E132: 1.0002952 | F132: 0.02429514261 | G132: 1 | H132: 0 | I132: 307.2613843 | J132: 1.567541763 | K132: 1.609162812 | L132: 0.9002154868 | M132: 1.008392931 | N132: 0.1291096249 | O132: 1.000865641 | P132: 0.04159366681 | Q132: 6.314476755 | R132: 0.04608030855 | S132: 1.000043992 | T132: 0.01314389581 | U132: 19.34355171 | V132: -129.5410089 | W132: 50.45899108 | Y132: 1000000000 | Z132: 51293527.8 | AB132: 35.13709794 | AC132: -45.63241584 | AE132: 28.16448571 | AF132: -83.65152745 | AH132: 0 | AI132: 0
A133: 7244.4 | B133: 7.2444 | C133: 10.16627853 | D133: 1.472272599 | E133: 1.000302034 | F133: 0.02457472187 | G133: 1 | H133: 0 | I133: 310.7986101 | J133: 1.567578804 | K133: 1.620558788 | L133: 0.9057811141 | M133: 1.008586459 | N133: 0.1305792203 | O133: 1.000885677 | P133: 0.04207194094 | Q133: 6.314629998 | R133: 0.04661004591 | S133: 1.000045011 | T133: 0.01329520666 | U133: 19.20532306 | V133: -129.3686047 | W133: 50.63139525 | Y133: 1000000000 | Z133: 52481331.36 | AB133: 35.09730549 | AC133: -45.39985277 | AE133: 28.06608643 | AF133: -83.70873771 | AH133: 0 | AI133: 0
A134: 7328.75 | B134: 7.32875 | C134: 10.28351057 | D134: 1.473399356 | E134: 1.000309108 | F134: 0.02486073986 | G134: 1 | H134: 0 | I134: 314.4173491 | J134: 1.567615835 | K134: 1.632268589 | L134: 0.9113943973 | M134: 1.0087867 | N134: 0.1320820947 | O134: 1.000906413 | P134: 0.04256121663 | Q134: 6.314788584 | R134: 0.04715196407 | S134: 1.000046065 | T134: 0.01345000418 | U134: 19.06601293 | V134: -129.1952736 | W134: 50.80472636 | Y134: 1000000000 | Z134: 53710576.56 | AB134: 35.05756918 | AC134: -45.16646545 | AE134: 27.96655079 | AF134: -83.76577773 | AH134: 0 | AI134: 0
A135: 7413.1 | B135: 7.4131 | C135: 10.40075538 | D135: 1.474500711 | E135: 1.000316263 | F135: 0.02514675378 | G135: 1 | H135: 0 | I135: 318.0360885 | J135: 1.567652024 | K135: 1.644029087 | L135: 0.9169275439 | M135: 1.008989218 | N135: 0.1335843691 | O135: 1.000927388 | P135: 0.04305047192 | Q135: 6.314949002 | R135: 0.04769385503 | S135: 1.000047132 | T135: 0.01360480154 | U135: 18.92877339 | V135: -129.0249958 | W135: 50.97500423 | Y135: 1000000000 | Z135: 54954051.61 | AB135: 35.01878507 | AC135: -44.93758696 | AE135: 27.86813399 | AF135: -83.82136255 | AH135: 0 | AI135: 0
A136: 7499.45 | B136: 7.49945 | C136: 10.52079292 | D136: 1.475602751 | E136: 1.000323673 | F136: 0.02543954503 | G136: 1 | H136: 0 | I136: 321.7406313 | J136: 1.567688228 | K136: 1.656119822 | L136: 0.9225103088 | M136: 1.009198895 | N136: 0.1351216354 | O136: 1.000949108 | P136: 0.04355130645 | Q136: 6.31511512 | R136: 0.04824856612 | S136: 1.000048236 | T136: 0.01376326908 | U136: 18.79036654 | V136: -128.8538131 | W136: 51.14618693 | Y136: 1000000000 | Z136: 56241750.3 | AB136: 34.98003528 | AC136: -44.70787129 | AE136: 27.76851693 | AF136: -83.87680862 | AH136: 0 | AI136: 0
A137: 7585.8 | B137: 7.5858 | C137: 10.64084296 | D137: 1.476679926 | E137: 1.000331168 | F137: 0.02573233192 | G137: 1 | H137: 0 | I137: 325.4451745 | J137: 1.567723608 | K137: 1.668261425 | L137: 0.9280119805 | M137: 1.009410957 | N137: 0.1366582594 | O137: 1.00097108 | P137: 0.04405211912 | Q137: 6.315283158 | R137: 0.04880324803 | S137: 1.000049353 | T137: 0.01392173643 | U137: 18.65401379 | V137: -128.6857678 | W137: 51.31423221 | Y137: 1000000000 | Z137: 57544361.64 | AB137: 34.94221883 | AC137: -44.4827179 | AE137: 27.67002109 | AF137: -83.93083026 | AH137: 0 | AI137: 0
A138: 7674.15 | B138: 7.67415 | C138: 10.76368602 | D138: 1.477757179 | E138: 1.000338925 | F138: 0.02603189564 | G138: 1 | H138: 0 | I138: 329.2355211 | J138: 1.567758983 | K138: 1.680735745 | L138: 0.9335586365 | M138: 1.009630396 | N138: 0.1382298022 | O138: 1.00099382 | P138: 0.0445645085 | Q138: 6.315457074 | R138: 0.04937074671 | S138: 1.00005051 | T138: 0.01408387394 | U138: 18.51657105 | V138: -128.5170431 | W138: 51.48295692 | Y138: 1000000000 | Z138: 58892578.22 | AB138: 34.90446039 | AC138: -44.25698753 | AE138: 27.57037866 | AF138: -83.98467839 | AH138: 0 | AI138: 0
A139: 7762.5 | B139: 7.7625 | C139: 10.8865413 | D139: 1.47881012 | E139: 1.000346773 | F139: 0.02633145469 | G139: 1 | H139: 0 | I139: 333.0258681 | J139: 1.567793553 | K139: 1.69326101 | L139: 0.9390233999 | M139: 1.009852328 | N139: 0.139800658 | O139: 1.001016823 | P139: 0.04507687446 | Q139: 6.315632999 | R139: 0.04993821414 | S139: 1.000051679 | T139: 0.01424601126 | U139: 18.38116328 | V139: -128.3515318 | W139: 51.64846822 | Y139: 1000000000 | Z139: 60256406.25 | AB139: 34.86761507 | AC139: -44.03586376 | AE139: 27.47185857 | AF139: -84.03713378 | AH139: 0 | AI139: 0
A140: 7852.9 | B140: 7.8529 | C140: 11.01225942 | D140: 1.479863174 | E140: 1.000354895 | F140: 0.02663795957 | G140: 1 | H140: 0 | I140: 336.9041636 | J140: 1.567828119 | K140: 1.706128464 | L140: 0.9445317431 | M140: 1.010081987 | N140: 0.1414072441 | O140: 1.001040632 | P140: 0.04560110443 | Q140: 6.315815085 | R140: 0.0505188159 | S140: 1.00005289 | T140: 0.01441191047 | U140: 18.24466239 | V140: -128.1854674 | W140: 51.81453261 | Y140: 1000000000 | Z140: 61668038.41 | AB140: 34.83082818 | AC140: -43.81429007 | AE140: 27.37218839 | AF140: -84.0894132 | AH140: 0 | AI140: 0
A141: 7943.3 | B141: 7.9433 | C141: =SQRT(1+(A141/pole1)^2) -> 11.13798947 | D141: =ATAN(A141/pole1) -> 1.480892454 | E141: =SQRT(1+(A141/Zero1)^2) -> 1.000363112 | F141: =ATAN(A141/Zero1) -> 0.02694445944 | G141: =IF(VIN_nom>Vout, 1, SQRT(1+(A141/z_RHP)^2)) -> 1 | H141: =IF(VIN_nom>Vout, 0, -ATAN(A141/z_RHP)) -> 0 | I141: =SQRT(1+(A141/Pole2)^2) -> 340.7824595 | J141: =ATAN(A141/Pole2) -> 1.567861899 | K141: =SQRT(1+(A141/Zero2)^2) -> 1.719046909 | L141: =ATAN(A141/Zero2) -> 0.9499574596 | M141: =SQRT(1+(A141/pole4)^2) -> 1.010314253 | N141: =ATAN(A141/pole4) -> 0.1430130957 | O141: =IF(VOUT_setting=1,1,SQRT(1+(A141*zterm1)^2)) -> 1.001064716 | P141: =IF(VOUT_setting=1,0,ATAN(((A141*zterm1)))) -> 0.04612530931 | Q141: 6.315999275 | R141: =IF(VOUT_setting=1,0,ATAN(A141*$Q$4/(1+Afbr-$Q$5*(A141)^2))) -> 0.05109938421 | S141: =SQRT((1-(Z141/pterm2))^2+(A141/pterm1)^2) -> 1.000054115 | T141: =IF((ATAN((A141/pterm1)/(1-A141^2/pterm2))>0),ATAN((A141/pterm1)/(1-A141^2/pterm2)),PI()+ATAN((A141/pterm1)/(1-A141^2/pterm2))) -> 0.01457780947 | U141: =20*LOG10(((E141*K141*G141*O141)/(C141*I141*S141*M141*Q141))*Adc) -> 18.11017719 | V141: =((F141+L141+H141+P141)-(D141+J141+T141+N141+R141))*radconv -> -128.0226877 | W141: =IF(V141>0,V141,V141+180) -> 51.97731235 | Y141: =IF(U141<0,A141,1000000000) -> 1000000000 | Z141: =A141^2 -> 63096014.89 | AB141: =20*LOG10((K141/(I141*M141))*AEA) -> 34.794934 | AC141: =(L141-(J141+N141))*radconv -> -43.59736338 | AE141: =20*LOG10((E141*G141/(C141*S141))*Acs*Am) -> 27.27364171 | AF141: =(F141+H141-(D141+T141))*radconv -> -84.14033077 | AH141: =SUM((U142<0)*(U141>0))*A141 -> 0 | AI141: 0
A142: 8035.8 | B142: =A142/1000 -> 8.0358 | C142: 11.26665219 | D142: 1.481921864 | E142: 1.000371616 | F142: 0.02725807409 | G142: 1 | H142: 0 | I142: 344.7508489 | J142: 1.567895677 | K142: 1.732317042 | L142: 0.9554252869 | M142: 1.010554609 | N142: 0.1446554829 | O142: 1.001089644 | P142: 0.04666166526 | Q142: 6.316189919 | R142: 0.05169340413 | S142: 1.000055382 | T142: 0.0147475621 | U142: 17.97459708 | V142: -127.8594835 | W142: 52.14051651 | Y142: 1000000000 | Z142: 64574081.64 | AB142: 34.75909863 | AC142: -43.38011715 | AE142: 27.17394285 | AF142: -84.19106894 | AH142: 0 | AI142: 0
A143: 8128.3 | B143: 8.1283 | C143: 11.39532657 | D143: 1.482928027 | E143: 1.000380219 | F143: 0.02757168337 | G143: 1 | H143: 0 | I143: 348.7192387 | J143: 1.567928686 | K143: 1.745638178 | L143: 0.9608098221 | M143: 1.01079769 | N143: 0.1462970846 | O143: 1.00111486 | P143: 0.04719799435 | Q143: =IF(VOUT_setting=1,1,SQRT((1+Afbr-$Q$5*(A143)^2)^2+(A143*$Q$4)^2)) -> 6.316382765 | R143: 0.05228738821 | S143: 1.000056665 | T143: 0.01491731451 | U143: 17.84101319 | V143: -127.6996304 | W143: 52.30036961 | Y143: 1000000000 | Z143: 66069260.89 | AB143: 34.72413536 | AC143: -43.16755414 | AE143: 27.07536864 | AF143: -84.24047546 | AH143: 0 | AI143: 0
A144: 8222.95 | B144: 8.22295 | C144: 11.52700344 | D144: 1.483934324 | E144: 1.000389124 | F144: 0.02789257634 | G144: 1 | H144: 0 | I144: 352.7798671 | J144: 1.567961694 | K144: 1.759320527 | L144: 0.9662349445 | M144: 1.011049239 | N144: 0.1479760207 | O144: 1.00114096 | P144: 0.04774676133 | Q144: 6.316582372 | R144: 0.05289514088 | S144: 1.000057992 | T144: 0.01509101228 | U144: 17.70633377 | V144: -127.5394834 | W144: 52.46051658 | Y144: 1000000000 | Z144: 67616906.7 | AB144: 34.68923112 | AC144: -42.95480468 | AE144: 26.9756415 | AF144: -84.28969832 | AH144: 0 | AI144: 0
A145: 8270.275 | B145: 8.270275 | C145: 11.59284617 | D145: 1.484428899 | E145: 1.000393615 | F145: 0.02805302067 | G145: 1 | H145: 0 | I145: 354.8101815 | J145: 1.567977915 | K145: 1.766180893 | L145: 0.9689159456 | M145: 1.011176082 | N145: 0.1488151744 | O145: 1.001154124 | P145: 0.04802113405 | Q145: 6.31668304 | R145: 0.05319900284 | S145: 1.000058661 | T145: 0.01517786107 | U145: 17.6397387 | V145: -127.4606927 | W145: 52.53930732 | Y145: 1000000000 | Z145: 68397448.58 | AB145: 34.6721001 | AC145: -42.85020396 | AE145: 26.92620166 | AF145: -84.31381869 | AH145: 0 | AI145: 0
A146: 8317.6 | B146: 8.3176 | C146: 11.65869171 | D146: 1.484917888 | E146: 1.000398132 | F146: 0.02821346356 | G146: 1 | H146: 0 | I146: 356.8404959 | J146: 1.567993951 | K146: 1.773053856 | L146: 0.9715761807 | M146: 1.011303637 | N146: 0.1496541169 | O146: 1.001167362 | P146: 0.04829549954 | Q146: 6.316784284 | R146: 0.05350285516 | S146: 1.000059335 | T146: 0.01526470981 | U146: 17.57363088 | V146: -127.3827489 | W146: 52.61725107 | Y146: 1000000000 | Z146: 69182469.76 | AB146: 34.65517818 | AC146: -42.74677037 | AE146: 26.87704013 | AF146: -84.33761906 | AH146: 0 | AI146: 0
A147: 8366.05 | B147: 8.36605 | C147: 11.72610537 | D147: 1.485412812 | E147: 1.000402783 | F147: 0.02837771895 | G147: 1 | H147: 0 | I147: 358.9190747 | J147: 1.56801018 | K147: 1.780103099 | L147: 0.9742783542 | M147: 1.011434961 | N147: 0.1505127827 | O147: 1.001180993 | P147: 0.04857637964 | Q147: 6.316888531 | R147: 0.05381392053 | S147: 1.000060028 | T147: 0.01535362303 | U147: 17.5064493 | V147: -127.3038234 | W147: 52.69617665 | Y147: 1000000000 | Z147: 69990792.6 | AB147: 34.63806681 | AC147: -42.64207503 | AE147: 26.82699501 | AF147: -84.36165933 | AH147: 0 | AI147: 0
A148: 8414.5 | B148: 8.4145 | C148: 11.79352187 | D148: 1.485902078 | E148: 1.00040746 | F148: 0.02854197282 | G148: 1 | H148: 0 | I148: 360.9976535 | J148: 1.568026222 | K148: =SQRT(1+(A148/Zero2)^2) -> 1.787165237 | L148: =ATAN(A148/Zero2) -> 0.9769591913 | M148: 1.011567031 | N148: 0.151371225 | O148: 1.001194704 | P148: 0.04885725208 | Q148: 6.316993382 | R148: 0.05412497566 | S148: 1.000060725 | T148: 0.01544253618 | U148: 17.43976429 | V148: -127.2257725 | W148: 52.77422753 | Y148: 1000000000 | Z148: 70803810.25 | AB148: 34.62116696 | AC148: -42.53857866 | AE148: 26.77723508 | AF148: -84.38537549 | AH148: 0 | AI148: 0
A149: 8462.95 | B149: 8.46295 | C149: 11.86094116 | D149: 1.486385781 | E149: 1.000412165 | F149: 0.02870622514 | G149: 1 | H149: 0 | I149: 363.0762325 | J149: 1.568042081 | K149: 1.794240117 | L149: 0.9796189058 | M149: 1.011699846 | N149: 0.1522294425 | O149: 1.001208493 | P149: 0.0491381168 | Q149: 6.317098836 | R149: 0.05443602051 | S149: 1.000061427 | T149: 0.01553144928 | U149: 17.37356891 | V149: -127.1485897 | W149: 52.85141031 | Y149: 1000000000 | Z149: 71621522.7 | AB149: 34.60447488 | AC149: -42.43626912 | AE149: 26.72775714 | AF149: -84.40877305 | AH149: 0 | AI149: 0
A150: 8511.4 | B150: 8.5114 | C150: 11.9283632 | D150: 1.486864017 | E150: 1.000416897 | F150: 0.02887047592 | G150: 1 | H150: 0 | I150: 365.1548115 | J150: 1.568057759 | K150: 1.801327591 | L150: 0.9822577091 | M150: 1.011833406 | N150: 0.1530874341 | O150: 1.001222361 | P150: 0.04941897376 | Q150: 6.317204895 | R150: 0.054747055 | S150: 1.000062132 | T150: 0.0156203623 | U150: 17.30785632 | V150: -127.0722684 | W150: 52.92773161 | Y150: 1000000000 | Z150: 72443929.96 | AB150: 34.5879869 | AC150: -42.33513441 | AE150: 26.67855805 | AF150: -84.43185741 | AH150: 0 | AI150: 0
A151: 8560.95 | B151: 8.56095 | C151: 11.99731876 | D151: 1.487347551 | E151: 1.000421764 | F151: 0.0290384542 | G151: 1 | H151: 0 | I151: 367.2805823 | J151: 1.568073609 | K151: 1.808588848 | L151: 0.9849350127 | M151: 1.011970769 | N151: 0.1539646705 | O151: 1.001236626 | P151: 0.04970619918 | Q151: 6.317313985 | R151: 0.0550651404 | S151: 1.000062857 | T151: 0.01571129393 | U151: 17.24114421 | V151: -126.9950985 | W151: 53.00490155 | Y151: 1000000000 | Z151: 73289864.9 | AB151: 34.57133195 | AC151: -42.23290632 | AE151: 26.62852713 | AF151: -84.45514742 | AH151: 0 | AI151: 0
A152: 8610.5 | B152: 8.6105 | C152: 12.06627709 | D152: 1.487825559 | E152: 1.000426659 | F152: 0.02920643085 | G152: 1 | H152: 0 | I152: 369.4063532 | J152: 1.568089277 | K152: 1.815862965 | L152: 0.9875908854 | M152: 1.01210891 | N152: 0.1548416681 | O152: 1.001250974 | P152: 0.04999341639 | Q152: 6.317423707 | R152: 0.05538321485 | S152: 1.000063587 | T152: 0.01580222549 | U152: 17.17492306 | V152: -126.9188156 | W152: 53.08118444 | Y152: 1000000000 | Z152: 74140710.25 | AB152: 34.55488296 | AC152: -42.131882 | AE152: 26.57878136 | AF152: -84.47812086 | AH152: 0 | AI152: 0
A153: 8660.05 | B153: 8.66005 | C153: 12.13523815 | D153: 1.488298133 | E153: 1.000431583 | F153: 0.02937440584 | G153: 1 | H153: 0 | I153: 371.5321242 | J153: 1.568104766 | K153: 1.823149789 | L153: 0.9902255463 | M153: 1.012247829 | N153: 0.1557184256 | O153: 1.001265404 | P153: 0.05028062534 | Q153: 6.31753406 | R153: 0.05570127829 | S153: 1.000064321 | T153: 0.01589315697 | U153: 17.10918598 | V153: -126.8434127 | W153: 53.15658734 | Y153: 1000000000 | Z153: 74996466 | AB153: 34.53863624 | AC153: -42.032049 | AE153: 26.52931755 | AF153: -84.50078312 | AH153: 0 | AI153: 0
A154: 8709.6 | B154: 8.7096 | C154: 12.20420189 | D154: 1.488765367 | E154: 1.000436535 | F154: 0.02954237918 | G154: 1 | H154: 0 | I154: 373.6578953 | J154: 1.568120079 | K154: 1.830449166 | L154: 0.9928392126 | M154: 1.012387526 | N154: 0.1565949418 | O154: 1.001279916 | P154: 0.050567826 | Q154: 6.317645045 | R154: 0.05601933066 | S154: 1.000065059 | T154: 0.01598408839 | U154: 17.04392621 | V154: -126.7688827 | W154: 53.23111734 | Y154: 1000000000 | Z154: 75857132.16 | AB154: 34.52258818 | AC154: -41.93339498 | AE154: 26.48013253 | AF154: -84.52313947 | AH154: 0 | AI154: =IF(AH154>0,W154,0) -> 0
A155: 8760.325 | B155: 8.760325 | C155: 12.27480373 | D155: 1.489238242 | E155: 1.000441633 | F155: 0.02971433401 | G155: 1 | H155: 0 | I155: 375.8340757 | J155: 1.568135575 | K155: 1.837934486 | L155: 0.9954933344 | M155: 1.012531342 | N155: 0.157491992 | O155: 1.001294858 | P155: 0.05086182851 | Q155: 6.317759315 | R155: 0.05634491359 | S155: 1.000065819 | T155: 0.01607717603 | U155: 16.97760641 | V155: -126.6934822 | W155: 53.30651784 | Y155: 1000000000 | Z155: 76743294.11 | AB155: 34.50636166 | AC155: -41.83361006 | AE155: 26.43006674 | AF155: -84.54571447 | AH155: 0 | AI155: 0
A156: 8811.05 | B156: 8.81105 | C156: 12.34540827 | D156: 1.489705709 | E156: 1.000446761 | F156: 0.02988628709 | G156: 1 | H156: 0 | I156: 378.0102563 | J156: 1.568150893 | K156: 1.845432647 | L156: 0.9981259069 | M156: 1.012675972 | N156: 0.1583887867 | O156: 1.001309887 | P156: 0.05115582222 | Q156: 6.317874247 | R156: 0.05667048479 | S156: 1.000066584 | T156: 0.0161702636 | U156: 16.9117729 | V156: -126.6189815 | W156: 53.38101849 | Y156: 1000000000 | Z156: 77634602.1 | AB156: 34.49033592 | AC156: -41.73503496 | AE156: 26.38028661 | AF156: -84.56797966 | AH156: 0 | AI156: 0
A157: 8861.775 | B157: 8.861775 | C157: 12.41601549 | D157: 1.490167858 | E157: 1.000451919 | F157: 0.03005823839 | G157: 1 | H157: 0 | I157: 380.1864369 | J157: 1.568166035 | K157: 1.852943495 | L157: 1.000737155 | M157: 1.012821416 | N157: 0.1592853246 | O157: 1.001325003 | P157: 0.05144980709 | Q157: 6.31798984 | R157: 0.05699604419 | S157: 1.000067353 | T157: 0.0162633511 | U157: 16.84641882 | V157: -126.5453732 | W157: 53.45462681 | Y157: 1000000000 | Z157: 78531056.15 | AB157: 34.47450732 | AC157: -41.63765689 | AE157: 26.33078893 | AF157: -84.58994032 | AH157: 0 | AI157: 0
A158: 8912.5 | B158: 8.9125 | C158: 12.48662533 | D158: 1.490624781 | E158: 1.000457106 | F158: 0.03023018792 | G158: 1 | H158: 0 | I158: 382.3626176 | J158: 1.568181005 | K158: =SQRT(1+(A158/Zero2)^2) -> 1.860466875 | L158: =ATAN(A158/Zero2) -> 1.003327302 | M158: 1.012967674 | N158: 0.1601816042 | O158: 1.001340205 | P158: 0.05174378305 | Q158: 6.318106095 | R158: 0.05732159171 | S158: 1.000068126 | T158: 0.01635643852 | U158: 16.78153747 | V158: -126.4726497 | W158: 53.52735033 | Y158: 1000000000 | Z158: 79432656.25 | AB158: 34.4588723 | AC158: -41.54146316 | AE158: 26.28157056 | AF158: -84.61160162 | AH158: 0 | AI158: 0
A159: 8964.4 | B159: 8.9644 | C159: 12.55887345 | D159: 1.491086971 | E159: 1.000462444 | F159: 0.03040611866 | G159: 1 | H159: 0 | I159: 384.5892078 | J159: 1.568196147 | K159: 1.868177341 | L159: 1.005955838 | M159: 1.013118161 | N159: 0.1610983768 | O159: 1.001355848 | P159: 0.05204455944 | Q159: 6.318225727 | R159: 0.05765466789 | S159: 1.000068922 | T159: 0.01645168215 | U159: 16.7156356 | V159: -126.3991496 | W159: 53.60085045 | Y159: 1000000000 | Z159: 80360467.36 | AB159: 34.44307183 | AC159: -41.44425393 | AE159: 26.23149792 | AF159: -84.63346009 | AH159: 0 | AI159: 0
A160: 9016.3 | B160: 9.0163 | C160: 12.63112422 | D160: 1.491543873 | E160: 1.000467813 | F160: 0.03058204752 | G160: 1 | H160: 0 | I160: 386.815798 | J160: 1.568211114 | K160: 1.875900608 | L160: 1.008562747 | M160: 1.013269501 | N160: 0.1620148763 | O160: 1.001371582 | P160: 0.05234532641 | Q160: 6.318346051 | R160: 0.0579877315 | S160: 1.000069722 | T160: 0.0165469257 | U160: 16.65021477 | V160: -126.3265598 | W160: 53.67344015 | Y160: 1000000000 | Z160: 81293665.69 | AB160: 34.42746672 | AC160: -41.34825814 | AE160: 26.18171114 | AF160: -84.65501571 | AH160: 0 | AI160: 0
A161: 9068.2 | B161: 9.0682 | C161: 12.7033776 | D161: 1.491995577 | E161: 1.000473213 | F161: 0.03075797448 | G161: 1 | H161: 0 | I161: 389.0423883 | J161: 1.56822591 | K161: 1.883636519 | L161: 1.011148261 | M161: 1.013421691 | N161: 0.1629311014 | O161: 1.001387407 | P161: 0.0526460839 | Q161: 6.318467068 | R161: 0.05832078247 | S161: 1.000070527 | T161: 0.01664216917 | U161: 16.5852682 | V161: -126.2548726 | W161: 53.74512741 | Y161: 1000000000 | Z161: 82232251.24 | AB161: 34.41205338 | AC161: -41.25346266 | AE161: 26.13220701 | AF161: -84.67627366 | AH161: 0 | AI161: 0
A162: 9120.1 | B162: 9.1201 | C162: 12.77563354 | D162: 1.492442172 | E162: 1.000478644 | F162: 0.03093389953 | G162: 1 | H162: 0 | I162: 391.2689787 | J162: 1.568240537 | K162: 1.891384919 | L162: 1.013712608 | M162: 1.013574731 | N162: 0.1638470505 | O162: 1.001403323 | P162: 0.05294683185 | Q162: 6.318588777 | R162: 0.05865382073 | S162: 1.000071337 | T162: 0.01673741256 | U162: 16.52078922 | V162: -126.1840798 | W162: 53.81592016 | Y162: 1000000000 | Z162: 83176224.01 | AB162: 34.39682831 | AC162: -41.1598545 | AE162: 26.08298235 | AF162: -84.69723896 | AH162: 0 | AI162: 0
A163: 9173.2 | B163: 9.1732 | C163: 12.84956274 | D163: 1.492893895 | E163: 1.000484232 | F163: 0.03111389024 | G163: 1 | H163: 0 | I163: 393.547051 | J163: 1.568255332 | K163: 1.899325239 | L163: 1.016314575 | M163: 1.01373219 | N163: 0.1647838905 | O163: 1.0014197 | P163: 0.05325452359 | Q163: 6.318714017 | R163: 0.05899454606 | S163: 1.00007217 | T163: 0.01683485803 | U163: 16.45529651 | V163: -126.1125678 | W163: 53.88743223 | Y163: 1000000000 | Z163: 84147598.24 | AB163: 34.3814425 | AC163: -41.06529743 | AE163: 26.03290557 | AF163: -84.71839128 | AH163: 0 | AI163: 0
A164: 9226.3 | B164: 9.2263 | C164: 12.92349454 | D164: 1.49334045 | E164: 1.000489853 | F164: 0.03129387893 | G164: 1 | H164: 0 | I164: 395.8251234 | J164: 1.568269956 | K164: 1.907278311 | L164: 1.018894859 | M164: 1.013890538 | N164: 0.1657204388 | O164: 1.001436172 | P164: 0.05356220524 | Q164: 6.318839981 | R164: 0.05933525792 | S164: 1.000073008 | T164: 0.01693230342 | U164: 16.39027954 | V164: -126.0419753 | W164: 53.95802468 | Y164: 1000000000 | Z164: 85124611.69 | AB164: 34.36624659 | AC164: -40.97195618 | AE164: 25.9831148 | AF164: -84.73924759 | AH164: 0 | AI164: 0
A165: 9279.4 | B165: 9.2794 | C165: 12.99742888 | D165: 1.493781924 | E165: 1.000495507 | F165: 0.03147386559 | G165: 1 | H165: 0 | I165: 398.1031959 | J165: 1.568284413 | K165: 1.915243975 | L165: 1.021453697 | M165: 1.014049775 | N165: 0.1666566938 | O165: 1.001452738 | P165: 0.05386987674 | Q165: 6.318966669 | R165: 0.05967595625 | S165: 1.00007385 | T165: 0.01702974871 | U165: 16.32573159 | V165: -125.9722941 | W165: 54.0277059 | Y165: 1000000000 | Z165: 86107264.36 | AB165: 34.35123706 | AC165: -40.87981732 | AE165: 25.93360683 | AF165: -84.75981293 | AH165: 0 | AI165: 0
A166: 9332.5 | B166: 9.3325 | C166: 13.07136573 | D166: 1.494218404 | E166: 1.000501192 | F166: 0.03165385021 | G166: 1 | H166: 0 | I166: 400.3812685 | J166: 1.568298705 | K166: 1.923222076 | L166: 1.023991322 | M166: 1.014209901 | N166: 0.1675926539 | O166: 1.0014694 | P166: 0.05417753804 | Q166: 6.319094082 | R166: 0.06001664096 | S166: 1.000074698 | T166: 0.01712719393 | U166: 16.26164605 | V166: -125.9035158 | W166: 54.09648424 | Y166: 1000000000 | Z166: 87095556.25 | AB166: 34.33641047 | AC166: -40.78886757 | AE166: 25.88437851 | AF166: -84.78009224 | AH166: 0 | AI166: 0
A167: 9386.85 | B167: 9.38685 | C167: 13.14704564 | D167: 1.494660075 | E167: 1.000507045 | F167: 0.03183806963 | G167: 1 | H167: 0 | I167: 402.7129681 | J167: 1.568313166 | K167: 1.931400703 | L167: 1.026566957 | M167: 1.014374716 | N167: 0.1685503402 | O167: 1.001486552 | P167: 0.05449243119 | Q167: 6.319225245 | R167: 0.06036533138 | S167: 1.000075571 | T167: 0.01722693296 | U167: 16.196524 | V167: -125.8340447 | W167: 54.16595532 | Y167: 1000000000 | Z167: 88112952.92 | AB167: 34.3214208 | AC167: -40.69699454 | AE167: 25.83427765 | AF167: -84.80055775 | AH167: 0 | AI167: 0
A168: 9441.2 | B168: 9.4412 | C168: 13.22272809 | D168: 1.49509669 | E168: 1.000512933 | F168: 0.03202228689 | G168: 1 | H168: 0 | I168: 405.0446678 | J168: 1.568327461 | K168: 1.939592035 | L168: 1.029120853 | M168: 1.014540461 | N168: 0.1695077144 | O168: 1.001503803 | P168: 0.05480731353 | Q168: 6.319357166 | R168: 0.06071400737 | S168: 1.000076448 | T168: 0.01732667191 | U168: 16.13187277 | V168: -125.7655019 | W168: 54.23449809 | Y168: 1000000000 | Z168: 89136257.44 | AB168: 34.30661572 | AC168: -40.60633959 | AE168: 25.78446321 | AF168: -84.82073369 | AH168: 0 | AI168: 0
A169: 9495.55 | B169: 9.49555 | C169: 13.29841302 | D169: 1.495528335 | E169: 1.000518854 | F169: 0.03220650198 | G169: 1 | H169: 0 | I169: 407.3763676 | J169: 1.568341592 | K169: 1.947795911 | L169: 1.031653252 | M169: 1.014707136 | N169: 0.1704647749 | O169: 1.001521153 | P169: 0.05512218499 | Q169: 6.319489847 | R169: 0.06106266885 | S169: 1.000077331 | T169: 0.01742641076 | U169: 16.06768568 | V169: -125.6978787 | W169: 54.30212135 | Y169: 1000000000 | Z169: 90165469.8 | AB169: 34.29199178 | AC169: -40.51688899 | AE169: 25.73493195 | AF169: -84.84062501 | AH169: 0 | AI169: 0
A170: 9549.9 | B170: 9.5499 | C170: 13.37410041 | D170: 1.495955095 | E170: 1.000524809 | F170: 0.03239071488 | G170: 1 | H170: 0 | I170: 409.7080674 | J170: 1.568355562 | K170: 1.956012174 | L170: 1.034164393 | M170: 1.01487474 | N170: 0.1714215203 | O170: 1.001538603 | P170: 0.05543704551 | Q170: 6.319623286 | R170: 0.06141131574 | S170: 1.000078219 | T170: 0.01752614952 | U170: 16.00395617 | V170: -125.6311662 | W170: 54.36883385 | Y170: 1000000000 | Z170: 91200590.01 | AB170: 34.2775456 | AC170: -40.42862914 | AE170: 25.68568069 | AF170: -84.86023654 | AH170: 0 | AI170: 0
A171: 9605.525 | B171: 9.605525 | C171: 13.45156584 | D171: 1.496386894 | E171: 1.000530938 | F171: 0.03257924697 | G171: 1 | H171: 0 | I171: 412.0944668 | J171: 1.568369696 | K171: 1.964433846 | L171: 1.036712675 | M171: 1.015047237 | N171: 0.1724003819 | O171: 1.001556565 | P171: 0.05575928097 | Q171: 6.319760641 | R171: 0.06176812637 | S171: 1.000079132 | T171: 0.01762822796 | U171: 15.93919872 | V171: -125.5638226 | W171: 54.43617739 | Y171: 1000000000 | Z171: 92266110.53 | AB171: 34.26294113 | AC171: -40.3395178 | AE171: 25.63556072 | AF171: -84.88002333 | AH171: 0 | AI171: 0
A172: 9661.15 | B172: 9.66115 | C172: 13.52903376 | D172: 1.496813747 | E172: 1.000537104 | F172: 0.03276777673 | G172: 1 | H172: 0 | I172: 414.4808663 | J172: 1.568383668 | K172: 1.972868166 | L172: 1.039239185 | M172: 1.015220707 | N172: 0.1733789099 | O172: 1.001574631 | P172: 0.05608150484 | Q172: 6.319898791 | R172: 0.06212492154 | S172: 1.000080052 | T172: 0.01773030631 | U172: 15.87490708 | V172: -125.4974147 | W172: 54.50258533 | Y172: 1000000000 | Z172: 93337819.32 | AB172: 34.24851592 | AC172: -40.25162547 | AE172: 25.58572749 | AF172: -84.89952693 | AH172: 0 | AI172: 0
A173: 9716.775 | B173: 9.716775 | C173: 13.60650411 | D173: 1.49723574 | E173: 1.000543305 | F173: 0.03295630417 | G173: 1 | H173: 0 | I173: 416.8672659 | J173: 1.568397479 | K173: 1.981314972 | L173: 1.041744168 | M173: 1.015395148 | N173: 0.1743571026 | O173: 1.001592801 | P173: 0.05640371705 | Q173: 6.320037736 | R173: 0.06248170116 | S173: 1.000080976 | T173: 0.01783238456 | U173: 15.81107461 | V173: -125.4319331 | W173: 54.56806686 | Y173: 1000000000 | Z173: 94415716.4 | AB173: 34.23426657 | AC173: -40.16493814 | AE173: 25.53617775 | AF173: -84.91875216 | AH173: 0 | AI173: 0
A174: 9772.4 | B174: 9.7724 | C174: 13.68397686 | D174: 1.497652954 | E174: 1.000549541 | F174: 0.03314482927 | G174: 1 | H174: 0 | I174: 419.2536656 | J174: 1.568411134 | K174: 1.989774105 | L174: 1.044227869 | M174: 1.015570561 | N174: 0.1753349584 | O174: 1.001611075 | P174: 0.05672591754 | Q174: 6.320177475 | R174: 0.06283846514 | S174: 1.000081906 | T174: 0.01793446271 | U174: 15.74769482 | V174: -125.3673689 | W174: 54.63263112 | Y174: 1000000000 | Z174: 95499801.76 | AB174: 34.22018977 | AC174: -40.07944195 | AE174: 25.48690834 | AF174: -84.93770375 | AH174: 0 | AI174: 0
A175: 9829.3 | B175: 9.8293 | C175: 13.76322782 | D175: 1.498074872 | E175: 1.000555958 | F175: 0.03333767317 | G175: 1 | H175: 0 | I175: 421.6947648 | J175: 1.568424941 | K175: 1.998439723 | L175: 1.046746728 | M175: 1.015750998 | N175: 0.1763348775 | O175: 1.001629875 | P175: 0.05705549109 | Q175: 6.320321239 | R175: 0.06320339037 | S175: 1.000082862 | T175: 0.01803888052 | U175: 15.68332398 | V175: -125.3022643 | W175: 54.6977357 | Y175: 1000000000 | Z175: 96615138.49 | AB175: 34.20596543 | AC175: -39.9932042 | AE175: 25.43679638 | AF175: -84.95681142 | AH175: 0 | AI175: 0
A176: 9886.2 | B176: 9.8862 | C176: 13.8424812 | D176: 1.498491959 | E176: 1.000562411 | F176: 0.0335305146 | G176: 1 | H176: 0 | I176: 424.1358642 | J176: 1.56843859 | K176: 2.007117911 | L176: 1.049243821 | M176: 1.015932451 | N176: 0.1773344404 | O176: 1.001648784 | P176: 0.05738505224 | Q176: 6.320465835 | R176: 0.06356829906 | S176: 1.000083825 | T176: 0.01814329824 | U176: 15.61941344 | V176: -125.2381004 | W176: 54.7618996 | Y176: 1000000000 | Z176: 97736950.44 | AB176: 34.19191483 | AC176: -39.90818402 | AE176: 25.38697117 | AF176: -84.97564243 | AH176: 0 | AI176: 0
A177: 9943.1 | B177: 9.9431 | C177: 13.92173697 | D177: 1.498904297 | E177: 1.000568902 | F177: 0.03372335353 | G177: 1 | H177: 0 | I177: 426.5769636 | J177: 1.568452082 | K177: 2.015808507 | L177: 1.051719399 | M177: 1.016114919 | N177: 0.1783336453 | O177: 1.001667802 | P177: 0.05771460092 | Q177: 6.320611262 | R177: 0.0639331911 | S177: 1.000084792 | T177: 0.01824771585 | U177: 15.55595663 | V177: -125.1748676 | W177: 54.8251324 | Y177: 1000000000 | Z177: 98865237.61 | AB177: 34.17803465 | AC177: -39.82436715 | AE177: 25.33742948 | AF177: -84.99420148 | AH177: 0 | AI177: 0
A178: 10000 | B178: 10 | C178: 14.00099507 | D178: 1.499311966 | E178: 1.00057543 | F178: 0.03391618995 | G178: 1 | H178: 0 | I178: 429.018063 | J178: 1.56846542 | K178: 2.024511351 | L178: 1.054173707 | M178: 1.0162984 | N178: 0.1793324905 | O178: 1.001686929 | P178: 0.05804413704 | Q178: 6.32075752 | R178: 0.06429806641 | S178: 1.000085765 | T178: 0.01835213335 | U178: 15.49294711 | V178: -125.1125564 | W178: 54.88744357 | Y178: 1000000000 | Z178: 100000000 | AB178: 34.16432163 | AC178: -39.74173947 | AE178: 25.28816812 | AF178: -85.01249319 | AH178: 0 | AI178: 0
A179: 10058.25 | B179: 10.05825 | C179: 14.08213603 | D179: 1.499724555 | E179: 1.000582151 | F179: 0.03411359896 | G179: 1 | H179: 0 | I179: 431.5170797 | J179: 1.568478919 | K179: 2.0334332 | L179: 1.05666447 | M179: 1.016487285 | N179: 0.1803546595 | O179: 1.001706622 | P179: 0.05838147861 | Q179: 6.320908109 | R179: 0.06467158125 | S179: 1.000086768 | T179: 0.01845902814 | U179: 15.4288994 | V179: -125.0497117 | W179: 54.95028828 | Y179: 1000000000 | Z179: 101168393.1 | AB179: 34.15045309 | AC179: -39.65836871 | AE179: 25.23802512 | AF179: -85.03094667 | AH179: 0 | AI179: 0
A180: 10116.5 | B180: 10.1165 | C180: 14.16327935 | D180: 1.500132415 | E180: 1.000588911 | F180: 0.03431100531 | G180: 1 | H180: 0 | I180: 434.0160965 | J180: 1.568492263 | K180: 2.042367553 | L180: 1.059133455 | M180: 1.016677232 | N180: 0.1813764476 | O180: 1.001726429 | P180: 0.05871880687 | Q180: 6.321059569 | R180: 0.06504507836 | S180: 1.000087775 | T180: 0.01856592281 | U180: 15.36530721 | V180: -124.987813 | W180: 55.01218698 | Y180: 1000000000 | Z180: 102343572.2 | AB180: 34.13675306 | AC180: -39.57621493 | AE180: 25.18816933 | AF180: -85.04912944 | AH180: 0 | AI180: 0
A181: 10174.75 | B181: 10.17475 | C181: 14.244425 | D181: 1.500535629 | E181: 1.000595711 | F181: 0.03450840899 | G181: 1 | H181: 0 | I181: 436.5151133 | J181: 1.568505453 | K181: 2.051314248 | L181: 1.061580919 | M181: 1.016868239 | N181: 0.1823978529 | O181: 1.00174635 | P181: 0.05905612176 | Q181: 6.3212119 | R181: 0.06541855764 | S181: 1.000088789 | T181: 0.01867281738 | U181: 15.30216402 | V181: -124.9268504 | W181: 55.07314961 | Y181: 1000000000 | Z181: 103525537.6 | AB181: 34.12321828 | AC181: -39.49526357 | AE181: 25.13859751 | AF181: -85.0670461 | AH181: 0 | AI181: 0
A182: 10233 | B182: 10.233 | C182: 14.32557294 | D182: 1.500934275 | E182: 1.000602549 | F182: 0.03470580997 | G182: 1 | H182: 0 | I182: 439.0141302 | J182: 1.568518494 | K182: 2.060273124 | L182: 1.064007112 | M182: 1.017060307 | N182: 0.1834188735 | O182: 1.001766386 | P182: 0.05939342319 | Q182: 6.321365102 | R182: 0.06579201897 | S182: 1.000089809 | T182: 0.01877971183 | U182: 15.23946347 | V182: -124.866814 | W182: 55.133186 | Y182: 1000000000 | Z182: 104714289 | AB182: 34.10984556 | AC182: -39.41550028 | AE182: 25.08930647 | AF182: -85.08470119 | AH182: 0 | AI182: 0
A183: 10292.5 | B183: 10.2925 | C183: 14.40846458 | D183: 1.50133684 | E183: 1.000609574 | F183: 0.03490744424 | G183: 1 | H183: 0 | I183: 441.5667742 | J183: 1.568531662 | K183: 2.069436662 | L183: 1.066463667 | M183: 1.017257591 | N183: 0.1844614053 | O183: 1.001786968 | P183: 0.05973794889 | Q183: 6.321522491 | R183: 0.06617347586 | S183: 1.000090856 | T183: 0.01888890004 | U183: 15.17586788 | V183: -124.8064354 | W183: 55.1935646 | Y183: 1000000000 | Z183: 105935556.2 | AB183: 34.09634994 | AC183: -39.33523719 | AE183: 25.0392443 | AF183: -85.10246968 | AH183: 0 | AI183: 0
A184: 10352 | B184: 10.352 | C184: 14.49135853 | D184: 1.501734799 | E184: 1.00061664 | F184: 0.03510907566 | G184: 1 | H184: 0 | I184: 444.1194182 | J184: 1.568544678 | K184: 2.078612578 | L184: 1.068898548 | M184: 1.01745598 | N184: 0.1855035316 | O184: 1.00180767 | P184: 0.06008246038 | Q184: 6.321680788 | R184: 0.06655491383 | S184: 1.00009191 | T184: 0.01899808812 | U184: 15.11272105 | V184: -124.7470027 | W184: 55.25299726 | Y184: 1000000000 | Z184: 107163904 | AB184: 34.0830169 | AC184: -39.25618403 | AE184: 24.98946853 | AF184: -85.11997444 | AH184: 0 | AI184: 0
A185: 10411.5 | B185: 10.4115 | C185: 14.57425474 | D185: 1.502128231 | E185: 1.000623747 | F185: 0.03531070423 | G185: 1 | H185: 0 | I185: 446.6720623 | J185: 1.568557546 | K185: 2.087800709 | L185: 1.071312011 | M185: 1.017655474 | N185: 0.1865452505 | O185: 1.00182849 | P185: 0.0604269576 | Q185: 6.321839994 | R185: 0.06693633276 | S185: 1.000092969 | T185: 0.01910727609 | U185: 15.05001657 | V185: -124.6885058 | W185: 55.31149419 | Y185: 1000000000 | Z185: 108399332.2 | AB185: 34.06984326 | AC185: -39.1783261 | AE185: 24.93997592 | AF185: -85.13721999 | AH185: 0 | AI185: 0
A186: 10471 | B186: 10.471 | C186: 14.65715319 | D186: 1.502517213 | E186: 1.000630894 | F186: 0.03551232993 | G186: 1 | H186: 0 | I186: 449.2247065 | J186: 1.568570268 | K186: 2.097000894 | L186: 1.073704312 | M186: 1.017856072 | N186: 0.1875865599 | O186: 1.00184943 | P186: 0.06077144045 | Q186: 6.322000108 | R186: 0.06731773254 | S186: 1.000094035 | T186: 0.01921646394 | U186: 14.98774816 | V186: -124.6309345 | W186: 55.36906548 | Y186: 1000000000 | Z186: 109641841 | AB186: 34.05682591 | AC186: -39.10164891 | AE186: 24.89076329 | AF186: -85.15421071 | AH186: 0 | AI186: 0
A187: 10532 | B187: 10.532 | C187: 14.74214378 | D187: 1.50291146 | E187: 1.000638264 | F187: 0.03571903563 | G187: 1 | H187: 0 | I187: 451.8417031 | J187: 1.568583161 | K187: 2.106445366 | L187: 1.076135214 | M187: 1.018062872 | N187: 0.1886536936 | O187: 1.001871021 | P187: 0.06112459276 | Q187: 6.322165202 | R187: 0.06770872745 | S187: 1.000095134 | T187: 0.0193284043 | U187: 14.92435619 | V187: -124.5728623 | W187: 55.4271377 | Y187: 1000000000 | Z187: 110923024 | AB187: 34.04363947 | AC187: -39.02424946 | AE187: 24.8405974 | AF187: -85.17136972 | AH187: 0 | AI187: 0
A188: 10593 | B188: 10.593 | C188: 14.82713665 | D188: 1.503301186 | E188: 1.000645677 | F188: 0.03592573828 | G188: 1 | H188: 0 | I188: 454.4586998 | J188: 1.568595905 | K188: 2.115902174 | L188: 1.078544401 | M188: 1.01827083 | N188: 0.1897203927 | O188: 1.001892736 | P188: 0.0614777298 | Q188: 6.32233125 | R188: 0.06809970201 | S188: 1.000096239 | T188: 0.01944034453 | U188: 14.86140956 | V188: -124.5157418 | W188: 55.48425823 | Y188: 1000000000 | Z188: 112211649 | AB188: 34.0306109 | AC188: -38.94806078 | AE188: 24.7907192 | AF188: -85.18826993 | AH188: 0 | AI188: 0
A189: 10654 | B189: 10.654 | C189: 14.91213174 | D189: 1.503686471 | E189: 1.000653132 | F189: 0.03613243785 | G189: 1 | H189: 0 | I189: 457.0756966 | J189: 1.568608504 | K189: 2.125371153 | L189: 1.080932134 | M189: 1.018479947 | N189: 0.1907866549 | O189: 1.001914577 | P189: 0.06183085149 | Q189: 6.322498253 | R189: 0.06849065611 | S189: 1.00009735 | T189: 0.01955228463 | U189: 14.79890189 | V189: -124.4595624 | W189: 55.54043764 | Y189: 1000000000 | Z189: 113507716 | AB189: 34.01773709 | AC189: -38.87306789 | AE189: 24.74112543 | AF189: -85.20491577 | AH189: 0 | AI189: 0
A190: 10715 | B190: 10.715 | C190: 14.99712901 | D190: 1.504067388 | E190: 1.00066063 | F190: 0.03633913434 | G190: 1 | H190: 0 | I190: 459.6926935 | J190: 1.568620959 | K190: 2.134852143 | L190: 1.083298673 | M190: 1.018690222 | N190: 0.1918524782 | O190: 1.001936542 | P190: 0.06218395774 | Q190: 6.32266621 | R190: 0.06888158962 | S190: 1.000098468 | T190: 0.0196642246 | U190: 14.73682691 | V190: -124.4043136 | W190: 55.5956864 | Y190: 1000000000 | Z190: 114811225 | AB190: 34.00501497 | AC190: -38.799256 | AE190: 24.69181288 | AF190: -85.22131155 | AH190: 0 | AI190: 0
A191: 10777.5 | B191: 10.7775 | C191: 15.08421862 | D191: 1.504453219 | E191: 1.000668357 | F191: 0.0365509103 | G191: 1 | H191: 0 | I191: 462.3740428 | J191: 1.568633574 | K191: 2.144578561 | L191: 1.085701689 | M191: 1.018906867 | N191: 0.1929440526 | O191: 1.001959178 | P191: 0.06254573083 | Q191: 6.322839287 | R191: 0.06928211478 | S191: 1.00009962 | T191: 0.01977891706 | U191: 14.67366787 | V191: -124.3486607 | W191: 55.65133932 | Y191: 1000000000 | Z191: 116154506.2 | AB191: 33.99213422 | AC191: -38.72483873 | AE191: 24.64157614 | AF191: -85.23785558 | AH191: 0 | AI191: 0
A192: 10840 | B192: 10.84 | C192: 15.17131045 | D192: 1.50483462 | E192: 1.000676128 | F192: 0.03676268299 | G192: 1 | H192: 0 | I192: 465.0553921 | J192: 1.568646044 | K192: 2.154317252 | L192: 1.088082993 | M192: 1.019124725 | N192: 0.1940351617 | O192: 1.001981944 | P192: 0.06290748752 | Q192: 6.323013366 | R192: 0.06968261808 | S192: 1.000100779 | T192: 0.01989360938 | U192: 14.61095016 | V192: -124.2939629 | W192: 55.70603715 | Y192: 1000000000 | Z192: 117505600 | AB192: 33.97940644 | AC192: -38.65163048 | AE192: 24.59162799 | AF192: -85.25414599 | AH192: 0 | AI192: 0
A193: 10902.5 | B193: 10.9025 | C193: 15.25840445 | D193: 1.505211668 | E193: 1.000683945 | F193: 0.03697445237 | G193: 1 | H193: 0 | I193: 467.7367416 | J193: 1.56865837 | K193: 2.164068048 | L193: 1.090442851 | M193: 1.019343796 | N193: 0.1951258031 | O193: 1.002004841 | P193: 0.06326922773 | Q193: 6.323188447 | R193: 0.07008309941 | S193: 1.000101945 | T193: 0.02000830156 | U193: 14.54866745 | V193: -124.2402092 | W193: 55.7597908 | Y193: 1000000000 | Z193: 118864506.2 | AB193: 33.96682856 | AC193: -38.579616 | AE193: 24.54196517 | AF193: -85.27018711 | AH193: 0 | AI193: 0
A194: 10965 | B194: 10.965 | C194: 15.34550061 | D194: 1.505584436 | E194: 1.000691806 | F194: 0.03718621844 | G194: 1 | H194: 0 | I194: 470.4180911 | J194: 1.568670557 | K194: 2.173830788 | L194: 1.092781525 | M194: 1.01956408 | N194: 0.1962159745 | O194: 1.00202787 | P194: 0.06363095136 | Q194: 6.32336453 | R194: 0.07048355863 | S194: 1.000103117 | T194: 0.02012299361 | U194: 14.48681351 | V194: -124.1873889 | W194: 55.81261107 | Y194: 1000000000 | Z194: 120231225 | AB194: 33.95439758 | AC194: -38.50878027 | AE194: 24.49258446 | AF194: -85.28598319 | AH194: 0 | AI194: 0
A195: 11028.75 | B195: 11.02875 | C195: 15.43434085 | D195: 1.505960324 | E195: 1.000699871 | F195: 0.03740221639 | G195: 1 | H195: 0 | I195: 473.1530677 | J195: 1.568682844 | K195: 2.183800921 | L195: 1.095145418 | M195: 1.019790016 | N195: 0.1973274628 | O195: 1.002051494 | P195: 0.06399989228 | Q195: 6.323545166 | R195: 0.07089200415 | S195: 1.000104319 | T195: 0.02023997935 | U195: 14.4241579 | V195: -124.1344628 | W195: 55.86553723 | Y195: 1000000000 | Z195: 121633326.6 | AB195: 33.94186628 | AC195: -38.4377268 | AE195: 24.44250349 | AF195: -85.30184705 | AH195: 0 | AI195: 0
A196: 11092.5 | B196: 11.0925 | C196: 15.52318326 | D196: 1.506331911 | E196: 1.000707982 | F196: 0.03761821085 | G196: 1 | H196: 0 | I196: 475.8880443 | J196: 1.568694991 | K196: 2.193783146 | L196: 1.097487812 | M196: 1.020017212 | N196: 0.1984384573 | O196: 1.002075255 | P196: 0.06436881576 | Q196: 6.323726844 | R196: 0.0713004264 | S196: 1.000105529 | T196: 0.02035696494 | U196: 14.36193571 | V196: -124.0824854 | W196: 55.91751461 | Y196: 1000000000 | Z196: 123043556.2 | AB196: 33.92948173 | AC196: -38.36786877 | AE196: 24.39270944 | AF196: -85.31746458 | AH196: 0 | AI196: 0
A197: 11156.25 | B197: 11.15625 | C197: 15.61202778 | D197: 1.506699268 | E197: 1.000716141 | F197: 0.0378342018 | G197: 1 | H197: 0 | I197: 478.623021 | J197: 1.568706998 | K197: 2.203777299 | L197: 1.099808972 | M197: 1.020245666 | N197: 0.1995489556 | O197: 1.002099152 | P197: 0.06473772169 | Q197: 6.323909563 | R197: 0.07170882527 | S197: 1.000106745 | T197: 0.02047395039 | U197: 14.30014073 | V197: -124.0314457 | W197: 55.96855427 | Y197: 1000000000 | Z197: 124461914.1 | AB197: 33.91724096 | AC197: -38.29919093 | AE197: 24.34319907 | AF197: -85.33283999 | AH197: 0 | AI197: 0
A198: 11220 | B198: 11.22 | C198: 15.70087438 | D198: 1.507062467 | E198: 1.000724345 | F198: 0.03805018922 | G198: 1 | H198: 0 | I198: 481.3579978 | J198: 1.568718869 | K198: 2.213783218 | L198: 1.102109162 | M198: 1.020475378 | N198: 0.2006589554 | O198: 1.002123185 | P198: 0.06510660998 | Q198: 6.324093325 | R198: 0.07211720061 | S198: 1.000107969 | T198: 0.02059093569 | U198: 14.23876688 | V198: -123.9813328 | W198: 56.01866715 | Y198: 1000000000 | Z198: 125888400 | AB198: 33.90514106 | AC198: -38.2316782 | AE198: 24.29396919 | AF198: -85.3479774 | AH198: 0 | AI198: 0
A199: 11285.5 | B199: 11.2855 | C199: 15.79216205 | D199: 1.507431381 | E199: 1.000732824 | F199: 0.038272102 | G199: 1 | H199: 0 | I199: 484.1680525 | J199: 1.568730927 | K199: 2.224075897 | L199: 1.104450926 | M199: 1.020712705 | N199: 0.2017989039 | O199: 1.00214802 | P199: 0.06548560613 | Q199: 6.324283216 | R199: 0.07253676162 | S199: 1.000109233 | T199: 0.0207111322 | U199: 14.1761406 | V199: -123.9307982 | W199: 56.06920178 | Y199: 1000000000 | Z199: 127362510.2 | AB199: 33.89285277 | AC199: -38.16351011 | AE199: 24.24367675 | AF199: -85.36328665 | AH199: 0 | AI199: 0
A200: 11351 | B200: 11.351 | C200: 15.88345183 | D200: 1.507796053 | E200: 1.000741352 | F200: 0.03849401101 | G200: 1 | H200: 0 | I200: 486.9781072 | J200: 1.568742845 | K200: 2.234380661 | L200: 1.106771102 | M200: 1.020951358 | N200: 0.2029383209 | O200: 1.002172999 | P200: 0.06586458345 | Q200: 6.324474207 | R200: 0.07295629753 | S200: 1.000110505 | T200: 0.02083132855 | U200: 14.11394623 | V200: -123.8812189 | W200: 56.11878109 | Y200: 1000000000 | Z200: 128845201 | AB200: 33.88070721 | AC200: -38.09654047 | AE200: 24.19367375 | AF200: -85.37835315 | AH200: 0 | AI200: 0
A201: 11416.5 | B201: 11.4165 | C201: 15.97474371 | D201: 1.508156558 | E201: 1.000749929 | F201: 0.03871591623 | G201: 1 | H201: 0 | I201: 489.788162 | J201: 1.568754626 | K201: 2.244697342 | L201: 1.109069963 | M201: 1.021191335 | N201: 0.2040772039 | O201: 1.002198122 | P201: 0.06624354182 | Q201: 6.324666297 | R201: 0.07337580818 | S201: 1.000111784 | T201: 0.02095152474 | U201: 14.05217755 | V201: -123.8325835 | W201: 56.16741654 | Y201: 1000000000 | Z201: 130336472.2 | AB201: 33.86870144 | AC201: -38.03075365 | AE201: 24.14395691 | AF201: -85.39318104 | AH201: 0 | AI201: 0
A202: 11482 | B202: 11.482 | C202: 16.06603764 | D202: 1.508512965 | E202: 1.000758556 | F202: 0.03893781764 | G202: 1 | H202: 0 | I202: 492.5982168 | J202: 1.568766273 | K202: 2.255025777 | L202: 1.111347777 | M202: 1.021432636 | N202: 0.2052155503 | O202: 1.002223389 | P202: 0.06662248113 | Q202: 6.324859486 | R202: 0.07379529343 | S202: 1.00011307 | T202: 0.02107172077 | U202: 13.99082847 | V202: -123.7848805 | W202: 56.21511946 | Y202: 1000000000 | Z202: 131836324 | AB202: 33.85683261 | AC202: -37.96613426 | AE202: 24.09452299 | AF202: -85.40777441 | AH202: 0 | AI202: 0
... 433 more rows

Sheet Bode Plot Management (hidden)
J1: Single or dual output (MODE) | N1: 3.3V or 5V fixed (FB1/2)
A2: =CHOOSE(BODE_PLOT_TYPE, "BODE_PLOT_Ch1", "BODE_PLOT_Ch2") -> BODE_PLOT_Ch1 | J2: With/without dither (DITH) | N2: With/without VOUT connected to VCCX
J3: FPWM or DEM (DEMB)
J4: Shunt or inductor DCR current sensing
F6: =INDIRECT(A2) -> 0

Sheet Efficiency Calculations (hidden)
A1: BUCK CONTROLLER POWER DESIGN TOOL
H2: =AV19 -> 0.5698580039 | I2: 10% load
H3: =AV59 -> 0.7914597073 | I3: 50% load | AP3: =IF(MODE=1, (Qg_Q1+Qg_Q2)*Fsw*Vin, (Qg_Q1+Qg_Q2+Qg_Q3+Qg_Q4)*Fsw*Vin) -> 2.112
H4: =AV109 -> 0.8348341631 | I4: 100% load | AO4: I_VCC | AP4: =(Qg_Q1+Qg_Q2)*Fsw*1000 -> 88 | AQ4: mA | AR4: =AP4*5/1000 -> 0.44
A6: Enter the values of your design and MOSFET datasheet specifications below. Note that thermal resistance (θJA) will change when components are placed on the PCB
G7: Operating Point Condtions | R7: Filter Inductor | V7: Cout | Y7: Cin | AB7: High-side BUCK "Control" MOSFET Losses | AH7: Low-side BUCK "Sync" MOSFET Losses | AL7: External Diode | AM7: Diode/FET | AN7: Sense Rs | AO7: Controller IC Losses | AT7: RESULTS | AZ7: Consolidated Buck/Boost Efficiency & Losses
A8: Input Parameters | G8: Step | H8: Vin | I8: Mode | J8: Iout | K8: Iout/ phase | L8: Iin | M8: Duty Cycle BUCK Leg | N8: Ripple Current pk-pk | O8: Peak Inductor Current | P8: Valley Inductor Current | Q8: SW node voltage at Q1 turn-on | R8: Irms Lf | S8: DCR Loss | T8: Core Loss | U8: Total Inductor Loss | V8: Irms Cout | W8: Cout ESR Loss | X8: Total Cout Loss | Y8: Irms Cin | Z8: Cin ESR Loss | AA8: Total Cin Loss | AB8: Irms | AC8: RDS(on) Loss | AD8: Transition Loss (not including capacitive loss) | AE8: MOSFET Output Capacitance Loss | AF8: Dead Time Loss | AG8: Total Control MOSFET Loss | AH8: Irms | AI8: RDS(on) Loss | AJ8: Deadtime Loss | AK8: Total Sync MOSFET Loss | AL8: Deadtime Loss | AM8: Reverse Recovery Loss | AN8: Isense Shunt Loss | AO8: IQ Loss | AP8: Switching Current Loss | AQ8: Switching Current Diss | AR8: LDO Loss Saved from Gate Drive Current (ext VCC) | AS8: Total IC Loss | AT8: Total Loss | AU8: Pout | AV8: EFF, h | AW8: =IF(Vin>Vout, "Buck ''CONTROL'' MOSFET Temp Rise", "Boost ''CONTROL'' MOSFET Temp Rise") -> Buck ''CONTROL'' MOSFET Temp Rise | AX8: =IF(Vin>Vout, "Buck ''SYNC'' MOSFET Temp Rise", "Boost ''SYNC'' MOSFET Temp Rise") -> Buck ''SYNC'' MOSFET Temp Rise | AZ8: h | BA8: Inductor Cu & Core Loss | BB8: Total MOSFET Loss | BC8: Control MOSFET Loss | BD8: SYNC MOSFET Loss | BE8: Shunt Loss
A9: Design | B9: Input Value | C9: Units | D9: Description | G9: 0 | H9: =Vin -> 24 | I9: =MODE -> 1 | J9: 0 | K9: =Iout*G9/100/Number_of_Phases -> 0 | L9: =Vout*K9/(Vin*Efficiency) -> 0 | M9: =(Vout+(Rdson2+Rs+Rdcr)*K9)/(Vin+(Rs+Rdson2-Rdson1)*K9) -> 0.2083333333 | N9: =(Vin-(Rdson1+Rdcr)*K9-Vout)*M9/(Fsw*Lf) -> 2.645944742 | O9: =K9+N9/2 -> 1.322972371 | P9: =K9-N9/2 -> -1.322972371 | Q9: =IF(MIN(Vin, -P9/(Coss_Q1+Coss_Q2)*0.00000002)<0, 0, MIN(Vin, -P9/(Coss_Q1+Coss_Q2)*0.00000002)) -> 24 | R9: =SQRT(K9^2+(N9^2)/12) -> 0.7638184544 | S9: =R9^2*Rdcr -> 0.001283520989 | T9: =Core_Loss_Ch1 -> 0.2 | U9: =(T9+S9*(1+Ltc*(Ta-25)))/(1-S9*Ltc*ThetaCa) -> 0.2013041912 | V9: =N9/SQRT(12) -> 0.7638184544 | W9: =RCoutEsr*V9^2 -> 0.0005834186313 | X9: =W9 -> 0.0005834186313 | Y9: =SQRT(M9*(1-M9))*SQRT(K9^2+(N9^2)/12) -> 0.3101992247 | Z9: =RCinEsr*Y9^2 -> 9.622355898e-05 | AA9: =Z9 -> 9.622355898e-05 | AB9: =SQRT(M9)*SQRT(K9^2+(N9^2)/12) -> 0.3486338311 | AC9: =Rdson1*AB9^2 -> 0.0004861821927 | AD9: =(Vin*K9/2)*Fsw*(Tr_buck+Tf_buck) -> 0 | AE9: =(0.5*Coss_Q1*(Vin-Q9)^2-0.5*Coss_Q2*(Vin-Q9)^2+(Qoss_Q2*(Vin-Q9)/Vin)*Vin)*Fsw -> 0 | AF9: =IF(K9>N9/2,0,ABS(K9-N9/2)*Vsd_Q1*Deadtime*Fsw) -> 0.03259803922 | AG9: =(AF9+AE9+AD9+AC9*(1+RdsonTopTc*Ta-RdsonTopTc*25))/(1-AC9*RdsonTopTc*ThetaJA_Q1) -> 0.03308743871 | AH9: =SQRT((1-M9))*SQRT(K9^2+(N9^2)/12) -> 0.6796124507 | AI9: =Rdson2*AH9^2 -> 0.001847492332 | AJ9: =IF(K9<N9/2,Deadtime*Fsw*IF(VfdSky_Q2>0,0,Vsd_Q2)*(K9+N9/2),2*Deadtime*Fsw*IF(VfdSky_Q2>0,0,Vsd_Q2)*K9) -> 0.03259803922 | AK9: =(AJ9+AI9*(1+RdsonBotTc*Ta-RdsonBotTc*25))/(1-AI9*RdsonBotTc*ThetaJA_Q2) -> 0.03445826382 | AL9: =2*Deadtime*Fsw*IF(VfdSky_Q2>0,VfdSky_Q2,Vsd_Q2)*K9 -> 0 | AM9: =IF(QrrSky_Q2>0,QrrSky_Q2,Qrr_Q2*K9/(Iout/Number_of_Phases))*Fsw*Vin -> 0 | AN9: =Rs*R9^2 -> 0.002333674525 | AO9: =Iq*Vin -> 5.28e-05 | AP9: =IF(Ext_VCC=1, (Qg_Q1+Qg_Q2)*Fsw*VCC, (Qg_Q1+Qg_Q2)*Fsw*Vin) -> 2.112 | AQ9: =(Vin-VCC)*Fsw*(Qg_Q1+Qg_Q2)+(RdsonDRT+RdsonDRT2)*Fsw*Qg_Q1*VCC/(RdsonDRT+2*Rgate1+RdsonDRT2)+(RdsonDRB+RdsonDRB2)*Fsw*Qg_Q2*VCC/(RdsonDRB+2*Rgate2+RdsonDRB2) -> 1.841230769 | AR9: =(Qg_Q1+Qg_Q2)*Fsw*(Vin-VCC) -> 1.672 | AS9: =SUM(AO9:AP9) -> 2.1120528 | AT9: =SUM(U9,X9,AA9,AG9,AK9,AL9,AM9,AS9,AN9) -> 2.38391601 | AU9: =Vout*K9 -> 0 | AV9: =AU9/(AU9+AT9) -> 0 | AW9: =ThetaJA_Q1*BC9 -> 1.654371936 | AX9: =ThetaJA_Q2*BD9 -> 1.722913191 | AZ9: =AV9*100 -> 0 | BA9: =U9 -> 0.2013041912 | BB9: =AG9+AK9+AM9 -> 0.06754570254 | BC9: =AG9+AM9*0.66 -> 0.03308743871 | BD9: =AK9+AM9*0.33 -> 0.03445826382 | BE9: =AN9 -> 0.002333674525
G10: 1 | H10: 24 | I10: 1 | J10: =Iout*G10/100 -> 0.1 | K10: 0.1 | L10: 0.02314814815 | M10: 0.2083723605 | N10: 2.646354049 | O10: =K10+N10/2 -> 1.423177025 | P10: =K10-N10/2 -> -1.223177025 | Q10: 24 | R10: =SQRT(K10^2+(N10^2)/12) -> 0.7704538573 | S10: 0.001305918122 | T10: 0.2 | U10: 0.2013269514 | V10: =N10/SQRT(12) -> 0.7639366114 | W10: 0.0005835991462 | X10: =W10 -> 0.0005835991462 | Y10: =SQRT(M10*(1-M10))*SQRT(K10^2+(N10^2)/12) -> 0.3129155634 | Z10: 9.791614983e-05 | AA10: =Z10 -> 9.791614983e-05 | AB10: =SQRT(M10)*SQRT(K10^2+(N10^2)/12) -> 0.3516954013 | AC10: 0.0004947586211 | AD10: 0.02875141646 | AE10: 0 | AF10: 0.03013908189 | AG10: 0.05939113383 | AH10: 0.6854994464 | AI10: 0.001879637964 | AJ10: 0.03506708189 | AK10: 0.03696061437 | AL10: 0.004928 | AM10: 0.009504 | AN10: 0.002374396585 | AO10: 5.28e-05 | AP10: 2.112 | AQ10: 1.841230769 | AR10: 1.672 | AS10: 2.1120528 | AT10: 2.427219412 | AU10: 0.5 | AV10: =AU10/(AU10+AT10) -> 0.1708105645 | AW10: 3.283188691 | AX10: 2.004846718 | AZ10: =AV10*100 -> 17.08105645 | BA10: 0.2013269514 | BB10: 0.1058557482 | BC10: 0.06566377383 | BD10: 0.04009693437 | BE10: 0.002374396585
A11: Vin | B11: =Vin -> 24 | C11: V | D11: Vin | G11: 2 | H11: 24 | I11: 1 | J11: 0.2 | K11: 0.2 | L11: 0.0462962963 | M11: 0.2084113863 | N11: 2.646763308 | O11: 1.523381654 | P11: -1.123381654 | Q11: 24 | R11: 0.7897972319 | S11: 0.001372315269 | T11: 0.2 | U11: 0.2013944254 | V11: 0.7640547543 | W11: 0.0005837796675 | X11: 0.0005837796675 | Y11: 0.3207938973 | Z11: 0.0001029087246 | AA11: 0.0001029087246 | AB11: 0.36055899 | AC11: 0.000520011141 | AD11: 0.05750283293 | AE11: 0 | AF11: 0.02768012396 | AG11: 0.08571188226 | AH11: 0.7026925945 | AI11: 0.001975107529 | AJ11: 0.03753612396 | AK11: 0.03952684544 | AL11: 0.009856 | AM11: 0.019008 | AN11: 0.00249511867 | AO11: 5.28e-05 | AP11: 2.112 | AQ11: 1.841230769 | AR11: 1.672 | AS11: 2.1120528 | AT11: 2.47073176 | AU11: 1 | AV11: 0.288123678 | AW11: 4.912858113 | AX11: 2.289974272 | AZ11: 28.8123678 | BA11: 0.2013944254 | BB11: 0.1442467277 | BC11: 0.09825716226 | BD11: 0.04579948544 | BE11: 0.00249511867
A12: Vout | B12: =Vout -> 5 | C12: V | D12: Vout | G12: 3 | H12: 24 | I12: 1 | J12: 0.3 | K12: 0.3 | L12: 0.06944444444 | M12: 0.2084504108 | N12: 2.647172519 | O12: 1.623586259 | P12: -1.023586259 | Q12: 24 | R12: 0.8209507873 | S12: 0.001482712429 | T12: 0.2 | U12: 0.2015066145 | V12: 0.7641728831 | W12: 0.0005839601952 | X12: 0.0005839601952 | Y12: 0.333470611 | Z12: 0.0001112026484 | AA12: 0.0001112026484 | AB12: 0.3748163278 | AC12: 0.0005619491183 | AD12: 0.08625424939 | AE12: 0 | AF12: 0.02522116543 | AG12: 0.1120499572 | AH12: 0.7303923026 | AI12: 0.002133891663 | AJ12: 0.04000516543 | AK12: 0.04215704881 | AL12: 0.014784 | AM12: 0.028512 | AN12: 0.002695840781 | AO12: 5.28e-05 | AP12: 2.112 | AQ12: 1.841230769 | AR12: 1.672 | AS12: 2.1120528 | AT12: 2.514453424 | AU12: 1.5 | AV12: 0.37364987 | AW12: 6.543393861 | AX12: 2.57830044 | AZ12: 37.364987 | BA12: 0.2015066145 | BB12: 0.182719006 | BC12: 0.1308678772 | BD12: 0.05156600881 | BE12: 0.002695840781
A13: Fsw | B13: =Fsw/1000 -> 2200 | C13: kHz | D13: Switching Frequency | G13: 4 | H13: 24 | I13: 1 | J13: 0.4 | K13: 0.4 | L13: 0.09259259259 | M13: 0.208489434 | N13: 2.64758168 | O13: 1.72379084 | P13: -0.9237908399 | Q13: 24 | R13: 0.8626359193 | S13: 0.001637109604 | T13: 0.2 | U13: 0.2016635212 | V13: 0.7642909978 | W13: 0.0005841407292 | X13: 0.0005841407292 | Y13: 0.350427291 | Z13: 0.0001227992863 | AA13: 0.0001227992863 | AB13: 0.3938851095 | AC13: 0.0006205819179 | AD13: 0.1150056659 | AE13: 0 | AF13: 0.02276220629 | AG13: 0.1384056325 | AH13: 0.7674602594 | AI13: 0.002355980999 | AJ13: 0.04247420629 | AK13: 0.04485132107 | AL13: 0.019712 | AM13: 0.038016 | AN13: 0.002976562917 | AO13: 5.28e-05 | AP13: 2.112 | AQ13: 1.841230769 | AR13: 1.672 | AS13: 2.1120528 | AT13: 2.558384778 | AU13: 2 | AV13: 0.4387519039 | AW13: 8.174809624 | AX13: 2.869830053 | AZ13: 43.87519039 | BA13: 0.2016635212 | BB13: 0.2212729535 | BC13: 0.1634961925 | BD13: 0.05739660107 | BE13: 0.002976562917
A14: Iout | B14: =Iout -> 10 | C14: A | D14: Max Output Current | G14: 5 | H14: 24 | I14: 1 | J14: 0.5 | K14: 0.5 | L14: 0.1157407407 | M14: 0.208528456 | N14: 2.647990792 | O14: 1.823995396 | P14: -0.8239953961 | Q14: 24 | R14: 0.9134118839 | S14: 0.001835506793 | T14: 0.2 | U14: 0.2018651488 | V14: 0.7644090983 | W14: 0.0005843212696 | X14: 0.0005843212696 | Y14: 0.3710795096 | Z14: 0.0001377000025 | AA14: 0.0001377000025 | AB14: 0.4171087701 | AC14: 0.0006959189045 | AD14: 0.1437570823 | AE14: 0 | AF14: 0.02030324656 | AG14: 0.1647791824 | AH14: 0.8126140188 | AI14: 0.002641366174 | AJ14: 0.04494324656 | AK14: 0.0476097637 | AL14: 0.02464 | AM14: 0.04752 | AN14: 0.003337285078 | AO14: 5.28e-05 | AP14: 2.112 | AQ14: 1.841230769 | AR14: 1.672 | AS14: 2.1120528 | AT14: 2.602526201 | AU14: 2.5 | AV14: 0.4899533881 | AW14: 9.807119119 | AX14: 3.164568185 | AZ14: 48.99533881 | BA14: 0.2018651488 | BB14: 0.2599089461 | BC14: 0.1961423824 | BD14: 0.0632913637 | BE14: 0.003337285078
A15: Ta | B15: =Ta -> 25 | C15: °C | D15: Ambient Temperature | G15: 6 | H15: 24 | I15: 1 | J15: 0.6 | K15: 0.6 | L15: 0.1388888889 | M15: 0.2085674766 | N15: 2.648399856 | O15: 1.924199928 | P15: -0.7241999278 | Q15: 21.4896121 | R15: 0.9718548329 | S15: 0.002077903996 | T15: 0.2 | U15: 0.2021115015 | V15: 0.7645271848 | W15: 0.0005845018163 | X15: 0.0005845018163 | Y15: 0.3948495421 | Z15: 0.0001559061609 | AA15: 0.0001559061609 | AB15: 0.4438382143 | AC15: 0.0007879694418 | AD15: 0.1725084988 | AE15: 0.1656856013 | AF15: 0.01784428622 | AG15: 0.3568825982 | AH15: 0.8645862917 | AI15: 0.002990037823 | AJ15: 0.04741228622 | AK15: 0.05043248305 | AL15: 0.029568 | AM15: 0.057024 | AN15: 0.003778007265 | AO15: 5.28e-05 | AP15: 2.112 | AQ15: 1.841230769 | AR15: 1.672 | AS15: 2.1120528 | AT15: 2.812589798 | AU15: 3 | AV15: 0.5161210586 | AW15: 19.72592191 | AX15: 3.462520153 | AZ15: 51.61210586 | BA15: 0.2021115015 | BB15: 0.4643390813 | BC15: 0.3945184382 | BD15: 0.06925040305 | BE15: 0.003778007265
A16: Vcc | B16: =VCC -> 5 | C16: V | D16: Subregulated VCC Voltage | G16: 7 | H16: 24 | I16: 1 | J16: 0.7 | K16: 0.7 | L16: 0.162037037 | M16: 0.2086064959 | N16: 2.64880887 | O16: 2.024404435 | P16: -0.6244044352 | Q16: 18.52832152 | R16: 1.036668881 | S16: 0.002364301212 | T16: 0.2 | U16: 0.2024025845 | V16: 0.7646452572 | W16: 0.0005846823693 | X16: 0.0005846823693 | Y16: 0.4212114969 | Z16: 0.0001774191251 | AA16: 0.0001774191251 | AB16: 0.473482548 | AC16: 0.0008967428931 | AD16: 0.2012599153 | AE16: 0.3611307798 | AF16: 0.01538532528 | AG16: 0.5787765659 | AH16: 0.9222237505 | AI16: 0.003401986584 | AJ16: 0.04988132528 | AK16: 0.05331959037 | AL16: 0.034496 | AM16: 0.066528 | AN16: 0.004298729477 | AO16: 5.28e-05 | AP16: 2.112 | AQ16: 1.841230769 | AR16: 1.672 | AS16: 2.1120528 | AT16: 3.052636372 | AU16: 3.5 | AV16: 0.5341361555 | AW16: 31.1342523 | AX16: 3.763691519 | AZ16: 53.41361555 | BA16: 0.2024025845 | BB16: 0.6986241563 | BC16: 0.6226850459 | BD16: 0.07527383037 | BE16: 0.004298729477
A17: Components | B17: Input Value | C17: Units | D17: Description | G17: 8 | H17: 24 | I17: 1 | J17: 0.8 | K17: 0.8 | L17: 0.1851851852 | M17: 0.2086455139 | N17: 2.649217836 | O17: 2.124608918 | P17: -0.5246089181 | Q17: 15.56703021 | R17: 1.106735257 | S17: 0.002694698443 | T17: 0.2 | U17: 0.202738404 | V17: 0.7647633154 | W17: 0.0005848629286 | X17: 0.0005848629286 | Y17: 0.4497113052 | Z17: 0.000202240258 | AA17: 0.000202240258 | AB17: 0.5055315571 | AC17: 0.001022248621 | AD17: 0.2300113317 | AE17: 0.5565760061 | AF17: 0.01292636374 | AG17: 0.800699653 | AH17: 0.9845307377 | AI17: 0.003877203094 | AJ17: 0.05235036374 | AK17: 0.05627120181 | AL17: 0.039424 | AM17: 0.076032 | AN17: 0.004899451715 | AO17: 5.28e-05 | AP17: 2.112 | AQ17: 1.841230769 | AR17: 1.672 | AS17: 2.1120528 | AT17: 3.292904614 | AU17: 4 | AV17: 0.5484783103 | AW17: 42.54403865 | AX17: 4.068088091 | AZ17: 54.84783103 | BA17: 0.202738404 | BB17: 0.9330028548 | BC17: 0.850880773 | BD17: 0.08136176181 | BE17: 0.004899451715
A18: L | B18: =Lf*1000000 -> 0.68 | C18: uH | D18: Filter Inductance | G18: 9 | H18: 24 | I18: 1 | J18: 0.9 | K18: 0.9 | L18: 0.2083333333 | M18: 0.2086845307 | N18: 2.649626753 | O18: 2.224813377 | P18: -0.4248133766 | Q18: 12.60573818 | R18: 1.181119594 | S18: 0.003069095687 | T18: 0.2 | U18: 0.203118967 | V18: 0.7648813596 | W18: 0.0005850434943 | X18: 0.0005850434943 | Y18: 0.4799697097 | Z18: 0.0002303709222 | AA18: 0.0002303709222 | AB18: 0.5395590763 | AC18: 0.001164495987 | AD18: 0.2587627482 | AE18: 0.7520212803 | AF18: 0.0104674016 | AG18: 1.022654101 | AH18: 1.050675734 | AI18: 0.00441567799 | AJ18: 0.0548194016 | AK18: 0.05928743844 | AL18: 0.044352 | AM18: 0.085536 | AN18: 0.005580173977 | AO18: 5.28e-05 | AP18: 2.112 | AQ18: 1.841230769 | AR18: 1.672 | AS18: 2.1120528 | AT18: 3.533396895 | AU18: 4.5 | AV18: 0.560161543 | AW18: 53.95539307 | AX18: 4.375715922 | AZ18: 56.0161543 | BA18: 0.203118967 | BB18: 1.16747754 | BC18: 1.079107861 | BD18: 0.08751431844 | BE18: 0.005580173977
A19: Rdcr | B19: =Rdcr*1000 -> 2.2 | C19: mW | D19: Inductor DCR at 25°C | G19: 10 | H19: 24 | I19: 1 | J19: 1 | K19: 1 | L19: 0.2314814815 | M19: 0.2087235461 | N19: 2.650035621 | O19: 2.325017811 | P19: -0.3250178106 | Q19: 9.64444542 | R19: 1.259056816 | S19: 0.003487492946 | T19: 0.2 | U19: 0.2035442817 | V19: 0.7649993897 | W19: 0.0005852240662 | X19: 0.0005852240662 | Y19: 0.5116761473 | Z19: 0.0002618124797 | AA19: 0.0002618124797 | AB19: 0.5752161232 | AC19: 0.001323494354 | AD19: 0.2875141646 | AE19: 0.9474666023 | AF19: 0.008008438854 | AG19: 1.244642156 | AH19: 1.119977892 | AI19: 0.005017401911 | AJ19: 0.05728843885 | AK19: 0.06236842626 | AL19: 0.04928 | AM19: 0.09504 | AN19: 0.006340896265 | AO19: 5.28e-05 | AP19: 2.112 | AQ19: 1.841230769 | AR19: 1.672 | AS19: 2.1120528 | AT19: 3.774115596 | AU19: 5 | AV19: 0.5698580039 | AW19: 65.36842778 | AX19: 4.686581313 | AZ19: 56.98580039 | BA19: 0.2035442817 | BB19: 1.402050582 | BC19: 1.307368556 | BD19: 0.09373162626 | BE19: 0.006340896265
A20: LTc | B20: =Ltc*1000000 -> 4000 | C20: ppm | D20: Inductor Series Resistance Temp Co | G20: 11 | H20: 24 | I20: 1 | J20: 1.1 | K20: 1.1 | L20: 0.2546296296 | M20: 0.2087625602 | N20: 2.650444441 | O20: 2.42522222 | P20: -0.2252222203 | Q20: 6.683151937 | R20: 1.339927104 | S20: 0.003949890218 | T20: 0.2 | U20: 0.204014357 | V20: 0.7651174056 | W20: 0.0005854046444 | X20: 0.0005854046444 | Y20: 0.5445790046 | Z20: 0.0002965662923 | AA20: 0.0002965662923 | AB20: 0.6122199524 | AC20: 0.001499253081 | AD20: 0.3162655811 | AE20: 1.142911972 | AF20: 0.005549475508 | AG20: 1.466666063 | AH20: 1.191885638 | AI20: 0.005682365497 | AJ20: 0.05975747551 | AK20: 0.06551429624 | AL20: 0.054208 | AM20: 0.104544 | AN20: 0.007181618578 | AO20: 5.28e-05 | AP20: 2.112 | AQ20: 1.841230769 | AR20: 1.672 | AS20: 2.1120528 | AT20: 4.015063105 | AU20: 5.5 | AV20: 0.5780308485 | AW20: 76.78325513 | AX20: 5.000690812 | AZ20: 57.80308485 | BA20: 0.204014357 | BB20: 1.636724359 | BC20: 1.535665103 | BD20: 0.1000138162 | BE20: 0.007181618578
A21: ThetaCa | B21: =ThetaCa -> 20 | C21: °C/W | D21: Core to Ambient Thermal Resistance | G21: 12 | H21: 24 | I21: 1 | J21: 1.2 | K21: 1.2 | L21: 0.2777777778 | M21: 0.208801573 | N21: 2.650853211 | O21: 2.525426605 | P21: -0.1254266055 | Q21: 3.72185773 | R21: 1.423230561 | S21: 0.004456287503 | T21: 0.2 | U21: 0.2045292028 | V21: 0.7652354075 | W21: 0.0005855852289 | X21: 0.0005855852289 | Y21: 0.5784753417 | Z21: 0.000334633721 | AA21: 0.000334633721 | AB21: 0.6503425113 | AC21: 0.001691781528 | AD21: 0.3450169976 | AE21: 1.33835739 | AF21: 0.003090511559 | AG21: 1.688728072 | AH21: 1.265954125 | AI21: 0.006410559387 | AJ21: 0.06222651156 | AK21: 0.06872518432 | AL21: 0.059136 | AM21: 0.114048 | AN21: 0.008102340915 | AO21: 5.28e-05 | AP21: 2.112 | AQ21: 1.841230769 | AR21: 1.672 | AS21: 2.1120528 | AT21: 4.256241819 | AU21: 6 | AV21: 0.5850096074 | AW21: 88.19998761 | AX21: 5.318051216 | AZ21: 58.50096074 | BA21: 0.2045292028 | BB21: 1.871501257 | BC21: 1.763999752 | BD21: 0.1063610243 | BE21: 0.008102340915
A22: Cin | B22: =Cin*1000000 -> 30 | C22: μF | D22: Input Capacitance | G22: 13 | H22: 24 | I22: 1 | J22: 1.3 | K22: 1.3 | L22: 0.3009259259 | M22: 0.2088405845 | N22: 2.651261933 | O22: 2.625630966 | P22: -0.02563096629 | Q22: 0.760562798 | R22: 1.508564158 | S22: 0.005006684803 | T22: 0.2 | U22: 0.20508883 | V22: 0.7653533952 | W22: 0.0005857658196 | X22: 0.0005857658196 | Y22: 0.6132015383 | Z22: 0.0003760161266 | AA22: 0.0003760161266 | AB22: 0.6893999304 | AC22: 0.001901089056 | AD22: 0.373768414 | AE22: 1.533802855 | AF22: 0.0006315470095 | AG22: 1.910830437 | AH22: 1.341824711 | AI22: 0.007201974222 | AJ22: 0.06469554701 | AK22: 0.07200123143 | AL22: 0.064064 | AM22: 0.123552 | AN22: 0.009103063278 | AO22: 5.28e-05 | AP22: 2.112 | AQ22: 1.841230769 | AR22: 1.672 | AS22: 2.1120528 | AT22: 4.497654144 | AU22: 6.5 | AV22: 0.5910351349 | AW22: 99.61873786 | AX22: 5.638669572 | AZ22: 59.10351349 | BA22: 0.20508883 | BB22: 2.106383669 | BC22: 1.992374757 | BD22: 0.1127733914 | BE22: 0.009103063278
A23: RCinEsr | B23: =RCinEsr*1000 -> 1 | C23: mW | D23: Input Capacitor ESR | G23: 14 | H23: 24 | I23: 1 | J23: 1.4 | K23: 1.4 | L23: 0.3240740741 | M23: 0.2088795948 | N23: 2.651670605 | O23: 2.725835303 | P23: 0.07416469733 | Q23: 0 | R23: 1.595602211 | S23: 0.005601082117 | T23: 0.2 | U23: 0.2056932505 | V23: 0.7654713689 | W23: 0.0005859464166 | X23: 0.0005859464166 | Y23: 0.6486253691 | Z23: 0.0004207148694 | AA23: 0.0004207148694 | AB23: 0.729243619 | AC23: 0.002127185023 | AD23: 0.4025198305 | AE23: 1.584 | AF23: 0 | AG23: 1.98949342 | AH23: 1.419207582 | AI23: 0.008056600643 | AJ23: 0.068992 | AK23: 0.07717295097 | AL23: 0.068992 | AM23: 0.133056 | AN23: 0.01018378567 | AO23: 5.28e-05 | AP23: 2.112 | AQ23: 1.841230769 | AR23: 1.672 | AS23: 2.1120528 | AT23: 4.597650868 | AU23: 7 | AV23: 0.6035705058 | AW23: 103.865519 | AX23: 6.054071549 | AZ23: 60.35705058 | BA23: 0.2056932505 | BB23: 2.199722371 | BC23: 2.07731038 | BD23: 0.121081431 | BE23: 0.01018378567
A24: Cout | B24: =Cout*1000000 -> 540 | C24: μF | D24: Output Capcitance | G24: 15 | H24: 24 | I24: 1 | J24: 1.5 | K24: 1.5 | L24: 0.3472222222 | M24: 0.2089186037 | N24: 2.652079229 | O24: 2.826039615 | P24: 0.1739603854 | Q24: 0 | R24: 1.684080467 | S24: 0.006239479444 | T24: 0.2 | U24: 0.206342477 | V24: 0.7655893285 | W24: 0.0005861270198 | X24: 0.0005861270198 | Y24: 0.6846395469 | Z24: 0.0004687313091 | AA24: 0.0004687313091 | AB24: 0.7697530103 | AC24: 0.002370078787 | AD24: 0.431271247 | AE24: 1.584 | AF24: 0 | AG24: 2.018598173 | AH24: 1.497867592 | AI24: 0.008974429292 | AJ24: 0.07392 | AK24: 0.08304348287 | AL24: 0.07392 | AM24: 0.14256 | AN24: 0.01134450808 | AO24: 5.28e-05 | AP24: 2.112 | AQ24: 1.841230769 | AR24: 1.672 | AS24: 2.1120528 | AT24: 4.648916299 | AU24: 7.5 | AV24: 0.6173390132 | AW24: 105.6343887 | AX24: 6.504414143 | AZ24: 61.73390132 | BA24: 0.206342477 | BB24: 2.244201656 | BC24: 2.112687773 | BD24: 0.1300882829 | BE24: 0.01134450808
A25: RCoutEsr | B25: =Cout_ESR*1000 -> 1 | C25: mW | D25: Output Capacitor ESR | G25: 16 | H25: 24 | I25: 1 | J25: 1.6 | K25: 1.6 | L25: 0.3703703704 | M25: 0.2089576113 | N25: 2.652487804 | O25: 2.926243902 | P25: 0.2737560978 | Q25: 0 | R25: 1.773783422 | S25: 0.006921876785 | T25: 0.2 | U25: 0.2070365233 | V25: 0.7657072739 | W25: 0.0005863076293 | X25: 0.0005863076293 | Y25: 0.7211565747 | Z25: 0.0005200668052 | AA25: 0.0005200668052 | AB25: 0.8108297766 | AC25: 0.002629779707 | AD25: 0.4600226634 | AE25: 1.584 | AF25: 0 | AG25: 2.047729459 | AH25: 1.577612976 | AI25: 0.009955450811 | AJ25: 0.078848 | AK25: 0.08898061925 | AL25: 0.078848 | AM25: 0.152064 | AN25: 0.01258523052 | AO25: 5.28e-05 | AP25: 2.112 | AQ25: 1.841230769 | AR25: 1.672 | AS25: 2.1120528 | AT25: 4.700403006 | AU25: 8 | AV25: 0.6299012713 | AW25: 107.4045849 | AX25: 6.958086962 | AZ25: 62.99012713 | BA25: 0.2070365233 | BB25: 2.288774078 | BC25: 2.148091699 | BD25: 0.1391617392 | BE25: 0.01258523052
A26: Top Driver | B26: Input Value | C26: Units | D26: Description | G26: 17 | H26: 24 | I26: 1 | J26: 1.7 | K26: 1.7 | L26: 0.3935185185 | M26: 0.2089966176 | N26: 2.652896331 | O26: 3.026448165 | P26: 0.3735518347 | Q26: 0 | R26: 1.864534324 | S26: 0.007648274139 | T26: 0.2 | U26: 0.207775404 | V26: 0.7658252053 | W26: 0.0005864882451 | X26: 0.0005864882451 | Y26: 0.7581046871 | Z26: 0.0005747227165 | AA26: 0.0005747227165 | AB26: 0.8523932686 | AC26: 0.002906297138 | AD26: 0.4887740799 | AE26: 1.584 | AF26: 0 | AG26: 2.076887588 | AH26: 1.658286453 | AI26: 0.01099965584 | AJ26: 0.083776 | AK26: 0.09498461546 | AL26: 0.083776 | AM26: 0.161568 | AN26: 0.01390595298 | AO26: 5.28e-05 | AP26: 2.112 | AQ26: 1.841230769 | AR26: 1.672 | AS26: 2.1120528 | AT26: 4.752111571 | AU26: 8.5 | AV26: 0.6414072168 | AW26: 109.1761234 | AX26: 7.415102773 | AZ26: 64.14072168 | BA26: 0.207775404 | BB26: 2.333440203 | BC26: 2.183522468 | BD26: 0.1483020555 | BE26: 0.01390595298
A27: RdsonDRT | B27: 0.7 | C27: W | D27: Drain to Source Resistance of pullup Top FET Driver | G27: 18 | H27: 24 | I27: 1 | J27: 1.8 | K27: 1.8 | L27: 0.4166666667 | M27: 0.2090356226 | N27: 2.653304808 | O27: 3.126652404 | P27: 0.473347596 | Q27: 0 | R27: 1.956187329 | S27: 0.008418671507 | T27: 0.2 | U27: 0.2085591348 | V27: 0.7659431226 | W27: 0.000586668867 | X27: 0.000586668867 | Y27: 0.7954246674 | Z27: 0.0006327004015 | AA27: 0.0006327004015 | AB27: 0.8943769391 | AC27: 0.003199640437 | AD27: 0.5175254964 | AE27: 1.584 | AF27: 0 | AG27: 2.106072872 | AH27: 1.739758247 | AI27: 0.01210703503 | AJ27: 0.088704 | AK27: 0.1010557321 | AL27: 0.088704 | AM27: 0.171072 | AN27: 0.01530667547 | AO27: 5.28e-05 | AP27: 2.112 | AQ27: 1.841230769 | AR27: 1.672 | AS27: 2.1120528 | AT27: 4.804042584 | AU27: 9 | AV27: 0.6519829206 | AW27: 110.9490196 | AX27: 7.875474604 | AZ27: 65.19829206 | BA27: 0.2085591348 | BB27: 2.378200604 | BC27: 2.218980392 | BD27: 0.1575094921 | BE27: 0.01530667547
A28: RdsonDRT2 | B28: =RdsonDRT2 -> 0.5 | C28: W | D28: Drain to Source Resistance of pulldown Top FET Driver | G28: 19 | H28: 24 | I28: 1 | J28: 1.9 | K28: 1.9 | L28: 0.4398148148 | M28: 0.2090746264 | N28: 2.653713237 | O28: 3.226856618 | P28: 0.5731433817 | Q28: 0 | R28: 2.048621365 | S28: 0.009233068889 | T28: 0.2 | U28: 0.2093877322 | V28: 0.7660610257 | W28: 0.0005868494952 | X28: 0.0005868494952 | Y28: 0.8330673551 | Z28: 0.0006940012182 | AA28: 0.0006940012182 | AB28: 0.9367255415 | AC28: 0.00350981896 | AD28: 0.5462769128 | AE28: 1.584 | AF28: 0 | AG28: 2.135285625 | AH28: 1.821920623 | AI28: 0.01327757902 | AJ28: 0.093632 | AK28: 0.107194235 | AL28: 0.093632 | AM28: 0.180576 | AN28: 0.01678739798 | AO28: 5.28e-05 | AP28: 2.112 | AQ28: 1.841230769 | AR28: 1.672 | AS28: 2.1120528 | AT28: 4.856196641 | AU28: 9.5 | AV28: 0.6617351543 | AW28: 112.7232892 | AX28: 8.33921575 | AZ28: 66.17351543 | BA28: 0.2093877322 | BB28: 2.42305586 | BC28: 2.254465785 | BD28: 0.166784315 | BE28: 0.01678739798
A29: Bottom Driver | B29: Input Value | C29: Units | D29: Description | G29: 20 | H29: 24 | I29: 1 | J29: 2 | K29: 2 | L29: 0.462962963 | M29: 0.2091136288 | N29: 2.654121616 | O29: 3.327060808 | P29: 0.6729391918 | Q29: 0 | R29: 2.141735308 | S29: 0.01009146628 | T29: 0.2 | U29: 0.2102612138 | V29: 0.7661789148 | W29: 0.0005870301295 | X29: 0.0005870301295 | Y29: 0.87099169 | Z29: 0.000758626524 | AA29: 0.000758626524 | AB29: 0.9793929323 | AC29: 0.003836842063 | AD29: 0.5750283293 | AE29: 1.584 | AF29: 0 | AG29: 2.16452616 | AH29: 1.904683599 | AI29: 0.01451127846 | AJ29: 0.09856 | AK29: 0.1134003954 | AL29: 0.09856 | AM29: 0.19008 | AN29: 0.01834812052 | AO29: 5.28e-05 | AP29: 2.112 | AQ29: 1.841230769 | AR29: 1.672 | AS29: 2.1120528 | AT29: 4.908574347 | AU29: 10 | AV29: 0.6707549473 | AW29: 114.498948 | AX29: 8.80633977 | AZ29: 67.07549473 | BA29: 0.2102612138 | BB29: 2.468006556 | BC29: 2.28997896 | BD29: 0.1761267954 | BE29: 0.01834812052
A30: RdsonDRB | B30: 0.7 | C30: W | D30: Drain to Source Resistance of pullup Bottom FET Driver | G30: 21 | H30: 24 | I30: 1 | J30: 2.1 | K30: 2.1 | L30: 0.4861111111 | M30: 0.2091526299 | N30: 2.654529947 | O30: 3.427264974 | P30: 0.7727350264 | Q30: 0 | R30: 2.2354442 | S30: 0.01099386369 | T30: 0.2 | U30: 0.2111795981 | V30: 0.7662967898 | W30: 0.0005872107701 | X30: 0.0005872107701 | Y30: 0.9091631736 | Z30: 0.0008265776762 | AA30: 0.0008265776762 | AB30: 1.022340342 | AC30: 0.004180719099 | AD30: 0.6037797458 | AE30: 1.584 | AF30: 0 | AG30: 2.193794793 | AH30: 1.987971578 | AI30: 0.01580812398 | AJ30: 0.103488 | AK30: 0.1196744898 | AL30: 0.103488 | AM30: 0.199584 | AN30: 0.01998884308 | AO30: 5.28e-05 | AP30: 2.112 | AQ30: 1.841230769 | AR30: 1.672 | AS30: 2.1120528 | AT30: 4.961176312 | AU30: 10.5 | AV30: 0.6791203844 | AW30: 116.2760116 | AX30: 9.276860491 | AZ30: 67.91203844 | BA30: 0.2111795981 | BB30: 2.513053283 | BC30: 2.325520233 | BD30: 0.1855372098 | BE30: 0.01998884308
A31: RdsonDRB2 | B31: 0.5 | C31: W | D31: Drain to Source Resistance of pulldown Bottom FET Driver | G31: 22 | H31: 24 | I31: 1 | J31: 2.2 | K31: 2.2 | L31: 0.5092592593 | M31: 0.2091916297 | N31: 2.654938229 | O31: 3.527469115 | P31: 0.8725308853 | Q31: 0 | R31: 2.329676247 | S31: 0.01194026112 | T31: 0.2 | U31: 0.2121429045 | V31: 0.7664146507 | W31: 0.0005873914168 | X31: 0.0005873914168 | Y31: 0.9475526535 | Z31: 0.0008978560312 | AA31: 0.0008978560312 | AB31: 1.065535009 | AC31: 0.004541459423 | AD31: 0.6325311622 | AE31: 1.584 | AF31: 0 | AG31: 2.223091838 | AH31: 2.071720676 | AI31: 0.01716810624 | AJ31: 0.108416 | AK31: 0.1260168002 | AL31: 0.108416 | AM31: 0.209088 | AN31: 0.02170956567 | AO31: 5.28e-05 | AP31: 2.112 | AQ31: 1.841230769 | AR31: 1.672 | AS31: 2.1120528 | AT31: 5.014003156 | AU31: 11 | AV31: 0.686898828 | AW31: 118.0544959 | AX31: 9.75079201 | AZ31: 68.6898828 | BA31: 0.2121429045 | BB31: 2.558196638 | BC31: 2.361089918 | BD31: 0.1950158402 | BE31: 0.02170956567
A32: Deadtime | B32: Input Value | C32: Units | D32: Description | G32: 23 | H32: 24 | I32: 1 | J32: 2.3 | K32: 2.3 | L32: 0.5324074074 | M32: 0.2092306283 | N32: 2.655346463 | O32: 3.627673231 | P32: 0.9723267687 | Q32: 0 | R32: 2.424370448 | S32: 0.01293065855 | T32: 0.2 | U32: 0.2131511533 | V32: 0.7665324975 | W32: 0.0005875720697 | X32: 0.0005875720697 | Y32: 0.9861353585 | Z32: 0.0009724629453 | AA32: 0.0009724629453 | AB32: 1.108949096 | AC32: 0.004919072387 | AD32: 0.6612825787 | AE32: 1.584 | AF32: 0 | AG32: 2.252417612 | AH32: 2.155876614 | AI32: 0.01859121589 | AJ32: 0.113344 | AK32: 0.132427614 | AL32: 0.113344 | AM32: 0.218592 | AN32: 0.02351028828 | AO32: 5.28e-05 | AP32: 2.112 | AQ32: 1.841230769 | AR32: 1.672 | AS32: 2.1120528 | AT32: 5.067055503 | AU32: 11.5 | AV32: 0.6941486976 | AW32: 119.8344166 | AX32: 10.2281487 | AZ32: 69.41486976 | BA32: 0.2131511533 | BB32: 2.603437226 | BC32: 2.396688332 | BD32: 0.204562974 | BE32: 0.02351028828
A33: Deadtime | B33: =Deadtime*1000000000 -> 14 | C33: ns | D33: Total Deadtime | G33: 24 | H33: 24 | I33: 1 | J33: 2.4 | K33: 2.4 | L33: 0.5555555556 | M33: 0.2092696255 | N33: 2.655754647 | O33: 3.727877324 | P33: 1.072122676 | Q33: 0 | R33: 2.519474693 | S33: 0.013965056 | T33: 0.2 | U33: 0.2142043661 | V33: 0.7666503302 | W33: 0.0005877527288 | X33: 0.0005877527288 | Y33: 1.024890128 | Z33: 0.001050399774 | AA33: 0.001050399774 | AB33: 1.152558821 | AC33: 0.005313567345 | AD33: 0.6900339952 | AE33: 1.584 | AF33: 0 | AG33: 2.281772433 | AH33: 2.240393022 | AI33: 0.02007744357 | AJ33: 0.118272 | AK33: 0.138907224 | AL33: 0.118272 | AM33: 0.228096 | AN33: 0.02539101092 | AO33: 5.28e-05 | AP33: 2.112 | AQ33: 1.841230769 | AR33: 1.672 | AS33: 2.1120528 | AT33: 5.120333986 | AU33: 12 | AV33: 0.7009209055 | AW33: 121.6157896 | AX33: 10.7089452 | AZ33: 70.09209055 | BA33: 0.2142043661 | BB33: 2.648775657 | BC33: 2.432315793 | BD33: 0.214178904 | BE33: 0.02539101092
A34: IQ | B34: Input Value | C34: Units | D34: Description | G34: 25 | H34: 24 | I34: 1 | J34: 2.5 | K34: 2.5 | L34: 0.5787037037 | M34: 0.2093086214 | N34: 2.656162783 | O34: 3.828081391 | P34: 1.171918609 | Q34: 0 | R34: 2.614944243 | S34: 0.01504345347 | T34: 0.2 | U34: 0.215302565 | V34: 0.7667681488 | W34: 0.0005879333941 | X34: 0.0005879333941 | Y34: 1.063798794 | Z34: 0.001131667873 | AA34: 0.001131667873 | AB34: 1.196343768 | AC34: 0.005724953648 | AD34: 0.7187854116 | AE34: 1.584 | AF34: 0 | AG34: 2.311156618 | AH34: 2.325230092 | AI34: 0.02162677993 | AJ34: 0.1232 | AK34: 0.1454559286 | AL34: 0.1232 | AM34: 0.2376 | AN34: 0.02735173358 | AO34: 5.28e-05 | AP34: 2.112 | AQ34: 1.841230769 | AR34: 1.672 | AS34: 2.1120528 | AT34: 5.173839247 | AU34: 12.5 | AV34: 0.7072600257 | AW34: 123.3986309 | AX34: 11.19319643 | AZ34: 70.72600257 | BA34: 0.215302565 | BB34: 2.694212547 | BC34: 2.467972618 | BD34: 0.2238639286 | BE34: 0.02735173358
A35: IQ | B35: =Iq*1000 -> 0.0022 | C35: mA | D35: Quiescent Current Of Controller (Not Switching!) | G35: 26 | H35: 24 | I35: 1 | J35: 2.6 | K35: 2.6 | L35: 0.6018518519 | M35: 0.209347616 | N35: 2.65657087 | O35: 3.928285435 | P35: 1.271714565 | Q35: 0 | R35: 2.710740501 | S35: 0.01616585094 | T35: 0.2 | U35: 0.2164457734 | V35: 0.7668859534 | W35: 0.0005881140655 | X35: 0.0005881140655 | Y35: 1.102845681 | Z35: 0.001216268597 | AA35: 0.001216268597 | AB35: 1.240286323 | AC35: 0.006153240648 | AD35: 0.7475368281 | AE35: 1.584 | AF35: 0 | AG35: 2.340570487 | AH35: 2.410353481 | AI35: 0.02323921561 | AJ35: 0.128128 | AK35: 0.1520740319 | AL35: 0.128128 | AM35: 0.247104 | AN35: 0.02939245626 | AO35: 5.28e-05 | AP35: 2.112 | AQ35: 1.841230769 | AR35: 1.672 | AS35: 2.1120528 | AT35: 5.227571932 | AU35: 13 | AV35: 0.7132052502 | AW35: 125.1829564 | AX35: 11.68091759 | AZ35: 71.32052502 | BA35: 0.2164457734 | BB35: 2.739748519 | BC35: 2.503659127 | BD35: 0.2336183519 | BE35: 0.02939245626
A36: High-side FET | B36: Input Value | C36: Units | D36: Description | G36: 27 | H36: 24 | I36: 1 | J36: 2.7 | K36: 2.7 | L36: 0.625 | M36: 0.2093866094 | N36: 2.656978908 | O36: 4.028489454 | P36: 1.371510546 | Q36: 0 | R36: 2.806830017 | S36: 0.01733224843 | T36: 0.2 | U36: 0.2176340154 | V36: 0.7670037438 | W36: 0.000588294743 | X36: 0.000588294743 | Y36: 1.142017206 | Z36: 0.0013042033 | AA36: 0.0013042033 | AB36: 1.284371217 | AC36: 0.006598437695 | AD36: 0.7762882446 | AE36: 1.584 | AF36: 0 | AG36: 2.370014361 | AH36: 2.495733423 | AI36: 0.02491474128 | AJ36: 0.133056 | AK36: 0.1587618433 | AL36: 0.133056 | AM36: 0.256608 | AN36: 0.03151317897 | AO36: 5.28e-05 | AP36: 2.112 | AQ36: 1.841230769 | AR36: 1.672 | AS36: 2.1120528 | AT36: 5.281532696 | AU36: 13.5 | AV36: 0.7187911774 | AW36: 126.968782 | AX36: 12.17212417 | AZ36: 71.87911774 | BA36: 0.2176340154 | BB36: 2.785384204 | BC36: 2.539375641 | BD36: 0.2434424833 | BE36: 0.03151317897
A37: RdsonTop | B37: =Rdson1*1000 -> 4 | C37: mW | D37: Drain-Source Resistance of Top FET | G37: 28 | H37: 24 | I37: 1 | J37: 2.8 | K37: 2.8 | L37: 0.6481481481 | M37: 0.2094256014 | N37: 2.657386897 | O37: 4.128693448 | P37: 1.471306552 | Q37: 0 | R37: 2.903183671 | S37: 0.01854264594 | T37: 0.2 | U37: 0.2188673163 | V37: 0.7671215202 | W37: 0.0005884754267 | X37: 0.0005884754267 | Y37: 1.181301543 | Z37: 0.001395473336 | AA37: 0.001395473336 | AB37: 1.328585163 | AC37: 0.00706055414 | AD37: 0.805039661 | AE37: 1.584 | AF37: 0 | AG37: 2.399488559 | AH37: 2.581344009 | AI37: 0.02665334757 | AJ37: 0.137984 | AK37: 0.1655196783 | AL37: 0.137984 | AM37: 0.266112 | AN37: 0.03371390171 | AO37: 5.28e-05 | AP37: 2.112 | AQ37: 1.841230769 | AR37: 1.672 | AS37: 2.1120528 | AT37: 5.335722204 | AU37: 14 | AV37: 0.724048466 | AW37: 128.7561239 | AX37: 12.66683191 | AZ37: 72.4048466 | BA37: 0.2188673163 | BB37: 2.831120237 | BC37: 2.575122479 | BD37: 0.2533366383 | BE37: 0.03371390171
A38: RdsonTopTc | B38: =RdsonTopTc*1000000 -> 4000 | C38: ppm | D38: Drain to Source Resistance Temp Co | G38: 29 | H38: 24 | I38: 1 | J38: 2.9 | K38: 2.9 | L38: 0.6712962963 | M38: 0.2094645921 | N38: 2.657794837 | O38: 4.228897419 | P38: 1.571102581 | Q38: 0 | R38: 2.999776011 | S38: 0.01979704346 | T38: 0.2 | U38: 0.2201457022 | V38: 0.7672392824 | W38: 0.0005886561165 | X38: 0.0005886561165 | Y38: 1.220688354 | Z38: 0.001490080058 | AA38: 0.001490080058 | AB38: 1.372916543 | AC38: 0.007539599332 | AD38: 0.8337910775 | AE38: 1.584 | AF38: 0 | AG38: 2.428993404 | AH38: 2.66716259 | AI38: 0.02845502513 | AJ38: 0.142912 | AK38: 0.1723478577 | AL38: 0.142912 | AM38: 0.275616 | AN38: 0.03599462447 | AO38: 5.28e-05 | AP38: 2.112 | AQ38: 1.841230769 | AR38: 1.672 | AS38: 2.1120528 | AT38: 5.390141125 | AU38: 14.5 | AV38: 0.7290043801 | AW38: 130.5449982 | AX38: 13.16505688 | AZ38: 72.90043801 | BA38: 0.2201457022 | BB38: 2.876957262 | BC38: 2.610899964 | BD38: 0.2633011377 | BE38: 0.03599462447
A39: QgTop | B39: =Qg_Q1*1000000000 -> 20 | C39: nC | D39: Gate Charge Of Top FET | G39: 30 | H39: 24 | I39: 1 | J39: 3 | K39: 3 | L39: 0.6944444444 | M39: 0.2095035815 | N39: 2.658202729 | O39: 4.329101365 | P39: 1.670898635 | Q39: 0 | R39: 3.096584701 | S39: 0.02109544099 | T39: 0.2 | U39: 0.2214692002 | V39: 0.7673570306 | W39: 0.0005888368124 | X39: 0.0005888368124 | Y39: 1.260168568 | Z39: 0.00158802482 | AA39: 0.00158802482 | AB39: 1.417355162 | AC39: 0.00803558262 | AD39: 0.8625424939 | AE39: 1.584 | AF39: 0 | AG39: 2.45852922 | AH39: 2.753169293 | AI39: 0.03031976463 | AJ39: 0.14784 | AK39: 0.1792467082 | AL39: 0.14784 | AM39: 0.28512 | AN39: 0.03835534725 | AO39: 5.28e-05 | AP39: 2.112 | AQ39: 1.841230769 | AR39: 1.672 | AS39: 2.1120528 | AT39: 5.444790137 | AU39: 15 | AV39: 0.7336832464 | AW39: 132.335421 | AX39: 13.66681541 | AZ39: 73.36832464 | BA39: 0.2214692002 | BB39: 2.922895928 | BC39: 2.64670842 | BD39: 0.2733363082 | BE39: 0.03835534725
A40: QgdTop | B40: =Qgd_Q1*1000000000 -> 4.7 | C40: nC | D40: Gate to Drain Charge | G40: 31 | H40: 24 | I40: 1 | J40: 3.1 | K40: 3.1 | L40: 0.7175925926 | M40: 0.2095425697 | N40: 2.658610572 | O40: 4.429305286 | P40: 1.770694714 | Q40: 0 | R40: 3.193590067 | S40: 0.02243783853 | T40: 0.2 | U40: 0.2228378385 | V40: 0.7674747647 | W40: 0.0005890175144 | X40: 0.0005890175144 | Y40: 1.299734194 | Z40: 0.001689308974 | AA40: 0.001689308974 | AB40: 1.461892041 | AC40: 0.008548513352 | AD40: 0.8912939104 | AE40: 1.584 | AF40: 0 | AG40: 2.488096329 | AH40: 2.839346611 | AI40: 0.03224755671 | AJ40: 0.152768 | AK40: 0.1862165625 | AL40: 0.152768 | AM40: 0.294624 | AN40: 0.04079607006 | AO40: 5.28e-05 | AP40: 2.112 | AQ40: 1.841230769 | AR40: 1.672 | AS40: 2.1120528 | AT40: 5.499669926 | AU40: 15.5 | AV40: 0.7381068395 | AW40: 134.1274084 | AX40: 14.17212413 | AZ40: 73.81068395 | BA40: 0.2228378385 | BB40: 2.968936891 | BC40: 2.682548169 | BD40: 0.2834424825 | BE40: 0.04079607006
A41: QgsTop | B41: =Qgs_Q1*1000000000 -> 3.9 | C41: nC | G41: 32 | H41: =Vin -> 24 | I41: =MODE -> 1 | J41: 3.2 | K41: =Iout*G41/100/Number_of_Phases -> 3.2 | L41: =Vout*K41/(Vin*Efficiency) -> 0.7407407407 | M41: =(Vout+(Rdson2+Rs+Rdcr)*K41)/(Vin+(Rs+Rdson2-Rdson1)*K41) -> 0.2095815565 | N41: =(Vin-(Rdson1+Rdcr)*K41-Vout)*M41/(Fsw*Lf) -> 2.659018366 | O41: 4.529509183 | P41: 1.870490817 | Q41: =IF(MIN(Vin, -P41/(Coss_Q1+Coss_Q2)*0.00000002)<0, 0, MIN(Vin, -P41/(Coss_Q1+Coss_Q2)*0.00000002)) -> 0 | R41: 3.290774715 | S41: =R41^2*Rdcr -> 0.02382423609 | T41: =Core_Loss_Ch1 -> 0.2 | U41: =(T41+S41*(1+Ltc*(Ta-25)))/(1-S41*Ltc*ThetaCa) -> 0.224251646 | V41: 0.7675924847 | W41: 0.0005891982225 | X41: 0.0005891982225 | Y41: 1.339378166 | Z41: 0.001793933873 | AA41: 0.001793933873 | AB41: 1.50651924 | AC41: =Rdson1*AB41^2 -> 0.009078400877 | AD41: =(Vin*K41/2)*Fsw*(Tr_buck+Tf_buck) -> 0.9200453269 | AE41: =(0.5*Coss_Q1*(Vin-Q41)^2-0.5*Coss_Q2*(Vin-Q41)^2+(Qoss_Q2*(Vin-Q41)/Vin)*Vin)*Fsw -> 1.584 | AF41: =IF(K41>N41/2,0,ABS(K41-N41/2)*Vsd_Q1*Deadtime*Fsw) -> 0 | AG41: =(AF41+AE41+AD41+AC41*(1+RdsonTopTc*Ta-RdsonTopTc*25))/(1-AC41*RdsonTopTc*ThetaJA_Q1) -> 2.517695057 | AH41: =SQRT((1-M41))*SQRT(K41^2+(N41^2)/12) -> 2.925679067 | AI41: =Rdson2*AH41^2 -> 0.03423839201 | AJ41: =IF(K41<N41/2,Deadtime*Fsw*IF(VfdSky_Q2>0,0,Vsd_Q2)*(K41+N41/2),2*Deadtime*Fsw*IF(VfdSky_Q2>0,0,Vsd_Q2)*K41) -> 0.157696 | AK41: =(AJ41+AI41*(1+RdsonBotTc*Ta-RdsonBotTc*25))/(1-AI41*RdsonBotTc*ThetaJA_Q2) -> 0.193257759 | AL41: =2*Deadtime*Fsw*IF(VfdSky_Q2>0,VfdSky_Q2,Vsd_Q2)*K41 -> 0.157696 | AM41: =IF(QrrSky_Q2>0,QrrSky_Q2,Qrr_Q2*K41/(Iout/Number_of_Phases))*Fsw*Vin -> 0.304128 | AN41: =Rs*R41^2 -> 0.04331679289 | AO41: =Iq*Vin -> 5.28e-05 | AP41: =IF(Ext_VCC=1, (Qg_Q1+Qg_Q2)*Fsw*VCC, (Qg_Q1+Qg_Q2)*Fsw*Vin) -> 2.112 | AQ41: 1.841230769 | AR41: =(Qg_Q1+Qg_Q2)*Fsw*(Vin-VCC) -> 1.672 | AS41: =SUM(AO41:AP41) -> 2.1120528 | AT41: =SUM(U41,X41,AA41,AG41,AK41,AL41,AM41,AS41,AN41) -> 5.554781187 | AU41: =Vout*K41 -> 16 | AV41: 0.7422947077 | AW41: =ThetaJA_Q1*BC41 -> 135.9209768 | AX41: =ThetaJA_Q2*BD41 -> 14.68099995 | AZ41: 74.22947077 | BA41: =U41 -> 0.224251646 | BB41: =AG41+AK41+AM41 -> 3.015080816 | BC41: =AG41+AM41*0.66 -> 2.718419537 | BD41: =AK41+AM41*0.33 -> 0.293619999 | BE41: =AN41 -> 0.04331679289
A42: RGateTop | B42: =Rgate1 -> 1.2 | C42: W | D42: Gate Resistance | G42: 33 | H42: 24 | I42: 1 | J42: =Iout*G42/100 -> 3.3 | K42: 3.3 | L42: 0.7638888889 | M42: 0.209620542 | N42: 2.659426111 | O42: 4.629713056 | P42: 1.970286944 | Q42: 0 | R42: 3.388123217 | S42: 0.02525463366 | T42: 0.2 | U42: 0.2257106528 | V42: 0.7677101906 | W42: 0.0005893789368 | X42: 0.0005893789368 | Y42: 1.37909422 | Z42: 0.001901900866 | AA42: 0.001901900866 | AB42: 1.551229717 | AC42: 0.00962525454 | AD42: 0.9487967433 | AE42: 1.584 | AF42: 0 | AG42: 2.54732573 | AH42: 3.012152935 | AI42: 0.03629226121 | AJ42: 0.162624 | AK42: 0.2003706419 | AL42: 0.162624 | AM42: =IF(QrrSky_Q2>0,QrrSky_Q2,Qrr_Q2*K42/(Iout/Number_of_Phases))*Fsw*Vin -> 0.313632 | AN42: 0.04591751575 | AO42: 5.28e-05 | AP42: 2.112 | AQ42: 1.841230769 | AR42: 1.672 | AS42: 2.1120528 | AT42: 5.61012462 | AU42: 16.5 | AV42: 0.7462644505 | AW42: 137.7161425 | AX42: 15.1934601 | AZ42: 74.62644505 | BA42: 0.2257106528 | BB42: 3.061328372 | BC42: 2.75432285 | BD42: 0.3038692019 | BE42: 0.04591751575
A43: GfsTop | B43: =Gfs_Q1 -> 55 | C43: S | D43: Transconductance of Top FET | G43: 34 | H43: 24 | I43: 1 | J43: 3.4 | K43: 3.4 | L43: 0.787037037 | M43: 0.2096595263 | N43: 2.659833808 | O43: 4.729916904 | P43: 2.070083096 | Q43: 0 | R43: 3.485621847 | S43: 0.02672903125 | T43: 0.2 | U43: 0.22721489 | V43: 0.7678278824 | W43: 0.000589559657 | X43: 0.000589559657 | Y43: 1.418876777 | Z43: 0.002013211307 | AA43: 0.002013211307 | AB43: 1.596017206 | AC43: 0.01018908369 | AD43: 0.9775481598 | AE43: 1.584 | AF43: 0 | AG43: 2.576988674 | AH43: 3.098755998 | AI43: 0.03840915494 | AJ43: 0.167552 | AK43: 0.2075555617 | AL43: 0.167552 | AM43: 0.323136 | AN43: 0.04859823863 | AO43: 5.28e-05 | AP43: 2.112 | AQ43: 1.841230769 | AR43: 1.672 | AS43: 2.1120528 | AT43: 5.665700935 | AU43: 17 | AV43: 0.7500319557 | AW43: 139.5129217 | AX43: 15.70952208 | AZ43: 75.00319557 | BA43: 0.22721489 | BB43: 3.107680236 | BC43: 2.790258434 | BD43: 0.3141904417 | BE43: 0.04859823863
A44: VthTop | B44: =Vth_Q1 -> 1.6 | C44: V | D44: Threshold Voltage of Top FET | G44: 35 | H44: 24 | I44: 1 | J44: 3.5 | K44: 3.5 | L44: 0.8101851852 | M44: 0.2096985092 | N44: 2.660241455 | O44: 4.830120728 | P44: 2.169879272 | Q44: 0 | R44: 3.583258347 | S44: 0.02824742884 | T44: 0.2 | U44: 0.2287643893 | V44: 0.7679455602 | W44: 0.0005897403834 | X44: 0.0005897403834 | Y44: 1.458720859 | Z44: 0.002127866546 | AA44: 0.002127866546 | AB44: 1.640876113 | AC44: 0.01076989767 | AD44: 1.006299576 | AE44: 1.584 | AF44: 0 | AG44: 2.606684218 | AH44: 3.185477353 | AI44: 0.04058906387 | AJ44: 0.17248 | AK44: 0.2148128746 | AL44: 0.17248 | AM44: 0.33264 | AN44: 0.05135896153 | AO44: 5.28e-05 | AP44: 2.112 | AQ44: 1.841230769 | AR44: 1.672 | AS44: 2.1120528 | AT44: 5.721510851 | AU44: 17.5 | AV44: 0.7536116023 | AW44: 141.3113309 | AX44: 16.22920373 | AZ44: 75.36116023 | BA44: 0.2287643893 | BB44: 3.154137093 | BC44: 2.826226618 | BD44: 0.3245840746 | BE44: 0.05135896153
A45: VspTop | B45: =Vsp_Q1 -> 1.781818182 | C45: V | G45: 36 | H45: 24 | I45: 1 | J45: 3.6 | K45: 3.6 | L45: 0.8333333333 | M45: 0.2097374908 | N45: 2.660649054 | O45: 4.930324527 | P45: 2.269675473 | Q45: 0 | R45: 3.681021749 | S45: 0.02980982645 | T45: 0.2 | U45: 0.2303591838 | V45: 0.7680632238 | W45: 0.0005899211158 | X45: 0.0005899211158 | Y45: 1.498622011 | Z45: 0.002245867932 | AA45: 0.002245867932 | AB45: 1.685801428 | AC45: 0.01136770582 | AD45: 1.035050993 | AE45: 1.584 | AF45: 0 | AG45: 2.636412691 | AH45: 3.272307238 | AI45: 0.04283197864 | AJ45: 0.177408 | AK45: 0.222142943 | AL45: 0.177408 | AM45: 0.342144 | AN45: 0.05419968446 | AO45: 5.28e-05 | AP45: 2.112 | AQ45: 1.841230769 | AR45: 1.672 | AS45: 2.1120528 | AT45: 5.777555092 | AU45: 18 | AV45: 0.7570164355 | AW45: 143.1113866 | AX45: 16.75252315 | AZ45: 75.70164355 | BA45: 0.2303591838 | BB45: 3.200699634 | BC45: 2.862227731 | BD45: 0.335050463 | BE45: 0.05419968446
A46: VsdTop | B46: =Vsd_Q1 -> 0.8 | C46: V | G46: 37 | H46: 24 | I46: 1 | J46: 3.7 | K46: 3.7 | L46: 0.8564814815 | M46: 0.2097764712 | N46: 2.661056604 | O46: 5.030528302 | P46: 2.369471698 | Q46: 0 | R46: 3.778902202 | S46: 0.03141622408 | T46: 0.2 | U46: 0.2319993075 | V46: 0.7681808734 | W46: 0.0005901018543 | X46: 0.0005901018543 | Y46: 1.53857623 | Z46: 0.002367216816 | AA46: 0.002367216816 | AB46: 1.730788657 | AC46: 0.0119825175 | AD46: 1.063802409 | AE46: 1.584 | AF46: 0 | AG46: 2.666174423 | AH46: 3.359236889 | AI46: 0.04513788992 | AJ46: 0.182336 | AK46: 0.2295461356 | AL46: 0.182336 | AM46: 0.351648 | AN46: 0.05712040742 | AO46: 5.28e-05 | AP46: 2.112 | AQ46: 1.841230769 | AR46: 1.672 | AS46: 2.1120528 | AT46: 5.833834392 | AU46: 18.5 | AV46: 0.7602583178 | AW46: 144.9131052 | AX46: 17.27949878 | AZ46: 76.02583178 | BA46: 0.2319993075 | BB46: 3.247368559 | BC46: 2.898262103 | BD46: 0.3455899756 | BE46: 0.05712040742
A47: θJATop | B47: =ThetaJA_Q1 -> 50 | C47: °C/W | D47: Junction to Ambient Resistance | G47: 38 | H47: 24 | I47: 1 | J47: 3.8 | K47: 3.8 | L47: 0.8796296296 | M47: 0.2098154502 | N47: 2.661464106 | O47: 5.130732053 | P47: 2.469267947 | Q47: 0 | R47: 3.876890842 | S47: 0.03306662172 | T47: 0.2 | U47: 0.2336847951 | V47: 0.7682985089 | W47: 0.0005902825988 | X47: 0.0005902825988 | Y47: 1.578579915 | Z47: 0.002491914547 | AA47: 0.002491914547 | AB47: 1.775833751 | AC47: 0.01261434204 | AD47: 1.092553826 | AE47: 1.584 | AF47: 0 | AG47: 2.695969745 | AH47: 3.446258419 | AI47: 0.04750678835 | AJ47: 0.187264 | AK47: 0.237022827 | AL47: 0.187264 | AM47: 0.361152 | AN47: 0.0601211304 | AO47: 5.28e-05 | AP47: 2.112 | AQ47: 1.841230769 | AR47: 1.672 | AS47: 2.1120528 | AT47: 5.890349494 | AU47: 19 | AV47: 0.76334806 | AW47: 146.7165032 | AX47: 17.81014935 | AZ47: 76.334806 | BA47: 0.2336847951 | BB47: 3.294144572 | BC47: 2.934330065 | BD47: 0.356202987 | BE47: 0.0601211304
A48: Low-side FET | B48: Input Value | C48: Units | D48: Description | G48: 39 | H48: 24 | I48: 1 | J48: 3.9 | K48: 3.9 | L48: 0.9027777778 | M48: 0.209854428 | N48: 2.661871558 | O48: 5.230935779 | P48: 2.569064221 | Q48: 0 | R48: 3.974979667 | S48: 0.03476101937 | T48: 0.2 | U48: 0.2354156825 | V48: 0.7684161303 | W48: 0.0005904633494 | X48: 0.0005904633494 | Y48: 1.618629814 | Z48: 0.002619962473 | AA48: 0.002619962473 | AB48: 1.820933057 | AC48: 0.01326318879 | AD48: 1.121305242 | AE48: 1.584 | AF48: 0 | AG48: 2.725798988 | AH48: 3.533364707 | AI48: 0.04993866461 | AJ48: 0.192192 | AK48: 0.2445733984 | AL48: 0.192192 | AM48: 0.370656 | AN48: 0.0632018534 | AO48: 5.28e-05 | AP48: 2.112 | AQ48: 1.841230769 | AR48: 1.672 | AS48: 2.1120528 | AT48: 5.947101148 | AU48: 19.5 | AV48: 0.7662955354 | AW48: 148.5215974 | AX48: 18.34449392 | AZ48: 76.62955354 | BA48: 0.2354156825 | BB48: 3.341028387 | BC48: 2.970431948 | BD48: 0.3668898784 | BE48: 0.0632018534
A49: RdsonBot | B49: =Rdson2*1000 -> 4 | C49: mW | D49: Drain-Source Resistance of Low-side FET | G49: 40 | H49: 24 | I49: 1 | J49: 4 | K49: 4 | L49: 0.9259259259 | M49: 0.2098934044 | N49: 2.662278962 | O49: 5.331139481 | P49: 2.668860519 | Q49: 0 | R49: 4.073161439 | S49: 0.03649941703 | T49: 0.2 | U49: 0.2371920066 | V49: 0.7685337377 | W49: 0.0005906441059 | X49: 0.0005906441059 | Y49: 1.658722986 | Z49: 0.002751361945 | AA49: 0.002751361945 | AB49: 1.866083271 | AC49: 0.01392906709 | AD49: 1.150056659 | AE49: 1.584 | AF49: 0 | AG49: 2.755662487 | AH49: 3.620549314 | AI49: 0.05243350933 | AJ49: 0.19712 | AK49: 0.2521982371 | AL49: 0.19712 | AM49: 0.38016 | AN49: 0.06636257642 | AO49: 5.28e-05 | AP49: 2.112 | AQ49: 1.841230769 | AR49: 1.672 | AS49: 2.1120528 | AT49: 6.004090113 | AU49: 20 | AV49: 0.769109779 | AW49: 150.3284044 | AX49: 18.88255185 | AZ49: 76.9109779 | BA49: 0.2371920066 | BB49: 3.388020724 | BC49: 3.006568087 | BD49: 0.3776510371 | BE49: 0.06636257642
A50: RdsonBotTc | B50: =RdsonBotTc*1000000 -> 4000 | C50: ppm | D50: Drain To Source Resitance Temp Co | G50: 41 | H50: 24 | I50: 1 | J50: 4.1 | K50: 4.1 | L50: 0.9490740741 | M50: 0.2099323795 | N50: 2.662686317 | O50: 5.431343158 | P50: 2.768656842 | Q50: 0 | R50: 4.171429595 | S50: 0.03828181471 | T50: 0.2 | U50: 0.2390138053 | V50: 0.7686513309 | W50: 0.0005908248685 | X50: 0.0005908248685 | Y50: 1.698856765 | Z50: 0.002886114308 | AA50: 0.002886114308 | AB50: 1.911281395 | AC50: 0.01461198628 | AD50: 1.178808075 | AE50: 1.584 | AF50: 0 | AG50: 2.785560576 | AH50: 3.7078064 | AI50: 0.05499131319 | AJ50: 0.202048 | AK50: 0.2598977368 | AL50: 0.202048 | AM50: 0.389664 | AN50: 0.06960329947 | AO50: 5.28e-05 | AP50: 2.112 | AQ50: 1.841230769 | AR50: 1.672 | AS50: 2.1120528 | AT50: 6.061317157 | AU50: 20.5 | AV50: 0.7717990745 | AW50: 152.1369408 | AX50: 19.42434284 | AZ50: 77.17990745 | BA50: 0.2390138053 | BB50: 3.435122313 | BC50: 3.042738816 | BD50: 0.3884868568 | BE50: 0.06960329947
A51: QgBot | B51: =Qg_Q2*1000000000 -> 20 | C51: nC | D51: Gate Charge Of Top FET | G51: 42 | H51: 24 | I51: 1 | J51: 4.2 | K51: 4.2 | L51: 0.9722222222 | M51: 0.2099713534 | N51: 2.663093623 | O51: 5.531546812 | P51: 2.868453188 | Q51: 0 | R51: 4.269778172 | S51: 0.0401082124 | T51: 0.2 | U51: 0.2408811173 | V51: 0.7687689101 | W51: 0.0005910056372 | X51: 0.0005910056372 | Y51: 1.739028726 | Z51: 0.003024220911 | AA51: 0.003024220911 | AB51: 1.956524707 | AC51: 0.01531195571 | AD51: 1.207559492 | AE51: 1.584 | AF51: 0 | AG51: 2.81549359 | AH51: 3.795130658 | AI51: 0.05761206684 | AJ51: 0.206976 | AK51: 0.2676722977 | AL51: 0.206976 | AM51: 0.399168 | AN51: 0.07292402255 | AO51: 5.28e-05 | AP51: 2.112 | AQ51: 1.841230769 | AR51: 1.672 | AS51: 2.1120528 | AT51: 6.118783054 | AU51: 21 | AV51: 0.7743710313 | AW51: 153.9472235 | AX51: 19.96988689 | AZ51: 77.43710313 | BA51: 0.2408811173 | BB51: 3.482333888 | BC51: 3.07894447 | BD51: 0.3993977377 | BE51: 0.07292402255
A52: RGateBot | B52: =Rgate2 -> 1.2 | C52: W | D52: Gate Resistance | G52: 43 | H52: 24 | I52: 1 | J52: 4.3 | K52: 4.3 | L52: 0.9953703704 | M52: 0.2100103259 | N52: 2.663500881 | O52: 5.63175044 | P52: 2.96824956 | Q52: 0 | R52: 4.368201737 | S52: 0.04197861011 | T52: 0.2 | U52: 0.2427939824 | V52: 0.7688864752 | W52: 0.0005911864118 | X52: 0.0005911864118 | Y52: 1.779236663 | Z52: 0.003165683102 | AA52: 0.003165683102 | AB52: 2.001810725 | AC52: 0.01602898471 | AD52: 1.236310908 | AE52: 1.584 | AF52: 0 | AG52: 2.845461866 | AH52: 3.882517255 | AI52: 0.06029576094 | AJ52: 0.211904 | AK52: 0.2755223266 | AL52: 0.211904 | AM52: 0.408672 | AN52: 0.07632474565 | AO52: 5.28e-05 | AP52: 2.112 | AQ52: 1.841230769 | AR52: 1.672 | AS52: 2.1120528 | AT52: 6.17648859 | AU52: 21.5 | AV52: 0.7768326509 | AW52: 155.7592693 | AX52: 20.51920433 | AZ52: 77.68326509 | BA52: 0.2427939824 | BB52: 3.529656192 | BC52: 3.115185386 | BD52: 0.4103840866 | BE52: 0.07632474565
A53: VsdBot | B53: =Vsd_Q2 -> 0.8 | C53: V | D53: Diode Forward Voltage of Bottom FET Body Diode | G53: 44 | H53: 24 | I53: 1 | J53: 4.4 | K53: 4.4 | L53: 1.018518519 | M53: 0.2100492972 | N53: 2.663908089 | O53: 5.731954045 | P53: 3.068045955 | Q53: 0 | R53: 4.466695332 | S53: 0.04389300782 | T53: 0.2 | U53: 0.2447524415 | V53: 0.7690040262 | W53: 0.0005913671924 | X53: 0.0005913671924 | Y53: 1.819478559 | Z53: 0.003310502226 | AA53: 0.003310502226 | AB53: 2.047137186 | AC53: 0.01676308263 | AD53: 1.265062324 | AE53: 1.584 | AF53: 0 | AG53: 2.875465741 | AH53: 3.96996178 | AI53: 0.06304238614 | AJ53: 0.216832 | AK53: 0.2834482368 | AL53: 0.216832 | AM53: 0.418176 | AN53: 0.07980546877 | AO53: 5.28e-05 | AP53: 2.112 | AQ53: 1.841230769 | AR53: 1.672 | AS53: 2.1120528 | AT53: 6.234434558 | AU53: 22 | AV53: 0.7791903874 | AW53: 157.5730951 | AX53: 21.07231584 | AZ53: 77.91903874 | BA53: 0.2447524415 | BB53: 3.577089978 | BC53: 3.151461901 | BD53: 0.4214463168 | BE53: 0.07980546877
A54: QrrBot | B54: =Qrr_Q2*1000000000 -> 18 | C54: nC | D54: Reverse Recovery Charge of Body Diode | G54: 45 | H54: 24 | I54: 1 | J54: 4.5 | K54: 4.5 | L54: 1.041666667 | M54: 0.2100882671 | N54: 2.664315249 | O54: 5.832157625 | P54: 3.167842375 | Q54: 0 | R54: 4.565254427 | S54: 0.04585140555 | T54: 0.2 | U54: 0.2467565363 | V54: 0.7691215632 | W54: 0.0005915479789 | X54: 0.0005915479789 | Y54: 1.859752572 | Z54: 0.003458679629 | AA54: 0.003458679629 | AB54: 2.092502019 | AC54: 0.0175142588 | AD54: 1.293813741 | AE54: 1.584 | AF54: 0 | AG54: 2.905505555 | AH54: 4.057460201 | AI54: 0.06585193312 | AJ54: 0.22176 | AK54: 0.2914504482 | AL54: 0.22176 | AM54: 0.42768 | AN54: 0.08336619192 | AO54: 5.28e-05 | AP54: 2.112 | AQ54: 1.841230769 | AR54: 1.672 | AS54: 2.1120528 | AT54: 6.292621759 | AU54: 22.5 | AV54: 0.7814501989 | AW54: 159.3887177 | AX54: 21.62924241 | AZ54: 78.14501989 | BA54: 0.2467565363 | BB54: 3.624636003 | BC54: 3.187774355 | BD54: 0.4325848482 | BE54: 0.08336619192
A55: TrrBot | B55: =Trr_Q2*1000000000 -> 40 | C55: ns | D55: Reverse Recovery Time of Body Diode | G55: 46 | H55: 24 | I55: 1 | J55: 4.6 | K55: 4.6 | L55: 1.064814815 | M55: 0.2101272358 | N55: 2.66472236 | O55: 5.93236118 | P55: 3.26763882 | Q55: 0 | R55: 4.663874867 | S55: 0.0478538033 | T55: 0.2 | U55: 0.2488063096 | V55: 0.769239086 | W55: 0.0005917287715 | X55: 0.0005917287715 | Y55: 1.900057014 | Z55: 0.003610216658 | AA55: 0.003610216658 | AB55: 2.137903328 | AC55: 0.01828252256 | AD55: 1.322565157 | AE55: 1.584 | AF55: 0 | AG55: 2.935581647 | AH55: 4.145008822 | AI55: 0.06872439252 | AJ55: 0.226688 | AK55: 0.2995293876 | AL55: 0.226688 | AM55: 0.437184 | AN55: 0.08700691509 | AO55: 5.28e-05 | AP55: 2.112 | AQ55: 1.841230769 | AR55: 1.672 | AS55: 2.1120528 | AT55: 6.351051005 | AU55: 23 | AV55: 0.783617595 | AW55: 161.2061544 | AX55: 22.19000538 | AZ55: 78.3617595 | BA55: 0.2488063096 | BB55: 3.672295035 | BC55: 3.224123087 | BD55: 0.4438001076 | BE55: 0.08700691509
A56: θJABot | B56: =ThetaJA_Q2 -> 50 | C56: °C/W | D56: Junction to Ambient Resistance | G56: 47 | H56: 24 | I56: 1 | J56: 4.7 | K56: 4.7 | L56: 1.087962963 | M56: 0.2101662031 | N56: 2.665129423 | O56: 6.032564711 | P56: 3.367435289 | Q56: 0 | R56: 4.762552842 | S56: 0.04990020105 | T56: 0.2 | U56: 0.2509018051 | V56: 0.7693565948 | W56: 0.00059190957 | X56: 0.00059190957 | Y56: 1.940390336 | Z56: 0.003765114658 | AA56: 0.003765114658 | AB56: 2.183339372 | AC56: 0.01906788326 | AD56: 1.351316574 | AE56: 1.584 | AF56: 0 | AG56: 2.96569436 | AH56: 4.232604252 | AI56: 0.07165975502 | AJ56: 0.231616 | AK56: 0.3076854884 | AL56: 0.231616 | AM56: 0.446688 | AN56: 0.09072763828 | AO56: 5.28e-05 | AP56: 2.112 | AQ56: 1.841230769 | AR56: 1.672 | AS56: 2.1120528 | AT56: 6.409723116 | AU56: 23.5 | AV56: 0.7856976779 | AW56: 163.025422 | AX56: 22.75462642 | AZ56: 78.56976779 | BA56: 0.2509018051 | BB56: 3.720067848 | BC56: 3.26050844 | BD56: 0.4550925284 | BE56: 0.09072763828
A57: Bottom Schottky | B57: Input Value | C57: Units | D57: Std Units | G57: 48 | H57: 24 | I57: 1 | J57: 4.8 | K57: 4.8 | L57: 1.111111111 | M57: 0.2102051692 | N57: 2.665536436 | O57: 6.132768218 | P57: 3.467231782 | Q57: 0 | R57: 4.861284848 | S57: 0.05199059882 | T57: 0.2 | U57: 0.2530430677 | V57: 0.7694740896 | W57: 0.0005920903745 | X57: 0.0005920903745 | Y57: 1.980751113 | Z57: 0.003923374973 | AA57: 0.003923374973 | AB57: 2.228808551 | AC57: 0.01987035022 | AD57: 1.38006799 | AE57: 1.584 | AF57: 0 | AG57: 2.995844035 | AH57: 4.320243375 | AI57: 0.07465801128 | AJ57: 0.236544 | AK57: 0.315919191 | AL57: 0.236544 | AM57: 0.456192 | AN57: 0.0945283615 | AO57: 5.28e-05 | AP57: 2.112 | AQ57: 1.841230769 | AR57: 1.672 | AS57: 2.1120528 | AT57: 6.46863892 | AU57: 24 | AV57: 0.7876951794 | AW57: 164.8465377 | AX57: 23.32312755 | AZ57: 78.76951794 | BA57: 0.2530430677 | BB57: 3.767955226 | BC57: 3.296930755 | BD57: 0.466462551 | BE57: 0.0945283615
A58: VfdSky | B58: =VfdSky_Q2 -> 0 | C58: V | D58: Diode Forward Voltage | G58: 49 | H58: 24 | I58: 1 | J58: 4.9 | K58: 4.9 | L58: 1.134259259 | M58: 0.210244134 | N58: 2.665943401 | O58: 6.232971701 | P58: 3.567028299 | Q58: 0 | R58: 4.960067659 | S58: 0.05412499661 | T58: 0.2 | U58: 0.2552301431 | V58: 0.7695915702 | W58: 0.0005922711849 | X58: 0.0005922711849 | Y58: 2.021138033 | Z58: 0.004084998948 | AA58: 0.004084998948 | AB58: 2.274309389 | AC58: 0.02068993279 | AD58: 1.408819407 | AE58: 1.584 | AF58: 0 | AG58: 3.026031015 | AH58: 4.407923319 | AI58: 0.07771915195 | AJ58: 0.241472 | AK58: 0.3242309427 | AL58: 0.241472 | AM58: 0.465696 | AN58: 0.09840908474 | AO58: 5.28e-05 | AP58: 2.112 | AQ58: 1.841230769 | AR58: 1.672 | AS58: 2.1120528 | AT58: 6.527799256 | AU58: 24.5 | AV58: 0.7896144937 | AW58: 166.6695188 | AX58: 23.89553114 | AZ58: 78.96144937 | BA58: 0.2552301431 | BB58: 3.815957958 | BC58: 3.333390375 | BD58: 0.4779106227 | BE58: 0.09840908474
A59: QrrSky | B59: =QrrSky_Q2*1000000000 -> 0 | C59: nC | D59: Diode Reverse Recovery Charge | G59: 50 | H59: 24 | I59: 1 | J59: 5 | K59: 5 | L59: 1.157407407 | M59: 0.2102830974 | N59: 2.666350317 | O59: 6.333175159 | P59: 3.666824841 | Q59: 0 | R59: 5.058898299 | S59: 0.0563033944 | T59: 0.2 | U59: 0.257463078 | V59: 0.7697090368 | W59: 0.0005924520013 | X59: 0.0005924520013 | Y59: 2.061549885 | Z59: 0.004249987927 | AA59: 0.004249987927 | AB59: 2.319840528 | AC59: 0.02152664031 | AD59: 1.437570823 | AE59: 1.584 | AF59: 0 | AG59: 3.056255647 | AH59: 4.495641436 | AI59: 0.0808431677 | AJ59: 0.2464 | AK59: 0.332621198 | AL59: 0.2464 | AM59: 0.4752 | AN59: 0.102369808 | AO59: 5.28e-05 | AP59: 2.112 | AQ59: 1.841230769 | AR59: 1.672 | AS59: 2.1120528 | AT59: 6.587204971 | AU59: 25 | AV59: 0.7914597073 | AW59: 168.4943823 | AX59: 24.4718599 | AZ59: 79.14597073 | BA59: 0.257463078 | BB59: 3.864076845 | BC59: 3.369887647 | BD59: 0.489437198 | BE59: 0.102369808
A60: Ireverse | B60: =Ireverse -> 0 | C60: mA | D60: Reverse Leakage Current | G60: 51 | H60: 24 | I60: 1 | J60: 5.1 | K60: 5.1 | L60: 1.180555556 | M60: 0.2103220596 | N60: 2.666757185 | O60: 6.433378592 | P60: 3.766621408 | Q60: 0 | R60: 5.157774018 | S60: 0.05852579221 | T60: 0.2 | U60: 0.2597419203 | V60: 0.7698264893 | W60: 0.0005926328236 | X60: 0.0005926328236 | Y60: 2.10198555 | Z60: 0.004418343253 | AA60: 0.004418343253 | AB60: 2.365400711 | AC60: 0.0223804821 | AD60: 1.46632224 | AE60: 1.584 | AF60: 0 | AG60: 3.086518275 | AH60: 4.583395281 | AI60: 0.08403004919 | AJ60: 0.251328 | AK60: 0.3410904181 | AL60: 0.251328 | AM60: 0.484704 | AN60: 0.1064105313 | AO60: 5.28e-05 | AP60: 2.112 | AQ60: 1.841230769 | AR60: 1.672 | AS60: 2.1120528 | AT60: 6.646856921 | AU60: 25.5 | AV60: 0.7932346252 | AW60: 170.3211458 | AX60: 25.05213691 | AZ60: 79.32346252 | BA60: 0.2597419203 | BB60: 3.912312693 | BC60: 3.406422915 | BD60: 0.5010427381 | BE60: 0.1064105313
A61: Controller | B61: Input Value | C61: Units | D61: Std Units | G61: 52 | H61: 24 | I61: 1 | J61: 5.2 | K61: 5.2 | L61: 1.203703704 | M61: 0.2103610204 | N61: 2.667164003 | O61: 6.533582002 | P61: 3.866417998 | Q61: 0 | R61: 5.256692273 | S61: 0.06079219003 | T61: 0.2 | U61: 0.2620667188 | V61: 0.7699439277 | W61: 0.0005928136518 | X61: 0.0005928136518 | Y61: 2.142443994 | Z61: 0.00459006627 | AA61: 0.00459006627 | AB61: 2.410988776 | AC61: 0.02325146751 | AD61: 1.495073656 | AE61: 1.584 | AF61: 0 | AG61: 3.116819248 | AH61: 4.671182588 | AI61: 0.0872797871 | AJ61: 0.256256 | AK61: 0.3496390718 | AL61: 0.256256 | AM61: 0.494208 | AN61: 0.1105312546 | AO61: 5.28e-05 | AP61: 2.112 | AQ61: 1.841230769 | AR61: 1.672 | AS61: 2.1120528 | AT61: 6.706755973 | AU61: 26 | AV61: 0.7949427947 | AW61: 172.1498264 | AX61: 25.63638559 | AZ61: 79.49427947 | BA61: 0.2620667188 | BB61: 3.96066632 | BC61: 3.442996528 | BD61: 0.5127277118 | BE61: 0.1105312546
A62: θJA | B62: 30 | C62: °C/W | D62: Junction to Ambient Resistance | G62: 53 | H62: 24 | I62: 1 | J62: 5.3 | K62: 5.3 | L62: 1.226851852 | M62: 0.21039998 | N62: 2.667570773 | O62: 6.633785387 | P62: 3.966214613 | Q62: 0 | R62: 5.355650706 | S62: 0.06310258787 | T62: 0.2 | U62: 0.2644375232 | V62: 0.770061352 | W62: 0.0005929944859 | X62: 0.0005929944859 | Y62: 2.182924259 | Z62: 0.004765158319 | AA62: 0.004765158319 | AB62: 2.456603645 | AC62: 0.02413960587 | AD62: 1.523825073 | AE62: 1.584 | AF62: 0 | AG62: 3.147158914 | AH62: 4.759001263 | AI62: 0.09059237208 | AJ62: 0.261184 | AK62: 0.3582676351 | AL62: 0.261184 | AM62: 0.503712 | AN62: 0.1147319779 | AO62: 5.28e-05 | AP62: 2.112 | AQ62: 1.841230769 | AR62: 1.672 | AS62: 2.1120528 | AT62: 6.766903003 | AU62: 26.5 | AV62: 0.7965875272 | AW62: 173.9804417 | AX62: 26.22462975 | AZ62: 79.65875272 | BA62: 0.2644375232 | BB62: 4.009138549 | BC62: 3.479608834 | BD62: 0.5244925951 | BE62: 0.1147319779
A63: Theta Ja | B63: 2 | C63: °C/W | D63: Junction to Ambient Resistance | G63: 54 | H63: 24 | I63: 1 | J63: 5.4 | K63: 5.4 | L63: 1.25 | M63: 0.2104389383 | N63: 2.667977495 | O63: 6.733988747 | P63: 4.066011253 | Q63: 0 | R63: 5.454647131 | S63: 0.06545698572 | T63: 0.2 | U63: 0.2668543844 | V63: 0.7701787623 | W63: 0.0005931753259 | X63: 0.0005931753259 | Y63: 2.223425452 | Z63: 0.004943620743 | AA63: 0.004943620743 | AB63: 2.502244318 | AC63: 0.02504490651 | AD63: 1.552576489 | AE63: 1.584 | AF63: 0 | AG63: 3.177537622 | AH63: 4.846849358 | AI63: 0.0939677948 | AJ63: 0.266112 | AK63: 0.366976591 | AL63: 0.266112 | AM63: 0.513216 | AN63: 0.1190127013 | AO63: 5.28e-05 | AP63: 2.112 | AQ63: 1.841230769 | AR63: 1.672 | AS63: 2.1120528 | AT63: 6.827298895 | AU63: 27 | AV63: 0.7981719168 | AW63: 175.8130091 | AX63: 26.81689355 | AZ63: 79.81719168 | BA63: 0.2668543844 | BB63: 4.057730213 | BC63: 3.516260182 | BD63: 0.536337871 | BE63: 0.1190127013
G64: 55 | H64: 24 | I64: 1 | J64: 5.5 | K64: 5.5 | L64: 1.273148148 | M64: 0.2104778953 | N64: 2.668384167 | O64: 6.834192083 | P64: 4.165807917 | Q64: 0 | R64: 5.553679516 | S64: 0.06785538358 | T64: 0.2 | U64: 0.2693173542 | V64: 0.7702961585 | W64: 0.0005933561719 | X64: 0.0005933561719 | Y64: 2.263946749 | Z64: 0.005125454883 | AA64: 0.005125454883 | AB64: 2.547909867 | AC64: 0.02596737876 | AD64: 1.581327906 | AE64: 1.584 | AF64: 0 | AG64: 3.207955725 | AH64: 4.934725067 | AI64: 0.09740604593 | AJ64: 0.27104 | AK64: 0.3757664304 | AL64: 0.27104 | AM64: 0.52272 | AN64: 0.1233734247 | AO64: 5.28e-05 | AP64: 2.112 | AQ64: 1.841230769 | AR64: 1.672 | AS64: 2.1120528 | AT64: 6.887944545 | AU64: 27.5 | AV64: 0.7996988585 | AW64: 177.6475462 | AX64: 27.41320152 | AZ64: 79.96988585 | BA64: 0.2693173542 | BB64: 4.106442155 | BC64: 3.552950925 | BD64: 0.5482640304 | BE64: 0.1233734247
G65: 56 | H65: 24 | I65: 1 | J65: 5.6 | K65: 5.6 | L65: 1.296296296 | M65: 0.2105168509 | N65: 2.668790791 | O65: 6.934395395 | P65: 4.265604605 | Q65: 0 | R65: 5.652745972 | S65: 0.07029778145 | T65: 0.2 | U65: 0.2718264854 | V65: 0.7704135407 | W65: 0.0005935370237 | X65: 0.0005935370237 | Y65: 2.304487379 | Z65: 0.005310662081 | AA65: 0.005310662081 | AB65: 2.593599428 | AC65: 0.02690703196 | AD65: 1.610079322 | AE65: 1.584 | AF65: 0 | AG65: 3.238413574 | AH65: 5.022626707 | AI65: 0.1009071161 | AJ65: 0.275968 | AK65: 0.3846376514 | AL65: 0.275968 | AM65: 0.532224 | AN65: 0.1278141481 | AO65: 5.28e-05 | AP65: 2.112 | AQ65: 1.841230769 | AR65: 1.672 | AS65: 2.1120528 | AT65: 6.948840857 | AU65: 28 | AV65: 0.8011710636 | AW65: 179.4840707 | AX65: 28.01357857 | AZ65: 80.11710636 | BA65: 0.2718264854 | BB65: 4.155275225 | BC65: 3.589681414 | BD65: 0.5602715714 | BE65: 0.1278141481
A66: Outputs | G66: 57 | H66: 24 | I66: 1 | J66: 5.7 | K66: 5.7 | L66: 1.319444444 | M66: 0.2105558053 | N66: 2.669197366 | O66: 7.034598683 | P66: 4.365401317 | Q66: 0 | R66: 5.751844737 | S66: 0.07278417934 | T66: 0.2 | U66: 0.2743818319 | V66: 0.7705309088 | W66: 0.0005937178814 | X66: 0.0005937178814 | Y66: 2.345046626 | Z66: 0.005499243678 | AA66: 0.005499243678 | AB66: 2.639312195 | AC66: 0.02786387545 | AD66: 1.638830738 | AE66: 1.584 | AF66: 0 | AG66: 3.268911523 | AH66: 5.110552712 | AI66: 0.1044709961 | AJ66: 0.280896 | AK66: 0.3935907598 | AL66: 0.280896 | AM66: 0.541728 | AN66: 0.1323348715 | AO66: 5.28e-05 | AP66: 2.112 | AQ66: 1.841230769 | AR66: 1.672 | AS66: 2.1120528 | AT66: 7.009988747 | AU66: 28.5 | AV66: 0.8025910738 | AW66: 181.3226001 | AX66: 28.61804999 | AZ66: 80.25910738 | BA66: 0.2743818319 | BB66: 4.204230282 | BC66: 3.626452003 | BD66: 0.5723609998 | BE66: 0.1323348715
A67: Design | B67: Value | C67: Units | G67: 58 | H67: 24 | I67: 1 | J67: 5.8 | K67: 5.8 | L67: 1.342592593 | M67: 0.2105947584 | N67: 2.669603892 | O67: 7.134801946 | P67: 4.465198054 | Q67: 0 | R67: 5.850974171 | S67: 0.07531457724 | T67: 0.2 | U67: 0.2769834485 | V67: 0.7706482628 | W67: 0.0005938987449 | X67: 0.0005938987449 | Y67: 2.385623821 | Z67: 0.005691201013 | AA67: 0.005691201013 | AB67: 2.685047418 | AC67: 0.02883791854 | AD67: 1.667582155 | AE67: 1.584 | AF67: 0 | AG67: 3.299449927 | AH67: 5.198501622 | AI67: 0.1080976764 | AJ67: 0.285824 | AK67: 0.4026262693 | AL67: 0.285824 | AM67: 0.551232 | AN67: 0.136935595 | AO67: 5.28e-05 | AP67: 2.112 | AQ67: 1.841230769 | AR67: 1.672 | AS67: 2.1120528 | AT67: 7.07138914 | AU67: 29 | AV67: 0.8039612749 | AW67: 183.1631524 | AX67: 29.22664146 | AZ67: 80.39612749 | BA67: 0.2769834485 | BB67: 4.253308196 | BC67: 3.663263047 | BD67: 0.5845328293 | BE67: 0.136935595
A68: Dmax | B68: =D1_Vinmin -> 0.5555555556 | C68: index | G68: 59 | H68: 24 | I68: 1 | J68: 5.9 | K68: 5.9 | L68: 1.365740741 | M68: 0.2106337102 | N68: 2.670010369 | O68: 7.235005185 | P68: 4.564994815 | Q68: 0 | R68: 5.950132739 | S68: 0.07788897515 | T68: 0.2 | U68: 0.2796313914 | V68: 0.7707656027 | W68: 0.0005940796143 | X68: 0.0005940796143 | Y68: 2.426218339 | Z68: 0.005886535427 | AA68: 0.005886535427 | AB68: 2.730804395 | AC68: 0.02982917058 | AD68: 1.696333571 | AE68: 1.584 | AF68: 0 | AG68: 3.330029143 | AH68: 5.286472072 | AI68: 0.1117871479 | AJ68: 0.290752 | AK68: 0.411744701 | AL68: 0.290752 | AM68: 0.560736 | AN68: 0.1416163185 | AO68: 5.28e-05 | AP68: 2.112 | AQ68: 1.841230769 | AR68: 1.672 | AS68: 2.1120528 | AT68: 7.133042969 | AU68: 29.5 | AV68: 0.8052839079 | AW68: 185.0057452 | AX68: 29.83937905 | AZ68: 80.52839079 | BA68: 0.2796313914 | BB68: 4.302509845 | BC68: 3.700114903 | BD68: 0.596787581 | BE68: 0.1416163185
A69: Dprime | B69: =1-B68 -> 0.4444444444 | C69: index | G69: 60 | H69: 24 | I69: 1 | J69: 6 | K69: 6 | L69: 1.388888889 | M69: 0.2106726607 | N69: 2.670416798 | O69: 7.335208399 | P69: 4.664791601 | Q69: 0 | R69: 6.04931901 | S69: 0.08050737308 | T69: 0.2 | U69: 0.2823257172 | V69: 0.7708829286 | W69: 0.0005942604896 | X69: 0.0005942604896 | Y69: 2.466829597 | Z69: 0.006085248259 | AA69: 0.006085248259 | AB69: 2.776582472 | AC69: 0.03083764089 | AD69: 1.725084988 | AE69: 1.584 | AF69: 0 | AG69: 3.360649529 | AH69: 5.374462789 | AI69: 0.1155394011 | AJ69: 0.29568 | AK69: 0.4209465843 | AL69: 0.29568 | AM69: 0.57024 | AN69: 0.146377042 | AO69: 5.28e-05 | AP69: 2.112 | AQ69: 1.841230769 | AR69: 1.672 | AS69: 2.1120528 | AT69: 7.194951182 | AU69: 30 | AV69: 0.8065610801 | AW69: 186.8503965 | AX69: 30.45628922 | AZ69: 80.65610801 | BA69: 0.2823257172 | BB69: 4.351836114 | BC69: 3.737007929 | BD69: 0.6091257843 | BE69: 0.146377042
A70: Ipp | B70: =Iripple_Vinnom -> 2.674297294 | C70: A | G70: 61 | H70: 24 | I70: 1 | J70: 6.1 | K70: 6.1 | L70: 1.412037037 | M70: 0.2107116099 | N70: 2.670823178 | O70: 7.435411589 | P70: 4.764588411 | Q70: 0 | R70: 6.148531643 | S70: 0.08316977102 | T70: 0.2 | U70: 0.2850664842 | V70: 0.7710002404 | W70: 0.0005944413707 | X70: 0.0005944413707 | Y70: 2.507457048 | Z70: 0.006287340847 | AA70: 0.006287340847 | AB70: 2.822381034 | AC70: 0.0318633388 | AD70: 1.753836404 | AE70: 1.584 | AF70: 0 | AG70: 3.391311444 | AH70: 5.462472578 | AI70: 0.1193544267 | AJ70: 0.300608 | AK70: 0.4302324563 | AL70: 0.300608 | AM70: 0.579744 | AN70: 0.1512177655 | AO70: 5.28e-05 | AP70: 2.112 | AQ70: 1.841230769 | AR70: 1.672 | AS70: 2.1120528 | AT70: 7.257114732 | AU70: 30.5 | AV70: 0.807794775 | AW70: 188.6971242 | AX70: 31.07739882 | AZ70: 80.7794775 | BA70: 0.2850664842 | BB70: 4.401287901 | BC70: 3.773942484 | BD70: 0.6215479763 | BE70: 0.1512177655
A71: Top FET | B71: Value | C71: Units | G71: 62 | H71: 24 | I71: 1 | J71: 6.2 | K71: 6.2 | L71: 1.435185185 | M71: 0.2107505578 | N71: 2.671229509 | O71: 7.535614755 | P71: 4.864385245 | Q71: 0 | R71: 6.247769383 | S71: 0.08587616897 | T71: 0.2 | U71: 0.2878537512 | V71: 0.7711175381 | W71: 0.0005946222576 | X71: 0.0005946222576 | Y71: 2.548100181 | Z71: 0.006492814531 | AA71: 0.006492814531 | AB71: 2.868199507 | AC71: 0.03290627365 | AD71: 1.782587821 | AE71: 1.584 | AF71: 0 | AG71: 3.422015249 | AH71: 5.550500324 | AI71: 0.1232322154 | AJ71: 0.305536 | AK71: 0.4396028623 | AL71: 0.305536 | AM71: 0.589248 | AN71: 0.156138489 | AO71: 5.28e-05 | AP71: 2.112 | AQ71: 1.841230769 | AR71: 1.672 | AS71: 2.1120528 | AT71: 7.319534588 | AU71: 31 | AV71: 0.808986861 | AW71: 190.5459464 | AX71: 31.70273512 | AZ71: 80.8986861 | BA71: 0.2878537512 | BB71: 4.450866111 | BC71: 3.810918929 | BD71: 0.6340547023 | BE71: 0.156138489
A72: Tr | B72: =(Qgd_Q1+Qgs_Q1/2)*(RdsonDRT+Rgate1)/(VCC-Vsp_Q1)*1000000000 -> 4.546045198 | C72: ns | D72: Turn on of MOSFET -> Rise time of current | G72: 63 | H72: 24 | I72: 1 | J72: 6.3 | K72: 6.3 | L72: 1.458333333 | M72: 0.2107895044 | N72: 2.671635792 | O72: 7.635817896 | P72: 4.964182104 | Q72: 0 | R72: 6.34703105 | S72: 0.08862656693 | T72: 0.2 | U72: 0.2906875783 | V72: 0.7712348218 | W72: 0.0005948031504 | X72: 0.0005948031504 | Y72: 2.588758515 | Z72: 0.006701670648 | AA72: 0.006701670648 | AB72: 2.914037352 | AC72: 0.03396645476 | AD72: 1.811339237 | AE72: 1.584 | AF72: 0 | AG72: 3.452761304 | AH72: 5.638544977 | AI72: 0.1271727578 | AJ72: 0.310464 | AK72: 0.4490583558 | AL72: 0.310464 | AM72: 0.598752 | AN72: 0.1611392126 | AO72: 5.28e-05 | AP72: 2.112 | AQ72: 1.841230769 | AR72: 1.672 | AS72: 2.1120528 | AT72: 7.382211725 | AU72: 31.5 | AV72: 0.8101390997 | AW72: 192.3968812 | AX72: 32.33232579 | AZ72: 81.01390997 | BA72: 0.2906875783 | BB72: 4.50057166 | BC72: 3.847937624 | BD72: 0.6466465158 | BE72: 0.1611392126
A73: Tf | B73: =(Qgd_Q1+Qgs_Q1/2)*(RdsonDRT2+Rgate1)/(Vsp_Q1)*1000000000 -> 6.344642857 | C73: ns | D73: Turn off of MOSFET -> Fall time of current | G73: 64 | H73: =Vin -> 24 | I73: =MODE -> 1 | J73: 6.4 | K73: =Iout*G73/100/Number_of_Phases -> 6.4 | L73: =Vout*K73/(Vin*Efficiency) -> 1.481481481 | M73: =(Vout+(Rdson2+Rs+Rdcr)*K73)/(Vin+(Rs+Rdson2-Rdson1)*K73) -> 0.2108284497 | N73: =(Vin-(Rdson1+Rdcr)*K73-Vout)*M73/(Fsw*Lf) -> 2.672042026 | O73: 7.736021013 | P73: 5.063978987 | Q73: =IF(MIN(Vin, -P73/(Coss_Q1+Coss_Q2)*0.00000002)<0, 0, MIN(Vin, -P73/(Coss_Q1+Coss_Q2)*0.00000002)) -> 0 | R73: 6.446315541 | S73: =R73^2*Rdcr -> 0.09142096491 | T73: =Core_Loss_Ch1 -> 0.2 | U73: =(T73+S73*(1+Ltc*(Ta-25)))/(1-S73*Ltc*ThetaCa) -> 0.2935680267 | V73: 0.7713520914 | W73: 0.000594984049 | X73: 0.000594984049 | Y73: 2.629431599 | Z73: 0.006913910536 | AA73: 0.006913910536 | AB73: 2.959894063 | AC73: =Rdson1*AB73^2 -> 0.03504389145 | AD73: =(Vin*K73/2)*Fsw*(Tr_buck+Tf_buck) -> 1.840090654 | AE73: =(0.5*Coss_Q1*(Vin-Q73)^2-0.5*Coss_Q2*(Vin-Q73)^2+(Qoss_Q2*(Vin-Q73)/Vin)*Vin)*Fsw -> 1.584 | AF73: =IF(K73>N73/2,0,ABS(K73-N73/2)*Vsd_Q1*Deadtime*Fsw) -> 0 | AG73: =(AF73+AE73+AD73+AC73*(1+RdsonTopTc*Ta-RdsonTopTc*25))/(1-AC73*RdsonTopTc*ThetaJA_Q1) -> 3.483549975 | AH73: =SQRT((1-M73))*SQRT(K73^2+(N73^2)/12) -> 5.726605555 | AI73: =Rdson2*AH73^2 -> 0.1311760447 | AJ73: =IF(K73<N73/2,Deadtime*Fsw*IF(VfdSky_Q2>0,0,Vsd_Q2)*(K73+N73/2),2*Deadtime*Fsw*IF(VfdSky_Q2>0,0,Vsd_Q2)*K73) -> 0.315392 | AK73: =(AJ73+AI73*(1+RdsonBotTc*Ta-RdsonBotTc*25))/(1-AI73*RdsonBotTc*ThetaJA_Q2) -> 0.4585994984 | AL73: =2*Deadtime*Fsw*IF(VfdSky_Q2>0,VfdSky_Q2,Vsd_Q2)*K73 -> 0.315392 | AM73: =IF(QrrSky_Q2>0,QrrSky_Q2,Qrr_Q2*K73/(Iout/Number_of_Phases))*Fsw*Vin -> 0.608256 | AN73: =Rs*R73^2 -> 0.1662199362 | AO73: =Iq*Vin -> 5.28e-05 | AP73: =IF(Ext_VCC=1, (Qg_Q1+Qg_Q2)*Fsw*VCC, (Qg_Q1+Qg_Q2)*Fsw*Vin) -> 2.112 | AQ73: =(Vin-VCC)*Fsw*(Qg_Q1+Qg_Q2)+(RdsonDRT+RdsonDRT2)*Fsw*Qg_Q1*VCC/(RdsonDRT+2*Rgate1+RdsonDRT2)+(RdsonDRB+RdsonDRB2)*Fsw*Qg_Q2*VCC/(RdsonDRB+2*Rgate2+RdsonDRB2) -> 1.841230769 | AR73: =(Qg_Q1+Qg_Q2)*Fsw*(Vin-VCC) -> 1.672 | AS73: 2.1120528 | AT73: =SUM(U73,X73,AA73,AG73,AK73,AL73,AM73,AS73,AN73) -> 7.445147131 | AU73: =Vout*K73 -> 32 | AV73: 0.8112531535 | AW73: =ThetaJA_Q1*BC73 -> 194.2499467 | AX73: =ThetaJA_Q2*BD73 -> 32.96619892 | AZ73: 81.12531535 | BA73: =U73 -> 0.2935680267 | BB73: 4.550405473 | BC73: 3.884998935 | BD73: 0.6593239784 | BE73: 0.1662199362
A74: Part Power | B74: Value | C74: Units | G74: 65 | H74: 24 | I74: 1 | J74: =Iout*G74/100 -> 6.5 | K74: 6.5 | L74: 1.50462963 | M74: 0.2108673937 | N74: 2.672448211 | O74: =K74+N74/2 -> 7.836224105 | P74: =K74-N74/2 -> 5.163775895 | Q74: 0 | R74: =SQRT(K74^2+(N74^2)/12) -> 6.545621816 | S74: 0.0942593629 | T74: 0.2 | U74: 0.2964951585 | V74: =N74/SQRT(12) -> 0.771469347 | W74: =RCoutEsr*V74^2 -> 0.0005951649533 | X74: =W74 -> 0.0005951649533 | Y74: =SQRT(M74*(1-M74))*SQRT(K74^2+(N74^2)/12) -> 2.670119011 | Z74: =RCinEsr*Y74^2 -> 0.007129535532 | AA74: =Z74 -> 0.007129535532 | AB74: =SQRT(M74)*SQRT(K74^2+(N74^2)/12) -> 3.005769164 | AC74: 0.03613859306 | AD74: 1.86884207 | AE74: 1.584 | AF74: 0 | AG74: 3.514381625 | AH74: 5.814681134 | AI74: 0.1352420668 | AJ74: 0.32032 | AK74: 0.4682268604 | AL74: 0.32032 | AM74: 0.61776 | AN74: 0.1713806598 | AO74: 5.28e-05 | AP74: 2.112 | AQ74: 1.841230769 | AR74: 1.672 | AS74: 2.1120528 | AT74: 7.508341804 | AU74: 32.5 | AV74: =AU74/(AU74+AT74) -> 0.8123305924 | AW74: 196.1051612 | AX74: 33.60438302 | AZ74: =AV74*100 -> 81.23305924 | BA74: 0.2964951585 | BB74: =AG74+AK74+AM74 -> 4.600368485 | BC74: =AG74+AM74*0.66 -> 3.922103225 | BD74: =AK74+AM74*0.33 -> 0.6720876604 | BE74: =AN74 -> 0.1713806598
A75: Power Dis | B75: =AS9 -> 2.1120528 | C75: W | G75: 66 | H75: 24 | I75: 1 | J75: 6.6 | K75: 6.6 | L75: 1.527777778 | M75: 0.2109063364 | N75: 2.672854347 | O75: 7.936427174 | P75: 5.263572826 | Q75: 0 | R75: 6.644948898 | S75: 0.0971417609 | T75: 0.2 | U75: 0.2994690369 | V75: 0.7715865885 | W75: 0.0005953458635 | X75: 0.0005953458635 | Y75: 2.710820351 | Z75: 0.007348546973 | AA75: 0.007348546973 | AB75: 3.051662207 | AC75: 0.03725056891 | AD75: 1.897593487 | AE75: 1.584 | AF75: 0 | AG75: 3.545256621 | AH75: 5.902770844 | AI75: 0.1393708145 | AJ75: 0.325248 | AK75: 0.4779410204 | AL75: 0.325248 | AM75: 0.627264 | AN75: 0.1766213835 | AO75: 5.28e-05 | AP75: 2.112 | AQ75: 1.841230769 | AR75: 1.672 | AS75: =SUM(AO75:AP75) -> 2.1120528 | AT75: 7.571796754 | AU75: 33 | AV75: 0.8133729004 | AW75: 197.962543 | AX75: 34.24690702 | AZ75: 81.33729004 | BA75: 0.2994690369 | BB75: 4.650461641 | BC75: 3.959250861 | BD75: 0.6849381404 | BE75: 0.1766213835
A76: Temp rise | B76: =B75*B62 -> 63.361584 | C76: °C | G76: 67 | H76: 24 | I76: 1 | J76: 6.7 | K76: 6.7 | L76: 1.550925926 | M76: 0.2109452778 | N76: 2.673260435 | O76: 8.036630218 | P76: 5.363369782 | Q76: 0 | R76: 6.74429587 | S76: 0.1000681589 | T76: 0.2 | U76: 0.3024897261 | V76: 0.7717038159 | W76: 0.0005955267795 | X76: 0.0005955267795 | Y76: 2.751535243 | Z76: 0.007570946194 | AA76: 0.007570946194 | AB76: 3.097572773 | AC76: 0.03837982832 | AD76: 1.926344903 | AE76: 1.584 | AF76: 0 | AG76: 3.576175331 | AH76: 5.990873868 | AI76: 0.1435622788 | AJ76: 0.330176 | AK76: 0.4877425656 | AL76: 0.330176 | AM76: 0.636768 | AN76: 0.1819421071 | AO76: 5.28e-05 | AP76: 2.112 | AQ76: 1.841230769 | AR76: 1.672 | AS76: 2.1120528 | AT76: 7.635513002 | AU76: 33.5 | AV76: 0.814381481 | AW76: 199.8221105 | AX76: 34.89380028 | AZ76: 81.4381481 | BA76: 0.3024897261 | BB76: 4.700685896 | BC76: 3.996442211 | BD76: 0.6978760056 | BE76: 0.1819421071
A77: Current (switching) | B77: =(Qg_Q1+Qg_Q2)*Fsw+Iq -> 0.0880022 | C77: A | G77: 68 | H77: 24 | I77: 1 | J77: 6.8 | K77: 6.8 | L77: 1.574074074 | M77: 0.2109842179 | N77: 2.673666474 | O77: 8.136833237 | P77: 5.463166763 | Q77: 0 | R77: 6.843661863 | S77: 0.1030385569 | T77: 0.2 | U77: 0.3055572915 | V77: 0.7718210293 | W77: 0.0005957077012 | X77: 0.0005957077012 | Y77: 2.792263335 | Z77: 0.007796734533 | AA77: 0.007796734533 | AB77: 3.143500463 | AC77: 0.03952638063 | AD77: 1.95509632 | AE77: 1.584 | AF77: 0 | AG77: 3.607138123 | AH77: 6.078989434 | AI77: 0.1478164502 | AJ77: 0.335104 | AK77: 0.497632092 | AL77: 0.335104 | AM77: 0.646272 | AN77: 0.1873428308 | AO77: 5.28e-05 | AP77: 2.112 | AQ77: 1.841230769 | AR77: 1.672 | AS77: 2.1120528 | AT77: 7.69949158 | AU77: 34 | AV77: 0.8153576629 | AW77: 201.6838822 | AX77: 35.5450926 | AZ77: 81.53576629 | BA77: 0.3055572915 | BB77: 4.751042215 | BC77: 4.033677643 | BD77: 0.710901852 | BE77: 0.1873428308
A78: Qrr Current | B78: =Qrr_Q2*Fsw -> 0.0396 | C78: A | G78: 69 | H78: 24 | I78: 1 | J78: 6.9 | K78: 6.9 | L78: 1.597222222 | M78: 0.2110231567 | N78: 2.674072464 | O78: 8.237036232 | P78: 5.562963768 | Q78: 0 | R78: 6.943046063 | S78: 0.106052955 | T78: 0.2 | U78: 0.3086717995 | V78: 0.7719382286 | W78: 0.0005958886287 | X78: 0.0005958886287 | Y78: 2.833004293 | Z78: 0.008025913322 | AA78: 0.008025913322 | AB78: 3.189444903 | AC78: 0.04069023516 | AD78: 1.983847736 | AE78: 1.584 | AF78: 0 | AG78: 3.638145369 | AH78: 6.167116817 | AI78: 0.1521333194 | AJ78: 0.340032 | AK78: 0.5076102044 | AL78: 0.340032 | AM78: 0.655776 | AN78: 0.1928235545 | AO78: 5.28e-05 | AP78: 2.112 | AQ78: 1.841230769 | AR78: 1.672 | AS78: 2.1120528 | AT78: 7.76373353 | AU78: 34.5 | AV78: 0.8163027049 | AW78: 203.5478765 | AX78: 36.20081422 | AZ78: 81.63027049 | BA78: 0.3086717995 | BB78: 4.801531574 | BC78: 4.070957529 | BD78: 0.7240162844 | BE78: 0.1928235545
A79: Diode Current | B79: =Deadtime*Fsw*(Iripple_Vinnom/2)*(Vsd_Q2)/Vin -> 0.001372805944 | G79: 70 | H79: 24 | I79: 1 | J79: 7 | K79: 7 | L79: 1.62037037 | M79: 0.2110620942 | N79: 2.674478406 | O79: 8.337239203 | P79: 5.662760797 | Q79: 0 | R79: 7.042447697 | S79: 0.109111353 | T79: 0.2 | U79: 0.3118333175 | V79: 0.7720554138 | W79: 0.000596069562 | X79: 0.000596069562 | Y79: 2.873757801 | Z79: 0.008258483899 | AA79: 0.008258483899 | AB79: 3.235405741 | AC79: 0.04187140123 | AD79: 2.012599153 | AE79: 1.584 | AF79: 0 | AG79: 3.669197441 | AH79: 6.255255331 | AI79: 0.156512877 | AJ79: 0.34496 | AK79: 0.5176775165 | AL79: 0.34496 | AM79: 0.66528 | AN79: 0.1983842782 | AO79: 5.28e-05 | AP79: 2.112 | AQ79: 1.841230769 | AR79: 1.672 | AS79: 2.1120528 | AT79: 7.828239907 | AU79: 35 | AV79: 0.8172178001 | AW79: 205.4141121 | AX79: 36.86099583 | AZ79: 81.72178001 | BA79: 0.3118333175 | BB79: 4.852154958 | BC79: 4.108282241 | BD79: 0.7372199165 | BE79: 0.1983842782
A80: Total | B80: =SUM(B77:B79) -> 0.1289750059 | C80: A | G80: 71 | H80: 24 | I80: 1 | J80: 7.1 | K80: 7.1 | L80: 1.643518519 | M80: 0.2111010304 | N80: 2.674884299 | O80: 8.437442149 | P80: 5.762557851 | Q80: 0 | R80: 7.141866038 | S80: 0.1122137511 | T80: 0.2 | U80: 0.3150419139 | V80: 0.772172585 | W80: 0.000596250501 | X80: 0.000596250501 | Y80: 2.914523563 | Z80: 0.008494447597 | AA80: 0.008494447597 | AB80: 3.281382642 | AC80: 0.04306988816 | AD80: 2.041350569 | AE80: 1.584 | AF80: 0 | AG80: 3.700294713 | AH80: 6.343404327 | AI80: 0.1609551138 | AJ80: 0.349888 | AK80: 0.5278346511 | AL80: 0.349888 | AM80: 0.674784 | AN80: 0.204025002 | AO80: 5.28e-05 | AP80: 2.112 | AQ80: 1.841230769 | AR80: 1.672 | AS80: 2.1120528 | AT80: 7.893011778 | AU80: 35.5 | AV80: 0.8181040805 | AW80: 207.2826077 | AX80: 37.52566856 | AZ80: 81.81040805 | BA80: 0.3150419139 | BB80: 4.902913364 | BC80: 4.145652153 | BD80: 0.7505133711 | BE80: 0.204025002
G81: 72 | H81: 24 | I81: 1 | J81: 7.2 | K81: 7.2 | L81: 1.666666667 | M81: 0.2111399654 | N81: 2.675290143 | O81: 8.537645072 | P81: 5.862354928 | Q81: 0 | R81: 7.241300397 | S81: 0.1153601492 | T81: 0.2 | U81: 0.3182976584 | V81: 0.7722897421 | W81: 0.0005964314458 | X81: 0.0005964314458 | Y81: 2.955301296 | Z81: 0.00873380575 | AA81: 0.00873380575 | AB81: 3.32737529 | AC81: 0.04428570528 | AD81: 2.070101985 | AE81: 1.584 | AF81: 0 | AG81: 3.73143756 | AH81: 6.431563195 | AI81: 0.1654600205 | AJ81: 0.354816 | AK81: 0.5380822402 | AL81: 0.354816 | AM81: 0.684288 | AN81: 0.2097457258 | AO81: 5.28e-05 | AP81: 2.112 | AQ81: 1.841230769 | AR81: 1.672 | AS81: 2.1120528 | AT81: 7.958050221 | AU81: 36 | AV81: 0.8189626205 | AW81: 209.153382 | AX81: 38.19486401 | AZ81: 81.89626205 | BA81: 0.3182976584 | BB81: 4.9538078 | BC81: 4.18306764 | BD81: 0.7638972802 | BE81: 0.2097457258
G82: 73 | H82: 24 | I82: 1 | J82: 7.3 | K82: 7.3 | L82: 1.689814815 | M82: 0.211178899 | N82: 2.675695939 | O82: 8.637847969 | P82: 5.962152031 | Q82: 0 | R82: 7.340750125 | S82: 0.1185505473 | T82: 0.2 | U82: 0.3216006216 | V82: 0.7724068852 | W82: 0.0005966123963 | X82: 0.0005966123963 | Y82: 2.996090735 | Z82: 0.008976559692 | AA82: 0.008976559692 | AB82: 3.373383387 | AC82: 0.04551886191 | AD82: 2.098853402 | AE82: 1.584 | AF82: 0 | AG82: 3.762626358 | AH82: 6.519731353 | AI82: 0.1700275877 | AJ82: 0.359744 | AK82: 0.5484209251 | AL82: 0.359744 | AM82: 0.693792 | AN82: 0.2155464496 | AO82: 5.28e-05 | AP82: 2.112 | AQ82: 1.841230769 | AR82: 1.672 | AS82: 2.1120528 | AT82: 8.023356326 | AU82: 36.5 | AV82: 0.8197944408 | AW82: 211.0264539 | AX82: 38.86861425 | AZ82: 81.97944408 | BA82: 0.3216006216 | BB82: 5.004839283 | BC82: 4.220529078 | BD82: 0.7773722851 | BE82: 0.2155464496
G83: 74 | H83: 24 | I83: 1 | J83: 7.4 | K83: 7.4 | L83: 1.712962963 | M83: 0.2112178313 | N83: 2.676101685 | O83: 8.738050843 | P83: 6.061949157 | Q83: 0 | R83: 7.440214604 | S83: 0.1217849454 | T83: 0.2 | U83: 0.3249508753 | V83: 0.7725240142 | W83: 0.0005967933526 | X83: 0.0005967933526 | Y83: 3.036891627 | Z83: 0.009222710755 | AA83: 0.009222710755 | AB83: 3.419406651 | AC83: 0.04676936737 | AD83: 2.127604818 | AE83: 1.584 | AF83: 0 | AG83: 3.793861486 | AH83: 6.607908255 | AI83: 0.174657806 | AJ83: 0.364672 | AK83: 0.5588513564 | AL83: 0.364672 | AM83: 0.703296 | AN83: 0.2214271734 | AO83: 5.28e-05 | AP83: 2.112 | AQ83: 1.841230769 | AR83: 1.672 | AS83: 2.1120528 | AT83: 8.088931195 | AU83: 37 | AV83: 0.8206005115 | AW83: 212.9018423 | AX83: 39.54695182 | AZ83: 82.06005115 | BA83: 0.3249508753 | BB83: 5.056008842 | BC83: 4.258036846 | BD83: 0.7909390364 | BE83: 0.2214271734
G84: 75 | H84: 24 | I84: 1 | J84: 7.5 | K84: 7.5 | L84: 1.736111111 | M84: 0.2112567624 | N84: 2.676507384 | O84: 8.838253692 | P84: 6.161746308 | Q84: 0 | R84: 7.539693251 | S84: 0.1250633435 | T84: 0.2 | U84: 0.3283484923 | V84: 0.7726411292 | W84: 0.0005969743145 | X84: 0.0005969743145 | Y84: 3.077703734 | Z84: 0.009472260272 | AA84: 0.009472260272 | AB84: 3.465444812 | AC84: 0.04803723098 | AD84: 2.156356235 | AE84: 1.584 | AF84: 0 | AG84: 3.825143325 | AH84: 6.696093381 | AI84: 0.1793506663 | AJ84: 0.3696 | AK84: 0.5693741945 | AL84: 0.3696 | AM84: 0.7128 | AN84: 0.2273878973 | AO84: 5.28e-05 | AP84: 2.112 | AQ84: 1.841230769 | AR84: 1.672 | AS84: 2.1120528 | AT84: 8.154775943 | AU84: 37.5 | AV84: 0.8213817553 | AW84: 214.7795662 | AX84: 40.22990973 | AZ84: 82.13817553 | BA84: 0.3283484923 | BB84: 5.107317519 | BC84: 4.295591325 | BD84: 0.8045981945 | BE84: 0.2273878973
G85: 76 | H85: 24 | I85: 1 | J85: 7.6 | K85: 7.6 | L85: 1.759259259 | M85: 0.2112956921 | N85: 2.676913033 | O85: 8.938456516 | P85: 6.261543484 | Q85: 0 | R85: 7.639185512 | S85: 0.1283857416 | T85: 0.2 | U85: 0.3317935465 | V85: 0.7727582301 | W85: 0.0005971552822 | X85: 0.0005971552822 | Y85: 3.118526828 | Z85: 0.009725209576 | AA85: 0.009725209576 | AB85: 3.511497617 | AC85: 0.04932246206 | AD85: 2.185107651 | AE85: 1.584 | AF85: 0 | AG85: 3.856472255 | AH85: 6.784286239 | AI85: 0.1841061591 | AJ85: 0.374528 | AK85: 0.5799901093 | AL85: 0.374528 | AM85: 0.722304 | AN85: 0.2334286211 | AO85: 5.28e-05 | AP85: 2.112 | AQ85: 1.841230769 | AR85: 1.672 | AS85: 2.1120528 | AT85: 8.220891696 | AU85: 38 | AV85: 0.8221390502 | AW85: 216.6596447 | AX85: 40.91752147 | AZ85: 82.21390502 | BA85: 0.3317935465 | BB85: 5.158766364 | BC85: 4.333192895 | BD85: 0.8183504293 | BE85: 0.2334286211
G86: 77 | H86: 24 | I86: 1 | J86: 7.7 | K86: 7.7 | L86: 1.782407407 | M86: 0.2113346206 | N86: 2.677318634 | O86: 9.038659317 | P86: 6.361340683 | Q86: 0 | R86: 7.738690862 | S86: 0.1317521398 | T86: 0.2 | U86: 0.3352861128 | V86: 0.7728753169 | W86: 0.0005973362555 | X86: 0.0005973362555 | Y86: 3.159360694 | Z86: 0.009981559998 | AA86: 0.009981559998 | AB86: 3.557564825 | AC86: 0.05062506994 | AD86: 2.213859068 | AE86: 1.584 | AF86: 0 | AG86: 3.88784866 | AH86: 6.87248636 | AI86: 0.1889242751 | AJ86: 0.379456 | AK86: 0.5906997807 | AL86: 0.379456 | AM86: 0.731808 | AN86: 0.239549345 | AO86: 5.28e-05 | AP86: 2.112 | AQ86: 1.841230769 | AR86: 1.672 | AS86: 2.1120528 | AT86: 8.287279595 | AU86: 38.5 | AV86: 0.8228732325 | AW86: 218.542097 | AX86: 41.60982103 | AZ86: 82.28732325 | BA86: 0.3352861128 | BB86: 5.21035644 | BC86: 4.37084194 | BD86: 0.8321964207 | BE86: 0.239549345
G87: 78 | H87: 24 | I87: 1 | J87: 7.8 | K87: 7.8 | L87: 1.805555556 | M87: 0.2113735477 | N87: 2.677724186 | O87: 9.138862093 | P87: 6.461137907 | Q87: 0 | R87: 7.838208803 | S87: 0.1351625379 | T87: 0.2 | U87: 0.3388262674 | V87: 0.7729923897 | W87: 0.0005975172346 | X87: 0.0005975172346 | Y87: 3.200205129 | Z87: 0.01024131287 | AA87: 0.01024131287 | AB87: 3.603646206 | AC87: 0.05194506392 | AD87: 2.242610484 | AE87: 1.584 | AF87: 0 | AG87: 3.919272925 | AH87: 6.960693303 | AI87: 0.193805005 | AJ87: 0.384384 | AK87: 0.6015038982 | AL87: 0.384384 | AM87: 0.741312 | AN87: 0.2457500689 | AO87: 5.28e-05 | AP87: 2.112 | AQ87: 1.841230769 | AR87: 1.672 | AS87: 2.1120528 | AT87: 8.353940789 | AU87: 39 | AV87: 0.8235850987 | AW87: 220.4269422 | AX87: 42.30684291 | AZ87: 82.35850987 | BA87: 0.3388262674 | BB87: 5.262088823 | BC87: 4.408538845 | BD87: 0.8461368582 | BE87: 0.2457500689
G88: 79 | H88: 24 | I88: 1 | J88: 7.9 | K88: 7.9 | L88: 1.828703704 | M88: 0.2114124736 | N88: 2.678129689 | O88: 9.239064845 | P88: 6.560935155 | Q88: 0 | R88: 7.937738861 | S88: 0.1386169361 | T88: 0.2 | U88: 0.3424140874 | V88: 0.7731094485 | W88: 0.0005976982193 | X88: 0.0005976982193 | Y88: 3.241059938 | Z88: 0.01050446952 | AA88: 0.01050446952 | AB88: 3.649741544 | AC88: 0.05328245334 | AD88: 2.271361901 | AE88: 1.584 | AF88: 0 | AG88: 3.950745436 | AH88: 7.048906645 | AI88: 0.1987483395 | AJ88: 0.389312 | AK88: 0.6124031618 | AL88: 0.389312 | AM88: 0.750816 | AN88: 0.2520307929 | AO88: 5.28e-05 | AP88: 2.112 | AQ88: 1.841230769 | AR88: 1.672 | AS88: 2.1120528 | AT88: 8.420876446 | AU88: 39.5 | AV88: 0.8242754083 | AW88: 222.3141998 | AX88: 43.00862209 | AZ88: 82.42754083 | BA88: 0.3424140874 | BB88: 5.313964598 | BC88: 4.446283996 | BD88: 0.8601724418 | BE88: 0.2520307929
G89: 80 | H89: 24 | I89: 1 | J89: 8 | K89: 8 | L89: 1.851851852 | M89: 0.2114513981 | N89: 2.678535144 | O89: 9.339267572 | P89: 6.660732428 | Q89: 0 | R89: 8.037280585 | S89: 0.1421153343 | T89: 0.2 | U89: 0.3460496512 | V89: 0.7732264932 | W89: 0.0005978792097 | X89: 0.0005978792097 | Y89: 3.281924935 | Z89: 0.01077103128 | AA89: 0.01077103128 | AB89: 3.695850629 | AC89: 0.0546372475 | AD89: 2.300113317 | AE89: 1.584 | AF89: 0 | AG89: 3.982266582 | AH89: 7.137125986 | AI89: 0.2037542693 | AJ89: 0.39424 | AK89: 0.6233982816 | AL89: 0.39424 | AM89: 0.76032 | AN89: 0.2583915168 | AO89: 5.28e-05 | AP89: 2.112 | AQ89: 1.841230769 | AR89: 1.672 | AS89: 2.1120528 | AT89: 8.488087742 | AU89: 40 | AV89: 0.8249448857 | AW89: 224.2038891 | AX89: 43.71519408 | AZ89: 82.49448857 | BA89: 0.3460496512 | BB89: 5.365984863 | BC89: 4.484077782 | BD89: 0.8743038816 | BE89: 0.2583915168
G90: 81 | H90: 24 | I90: 1 | J90: 8.1 | K90: 8.1 | L90: 1.875 | M90: 0.2114903214 | N90: 2.67894055 | O90: 9.439470275 | P90: 6.760529725 | Q90: 0 | R90: 8.136833549 | S90: 0.1456577325 | T90: 0.2 | U90: 0.3497330382 | V90: 0.7733435238 | W90: 0.0005980602058 | X90: 0.0005980602058 | Y90: 3.322799946 | Z90: 0.01104099948 | AA90: 0.01104099948 | AB90: 3.741973267 | AC90: 0.05600945573 | AD90: 2.328864734 | AE90: 1.584 | AF90: 0 | AG90: 4.013836752 | AH90: 7.225350945 | AI90: 0.2088227851 | AJ90: 0.399168 | AK90: 0.634489978 | AL90: 0.399168 | AM90: 0.769824 | AN90: 0.2648322408 | AO90: 5.28e-05 | AP90: 2.112 | AQ90: 1.841230769 | AR90: 1.672 | AS90: 2.1120528 | AT90: 8.555575868 | AU90: 40.5 | AV90: 0.8255942221 | AW90: 226.0960296 | AX90: 44.4265949 | AZ90: 82.55942221 | BA90: 0.3497330382 | BB90: 5.41815073 | BC90: 4.521920592 | BD90: 0.888531898 | BE90: 0.2648322408
G91: 82 | H91: 24 | I91: 1 | J91: 8.2 | K91: 8.2 | L91: 1.898148148 | M91: 0.2115292434 | N91: 2.679345907 | O91: 9.539672954 | P91: 6.860327046 | Q91: 0 | R91: 8.236397344 | S91: 0.1492441307 | T91: 0.2 | U91: 0.3534643288 | V91: 0.7734605404 | W91: 0.0005982412076 | X91: 0.0005982412076 | Y91: 3.363684803 | Z91: 0.01131437546 | AA91: 0.01131437546 | AB91: 3.788109269 | AC91: 0.05739908734 | AD91: 2.35761615 | AE91: 1.584 | AF91: 0 | AG91: 4.045456338 | AH91: 7.313581159 | AI91: 0.2139538775 | AJ91: 0.404096 | AK91: 0.6456789819 | AL91: 0.404096 | AM91: 0.779328 | AN91: 0.2713529648 | AO91: 5.28e-05 | AP91: 2.112 | AQ91: 1.841230769 | AR91: 1.672 | AS91: 2.1120528 | AT91: 8.62334203 | AU91: 41 | AV91: 0.8262240777 | AW91: 227.9906409 | AX91: 45.14286109 | AZ91: 82.62240777 | BA91: 0.3534643288 | BB91: 5.47046332 | BC91: 4.559812818 | BD91: 0.9028572219 | BE91: 0.2713529648
G92: 83 | H92: 24 | I92: 1 | J92: 8.3 | K92: 8.3 | L92: 1.921296296 | M92: 0.211568164 | N92: 2.679751216 | O92: 9.639875608 | P92: 6.960124392 | Q92: 0 | R92: 8.335971582 | S92: 0.1528745289 | T92: 0.2 | U92: 0.3572436047 | V92: 0.7735775429 | W92: 0.0005984222149 | X92: 0.0005984222149 | Y92: 3.404579346 | Z92: 0.01159116053 | AA92: 0.01159116053 | AB92: 3.834258456 | AC92: 0.05880615164 | AD92: 2.386367567 | AE92: 1.584 | AF92: 0 | AG92: 4.077125733 | AH92: 7.401816284 | AI92: 0.2191475372 | AJ92: 0.409024 | AK92: 0.6569660349 | AL92: 0.409024 | AM92: 0.788832 | AN92: 0.2779536889 | AO92: 5.28e-05 | AP92: 2.112 | AQ92: 1.841230769 | AR92: 1.672 | AS92: 2.1120528 | AT92: 8.691387444 | AU92: 41.5 | AV92: 0.8268350829 | AW92: 229.8877427 | AX92: 45.86402975 | AZ92: 82.68350829 | BA92: 0.3572436047 | BB92: 5.522923768 | BC92: 4.597754853 | BD92: 0.9172805949 | BE92: 0.2779536889
G93: 84 | H93: 24 | I93: 1 | J93: 8.4 | K93: 8.4 | L93: 1.944444444 | M93: 0.2116070834 | N93: 2.680156476 | O93: 9.740078238 | P93: 7.059921762 | Q93: 0 | R93: 8.435555893 | S93: 0.1565489271 | T93: 0.2 | U93: 0.3610709487 | V93: 0.7736945314 | W93: 0.000598603228 | X93: 0.000598603228 | Y93: 3.445483424 | Z93: 0.01187135602 | AA93: 0.01187135602 | AB93: 3.880420659 | AC93: 0.06023065796 | AD93: 2.415118983 | AE93: 1.584 | AF93: 0 | AG93: 4.108845333 | AH93: 7.49005599 | AI93: 0.224403755 | AJ93: 0.413952 | AK93: 0.6683518897 | AL93: 0.413952 | AM93: 0.798336 | AN93: 0.2846344129 | AO93: 5.28e-05 | AP93: 2.112 | AQ93: 1.841230769 | AR93: 1.672 | AS93: 2.1120528 | AT93: 8.759713343 | AU93: 42 | AV93: 0.8274278406 | AW93: 231.7873546 | AX93: 46.59013848 | AZ93: 82.74278406 | BA93: 0.3610709487 | BB93: 5.575533222 | BC93: 4.635747093 | BD93: 0.9318027697 | BE93: 0.2846344129
G94: 85 | H94: 24 | I94: 1 | J94: 8.5 | K94: 8.5 | L94: 1.967592593 | M94: 0.2116460015 | N94: 2.680561687 | O94: 9.840280844 | P94: 7.159719156 | Q94: 0 | R94: 8.535149925 | S94: 0.1602673253 | T94: 0.2 | U94: 0.3649464446 | V94: 0.7738115059 | W94: 0.0005987842466 | X94: 0.0005987842466 | Y94: 3.48639689 | Z94: 0.01215496328 | AA94: 0.01215496328 | AB94: 3.926595714 | AC94: 0.0616726156 | AD94: 2.4438704 | AE94: 1.584 | AF94: 0 | AG94: 4.140615533 | AH94: 7.578299964 | AI94: 0.2297225214 | AJ94: 0.41888 | AK94: 0.6798373096 | AL94: 0.41888 | AM94: 0.80784 | AN94: 0.291395137 | AO94: 5.28e-05 | AP94: 2.112 | AQ94: 1.841230769 | AR94: 1.672 | AS94: 2.1120528 | AT94: 8.828320972 | AU94: 42.5 | AV94: 0.8280029269 | AW94: 233.6894967 | AX94: 47.32122548 | AZ94: 82.80029269 | BA94: 0.3649464446 | BB94: 5.628292843 | BC94: 4.673789933 | BD94: 0.9464245096 | BE94: 0.291395137
G95: 86 | H95: 24 | I95: 1 | J95: 8.6 | K95: 8.6 | L95: 1.990740741 | M95: 0.2116849183 | N95: 2.68096685 | O95: 9.940483425 | P95: 7.259516575 | Q95: 0 | R95: 8.634753342 | S95: 0.1640297236 | T95: 0.2 | U95: 0.3688701775 | V95: 0.7739284663 | W95: 0.0005989652709 | X95: 0.0005989652709 | Y95: 3.527319607 | Z95: 0.01244198361 | AA95: 0.01244198361 | AB95: 3.972783466 | AC95: 0.06313203388 | AD95: 2.472621816 | AE95: 1.584 | AF95: 0 | AG95: 4.172436733 | AH95: 7.666547906 | AI95: 0.2351038272 | AJ95: 0.423808 | AK95: 0.6914230692 | AL95: 0.423808 | AM95: 0.817344 | AN95: 0.2982358611 | AO95: 5.28e-05 | AP95: 2.112 | AQ95: 1.841230769 | AR95: 1.672 | AS95: 2.1120528 | AT95: 8.89721159 | AU95: 43 | AV95: 0.8285608934 | AW95: 235.5941887 | AX95: 48.05732946 | AZ95: 82.85608934 | BA95: 0.3688701775 | BB95: 5.681203802 | BC95: 4.711883773 | BD95: 0.9611465892 | BE95: 0.2982358611
G96: 87 | H96: 24 | I96: 1 | J96: 8.7 | K96: 8.7 | L96: 2.013888889 | M96: 0.2117238338 | N96: 2.681371964 | O96: 10.04068598 | P96: 7.359314018 | Q96: 0 | R96: 8.734365821 | S96: 0.1678361219 | T96: 0.2 | U96: 0.3728422334 | V96: 0.7740454126 | W96: 0.0005991463008 | X96: 0.0005991463008 | Y96: 3.568251443 | Z96: 0.01273241836 | AA96: 0.01273241836 | AB96: 4.018983768 | AC96: 0.06460892212 | AD96: 2.501373232 | AE96: 1.584 | AF96: 0 | AG96: 4.204309333 | AH96: 7.754799531 | AI96: 0.2405476631 | AJ96: 0.428736 | AK96: 0.7031099544 | AL96: 0.428736 | AM96: 0.826848 | AN96: 0.3051565852 | AO96: 5.28e-05 | AP96: 2.112 | AQ96: 1.841230769 | AR96: 1.672 | AS96: 2.1120528 | AT96: 8.966386471 | AU96: 43.5 | AV96: 0.8291022677 | AW96: 237.5014507 | AX96: 48.79848972 | AZ96: 82.91022677 | BA96: 0.3728422334 | BB96: 5.734267288 | BC96: 4.750029013 | BD96: 0.9759697944 | BE96: 0.3051565852
G97: 88 | H97: 24 | I97: 1 | J97: 8.8 | K97: 8.8 | L97: 2.037037037 | M97: 0.211762748 | N97: 2.681777029 | O97: 10.14088851 | P97: 7.459111485 | Q97: 0 | R97: 8.833987058 | S97: 0.1716865201 | T97: 0.2 | U97: 0.3768626998 | V97: 0.7741623449 | W97: 0.0005993273363 | X97: 0.0005993273363 | Y97: 3.60919227 | Z97: 0.01302626884 | AA97: 0.01302626884 | AB97: 4.065196478 | AC97: 0.06610328963 | AD97: 2.530124649 | AE97: 1.584 | AF97: 0 | AG97: 4.236233736 | AH97: 7.843054566 | AI97: 0.2460540197 | AJ97: 0.433664 | AK97: 0.7148987626 | AL97: 0.433664 | AM97: 0.836352 | AN97: 0.3121573093 | AO97: 5.28e-05 | AP97: 2.112 | AQ97: 1.841230769 | AR97: 1.672 | AS97: 2.1120528 | AT97: 9.035846904 | AU97: 44 | AV97: 0.8296275551 | AW97: 239.4113028 | AX97: 49.54474613 | AZ97: 82.96275551 | BA97: 0.3768626998 | BB97: 5.787484498 | BC97: 4.788226056 | BD97: 0.9908949226 | BE97: 0.3121573093
G98: 89 | H98: 24 | I98: 1 | J98: 8.9 | K98: 8.9 | L98: 2.060185185 | M98: 0.2118016609 | N98: 2.682182046 | O98: 10.24109102 | P98: 7.558908977 | Q98: 0 | R98: 8.933616758 | S98: 0.1755809184 | T98: 0.2 | U98: 0.380931665 | V98: 0.7742792631 | W98: 0.0005995083773 | X98: 0.0005995083773 | Y98: 3.650141968 | Z98: 0.01332353639 | AA98: 0.01332353639 | AB98: 4.111421461 | AC98: 0.06761514571 | AD98: 2.558876065 | AE98: 1.584 | AF98: 0 | AG98: 4.268210344 | AH98: 7.931312751 | AI98: 0.2516228878 | AJ98: 0.438592 | AK98: 0.7267903028 | AL98: 0.438592 | AM98: 0.845856 | AN98: 0.3192380335 | AO98: 5.28e-05 | AP98: 2.112 | AQ98: 1.841230769 | AR98: 1.672 | AS98: 2.1120528 | AT98: 9.10559419 | AU98: 44.5 | AV98: 0.8301372398 | AW98: 241.3237652 | AX98: 50.29613914 | AZ98: 83.01372398 | BA98: 0.380931665 | BB98: 5.840856647 | BC98: 4.826475304 | BD98: 1.005922783 | BE98: 0.3192380335
G99: 90 | H99: 24 | I99: 1 | J99: 9 | K99: 9 | L99: 2.083333333 | M99: 0.2118405725 | N99: 2.682587014 | O99: 10.34129351 | P99: 7.658706493 | Q99: 0 | R99: 9.033254642 | S99: 0.1795193167 | T99: 0.2 | U99: 0.3850492185 | V99: 0.7743961674 | W99: 0.000599689424 | X99: 0.000599689424 | Y99: 3.691100422 | Z99: 0.01362422232 | AA99: 0.01362422232 | AB99: 4.157658586 | AC99: 0.06914449969 | AD99: 2.587627482 | AE99: 1.584 | AF99: 0 | AG99: 4.300239564 | AH99: 8.019573835 | AI99: 0.257254258 | AJ99: 0.44352 | AK99: 0.7387853958 | AL99: 0.44352 | AM99: 0.85536 | AN99: 0.3263987577 | AO99: 5.28e-05 | AP99: 2.112 | AQ99: 1.841230769 | AR99: 1.672 | AS99: 2.1120528 | AT99: 9.175629648 | AU99: 45 | AV99: 0.8306317858 | AW99: 243.2388582 | AX99: 51.05270979 | AZ99: 83.06317858 | BA99: 0.3850492185 | BB99: 5.89438496 | BC99: 4.864777164 | BD99: 1.021054196 | BE99: 0.3263987577
G100: 91 | H100: 24 | I100: 1 | J100: 9.1 | K100: 9.1 | L100: 2.106481481 | M100: 0.2118794828 | N100: 2.682991933 | O100: 10.44149597 | P100: 7.758504033 | Q100: 0 | R100: 9.132900442 | S100: 0.183501715 | T100: 0.2 | U100: 0.3892154513 | V100: 0.7745130575 | W100: 0.0005998704763 | X100: 0.0005998704763 | Y100: 3.73206752 | Z100: 0.01392832797 | AA100: 0.01392832797 | AB100: 4.203907732 | AC100: 0.07069136086 | AD100: 2.616378898 | AE100: 1.584 | AF100: 0 | AG100: 4.332321804 | AH100: 8.107837582 | AI100: 0.262948121 | AJ100: 0.448448 | AK100: 0.7508848744 | AL100: 0.448448 | AM100: 0.864864 | AN100: 0.3336394819 | AO100: 5.28e-05 | AP100: 2.112 | AQ100: 1.841230769 | AR100: 1.672 | AS100: 2.1120528 | AT100: 9.24595461 | AU100: 45.5 | AV100: 0.8311116378 | AW100: 245.1566022 | AX100: 51.81449972 | AZ100: 83.11116378 | BA100: 0.3892154513 | BB100: 5.948070678 | BC100: 4.903132044 | BD100: 1.036289994 | BE100: 0.3336394819
G101: 92 | H101: 24 | I101: 1 | J101: 9.2 | K101: 9.2 | L101: 2.12962963 | M101: 0.2119183918 | N101: 2.683396804 | O101: 10.5416984 | P101: 7.858301598 | Q101: 0 | R101: 9.232553901 | S101: 0.1875281134 | T101: 0.2 | U101: 0.3934304551 | V101: 0.7746299336 | W101: 0.0006000515341 | X101: 0.0006000515341 | Y101: 3.773043156 | Z101: 0.01423585466 | AA101: 0.01423585466 | AB101: 4.250168778 | AC101: 0.07225573855 | AD101: 2.645130315 | AE101: 1.584 | AF101: 0 | AG101: 4.364457473 | AH101: 8.196103763 | AI101: 0.2687044676 | AJ101: 0.453376 | AK101: 0.7630895836 | AL101: 0.453376 | AM101: 0.874368 | AN101: 0.3409602061 | AO101: 5.28e-05 | AP101: 2.112 | AQ101: 1.841230769 | AR101: 1.672 | AS101: 2.1120528 | AT101: 9.316570424 | AU101: 46 | AV101: 0.8315772227 | AW101: 247.0770176 | AX101: 52.58155118 | AZ101: 83.15772227 | BA101: 0.3934304551 | BB101: 6.001915057 | BC101: 4.941540353 | BD101: 1.051631024 | BE101: 0.3409602061
G102: 93 | H102: 24 | I102: 1 | J102: 9.3 | K102: 9.3 | L102: 2.152777778 | M102: 0.2119572995 | N102: 2.683801626 | O102: 10.64190081 | P102: 7.958099187 | Q102: 0 | R102: 9.332214775 | S102: 0.1915985117 | T102: 0.2 | U102: 0.3976943229 | V102: 0.7747467957 | W102: 0.0006002325975 | X102: 0.0006002325975 | Y102: 3.81402723 | Z102: 0.01454680371 | AA102: 0.01454680371 | AB102: 4.296441611 | AC102: 0.07383764206 | AD102: 2.673881731 | AE102: 1.584 | AF102: 0 | AG102: 4.396646983 | AH102: 8.28437216 | AI102: 0.2745232883 | AJ102: 0.458304 | AK102: 0.7754003808 | AL102: 0.458304 | AM102: 0.883872 | AN102: 0.3483609304 | AO102: 5.28e-05 | AP102: 2.112 | AQ102: 1.841230769 | AR102: 1.672 | AS102: 2.1120528 | AT102: 9.387478453 | AU102: 46.5 | AV102: 0.8320289497 | AW102: 249.0001251 | AX102: 53.35390704 | AZ102: 83.20289497 | BA102: 0.3976943229 | BB102: 6.055919363 | BC102: 4.980002503 | BD102: 1.067078141 | BE102: 0.3483609304
G103: 94 | H103: 24 | I103: 1 | J103: 9.4 | K103: 9.4 | L103: 2.175925926 | M103: 0.2119962059 | N103: 2.6842064 | O103: 10.7421032 | P103: 8.0578968 | Q103: 0 | R103: 9.431882827 | S103: 0.1957129101 | T103: 0.2 | U103: 0.4020071492 | V103: 0.7748636437 | W103: 0.0006004136664 | X103: 0.0006004136664 | Y103: 3.855019644 | Z103: 0.01486117645 | AA103: 0.01486117645 | AB103: 4.342726123 | AC103: 0.07543708071 | AD103: 2.702633148 | AE103: 1.584 | AF103: 0 | AG103: 4.428890746 | AH103: 8.372642563 | AI103: 0.280404574 | AJ103: 0.463232 | AK103: 0.7878181357 | AL103: 0.463232 | AM103: 0.893376 | AN103: 0.3558416547 | AO103: 5.28e-05 | AP103: 2.112 | AQ103: 1.841230769 | AR103: 1.672 | AS103: 2.1120528 | AT103: 9.458680076 | AU103: 47 | AV103: 0.8324672121 | AW103: 250.9259453 | AX103: 54.13161078 | AZ103: 83.24672121 | BA103: 0.4020071492 | BB103: 6.110084882 | BC103: 5.018518906 | BD103: 1.082632216 | BE103: 0.3558416547
G104: 95 | H104: 24 | I104: 1 | J104: 9.5 | K104: 9.5 | L104: 2.199074074 | M104: 0.2120351111 | N104: 2.684611125 | O104: 10.84230556 | P104: 8.157694438 | Q104: 0 | R104: 9.531557834 | S104: 0.1998713084 | T104: 0.2 | U104: 0.4063690292 | V104: 0.7749804777 | W104: 0.0006005947408 | X104: 0.0006005947408 | Y104: 3.896020303 | Z104: 0.0151789742 | AA104: 0.0151789742 | AB104: 4.389022209 | AC104: 0.07705406379 | AD104: 2.731384564 | AE104: 1.584 | AF104: 0 | AG104: 4.461189179 | AH104: 8.460914773 | AI104: 0.2863483152 | AJ104: 0.46816 | AK104: 0.800343731 | AL104: 0.46816 | AM104: 0.90288 | AN104: 0.363402379 | AO104: 5.28e-05 | AP104: 2.112 | AQ104: 1.841230769 | AR104: 1.672 | AS104: 2.1120528 | AT104: 9.530176687 | AU104: 47.5 | AV104: 0.8328923871 | AW104: 252.854499 | AX104: 54.91470655 | AZ104: 83.28923871 | BA104: 0.4063690292 | BB104: 6.16441291 | BC104: 5.057089979 | BD104: 1.098294131 | BE104: 0.363402379
G105: 96 | H105: 24 | I105: 1 | J105: 9.6 | K105: 9.6 | L105: =Vout*K105/(Vin*Efficiency) -> 2.222222222 | M105: 0.2120740149 | N105: =(Vin-(Rdson1+Rdcr)*K105-Vout)*M105/(Fsw*Lf) -> 2.685015801 | O105: 10.9425079 | P105: 8.2574921 | Q105: =IF(MIN(Vin, -P105/(Coss_Q1+Coss_Q2)*0.00000002)<0, 0, MIN(Vin, -P105/(Coss_Q1+Coss_Q2)*0.00000002)) -> 0 | R105: 9.631239579 | S105: =R105^2*Rdcr -> 0.2040737068 | T105: 0.2 | U105: =(T105+S105*(1+Ltc*(Ta-25)))/(1-S105*Ltc*ThetaCa) -> 0.4107800596 | V105: 0.7750972977 | W105: 0.0006007758209 | X105: 0.0006007758209 | Y105: 3.93702912 | Z105: 0.01550019829 | AA105: 0.01550019829 | AB105: 4.435329768 | AC105: =Rdson1*AB105^2 -> 0.07868860062 | AD105: 2.760135981 | AE105: 1.584 | AF105: 0 | AG105: =(AF105+AE105+AD105+AC105*(1+RdsonTopTc*Ta-RdsonTopTc*25))/(1-AC105*RdsonTopTc*ThetaJA_Q1) -> 4.493542699 | AH105: 8.549188597 | AI105: =Rdson2*AH105^2 -> 0.2923545027 | AJ105: 0.473088 | AK105: =(AJ105+AI105*(1+RdsonBotTc*Ta-RdsonBotTc*25))/(1-AI105*RdsonBotTc*ThetaJA_Q2) -> 0.8129780621 | AL105: 0.473088 | AM105: 0.912384 | AN105: 0.3710431033 | AO105: 5.28e-05 | AP105: 2.112 | AQ105: 1.841230769 | AR105: 1.672 | AS105: 2.1120528 | AT105: =SUM(U105,X105,AA105,AG105,AK105,AL105,AM105,AS105,AN105) -> 9.601969698 | AU105: 48 | AV105: 0.8333048375 | AW105: 254.7858069 | AX105: 55.7032391 | AZ105: 83.33048375 | BA105: 0.4107800596 | BB105: 6.218904761 | BC105: 5.095716139 | BD105: 1.114064782 | BE105: 0.3710431033
G106: 97 | H106: 24 | I106: 1 | J106: 9.7 | K106: 9.7 | L106: =Vout*K106/(Vin*Efficiency) -> 2.24537037 | M106: 0.2121129175 | N106: =(Vin-(Rdson1+Rdcr)*K106-Vout)*M106/(Fsw*Lf) -> 2.685420428 | O106: 11.04271021 | P106: 8.357289786 | Q106: =IF(MIN(Vin, -P106/(Coss_Q1+Coss_Q2)*0.00000002)<0, 0, MIN(Vin, -P106/(Coss_Q1+Coss_Q2)*0.00000002)) -> 0 | R106: 9.730927854 | S106: =R106^2*Rdcr -> 0.2083201052 | T106: 0.2 | U106: =(T106+S106*(1+Ltc*(Ta-25)))/(1-S106*Ltc*ThetaCa) -> 0.4152403381 | V106: 0.7752141036 | W106: 0.0006009569064 | X106: 0.0006009569064 | Y106: 3.978046007 | Z106: 0.01582485003 | AA106: 0.01582485003 | AB106: 4.481648706 | AC106: =Rdson1*AB106^2 -> 0.0803407005 | AD106: 2.788887397 | AE106: 1.584 | AF106: 0 | AG106: =(AF106+AE106+AD106+AC106*(1+RdsonTopTc*Ta-RdsonTopTc*25))/(1-AC106*RdsonTopTc*ThetaJA_Q1) -> 4.525951724 | AH106: 8.637463851 | AI106: =Rdson2*AH106^2 -> 0.2984231271 | AJ106: 0.478016 | AK106: =(AJ106+AI106*(1+RdsonBotTc*Ta-RdsonBotTc*25))/(1-AI106*RdsonBotTc*ThetaJA_Q2) -> 0.8257220376 | AL106: 0.478016 | AM106: 0.921888 | AN106: 0.3787638276 | AO106: 5.28e-05 | AP106: 2.112 | AQ106: 1.841230769 | AR106: 1.672 | AS106: 2.1120528 | AT106: =SUM(U106,X106,AA106,AG106,AK106,AL106,AM106,AS106,AN106) -> 9.674060534 | AU106: 48.5 | AV106: 0.8337049117 | AW106: 256.7198902 | AX106: 56.49725388 | AZ106: 83.37049117 | BA106: 0.4152403381 | BB106: 6.273561762 | BC106: 5.134397804 | BD106: 1.129945078 | BE106: 0.3787638276
G107: 98 | H107: 24 | I107: 1 | J107: 9.8 | K107: 9.8 | L107: =Vout*K107/(Vin*Efficiency) -> 2.268518519 | M107: 0.2121518187 | N107: =(Vin-(Rdson1+Rdcr)*K107-Vout)*M107/(Fsw*Lf) -> 2.685825007 | O107: 11.1429125 | P107: 8.457087496 | Q107: =IF(MIN(Vin, -P107/(Coss_Q1+Coss_Q2)*0.00000002)<0, 0, MIN(Vin, -P107/(Coss_Q1+Coss_Q2)*0.00000002)) -> 0 | R107: 9.830622462 | S107: =R107^2*Rdcr -> 0.2126105036 | T107: 0.2 | U107: =(T107+S107*(1+Ltc*(Ta-25)))/(1-S107*Ltc*ThetaCa) -> 0.4197499637 | V107: 0.7753308954 | W107: 0.0006011379974 | X107: 0.0006011379974 | Y107: 4.019070882 | Z107: 0.01615293075 | AA107: 0.01615293075 | AB107: 4.52797893 | AC107: =Rdson1*AB107^2 -> 0.08201037275 | AD107: 2.817638814 | AE107: 1.584 | AF107: 0 | AG107: =(AF107+AE107+AD107+AC107*(1+RdsonTopTc*Ta-RdsonTopTc*25))/(1-AC107*RdsonTopTc*ThetaJA_Q1) -> 4.558416676 | AH107: 8.725740359 | AI107: =Rdson2*AH107^2 -> 0.3045541792 | AJ107: 0.482944 | AK107: =(AJ107+AI107*(1+RdsonBotTc*Ta-RdsonBotTc*25))/(1-AI107*RdsonBotTc*ThetaJA_Q2) -> 0.8385765796 | AL107: 0.482944 | AM107: 0.931392 | AN107: 0.386564552 | AO107: 5.28e-05 | AP107: 2.112 | AQ107: 1.841230769 | AR107: 1.672 | AS107: 2.1120528 | AT107: =SUM(U107,X107,AA107,AG107,AK107,AL107,AM107,AS107,AN107) -> 9.746450641 | AU107: 49 | AV107: 0.8340929446 | AW107: 258.6567698 | AX107: 57.29679698 | AZ107: 83.40929446 | BA107: 0.4197499637 | BB107: 6.328385256 | BC107: 5.173135396 | BD107: 1.14593594 | BE107: 0.386564552
G108: 99 | H108: 24 | I108: 1 | J108: 9.9 | K108: 9.9 | L108: =Vout*K108/(Vin*Efficiency) -> 2.291666667 | M108: 0.2121907186 | N108: =(Vin-(Rdson1+Rdcr)*K108-Vout)*M108/(Fsw*Lf) -> 2.686229537 | O108: 11.24311477 | P108: 8.556885231 | Q108: =IF(MIN(Vin, -P108/(Coss_Q1+Coss_Q2)*0.00000002)<0, 0, MIN(Vin, -P108/(Coss_Q1+Coss_Q2)*0.00000002)) -> 0 | R108: 9.930323212 | S108: =R108^2*Rdcr -> 0.216944902 | T108: 0.2 | U108: =(T108+S108*(1+Ltc*(Ta-25)))/(1-S108*Ltc*ThetaCa) -> 0.4243090366 | V108: 0.7754476733 | W108: 0.000601319094 | X108: 0.000601319094 | Y108: 4.060103666 | Z108: 0.01648444178 | AA108: 0.01648444178 | AB108: 4.57432035 | AC108: =Rdson1*AB108^2 -> 0.08369762666 | AD108: 2.84639023 | AE108: 1.584 | AF108: 0 | AG108: =(AF108+AE108+AD108+AC108*(1+RdsonTopTc*Ta-RdsonTopTc*25))/(1-AC108*RdsonTopTc*ThetaJA_Q1) -> 4.590937979 | AH108: 8.81401795 | AI108: =Rdson2*AH108^2 -> 0.3107476497 | AJ108: 0.487872 | AK108: =(AJ108+AI108*(1+RdsonBotTc*Ta-RdsonBotTc*25))/(1-AI108*RdsonBotTc*ThetaJA_Q2) -> 0.8515426235 | AL108: 0.487872 | AM108: 0.940896 | AN108: 0.3944452764 | AO108: 5.28e-05 | AP108: 2.112 | AQ108: 1.841230769 | AR108: 1.672 | AS108: 2.1120528 | AT108: =SUM(U108,X108,AA108,AG108,AK108,AL108,AM108,AS108,AN108) -> 9.819141477 | AU108: 49.5 | AV108: 0.8344692585 | AW108: 260.596467 | AX108: 58.10191517 | AZ108: 83.44692585 | BA108: 0.4243090366 | BB108: 6.383376603 | BC108: 5.211929339 | BD108: 1.162038303 | BE108: 0.3944452764
G109: 100 | H109: 24 | I109: 1 | J109: 10 | K109: 10 | L109: =Vout*K109/(Vin*Efficiency) -> 2.314814815 | M109: 0.2122296173 | N109: =(Vin-(Rdson1+Rdcr)*K109-Vout)*M109/(Fsw*Lf) -> 2.686634019 | O109: 11.34331701 | P109: 8.65668299 | Q109: =IF(MIN(Vin, -P109/(Coss_Q1+Coss_Q2)*0.00000002)<0, 0, MIN(Vin, -P109/(Coss_Q1+Coss_Q2)*0.00000002)) -> 0 | R109: 10.03002992 | S109: =R109^2*Rdcr -> 0.2213233004 | T109: 0.2 | U109: =(T109+S109*(1+Ltc*(Ta-25)))/(1-S109*Ltc*ThetaCa) -> 0.4289176582 | V109: 0.7755644371 | W109: 0.000601500196 | X109: 0.000601500196 | Y109: 4.101144282 | Z109: 0.01681938442 | AA109: 0.01681938442 | AB109: 4.620672882 | AC109: =Rdson1*AB109^2 -> 0.08540247155 | AD109: 2.875141646 | AE109: 1.584 | AF109: 0 | AG109: =(AF109+AE109+AD109+AC109*(1+RdsonTopTc*Ta-RdsonTopTc*25))/(1-AC109*RdsonTopTc*ThetaJA_Q1) -> 4.623516058 | AH109: 8.902296463 | AI109: =Rdson2*AH109^2 -> 0.3170035292 | AJ109: 0.4928 | AK109: =(AJ109+AI109*(1+RdsonBotTc*Ta-RdsonBotTc*25))/(1-AI109*RdsonBotTc*ThetaJA_Q2) -> 0.8646211184 | AL109: 0.4928 | AM109: 0.9504 | AN109: 0.4024060008 | AO109: 5.28e-05 | AP109: 2.112 | AQ109: 1.841230769 | AR109: 1.672 | AS109: 2.1120528 | AT109: =SUM(U109,X109,AA109,AG109,AK109,AL109,AM109,AS109,AN109) -> 9.89213452 | AU109: 50 | AV109: 0.8348341631 | AW109: 262.5390029 | AX109: 58.91265592 | AZ109: 83.48341631 | BA109: 0.4289176582 | BB109: 6.438537176 | BC109: 5.250780058 | BD109: 1.178253118 | BE109: 0.4024060008

Sheet Efficiency Plot Management (hidden)
A2: =IF(PLOT_TYPE=1, "EFF_Ch1", "EFF_Ch2") -> EFF_Ch1

Sheet Input Filter Calculations (hidden)
AD2: AEF comparison Values
D3: =L_infilter*0.000001 -> 6.8e-07 | L3: Lfilter Passive | M3: ='Input Filters'!O9*0.000001 -> 6.8e-07 | AD3: Lfilter | AE3: ='Input Filters'!G9*0.000001 -> 1e-06
L4: Cfilter Passive | M4: ='Input Filters'!O10*0.000001 -> 4.7e-07 | AD4: Cinj | AE4: ='Input Filters'!G10*0.000001 -> 1e-06
L5: Cdamp passive | M5: ='Input Filters'!O11*0.000001 -> 1e-06 | AD5: Cdamp | AE5: ='Input Filters'!G11*0.000001 -> 1e-06
L6: Rdamp passive | M6: ='Input Filters'!O12 -> 0.35 | AD6: Rdamp | AE6: ='Input Filters'!G12 -> 10
A10: Freq (Hz) | B10: (kHz) | W10: AEF | AA10: Passive | AD10: AEFCompare
I11: AEF Numerator | L11: AEF Denominator | Q11: Passive | W11: Magnitude | X11: Phase | AA11: Magnitude | AB11: Phase | AD11: AEF Numerator | AF11: AEF Denominator
C12: jω | D12: -ω^2 | E12: -jω^3 | G12: Gop | Q12: Numerator | R12: Denominator | AM12: Magnitude | AN12: Phase
A13: 1 | B13: =A13/1000 -> 0.001 | C13: =COMPLEX(0,2*Pi*A13) -> 6.2831853i | D13: =COMPLEX(-POWER(2*Pi*A13,2),0) -> -39.4784175141361 | E13: =COMPLEX(0,-POWER(2*Pi*A13,3)) -> -248.050212592082i | G13: =IMSUM(IMPRODUCT(C13,Rcomp_AEF*Csen_AEF),Csen_AEF/Ccomp_AEF) ->  | I13: =IMPRODUCT((RdampSel*CdampSel+RdampSel*CinjSel),C13) ->  | J13: =IMSUM(1,I13) ->  | L13: =IMPRODUCT(G13,L_infilterStd*RdampSel*CinjSel*CdampSel,E13) ->  | M13: =IMPRODUCT(G13,L_infilterStd*CinjSel,D13) ->  | N13: =J13 ->  | O13: =IMSUM(L13:N13) ->  | P13: 0 | Q13: =IMSUM(IMPRODUCT(C13,RdampPssv*CdampPssv),1) -> 1+0.000002199114855i | R13: =IMPRODUCT(RdampPssv*CdampPssv*CfilterPssv*LinfilterPssv,E13) -> -2.77468967805503E-17i | S13: =IMPRODUCT(D13,LinfilterPssv*(CfilterPssv+CdampPssv)) -> -3.94626261471304E-11 | T13: =IMSUM(S13,R13,Q13) -> 0.999999999960537+2.19911485497225E-06i | U13: 1 | V13: =CHOOSE(INFILTER_TYPE,U13,IMDIV(J13,O13)) -> 1 | W13: =20*LOG10(IMABS(V13)) -> 0 | X13: =IMARGUMENT(V13)*180/Pi -> 0 | Z13: =IMDIV(Q13,T13) -> 1.00000000003946-5.9033537744459E-17i | AA13: =20*LOG10(IMABS(Z13)) -> 3.427451255e-10 | AB13: =IMARGUMENT(Z13)*180/Pi -> -3.382372566e-15 | AD13: =IMPRODUCT((RdampCom*CdampCom+RdampCom*CinjCom),C13) -> 0.000125663706i | AE13: =IMSUM(1,AD13) -> 1+0.000125663706i | AF13: =IMPRODUCT(G13,L_infilterStd*RdampSel*CinjSel*CdampSel,E13) ->  | AG13: =IMPRODUCT(G13,LAEFCom*CinjCom,D13) ->  | AH13: =AE13 -> 1+0.000125663706i | AI13: =IMSUM(AF13:AH13) ->  | AK13: =IMDIV(AE13,AI13) ->  | AM13: =20*LOG10(IMABS(AK13)) ->  | AN13: =IMARGUMENT(AK13)*180/Pi -> 
A14: 2 | B14: =A14/1000 -> 0.002 | C14: 12.5663706i | D14: -157.913670056544 | E14: -1984.40170073666i | J14: =IMSUM(1,I14) ->  | N14: =J14 ->  | O14: =IMSUM(L14:N14) ->  | P14: 0 | Q14: 1+0.00000439822971i | R14: -2.21975174244403E-16i | S14: -1.57850504588521E-10 | T14: =IMSUM(S14,R14,Q14) -> 0.999999999842149+4.39822970977802E-06i | U14: 1 | V14: =CHOOSE(INFILTER_TYPE,U14,IMDIV(J14,O14),IMDIV(Q14,T14)) -> 1 | W14: =20*LOG10(IMABS(V14)) -> 0 | X14: 0 | Z14: 1.00000000015785-4.72284395630731E-16i | AA14: =20*LOG10(IMABS(Z14)) -> 1.371067291e-09 | AB14: -2.705990263e-14 | AD14: 0.000251327412i | AE14: =IMSUM(1,AD14) -> 1+0.000251327412i | AH14: =AE14 -> 1+0.000251327412i | AI14: =IMSUM(AF14:AH14) ->  | AK14: =IMDIV(AE14,AI14) ->  | AM14: =20*LOG10(IMABS(AK14)) -> 
A15: 3 | B15: 0.003 | C15: 18.8495559i | D15: -355.305757627225 | E15: -6697.35573998623i | P15: 0 | Q15: 1+0.000006597344565i | R15: -7.4916621307486E-16i | S15: -3.55163635324174E-10 | T15: 0.999999999644836+6.59734456425083E-06i | U15: 1 | V15: 1 | W15: 0 | X15: 0 | Z15: 1.00000000035516-1.59396947052946E-15i | AA15: 3.084879708e-09 | AB15: -9.132772341e-14 | AD15: 0.000376991118i | AE15: 1+0.000376991118i | AH15: 1+0.000376991118i
A16: 4 | B16: 0.004 | C16: 25.1327412i | D16: -631.654680226178 | E16: -15875.2136058933i | P16: 0 | Q16: 1+0.00000879645942i | R16: -1.77580139395522E-15i | S16: -6.31402018354088E-10 | T16: 0.999999999368598+0.0000087964594182242i | U16: 1 | V16: 1 | W16: 0 | X16: 0 | Z16: 1.0000000006314-3.77830227167012E-15i | AA16: 5.484271092e-09 | AB16: -2.16480774e-13 | AD16: 0.000502654824i | AE16: 1+0.000502654824i | AH16: 1+0.000502654824i
A17: 5 | B17: 0.005 | C17: 31.4159265i | D17: -986.960437853402 | E17: -31006.2765740103i | P17: 0 | Q17: 1+0.000010995574275i | R17: -3.46836209756879E-15i | S17: -9.86565653678261E-10 | T17: 0.999999999013434+0.0000109955742715316i | U17: 1 | V17: 1 | W17: 0 | X17: 0 | Z17: 1.00000000098657-7.37945946308484E-15i | AA17: 8.569237588e-09 | AB17: -4.228118824e-13 | AD17: 0.00062831853i | AE17: 1+0.00062831853i | AH17: 1+0.00062831853i
A18: 6 | B18: 0.006 | C18: 37.6991118i | D18: -1421.2230305089 | E18: -53578.8459198898i | P18: 0 | Q18: 1+0.00001319468913i | R18: -5.99332970459887E-15i | S18: -1.4206545412967E-09 | T18: 0.999999998579345+0.0000131946891240067i | U18: 1 | V18: 1 | W18: 0 | X18: 0 | Z18: 1.00000000142066-1.27518015159367E-14i | AA18: 1.233969626e-08 | AB18: -7.306244078e-13 | AD18: 0.000753982236i | AE18: 1+0.000753982236i | AH18: 1+0.000753982236i
A19: 7 | B19: 0.007 | C19: 43.9822971i | D19: -1934.44245819267 | E19: -85081.2229190843i | P19: 0 | Q19: 1+0.000015393803985i | R19: -9.51718559572877E-15i | S19: -1.93366868120939E-09 | T19: 0.999999998066331+0.0000153938039754828i | U19: 1 | V19: 1 | W19: 0 | X19: 0 | Z19: 1.00000000193367-2.02493221373488E-14i | AA19: 1.679564325e-08 | AB19: -1.160200696e-12 | AD19: 0.000879645942i | AE19: 1+0.000879645942i | AH19: 1+0.000879645942i
A20: 8 | B20: 0.008 | C20: 50.2654824i | D20: -2526.61872090471 | E20: -127001.708847146i | P20: 0 | Q20: 1+0.00001759291884i | R20: -1.42064111516417E-14i | S20: -2.52560807341635E-09 | T20: 0.999999997474392+0.0000175929188257936i | U20: 1 | V20: 1 | W20: 0 | X20: 0 | Z20: 1.00000000252561-3.02264148354676E-14i | AA20: 2.193716921e-08 | AB20: -1.731845997e-12 | AD20: 0.001005309648i | AE20: 1+0.001005309648i | AH20: 1+0.001005309648i
A21: 9 | B21: 0.009 | C21: 56.5486677i | D21: -3197.75181864502 | E21: -180828.604979628i | P21: 0 | Q21: 1+0.000019792033695i | R21: -2.02274877530212E-14i | S21: -3.19647271791756E-09 | T21: 0.999999996803527+0.0000197920336747725i | U21: 1 | V21: 1 | W21: 0 | X21: 0 | Z21: 1.00000000319647-4.30372020696133E-14i | AA21: 2.776418541e-08 | AB21: -2.465850036e-12 | AD21: 0.001130973354i | AE21: 1+0.001130973354i | AH21: 1+0.001130973354i
A22: 10 | B22: 0.01 | C22: 62.831853i | D22: -3947.84175141361 | E22: -248050.212592082i | P22: 0 | Q22: 1+0.00002199114855i | R22: -2.77468967805503E-14i | S22: -3.94626261471304E-09 | T22: 0.999999996053737+0.0000219911485222531i | U22: 1 | V22: 1 | W22: 0 | X22: 0 | Z22: 1.00000000394626-5.90359570729332E-14i | AA22: 3.427677865e-08 | AB22: -3.38251117e-12 | AD22: 0.00125663706i | AE22: 1+0.00125663706i | AH22: 1+0.00125663706i
A23: 20 | B23: 0.02 | C23: 125.663706i | D23: -15791.3670056544 | E23: -1984401.70073666i | P23: 0 | Q23: 1+0.0000439822971i | R23: -2.21975174244403E-13i | S23: -1.57850504588521E-08 | T23: 0.99999998421495+0.0000439822968780248i | U23: 1 | V23: 1 | W23: 0 | X23: 0 | Z23: 1.00000001578505-4.72287580174405E-13i | AA23: 1.371072006e-07 | AB23: -2.706008466e-11 | AD23: 0.00251327412i | AE23: 1+0.00251327412i | AH23: 1+0.00251327412i
A24: 30 | B24: 0.03 | C24: 188.495559i | D24: -35530.5757627225 | E24: -6697355.73998623i | P24: 0 | Q24: 1+0.00006597344565i | R24: -7.4916621307486E-13i | S24: -3.55163635324174E-08 | T24: 0.999999964483636+0.0000659734449008338i | U24: 1 | V24: 1 | W24: 0 | X24: 0 | Z24: 1.00000003551637-1.59397081397336E-12i | AA24: 3.084912653e-07 | AB24: -9.132779717e-11 | AD24: 0.00376991118i | AE24: 1+0.00376991118i | AH24: 1+0.00376991118i
A25: 40 | B25: 0.04 | C25: 251.327412i | D25: -63165.4680226178 | E25: -15875213.6058933i | P25: 0 | Q25: 1+0.0000879645942i | R25: -1.77580139395522E-12i | S25: -6.31402018354088E-08 | T25: 0.999999936859798+0.0000879645924241986i | U25: 1 | V25: 1 | W25: 0 | X25: 0 | Z25: 1.00000006314021-3.77830129983406E-12i | AA25: 5.48428878e-07 | AB25: -2.164807048e-10 | AD25: 0.00502654824i | AE25: 1+0.00502654824i | AH25: 1+0.00502654824i
A26: 50 | B26: 0.05 | C26: 314.159265i | D26: -98696.0437853402 | E26: -31006276.5740103i | P26: 0 | Q26: 1+0.00010995574275i | R26: -3.46836209756879E-12i | S26: -9.86565653678261E-08 | T26: 0.999999901343435+0.000109955739281638i | U26: 1 | V26: 1 | W26: 0 | X26: 0 | Z26: 1.00000009865657-7.37949525076775E-12i | AA26: 8.56920037e-07 | AB26: -4.228138916e-10 | AD26: 0.0062831853i | AE26: 1+0.0062831853i | AH26: 1+0.0062831853i
A27: 60 | B27: 0.06 | C27: 376.991118i | D27: -142122.30305089 | E27: -53578845.9198898i | P27: 0 | Q27: 1+0.0001319468913i | R27: -5.99332970459887E-12i | S27: -1.4206545412967E-07 | T27: 0.999999857934546+0.00013194688530667i | U27: 1 | V27: 1 | W27: 0 | X27: 0 | Z27: 1.00000014206547-1.27517683815965E-11i | AA27: 1.233964907e-06 | AB27: -7.306224066e-10 | AD27: 0.00753982236i | AE27: 1+0.00753982236i | AH27: 1+0.00753982236i
A28: 70 | B28: 0.07 | C28: 439.822971i | D28: -193444.245819267 | E28: -85081222.9190843i | P28: 0 | Q28: 1+0.00015393803985i | R28: -9.51718559572877E-12i | S28: -1.93366868120939E-07 | T28: 0.999999806633132+0.000153938030332814i | U28: 1 | V28: 1 | W28: 0 | X28: 0 | Z28: 1.0000001933669-2.02493379799158E-11i | AA28: 1.679563391e-06 | AB28: -1.160201381e-09 | AD28: 0.00879645942i | AE28: 1+0.00879645942i | AH28: 1+0.00879645942i
A29: 80 | B29: 0.08 | C29: 502.654824i | D29: -252661.872090471 | E29: -127001708.847146i | P29: 0 | Q29: 1+0.0001759291884i | R29: -1.42064111516417E-11i | S29: -2.52560807341635E-07 | T29: 0.999999747439193+0.000175929174193589i | U29: 1 | V29: 1 | W29: 0 | X29: 0 | Z29: 1.00000025256087-3.02264211687963E-11i | AA29: 2.193715567e-06 | AB29: -1.731845927e-09 | AD29: 0.01005309648i | AE29: 1+0.01005309648i | AH29: 1+0.01005309648i
A30: 90 | B30: 0.09 | C30: 565.486677i | D30: -319775.181864502 | E30: -180828604.979628i | P30: 0 | Q30: 1+0.00019792033695i | R30: -2.02274877530212E-11i | S30: -3.19647271791756E-07 | T30: 0.999999680352728+0.000197920316722512i | U30: 1 | V30: 1 | W30: 0 | X30: 0 | Z30: 1.00000031964737-4.30372335896138E-11i | AA30: 2.776421334e-06 | AB30: -2.465851061e-09 | AD30: 0.01130973354i | AE30: 1+0.01130973354i | AH30: 1+0.01130973354i
A31: 100 | B31: 0.1 | C31: 628.31853i | D31: -394784.175141361 | E31: -248050212.592082i | P31: 0 | Q31: 1+0.0002199114855i | R31: -2.77468967805503E-11i | S31: -3.94626261471305E-07 | T31: 0.999999605373739+0.000219911457753103i | U31: 1 | V31: 1 | W31: 0 | X31: 0 | Z31: 1.0000003946264-5.90359940073355E-11i | AA31: 3.427680682e-06 | AB31: -3.382511965e-09 | AD31: 0.0125663706i | AE31: 1+0.0125663706i | AH31: 1+0.0125663706i
A32: 200 | B32: 0.2 | C32: 1256.63706i | D32: -1579136.70056544 | E32: -1984401700.73666i | P32: 0 | Q32: 1+0.000439822971i | R32: -2.21975174244403E-10i | S32: -1.57850504588521E-06 | T32: 0.999998421494954+0.000439822749024826i | U32: 1 | V32: 1 | W32: 0 | X32: 0 | Z32: 1.00000157850733-4.72289004721146E-10i | AA32: 1.371072964e-05 | AB32: -2.7060124e-08 | AD32: 0.0251327412i | AE32: 1+0.0251327412i | AH32: 1+0.0251327412i
A33: 300 | B33: 0.3 | C33: 1884.95559i | D33: -3553057.57627225 | E33: -6697355739.98623i | P33: 0 | Q33: 1+0.0006597344565i | R33: -7.4916621307486E-10i | S33: -3.55163635324174E-06 | T33: 0.999996448363647+0.000659733707333787i | U33: 1 | V33: 1 | W33: 0 | X33: 0 | Z33: 1.00000355164792-1.59398129480179E-09i | AA33: 3.084916708e-05 | AB33: -9.132807655e-08 | AD33: 0.0376991118i | AE33: 1+0.0376991118i | AH33: 1+0.0376991118i
A34: 400 | B34: 0.4 | C34: 2513.27412i | D34: -6316546.80226177 | E34: -15875213605.8933i | P34: 0 | Q34: 1+0.000879645942i | R34: -1.77580139395522E-09i | S34: -6.31402018354087E-06 | T34: 0.999993685979816+0.000879644166198606i | U34: 1 | V34: 1 | W34: 0 | X34: 0 | Z34: 1.00000631405673-3.77834562794476E-09i | AA34: 5.484302678e-05 | AB34: -2.164818914e-07 | AD34: 0.0502654824i | AE34: 1+0.0502654824i | AH34: 1+0.0502654824i
A35: 500 | B35: 0.5 | C35: 3141.59265i | D35: -9869604.37853402 | E35: -31006276574.0103i | P35: 0 | Q35: 1+0.0010995574275i | R35: -3.46836209756879E-09i | S35: -9.86565653678261E-06 | T35: 0.999990134343463+0.0010995539591379i | U35: 1 | V35: 1 | W35: 0 | X35: 0 | Z35: 1.00000986574575-7.37963050952798E-09i | AA35: 8.569235607e-05 | AB35: -4.228175116e-07 | AD35: 0.062831853i | AE35: 1+0.062831853i | AH35: 1+0.062831853i
A36: 600 | B36: 0.6 | C36: 3769.91118i | D36: -14212230.305089 | E36: -53578845919.8898i | P36: 0 | Q36: 1+0.001319468913i | R36: -5.99332970459887E-09i | S36: -0.000014206545412967 | T36: 0.999985793454587+0.0013194629196703i | U36: 1 | V36: 1 | W36: 0 | X36: 0 | Z36: 1.00001420673042-1.27521054564846E-08i | AA36: 0.000123397216 | AB36: -7.306314435e-07 | AD36: 0.0753982236i | AE36: 1+0.0753982236i | AH36: 1+0.0753982236i
A37: 700 | B37: 0.7 | C37: 4398.22971i | D37: -19344424.5819267 | E37: -85081222919.0843i | P37: 0 | Q37: 1+0.0015393803985i | R37: -9.51718559572877E-09i | S37: -0.0000193366868120939 | T37: 0.999980663313188+0.0015393708813144i | U37: 1 | V37: 1 | W37: 0 | X37: 0 | Z37: 1.00001933702955-2.02500661951286E-08i | AA37: 0.0001679576807 | AB37: -1.160220894e-06 | AD37: 0.0879645942i | AE37: 1+0.0879645942i | AH37: 1+0.0879645942i
A38: 800 | B38: 0.8 | C38: 5026.54824i | D38: -25266187.2090471 | E38: -127001708847.146i | P38: 0 | Q38: 1+0.001759291884i | R38: -1.42064111516417E-08i | S38: -0.0000252560807341635 | T38: 0.999974743919266+0.00175927767758885i | U38: 1 | V38: 1 | W38: 0 | X38: 0 | Z38: 1.00002525666544-3.02278400042037E-08i | AA38: 0.0002193738383 | AB38: -1.731883916e-06 | AD38: 0.1005309648i | AE38: 1+0.1005309648i | AH38: 1+0.1005309648i
A39: 900 | B39: 0.9 | C39: 5654.86677i | D39: -31977518.1864502 | E39: -180828604979.628i | P39: 0 | Q39: 1+0.0019792033695i | R39: -2.02274877530212E-08i | S39: -0.0000319647271791756 | T39: 0.999968035272821+0.00197918314201225i | U39: 1 | V39: 1 | W39: 0 | X39: 0 | Z39: 1.00003196566377-4.30397908600739E-08i | AA39: 0.0002776457902 | AB39: -2.465919545e-06 | AD39: 0.1130973354i | AE39: 1+0.1130973354i | AH39: 1+0.1130973354i
A40: 1000 | B40: 1 | C40: 6283.1853i | D40: -39478417.5141361 | E40: -248050212592.082i | P40: 0 | Q40: 1+0.002199114855i | R40: -2.77468967805503E-08i | S40: -0.0000394626261471304 | T40: 0.999960537373853+0.00219908710810322i | U40: 1 | V40: 1 | W40: 0 | X40: 0 | Z40: 1.00003946405367-5.90403247598128E-08i | AA40: 0.0003427736513 | AB40: -3.382627941e-06 | AD40: 0.125663706i | AE40: 1+0.125663706i | AH40: 1+0.125663706i
A41: 2000 | B41: 2 | C41: 12566.3706i | D41: -157913670.056544 | E41: -1984401700736.66i | P41: 0 | Q41: 1+0.00439822971i | R41: -2.21975174244403E-07i | S41: -0.000157850504588521 | T41: 0.999842149495412+0.00439800773482576i | U41: 1 | V41: 1 | W41: 0 | X41: 0 | Z41: 1.00015787334724-4.72427600959129E-07i | AA41: 0.00137116224 | AB41: -2.706383503e-05 | AD41: 0.251327412i | AE41: 1+0.251327412i | AH41: 1+0.251327412i
A42: 3000 | B42: 3 | C42: 18849.5559i | D42: -355305757.627225 | E42: -6697355739986.23i | P42: 0 | Q42: 1+0.006597344565i | R42: -7.4916621307486E-07i | S42: -0.000355163635324174 | T42: 0.999644836364676+0.00659659539878692i | U42: 1 | V42: 1 | W42: 0 | X42: 0 | Z42: 1.00035527929582-1.59503405307709E-06i | AA42: 0.003085368714 | AB42: -9.135626254e-05 | AD42: 0.376991118i | AE42: 1+0.376991118i | AH42: 1+0.376991118i
A43: 4000 | B43: 4 | C43: 25132.7412i | D43: -631654680.226177 | E43: -15875213605893.3i | P43: 0 | Q43: 1+0.00879645942i | R43: -1.77580139395522E-06i | S43: -0.000631402018354087 | T43: 0.999368597981646+0.00879468361860604i | U43: 1 | V43: 1 | W43: 0 | X43: 0 | Z43: 1.00063176764934-3.78278365967147E-06i | AA43: 0.00548573147 | AB43: -0.0002166006974 | AD43: 0.502654824i | AE43: 1+0.502654824i | AH43: 1+0.502654824i
A44: 5000 | B44: 5 | C44: 31415.9265i | D44: -986960437.853402 | E44: -31006276574010.3i | P44: 0 | Q44: 1+0.010995574275i | R44: -3.46836209756879E-06i | S44: -0.000986565653678261 | T44: 0.999013434346322+0.0109921059129024i | U44: 1 | V44: 1 | W44: 0 | X44: 0 | Z44: 1.00098745857977-7.39318105431537E-06i | AA44: 0.008572724574 | AB44: -0.0004231801991 | AD44: 0.62831853i | AE44: 1+0.62831853i | AH44: 1+0.62831853i
A45: 6000 | B45: 6 | C45: =COMPLEX(0,2*Pi*A45) -> 37699.1118i | D45: =COMPLEX(-POWER(2*Pi*A45,2),0) -> -1421223030.5089 | E45: =COMPLEX(0,-POWER(2*Pi*A45,3)) -> -53578845919889.8i | G45: =IMSUM(IMPRODUCT(C45,Rcomp_AEF*Csen_AEF),Csen_AEF/Ccomp_AEF) ->  | I45: =IMPRODUCT((RdampSel*CdampSel+RdampSel*CinjSel),C45) ->  | L45: =IMPRODUCT(G45,L_infilterStd*RdampSel*CinjSel*CdampSel,E45) ->  | M45: =IMPRODUCT(G45,L_infilterStd*CinjSel,D45) ->  | P45: 0 | Q45: =IMSUM(IMPRODUCT(C45,RdampPssv*CdampPssv),1) -> 1+0.01319468913i | R45: =IMPRODUCT(RdampPssv*CdampPssv*CfilterPssv*LinfilterPssv,E45) -> -5.99332970459887E-06i | S45: =IMPRODUCT(D45,LinfilterPssv*(CfilterPssv+CdampPssv)) -> -0.0014206545412967 | T45: 0.998579345458703+0.0131886958002954i | U45: 1 | V45: =CHOOSE(INFILTER_TYPE,U45,IMDIV(J45,O45),IMDIV(Q45,T45)) -> 1 | W45: 0 | X45: =IMARGUMENT(V45)*180/Pi -> 0 | Z45: =IMDIV(Q45,T45) -> 1.00142250680344-0.000012785844067251i | AA45: 0.01234695808 | AB45: =IMARGUMENT(Z45)*180/Pi -> -0.0007315342909 | AD45: =IMPRODUCT((RdampCom*CdampCom+RdampCom*CinjCom),C45) -> 0.753982236i | AE45: 1+0.753982236i | AF45: =IMPRODUCT(G45,L_infilterStd*RdampSel*CinjSel*CdampSel,E45) ->  | AG45: =IMPRODUCT(G45,LAEFCom*CinjCom,D45) ->  | AH45: 1+0.753982236i | AN45: =IMARGUMENT(AK45)*180/Pi -> 
A46: 7000 | B46: 7 | C46: 43982.2971i | D46: -1934442458.19267 | E46: -85081222919084.3i | P46: 0 | Q46: 1+0.015393803985i | R46: -9.51718559572877E-06i | S46: -0.00193366868120939 | T46: 0.998066331318791+0.0153842867994043i | U46: 1 | V46: 1 | W46: 0 | X46: 0 | Z46: 1.00193710173868-0.0000203230411399365i | AA46: 0.01680917842 | AB46: -0.001162173238 | AD46: 0.879645942i | AE46: 1+0.879645942i | AH46: 1+0.879645942i
A47: 8000 | B47: 8 | C47: 50265.4824i | D47: -2526618720.90471 | E47: -127001708847146i | P47: 0 | Q47: 1+0.01759291884i | R47: -0.0000142064111516418i | S47: -0.00252560807341635 | T47: 0.997474391926584+0.0175787124288484i | U47: 1 | V47: 1 | W47: 0 | X47: 0 | Z47: 1.00253146769905-0.0000303702348632679i | AA47: 0.0219602689 | AB47: -0.001735692433 | AD47: 1.005309648i | AE47: 1+1.005309648i | AH47: 1+1.005309648i
A48: 9000 | B48: 9 | C48: 56548.6677i | D48: -3197751818.64502 | E48: -180828604979628i | P48: 0 | Q48: 1+0.019792033695i | R48: -0.0000202274877530212i | S48: -0.00319647271791756 | T48: 0.996803527282082+0.019771806207247i | U48: 1 | V48: 1 | W48: 0 | X48: 0 | Z48: 1.00320586412249-0.0000432966329094656i | AA48: 0.02780125032 | AB48: -0.002472786915 | AD48: 1.130973354i | AE48: 1+1.130973354i | AH48: 1+1.130973354i
A49: 10000 | B49: 10 | C49: 62831.853i | D49: -3947841751.41361 | E49: -248050212592082i | P49: 0 | Q49: 1+0.02199114855i | R49: -0.0000277468967805503i | S49: -0.00394626261471305 | T49: 0.996053737385287+0.0219634016532194i | U49: 1 | V49: 1 | W49: 0 | X49: 0 | Z49: 1.0039605858368-0.0000594757476545141i | AA49: 0.03433328159 | AB49: -0.003394266042 | AD49: 1.25663706i | AE49: 1+1.25663706i | AH49: 1+1.25663706i
A50: 11000 | B50: 11 | C50: 69115.0383i | D50: -4776888519.21047 | E50: -330154832960062i | N50: =J50 ->  | O50: =IMSUM(L50:N50) ->  | P50: 0 | Q50: 1+0.024190263405i | R50: -0.0000369311196149125i | S50: -0.00477497776380279 | T50: =IMSUM(S50,R50,Q50) -> 0.995225022236197+0.0241533322853851i | U50: 1 | V50: 1 | W50: 0 | X50: 0 | Z50: 1.00479596336193-0.0000792859658181959i | AA50: 0.04155766053 | AB50: -0.004521068334 | AD50: 1.382300766i | AE50: 1+1.382300766i | AH50: 1+1.382300766i
A51: 12000 | B51: 12 | C51: 75398.2236i | D51: -5684892122.0356 | E51: -428630767359119i | N51: =J51 ->  | O51: =IMSUM(L51:N51) ->  | P51: 0 | Q51: 1+0.02638937826i | R51: -0.000047946637636791i | S51: -0.00568261816518679 | T51: =IMSUM(S51,R51,Q51) -> 0.994317381834813+0.0263414316223632i | U51: 1 | V51: 1 | W51: 0 | X51: 0 | Z51: 1.00571236324959-0.000103111129481765i | AA51: 0.04947582475 | AB51: -0.005874276525 | AD51: 1.507964472i | AE51: 1+1.507964472i | AH51: 1+1.507964472i
A52: 13000 | B52: 13 | C52: 81681.4089i | D52: -6671852559.889 | E52: -544966317064805i | N52: =J52 ->  | O52: =IMSUM(L52:N52) ->  | P52: 0 | Q52: 1+0.028588493115i | R52: -0.0000609599322268691i | S52: -0.00666918381886504 | T52: =IMSUM(S52,R52,Q52) -> 0.993330816181135+0.0285275331827731i | U52: 1 | V52: 1 | W52: 0 | X52: 0 | Z52: 1.00671018846073-0.00013134112988737i | AA52: 0.05808935257 | AB52: -0.007475132835 | AD52: 1.633628178i | AE52: 1+1.633628178i | AH52: 1+1.633628178i
A53: 15000 | B53: 15 | C53: 94247.7795i | D53: -8882643940.68062 | E53: -837169467498278i | N53: =J53 ->  | O53: =IMSUM(L53:N53) ->  | P53: 0 | Q53: 1+0.032986722825i | R53: -0.0000936457766343574i | S53: -0.00887909088310435 | T53: =IMSUM(S53,R53,Q53) -> 0.991120909116896+0.0328930770483656i | U53: 1 | V53: 1 | W53: 0 | X53: 0 | Z53: 1.00895191127968-0.00020260911556929i | AA53: 0.07740952239 | AB53: -0.01150564952 | AD53: 1.88495559i | AE53: 1+1.88495559i | AH53: 1+1.88495559i
A54: 16000 | B54: 16 | C54: 100530.9648i | D54: -10106474883.6188 | E54: -1016013670777170i | N54: =J54 ->  | O54: =IMSUM(L54:N54) ->  | P54: 0 | Q54: 1+0.03518583768i | R54: -0.000113651289213134i | S54: -0.0101024322936654 | T54: =IMSUM(S54,R54,Q54) -> 0.989897567706335+0.0350721863907869i | U54: 1 | V54: 1 | W54: 0 | X54: 0 | Z54: 1.01019680079824-0.000246462681525396i | AA54: 0.08812003465 | AB54: -0.01397873284 | AD54: 2.010619296i | AE54: 1+2.010619296i | AH54: 1+2.010619296i
A55: 17500 | B55: 17.5 | C55: 109955.74275i | D55: -12090265363.7042 | E55: -1329394108110690i | P55: 0 | Q55: 1+0.0384845099625i | R55: -0.000148706024933262i | S55: -0.0120854292575587 | T55: 0.987914570742441+0.0383358039375667i | U55: 1 | V55: 1 | W55: 0 | X55: 0 | Z55: 1.01222071263725-0.000323696833892721i | AA55: 0.105504841 | AB55: -0.01832254723 | AD55: 2.199114855i | AE55: 1+2.199114855i | AH55: 1+2.199114855i
A56: 19000 | B56: 19 | C56: 119380.5207i | D56: -14251708722.6031 | E56: -1701376408169090i | P56: 0 | Q56: 1+0.041783182245i | R56: -0.000190315965017794i | S56: -0.0142460080391141 | T56: 0.985753991960886+0.0415928662799822i | U56: 1 | V56: 1 | W56: 0 | X56: 0 | Z56: 1.01443433812182-0.000415975520938413i | AA56: 0.1244795592 | AB56: -0.02349451268 | AD56: 2.387610414i | AE56: 1+2.387610414i | AH56: 1+2.387610414i
A57: 20000 | B57: 20 | C57: 125663.706i | D57: -15791367005.6544 | E57: -1984401700736660i | P57: 0 | Q57: 1+0.0439822971i | R57: -0.000221975174244403i | S57: -0.0157850504588521 | T57: 0.984214949541148+0.0437603219257556i | U57: 1 | V57: 1 | W57: 0 | X57: 0 | Z57: 1.01601657935512-0.000486596443905099i | AA57: 0.1380168926 | AB57: -0.02744041882 | AD57: 2.51327412i | AE57: 1+2.51327412i | AH57: 1+2.51327412i
A58: 25000 | B58: 25 | C58: 157079.6325i | D58: -24674010946.3351 | E58: -3875784571751290i | P58: 0 | Q58: 1+0.054977871375i | R58: -0.000433545262196099i | S58: -0.0246641413419566 | T58: 0.975335858658043+0.0545443261128039i | U58: 1 | V58: 1 | W58: 0 | X58: 0 | Z58: 1.02523378537434-0.000966656304033977i | AA58: 0.2164620491 | AB58: -0.05402212734 | AD58: 3.14159265i | AE58: 1+3.14159265i | AH58: 1+3.14159265i
A59: 30000 | B59: 30 | C59: 188495.559i | D59: -35530575762.7225 | E59: -6697355739986230i | P59: 0 | Q59: 1+0.06597344565i | R59: -0.00074916621307486i | S59: -0.0355163635324174 | T59: 0.964483636467583+0.0652242794369251i | U59: 1 | V59: 1 | W59: 0 | X59: 0 | Z59: 1.03670887459481-0.00170572482425677i | AA59: 0.3131480821 | AB59: -0.09427019268 | AD59: 3.76991118i | AE59: 1+3.76991118i | AH59: 1+3.76991118i
A60: 35000 | B60: 35 | C60: 219911.4855i | D60: -48361061454.8167 | E60: -10635152864885500i | P60: 0 | Q60: 1+0.076969019925i | R60: -0.00118964819946609i | S60: -0.0483417170302348 | T60: 0.951658282969765+0.0757793717255339i | U60: 1 | V60: 1 | W60: 0 | X60: 0 | Z60: 1.05057619978726-0.00277724104542023i | AA60: 0.4285815074 | AB60: -0.151463378 | AD60: 4.39822971i | AE60: 1+4.39822971i | AH60: 1+4.39822971i
A61: 40000 | B61: 40 | C61: 251327.412i | D61: -63165468022.6178 | E61: -15875213605893300i | P61: 0 | Q61: 1+0.0879645942i | R61: -0.00177580139395522i | S61: -0.0631402018354088 | T61: 0.936859798164591+0.0861887928060448i | U61: 1 | V61: 1 | W61: 0 | X61: 0 | Z61: 1.06700286965865-0.00426861635465528i | AA61: 0.5633812551 | AB61: -0.229214376 | AD61: 5.02654824i | AE61: 1+5.02654824i | AH61: 1+5.02654824i
A62: 45000 | B62: 45 | C62: 282743.3385i | D62: -79943795466.1256 | E62: -22603575622453500i | P62: 0 | Q62: 1+0.098960168475i | R62: -0.00252843596912765i | S62: -0.0799118179479392 | T62: 0.920088182052061+0.0964317325058724i | U62: 1 | V62: 1 | W62: 0 | X62: 0 | Z62: 1.08619356566251-0.00628565719175738i | AA62: 0.7182899496 | AB62: -0.3315593282 | AD62: 5.65486677i | AE62: 1+5.65486677i | AH62: 1+5.65486677i
A63: 50000 | B63: 50 | C63: 314159.265i | D63: -98696043785.3402 | E63: -31006276574010300i | P63: 0 | Q63: 1+0.10995574275i | R63: -0.00346836209756879i | S63: -0.0986565653678261 | T63: 0.901343434632174+0.106487380652431i | U63: 1 | V63: 1 | W63: 0 | X63: 0 | Z63: 1.10839666057698-0.00895831050462997i | AA63: 0.8941878551 | AB63: -0.4630672635 | AD63: 6.2831853i | AE63: 1+6.2831853i | AH63: 1+6.2831853i
A64: 55000 | B64: 55 | C64: 345575.1915i | D64: -119422212980.262 | E64: -41269354120007700i | P64: 0 | Q64: 1+0.120951317025i | R64: -0.00461638995186406i | S64: -0.11937444409507 | T64: 0.88062555590493+0.116334927073136i | U64: 1 | V64: 1 | W64: 0 | X64: 0 | Z64: 1.1339119415625-0.0124482487823856i | AA64: 1.092109959 | AB64: -0.628976062 | AD64: 6.91150383i | AE64: 1+6.91150383i | AH64: 1+6.91150383i
A65: 60000 | B65: 60 | C65: 376991.118i | D65: -142122303050.89 | E65: -53578845919889800i | P65: 0 | Q65: 1+0.1319468913i | R65: -0.00599332970459887i | S65: -0.14206545412967 | T65: 0.85793454587033+0.125953561595401i | U65: 1 | V65: 1 | W65: 0 | X65: 0 | Z65: 1.1631003258263-0.0169590294511739i | AA65: 1.313266769 | AB65: -0.8353638461 | AD65: 7.53982236i | AE65: 1+7.53982236i | AH65: 1+7.53982236i
A66: 65000 | B66: 65 | C66: 408407.0445i | D66: -166796313997.225 | E66: -68120789633100600i | P66: 0 | Q66: 1+0.142942465575i | R66: -0.00761999152835863i | S66: -0.166729595471626 | T66: 0.833270404528374+0.135322474046641i | U66: 1 | V66: 1 | W66: 0 | X66: 0 | Z66: 1.19639605981863-0.0227498889631618i | AA66: 1.559069535 | AB66: -1.089367975 | AD66: 8.16814089i | AE66: 1+8.16814089i | AH66: 1+8.16814089i
A67: 70000 | B67: 70 | C67: 439822.971i | D67: -193444245819.267 | E67: -85081222919084300i | P67: 0 | Q67: 1+0.15393803985i | R67: -0.00951718559572877i | S67: -0.193366868120939 | T67: 0.806633131879061+0.144420854254271i | U67: 1 | V67: 1 | W67: 0 | X67: 0 | Z67: 1.23432201043572-0.0301547238275632i | AA67: 1.831160713 | AB67: -1.399468529 | AD67: 8.79645942i | AE67: 1+8.79645942i | AH67: 1+8.79645942i
A68: 75000 | B68: 75 | C68: 471238.8975i | D68: -222066098517.016 | E68: -104646183437285000i | P68: 0 | Q68: 1+0.164933614125i | R68: -0.0117057220792947i | S68: -0.221977272077609 | T68: 0.778022727922391+0.153227892045705i | U68: 1 | V68: 1 | W68: 0 | X68: 0 | Z68: 1.27750877655212-0.0396085636961541i | AA68: 2.131450634 | AB68: -1.775860031 | AD68: 9.42477795i | AE68: 1+9.42477795i | AH68: 1+9.42477795i
A69: 80000 | B69: 80 | C69: 502654.824i | D69: -252661872090.471 | E69: -127001708847146000i | P69: 0 | Q69: 1+0.1759291884i | R69: -0.0142064111516417i | S69: -0.252560807341635 | T69: 0.747439192658365+0.161722777248358i | U69: 1 | V69: 1 | W69: 0 | X69: 0 | Z69: 1.32671843606306-0.0516850094110243i | AA69: 2.462161357 | AB69: -2.23094524 | AD69: 10.05309648i | AE69: 1+10.05309648i | AH69: 1+10.05309648i
A70: 90000 | B70: 90 | C70: 565486.677i | D70: -319775181864.502 | E70: -180828604979628000i | P70: 0 | Q70: 1+0.19792033695i | R70: -0.0202274877530212i | S70: -0.319647271791756 | T70: 0.680352728208244+0.177692849196979i | U70: 1 | V70: 1 | W70: 0 | X70: 0 | Z70: 1.44709298035524-0.0870397594174791i | AA70: 3.225612215 | AB70: -3.442080077 | AD70: 11.30973354i | AE70: 1+11.30973354i | AH70: 1+11.30973354i
A71: 100000 | B71: 100 | C71: 628318.53i | D71: -394784175141.361 | E71: -248050212592082000i | P71: 0 | Q71: 1+0.2199114855i | R71: -0.0277468967805503i | S71: -0.394626261471305 | T71: 0.605373738528695+0.19216458871945i | U71: 1 | V71: 1 | W71: 0 | X71: 0 | Z71: 1.60541786286688-0.146344269997555i | AA71: 4.147700439 | AB71: -5.208487783 | AD71: 12.5663706i | AE71: 1+12.5663706i | AH71: 1+12.5663706i
A72: 110000 | B72: 110 | C72: 691150.383i | D72: -477688851921.047 | E72: -330154832960062000i | N72: =J72 ->  | O72: =IMSUM(L72:N72) ->  | P72: 1 | Q72: 1+0.24190263405i | R72: -0.0369311196149125i | S72: -0.477497776380279 | T72: =IMSUM(S72,R72,Q72) -> 0.522502223619721+0.204971514435088i | U72: 1 | V72: 1 | W72: 0 | X72: 0 | Z72: 1.81601781079008-0.249432980334241i | AA72: 5.263570496 | AB72: -7.820732309 | AD72: 13.82300766i | AE72: 1+13.82300766i | AH72: 1+13.82300766i
A73: 120000 | B73: 120 | C73: 753982.236i | D73: -568489212203.56 | E73: -428630767359118000i | P73: 2 | Q73: 1+0.2638937826i | R73: -0.0479466376367909i | S73: -0.568261816518679 | T73: 0.431738183481321+0.215947144963209i | U73: 1 | V73: 1 | W73: 0 | X73: 0 | Z73: 2.09725415352119-0.43777055480966i | AA73: 6.618238543 | AB73: -11.79034914 | AD73: 15.07964472i | AE73: 1+15.07964472i | AH73: 1+15.07964472i
A74: 130000 | B74: 130 | C74: 816814.089i | D74: -667185255988.9 | E74: -544966317064805000i | P74: 3 | Q74: 1+0.28588493115i | R74: -0.0609599322268691i | S74: -0.666918381886505 | T74: 0.333081618113495+0.224924998923131i | U74: 1 | V74: 1 | W74: 0 | X74: 0 | Z74: 2.4600564712321-0.802936137717432i | AA74: 8.258533392 | AB74: -18.0761292 | AD74: 16.33628178i | AE74: 1+16.33628178i | AH74: 1+16.33628178i
A75: 150000 | B75: 150 | C75: 942477.795i | D75: -888264394068.062 | E75: -837169467498278000i | P75: 4 | Q75: 1+0.32986722825i | R75: -0.0936457766343574i | S75: -0.887909088310435 | T75: 0.112090911689565+0.236221451615643i | U75: 1 | V75: 1 | W75: 0 | X75: 0 | Z75: 2.77938675294686-2.91445167327342i | AA75: 12.1002459 | AB75: -46.35887228 | AD75: 18.8495559i | AE75: 1+18.8495559i | AH75: 1+18.8495559i
A76: 160000 | B76: 160 | C76: 1005309.648i | D76: -1010647488361.88 | E76: -1016013670777170000i | P76: 5 | Q76: 1+0.3518583768i | R76: -0.113651289213134i | S76: -1.01024322936654 | T76: -0.01024322936654+0.238207087586866i | U76: 1 | V76: 1 | W76: 0 | X76: 0 | Z76: 1.29419724044521-4.25368014631354i | AA76: 12.95979018 | AB76: -73.0774314 | AD76: 20.10619296i | AE76: 1+20.10619296i | AH76: 1+20.10619296i
A77: 175000 | B77: 175 | C77: =COMPLEX(0,2*Pi*A77) -> 1099557.4275i | D77: =COMPLEX(-POWER(2*Pi*A77,2),0) -> -1209026536370.42 | E77: =COMPLEX(0,-POWER(2*Pi*A77,3)) -> -1329394108110690000i | I77: =IMPRODUCT((RdampSel*CdampSel+RdampSel*CinjSel),C77) ->  | L77: =IMPRODUCT(G77,L_infilterStd*RdampSel*CinjSel*CdampSel,E77) ->  | M77: =IMPRODUCT(G77,L_infilterStd*CinjSel,D77) ->  | P77: 6 | Q77: =IMSUM(IMPRODUCT(C77,RdampPssv*CdampPssv),1) -> 1+0.384845099625i | R77: =IMPRODUCT(RdampPssv*CdampPssv*CfilterPssv*LinfilterPssv,E77) -> -0.148706024933262i | S77: =IMPRODUCT(D77,LinfilterPssv*(CfilterPssv+CdampPssv)) -> -1.20854292575587 | T77: -0.20854292575587+0.236139074691738i | U77: 1 | V77: 1 | W77: 0 | X77: 0 | Z77: =IMDIV(Q77,T77) -> -1.18552956082797-3.18780870043445i | AA77: 10.63243437 | AB77: =IMARGUMENT(Z77)*180/Pi -> -110.3999075 | AD77: =IMPRODUCT((RdampCom*CdampCom+RdampCom*CinjCom),C77) -> 21.99114855i | AE77: 1+21.99114855i | AF77: =IMPRODUCT(G77,L_infilterStd*RdampSel*CinjSel*CdampSel,E77) ->  | AG77: =IMPRODUCT(G77,LAEFCom*CinjCom,D77) ->  | AH77: 1+21.99114855i | AN77: =IMARGUMENT(AK77)*180/Pi -> 
A78: 190000 | B78: 190 | C78: 1193805.207i | D78: -1425170872260.31 | E78: -1701376408169090000i | P78: 7 | Q78: 1+0.41783182245i | R78: -0.190315965017794i | S78: -1.42460080391141 | T78: -0.42460080391141+0.227515857432206i | U78: 1 | V78: 1 | W78: 0 | X78: 0 | Z78: -1.42011816933091-1.74500664759685i | AA78: =20*LOG10(IMABS(Z78)) -> 7.043035928 | AB78: -129.1393238 | AD78: 23.87610414i | AE78: =IMSUM(1,AD78) -> 1+23.87610414i | AH78: =AE78 -> 1+23.87610414i | AI78: =IMSUM(AF78:AH78) ->  | AK78: =IMDIV(AE78,AI78) ->  | AM78: =20*LOG10(IMABS(AK78)) -> 
A79: 200000 | B79: 200 | C79: 1256637.06i | D79: -1579136700565.44 | E79: -1984401700736660000i | P79: 0 | Q79: 1+0.439822971i | R79: -0.221975174244403i | S79: -1.57850504588521 | T79: -0.57850504588521+0.217847796755597i | U79: 1 | V79: 1 | W79: 0 | X79: 0 | Z79: -1.26317208366406-1.23594812428182i | AA79: 4.9459583 | AB79: -135.6241223 | AD79: 25.1327412i | AE79: 1+25.1327412i | AH79: 1+25.1327412i
A80: 300000 | B80: 300 | C80: 1884955.59i | D80: -3553057576272.25 | E80: -6697355739986230000i | P80: 0 | Q80: 1+0.6597344565i | R80: -0.74916621307486i | S80: -3.55163635324174 | T80: -2.55163635324174-0.08943175657486i | U80: 1 | V80: 1 | W80: 0 | X80: 0 | Z80: -0.400475408867723-0.244517302172491i | AA80: -6.57243309 | AB80: -148.5931141 | AD80: 37.6991118i | AE80: 1+37.6991118i | AH80: 1+37.6991118i
A81: 400000 | B81: 400 | C81: 2513274.12i | D81: -6316546802261.78 | E81: -15875213605893300000i | P81: 0 | Q81: 1+0.879645942i | R81: -1.77580139395522i | S81: -6.31402018354088 | T81: -5.31402018354088-0.89615545195522i | U81: 1 | V81: 1 | W81: 0 | X81: 0 | Z81: -0.210121191022436-0.130098243366712i | AA81: -12.14126087 | AB81: -148.2359428 | AD81: 50.2654824i | AE81: 1+50.2654824i | AH81: 1+50.2654824i
A82: 500000 | B82: 500 | C82: 3141592.65i | D82: -9869604378534.03 | E82: -31006276574010300000i | P82: 0 | Q82: 1+1.0995574275i | R82: -3.46836209756879i | S82: -9.86565653678262 | T82: -8.86565653678262-2.36880467006879i | U82: 1 | V82: 1 | W82: 0 | X82: 0 | Z82: -0.136208802833546-0.0876308907321328i | AA82: -15.81168415 | AB82: -147.2445124 | AD82: 62.831853i | AE82: 1+62.831853i | AH82: 1+62.831853i
A83: 600000 | B83: 600 | C83: 3769911.18i | D83: -14212230305089 | E83: -53578845919889800000i | G83: =IMSUM(IMPRODUCT(C83,Rcomp_AEF*Csen_AEF),Csen_AEF/Ccomp_AEF) ->  | P83: 0 | Q83: 1+1.319468913i | R83: -5.99332970459887i | S83: -14.206545412967 | T83: -13.206545412967-4.67386079159887i | U83: 1 | V83: =CHOOSE(INFILTER_TYPE,U83,IMDIV(J83,O83),IMDIV(Q83,T83)) -> 1 | W83: 0 | X83: =IMARGUMENT(V83)*180/Pi -> 0 | Z83: -0.0987148424567274-0.0649745603002369i | AA83: -18.5491821 | AB83: -146.646905 | AD83: 75.3982236i | AE83: 1+75.3982236i | AH83: 1+75.3982236i
A84: 700000 | B84: 700 | C84: 4398229.71i | D84: -19344424581926.7 | E84: -85081222919084300000i | P84: 0 | Q84: 1+1.5393803985i | R84: -9.51718559572877i | S84: -19.3366868120939 | T84: -18.3366868120939-7.97780519722877i | U84: 1 | V84: 1 | W84: 0 | X84: 0 | Z84: -0.0765669830392885-0.050638587700621i | AA84: -20.74338888 | AB84: -146.5208154 | AD84: 87.9645942i | AE84: 1+87.9645942i | AH84: 1+87.9645942i
A85: 800000 | B85: 800 | C85: 5026548.24i | D85: -25266187209047.1 | E85: -127001708847146000000i | P85: 0 | Q85: 1+1.759291884i | R85: -14.2064111516417i | S85: -25.2560807341635 | T85: -24.2560807341635-12.4471192676417i | U85: 1 | V85: 1 | W85: 0 | X85: 0 | Z85: -0.0620946151681225-0.040665794855093i | AA85: -22.58891903 | AB85: -146.7791907 | AD85: 100.5309648i | AE85: 1+100.5309648i | AH85: 1+100.5309648i
A86: 900000 | B86: 900 | C86: 5654866.77i | D86: -31977518186450.2 | E86: -180828604979628000000i | P86: 0 | Q86: 1+1.9792033695i | R86: -20.2274877530212i | S86: -31.9647271791756 | T86: -30.9647271791756-18.2482843835212i | U86: 1 | V86: 1 | W86: 0 | X86: 0 | Z86: -0.0519283597315569-0.033315323192724i | AA86: -24.19478124 | AB86: -147.3172642 | AD86: 113.0973354i | AE86: 1+113.0973354i | AH86: 1+113.0973354i
A87: 1000000 | B87: 1000 | C87: 6283185.3i | D87: -39478417514136.1 | E87: -248050212592083000000i | P87: 0 | Q87: 1+2.199114855i | R87: -27.7468967805504i | S87: -39.4626261471305 | T87: -38.4626261471305-25.5477819255504i | U87: 1 | V87: 1 | W87: 0 | X87: 0 | Z87: -0.044391344457259-0.0276895930961649i | AA87: -25.62676805 | AB87: -148.0456906 | AD87: 125.663706i | AE87: 1+125.663706i | AH87: 1+125.663706i
A88: 2000000 | B88: 2000 | C88: 12566370.6i | D88: -157913670056544 | E88: -1.98440170073666E+21i | P88: 0 | Q88: 1+4.39822971i | R88: -221.975174244403i | S88: -157.850504588521 | T88: -156.850504588521-217.576944534403i | U88: 1 | V88: 1 | W88: 0 | X88: 0 | Z88: -0.0154820114155727-0.00656485596685991i | AA88: -35.48535935 | AB88: -157.0215402 | AD88: 251.327412i | AE88: 1+251.327412i | AH88: 1+251.327412i
A89: 3000000 | B89: 3000 | C89: 18849555.9i | D89: -355305757627225 | E89: -6.69735573998623E+21i | P89: 0 | Q89: 1+6.597344565i | R89: -749.16621307486i | S89: -355.163635324174 | T89: -354.163635324174-742.56886850986i | U89: 1 | V89: 1 | W89: 0 | X89: 0 | Z89: -0.00776127767315144-0.00235501700871593i | AA89: -41.81882784 | AB89: -163.1205442 | AD89: 376.991118i | AE89: 1+376.991118i | AH89: 1+376.991118i
A90: 4000000 | B90: 4000 | C90: 25132741.2i | D90: -631654680226178 | E90: -1.58752136058933E+22i | P90: 0 | Q90: 1+8.79645942i | R90: -1775.80139395522i | S90: -631.402018354088 | T90: -630.402018354088-1767.00493453522i | U90: 1 | V90: 1 | W90: 0 | X90: 0 | Z90: -0.00459520096124435-0.00107346840047734i | AA90: -46.52314764 | AB90: -166.8511405 | AD90: 502.654824i | AE90: 1+502.654824i | AH90: 1+502.654824i
A91: 5000000 | B91: 5000 | C91: 31415926.5i | D91: -986960437853403 | E91: -3.10062765740103E+22i | P91: 0 | Q91: 1+10.995574275i | R91: -3468.36209756879i | S91: -986.565653678262 | T91: -985.565653678262-3457.36652329379i | U91: 1 | V91: 1 | W91: 0 | X91: 0 | Z91: -0.00301757308495533-0.000570959537178404i | AA91: -50.25408082 | AB91: -169.2856429 | AD91: 628.31853i | AE91: 1+628.31853i | AH91: 1+628.31853i
A92: 6000000 | B92: 6000 | C92: 37699111.8i | D92: -1421223030508900 | E92: -5.35788459198898E+22i | P92: 0 | Q92: 1+13.19468913i | R92: -5993.32970459887i | S92: -1420.6545412967 | T92: -1419.6545412967-5980.13501546887i | U92: 1 | V92: 1 | W92: 0 | X92: 0 | Z92: -0.00212628728062533-0.000337549802608077i | AA92: -53.33946751 | AB92: -170.9795243 | AD92: 753.982236i | AE92: 1+753.982236i | AH92: 1+753.982236i
A93: 7000000 | B93: 7000 | C93: 43982297.1i | D93: -1934442458192670 | E93: -8.50812229190843E+22i | P93: 0 | Q93: 1+15.393803985i | R93: -9517.18559572877i | S93: -1933.66868120939 | T93: -1932.66868120939-9501.79179174377i | U93: 1 | V93: 1 | W93: 0 | X93: 0 | Z93: -0.00157628762603077-0.000215374297002146i | AA93: -55.96696055 | AB93: -172.2196335 | AD93: 879.645942i | AE93: 1+879.645942i | AH93: 1+879.645942i
A94: 8000000 | B94: 8000 | C94: 50265482.4i | D94: -2526618720904710 | E94: -1.27001708847146E+23i | P94: 0 | Q94: 1+17.59291884i | R94: -14206.4111516417i | S94: -2525.60807341635 | T94: -2524.60807341635-14188.8182328017i | U94: 1 | V94: 1 | W94: 0 | X94: 0 | Z94: -0.00121401992445827-0.000145531817287078i | AA94: -58.25351868 | AB94: -173.1642323 | AD94: 1005.309648i | AE94: 1+1005.309648i | AH94: 1+1005.309648i
A95: 9000000 | B95: 9000 | C95: 56548667.7i | D95: -3197751818645020 | E95: -1.80828604979628E+23i | P95: 0 | Q95: 1+19.792033695i | R95: -20227.4877530212i | S95: -3196.47271791756 | T95: -3195.47271791756-20207.6957193262i | U95: 1 | V95: 1 | W95: 0 | X95: 0 | Z95: -0.000963171180292813-0.000102821581350465i | AA95: -60.27671707 | AB95: -173.9065713 | AD95: 1130.973354i | AE95: 1+1130.973354i | AH95: 1+1130.973354i
A96: 10000000 | B96: 10000 | C96: 62831853i | D96: -3947841751413610 | E96: -2.48050212592082E+23i | P96: 0 | Q96: 1+21.99114855i | R96: -27746.8967805503i | S96: -3946.26261471304 | T96: -3945.26261471304-27724.9056320003i | U96: 1 | V96: 1 | W96: 0 | X96: 0 | Z96: -0.000782478973720499-0.0000752783461022707i | AA96: -62.09053569 | AB96: -174.5047748 | AD96: 1256.63706i | AE96: 1+1256.63706i | AH96: 1+1256.63706i
A97: =Fsw -> 2200000 | B97: =A97/1000 -> 2200 | C97: 13823007.66i | D97: -191075540768419 | E97: -2.64123866368049E+21i | J97: =IMSUM(1,I97) ->  | N97: =J97 ->  | O97: =IMSUM(L97:N97) ->  | P97: 2 | Q97: 1+4.838052681i | R97: -295.4489569193i | S97: -190.999110552112 | T97: =IMSUM(S97,R97,Q97) -> -189.999110552112-290.6109042383i | U97: 1 | V97: 1 | W97: =20*LOG10(IMABS(V97)) -> 0 | X97: 0 | Z97: -0.0132387578455215-0.00521436805489343i | AA97: -36.93672901 | AB97: -158.5019385 | AD97: 276.4601532i | AE97: 1+276.4601532i | AH97: 1+276.4601532i

Sheet Standard Value Calculator (hidden)
A2: Capacitors | B2: Css | C2: Cc1ea | D2: Cc2ea | E2: Cout | F2: Cin | G2: Cres | H2: Cdither | I2: Cc3ea | J2: Cc4ea | K2: Cin_Passive | L2: Cdamp_Pssv | M2: Cinj_AEF | N2: Cdamp_AEF
A3: Inputs | B3: =Css -> 0 | C3: =Cc1ea -> 7.496531321e-10 | D3: =Cc2ea -> -5.680190665e-11 | E3: =Cout -> 0.00054 | F3: =Cin -> 3e-05 | G3: =Cres -> 6.666666667e-08 | H3: =Cdither_init ->  | I3: =Cc3ea -> 0 | J3: =Cc4ea -> 0 | K3: ='Variable Management'!B292*0.000001 ->  | L3: =K3*4 ->  | M3: =Cinj_AEF*0.000001 ->  | N3: ='Variable Management'!B295*0.000001 ->  | Q3: Resistors | R3: inputs | S3: Standard Result
A4: Standard Result | B4: =SUM(B6:B158)/1000000000000 -> 0 | C4: =IF(C3="OPEN","OPEN",SUM(C6:C158)/1000000000000) -> 6.8e-10 | D4: =SUM(D6:D158)/1000000000000 -> 0 | E4: =SUM(E6:E158)/1000000000000 -> 0.00056 | F4: =SUM(F6:F158)/1000000000000 -> 3.3e-05 | G4: =SUM(G6:G158)/1000000000000 -> 6.8e-08 | H4: =IF(H3="OPEN","OPEN",SUM(H6:H158)/1000000000000) ->  | I4: 0 | J4: 0 | Q4: Rt | R4: =Rfadj -> 10 | S4: =IF(R4>(INT(0.5+100*POWER(10,IF(96*(LOG(R4)-INT(LOG(R4)))-ROUND(96*(LOG(R4)-INT(LOG(R4))),0)<0,ROUND(96*(LOG(R4)-INT(LOG(R4))),0)-1,ROUND(96*(LOG(R4)-INT(LOG(R4))),0))/96))*POWER(10,INT(LOG(R4))-2)+INT(0.5+100*POWER(10,(IF(96*(LOG(R4)-INT(LOG(R4)))-ROUND(96*(LOG(R4)-INT(LOG(R4))),0)<0,ROUND(96*(LOG(R4)-INT(LOG(R4))),0)-1,ROUND(96*(LOG(R4)-INT(LOG(R4))),0))+1)/96))*POWER(10,INT(LOG(R4))-2))/2,INT(0.5+100*POWER(10,(IF(96*(LOG(R4)-INT(LOG(R4)))-ROUND(96*(LOG(R4)-INT(LOG(R4))),0)<0,ROUND(96*(LOG(R4)-INT(LOG(R4))),0)-1,ROUND(96*(LOG(R4)-INT(LOG(R4))),0))+1)/96))*POWER(10,INT(LOG(R4))-2),INT(0.5+100*POWER(10,IF(96*(LOG(R4)-INT(LOG(R4)))-ROUND(96*(LOG(R4)-INT(LOG(R4))),0)<0,ROUND(96*(LOG(R4)-INT(LOG(R4))),0)-1,ROUND(96*(LOG(R4)-INT(LOG(R4))),0))/96))*POWER(10,INT(LOG(R4))-2)) -> 10 | T4: Ω
A5: (pF)
A6: 0.47 | B6: =IF(IF((B$3*10^12-$A7)*(B$3*10^12-$A6)*-1<0,0,1)*IF(ABS(B$3*10^12-$A7)>(B$3*10^12-$A6),$A6,$A7)=B7,0,IF((B$3*10^12-$A7)*(B$3*10^12-$A6)*-1<0,0,1)*IF(ABS(B$3*10^12-$A7)>(B$3*10^12-$A6),$A6,$A7)) -> 0 | C6: 0 | D6: 0 | E6: 0 | F6: 0 | G6: 0 | I6: 0 | J6: 0
